{"text_format":"1","workbook":"xlsx","n_sheets":2,"sheets":["NamingConventionTool_SY1516","Required Values"],"not_rendered":{"charts":0,"images":2,"macros":1,"external_links":0,"defined_names":3,"comments":0,"pivot_tables":0},"unopened":[],"bounds":{"document_bytes":16777216,"sheet_cells":100000,"rows_first":2000,"rows_last":500,"rows_between":2000,"halvings":0,"cell_chars":16384,"cell_head_chars":4096},"cells_cut":0,"cells_raw":0,"read":"whole","date_system":"1900"}

{"sheet":"NamingConventionTool_SY1516","index":0,"n_rows":16,"n_cols":54,"rows_kept":16,"cut":false,"hidden":false,"merged":[[0,0,0,19],[14,3,14,4],[10,6,10,9],[15,0,23,19],[3,13,3,18],[8,6,8,9],[6,6,6,9],[4,6,4,9],[4,13,4,18]]}
["CC Session Naming Conventions Tool (2015-2016)"]
[null,null,null,null,null,null,null,null,null,null,null,null,null,null,null,null,null,null,null,null,null,null,null,null,null,null,null,null,null,null,null,null,null,null,null,null,null,null,null,null,null,null,null,null,null,null,null,null,null,null,null,null,{"$f":"IFERROR(CONCATENATE(BA6,BA7,BA8,BA4),\"\")","v":""},{"$f":"LEN(BA2)","v":0}]
[null,null,null,null,null,null,null,null,null,null,null,null,null,null,null,null,null,null,null,null,null,null,null,null,null,null,null,null,null,null,null,null,null,null,null,null,null,null,null,null,null,null,null,null,null,null,null,null,null,null,null,null,"Values","Char Used"]
[null,null,null,"*Required Fields",null,null,null,null,null,null,null,null,null,"Course/Program Field",null,null,null,null,null,null,null,null,null,null,null,null,null,null,null,null,null,null,null,null,null,null,null,null,null,null,null,null,null,null,null,null,null,null,null,null,null,null,{"$f":"IF(AND(BA6=\"\",BA7=\"\",BA8=\"\"),VLOOKUP(G5,'Required Values'!A:B,2,FALSE),CONCATENATE(\"_\",VLOOKUP(G5,'Required Values'!A:B,2,FALSE)))","v":{"$error":"#N/A"}},{"$f":"LEN(BA4)","v":{"$error":"#N/A"}}]
[null,"Session Requirement*",null,null,null,null,null,null,null,null,null,null,null,{"$f":"CONCATENATE(\"Character's Remaining: \",(64 -BB2), \"/64\")","v":"Character's Remaining: 64/64"}]
[null,null,null,null,null,null,null,null,null,null,null,null,null,null,null,null,null,null,null,null,null,null,null,null,null,null,null,null,null,null,null,null,null,null,null,null,null,null,null,null,null,null,null,null,null,null,null,null,null,null,null,null,{"$f":"IFERROR(VLOOKUP(G7,'Required Values'!E:G,3,FALSE),\"\")","v":""},{"$f":"LEN(BA6)","v":0}]
[null,"Course Name",null,null,null,null,null,null,null,null,null,null,null,null,null,null,null,null,null,null,null,null,null,null,null,null,null,null,null,null,null,null,null,null,null,null,null,null,null,null,null,null,null,null,null,null,null,null,null,null,null,null,{"$f":"IF(G9=0,\"\",IF(BA6=\"\",G9,CONCATENATE(\"_\",G9)))","v":""},0]
[null,null,null,null,null,null,null,null,null,null,null,null,null,null,null,null,null,null,null,null,null,null,null,null,null,null,null,null,null,null,null,null,null,null,null,null,null,null,null,null,null,null,null,null,null,null,null,null,null,null,null,null,{"$f":"IF(G11=0,\"\",IF(AND(BA6=\"\",BA7=\"\"),G11,CONCATENATE(\"_\",G11)))","v":""},0]
[null,"Unit # or Custom Text (Homeroom, DIBELS)"]
[null,null,null,null,null,null,null,null,null,null,null,null,null,null,null,null,null,null,null,null,null,null,null,null,null,null,null,null,null,null,null,null,null,null,null,null,null,null,null,null,null,null,null,null,null,null,null,null,null,null,null,null,"Total Req'd:",{"$f":"SUM(BB4:BB9)","v":{"$error":"#N/A"}}]
[null,"Lesson # or Program (SPED, FAST, Title 1)"]
[]
[]
[]
[]
["At a minimum choose Required or Optional. It is recommended to also select a Course Name so that the course code populates as well.\nExamples: ART-010AV1-K_REQ or ART-010AV1-K_OPT\n\n If the session is not directly related to a course, leave the Course Name blank and use custom text in the Unit # area to describe the session.\nExamples: Homeroom_OPT or DIBELS_REQ\n\nCourse related sessions may also include the unit number and lesson number.  This is entirely optional.\nExample: ART-010AV1-K_Unit 1_Lesson 2_REQ"]

{"sheet":"Required Values","index":1,"n_rows":3341,"n_cols":7,"rows_kept":3341,"cut":false,"hidden":true,"merged":[]}
["Full_SessionRequirement","Code_SessionRequirement","Full_Subject","Code_Subject","Con_CourseName&Code","Full_CourseName","Code_CourseCode"]
["Required","REQ","Advisory/Homeroom","ADV",{"$f":"CONCATENATE(G2,\": '\",F2,\"'\")","v":"APEXAPCHEMTEST: 'Apex AP Chemistry A Test Course'"},"Apex AP Chemistry A Test Course","APEXAPCHEMTEST"]
["Optional","OPT","Art","ART","ART-010AV1-K: 'ART010A:   Fine Art'","ART010A:   Fine Art","ART-010AV1-K"]
[null,null,"Business","BUS","ART-010AV1TX-K: 'ART010A: Fine Art - TX'","ART010A: Fine Art - TX","ART-010AV1TX-K"]
[null,null,"Chinese","CHI","ART-010BV1-K: 'ART010B:   Fine Art'","ART010B:   Fine Art","ART-010BV1-K"]
[null,null,"Elective","ELE","ART-010BV1TX-K: 'ART010B: Fine Art - TX'","ART010B: Fine Art - TX","ART-010BV1TX-K"]
[null,null,"English","ENG","ART-020AV1-A: 'ART020A:   Music Appreciation'","ART020A:   Music Appreciation","ART-020AV1-A"]
[null,null,"Finding Your Path","FYP","ART-020BV1-A: 'ART020B:   Music Appreciation'","ART020B:   Music Appreciation","ART-020BV1-A"]
[null,null,"French","FRE","ART-020BVS1-K: 'ART020BS: Music Appreciation'","ART020BS: Music Appreciation","ART-020BVS1-K"]
[null,null,"German","GER","ART-500AV1-AVT: 'ART500A-AVT: AP(R) Art History'","ART500A-AVT: AP(R) Art History","ART-500AV1-AVT"]
[null,null,"History","HST","ART-500BV1-AVT: 'ART500B-AVT: AP(R) Art History'","ART500B-AVT: AP(R) Art History","ART-500BV1-AVT"]
[null,null,"Japanese","JAP","AT-010V-K: 'Physical Education 2008-2009 (CAVA)'","Physical Education 2008-2009 (CAVA)","AT-010V-K"]
[null,null,"Latin","LAT","ATELL: 'ELL English as a Learned Language'","ELL English as a Learned Language","ATELL"]
[null,null,"Math","MTH","ATHILA: 'LA State History'","LA State History","ATHILA"]
[null,null,"Music","MUS","ATT-014V1-K: 'Math PSSA Prep'","Math PSSA Prep","ATT-014V1-K"]
[null,null,"Science","SCI","ATT-015V1-K: 'English PSSA Prep'","English PSSA Prep","ATT-015V1-K"]
[null,null,"Spanish","SPA","ATT-019V1-K: 'CAVA Physical Education 9'","CAVA Physical Education 9","ATT-019V1-K"]
[null,null,"Technology","TCH","ATT-021V1-K: 'CAVA Physical Education 10'","CAVA Physical Education 10","ATT-021V1-K"]
[null,null,"Writing","WRI","ATT-038V1-K: 'FVD1000 Directed Student in Art Problems'","FVD1000 Directed Student in Art Problems","ATT-038V1-K"]
[null,null,null,null,"ATT-040V1-K: 'TAG2210 Electronic Media I: iLife'","TAG2210 Electronic Media I: iLife","ATT-040V1-K"]
[null,null,null,null,"ATT-041V1-K: 'TCG1202 Microsoft Office Applications'","TCG1202 Microsoft Office Applications","ATT-041V1-K"]
[null,null,null,null,"ATT-043V1-K: 'LVH5370 Argumentation and Debate I'","LVH5370 Argumentation and Debate I","ATT-043V1-K"]
[null,null,null,null,"ATT-044V1-K: 'LLH5371 Argumentation and Debate II'","LLH5371 Argumentation and Debate II","ATT-044V1-K"]
[null,null,null,null,"ATT-049V1-K: 'WAJ8010 Japanese, Conversation and Culture A'","WAJ8010 Japanese, Conversation and Culture A","ATT-049V1-K"]
[null,null,null,null,"ATT-050V1-K: 'WAJ8020 Japanese, Conversation and Culture B'","WAJ8020 Japanese, Conversation and Culture B","ATT-050V1-K"]
[null,null,null,null,"ATT-052V1-K: 'PEP1005 Physical Education Lifetime Fitness'","PEP1005 Physical Education Lifetime Fitness","ATT-052V1-K"]
[null,null,null,null,"ATT-053V1-K: 'PBP1110 Body Conditioning Lifetime Activities'","PBP1110 Body Conditioning Lifetime Activities","ATT-053V1-K"]
[null,null,null,null,"ATT-054V1-K: 'CER2200 Hawaiian Studies'","CER2200 Hawaiian Studies","ATT-054V1-K"]
[null,null,null,null,"ATT-055V1-K: 'FDP1000 Polynesian Dance 1'","FDP1000 Polynesian Dance 1","ATT-055V1-K"]
[null,null,null,null,"ATT-056V1-K: 'FDP2000 Polynesian Dance 2'","FDP2000 Polynesian Dance 2","ATT-056V1-K"]
[null,null,null,null,"ATT-057V1-K: 'FDP3000 Polynesian Dance 3'","FDP3000 Polynesian Dance 3","ATT-057V1-K"]
[null,null,null,null,"ATT-058V1-K: 'FML2000 Ukulele 2'","FML2000 Ukulele 2","ATT-058V1-K"]
[null,null,null,null,"ATT-059V1-K: 'FML3000 Ukulele 3'","FML3000 Ukulele 3","ATT-059V1-K"]
[null,null,null,null,"ATT-060V1-K: 'FML4000 Ukulele 4'","FML4000 Ukulele 4","ATT-060V1-K"]
[null,null,null,null,"ATT-078V1-K: 'Algebra 1A'","Algebra 1A","ATT-078V1-K"]
[null,null,null,null,"ATT-079V1-K: 'Algebra 1B'","Algebra 1B","ATT-079V1-K"]
[null,null,null,null,"ATT-359V1-K: 'A+ Social Studies (Attendance)'","A+ Social Studies (Attendance)","ATT-359V1-K"]
[null,null,null,null,"ATT-360V1-K: 'A+ Science (Attendance)'","A+ Science (Attendance)","ATT-360V1-K"]
[null,null,null,null,"ATT-361V1-K: 'A+ English (Attendance)'","A+ English (Attendance)","ATT-361V1-K"]
[null,null,null,null,"ATT-362V1-K: 'A+ Elective (Attendance)'","A+ Elective (Attendance)","ATT-362V1-K"]
[null,null,null,null,"ATT-375V1-K: 'A+ English III A (Attendance)'","A+ English III A (Attendance)","ATT-375V1-K"]
[null,null,null,null,"ATT-376V1-K: 'A+ English IV A (Attendance)'","A+ English IV A (Attendance)","ATT-376V1-K"]
[null,null,null,null,"ATT-377V1-K: 'NO'","NO","ATT-377V1-K"]
[null,null,null,null,"ATT-378V1-K: 'A+ Pre-Algebra A (Attendance)'","A+ Pre-Algebra A (Attendance)","ATT-378V1-K"]
[null,null,null,null,"ATT-379V1-K: 'A+ HSPE Math Prep (Attendance)'","A+ HSPE Math Prep (Attendance)","ATT-379V1-K"]
[null,null,null,null,"ATT-380V1-K: 'A+ HSPE Science Prep (Attendance)'","A+ HSPE Science Prep (Attendance)","ATT-380V1-K"]
[null,null,null,null,"ATT-381V1-K: 'A+ HSPE Language Arts Prep (Attendance)'","A+ HSPE Language Arts Prep (Attendance)","ATT-381V1-K"]
[null,null,null,null,"ATT-382V1-K: 'A+ Computer Literacy A (Attendance)'","A+ Computer Literacy A (Attendance)","ATT-382V1-K"]
[null,null,null,null,"ATT-383V1-K: 'NO'","NO","ATT-383V1-K"]
[null,null,null,null,"ATT-384V1-K: 'A+ Chemistry I (Attendance)'","A+ Chemistry I (Attendance)","ATT-384V1-K"]
[null,null,null,null,"ATT-385V1-K: 'A+ American History A (Attendance)'","A+ American History A (Attendance)","ATT-385V1-K"]
[null,null,null,null,"ATT-386V1-K: 'A+ World History A (Attendance)'","A+ World History A (Attendance)","ATT-386V1-K"]
[null,null,null,null,"ATT-387V1-K: 'A+ Physical Education (Attendance)'","A+ Physical Education (Attendance)","ATT-387V1-K"]
[null,null,null,null,"ATT-389V1-K: 'A+ Algebra II A'","A+ Algebra II A","ATT-389V1-K"]
[null,null,null,null,"ATT-419V1-K: 'Physical Education Lesson Instruction'","Physical Education Lesson Instruction","ATT-419V1-K"]
[null,null,null,null,"ATT-420V1-K: 'Physical Education Activity'","Physical Education Activity","ATT-420V1-K"]
[null,null,null,null,"ATT-421V1-K: 'A+ English I A (Attendance)'","A+ English I A (Attendance)","ATT-421V1-K"]
[null,null,null,null,"ATT-422V1-K: 'A+ English I B (Attendance)'","A+ English I B (Attendance)","ATT-422V1-K"]
[null,null,null,null,"ATT-426V1-K: 'A+ English IV B (Attendance)'","A+ English IV B (Attendance)","ATT-426V1-K"]
[null,null,null,null,"ATT-436V1-K: 'A+ Pre-Algebra B (Attendance)'","A+ Pre-Algebra B (Attendance)","ATT-436V1-K"]
[null,null,null,null,"ATT-438V1-K: 'A+ Geometry B (Attendance)'","A+ Geometry B (Attendance)","ATT-438V1-K"]
[null,null,null,null,"ATT-440V1-K: 'A+ Pre-Calculus (Attendance)'","A+ Pre-Calculus (Attendance)","ATT-440V1-K"]
[null,null,null,null,"ATT-458V1-K: 'A+ ACT Prep Math (Attendance)'","A+ ACT Prep Math (Attendance)","ATT-458V1-K"]
[null,null,null,null,"ATT-467V1-K: 'A+ Earth Science A (Attendance)'","A+ Earth Science A (Attendance)","ATT-467V1-K"]
[null,null,null,null,"ATT-468V1-K: 'A+ Earth Science B (Attendance)'","A+ Earth Science B (Attendance)","ATT-468V1-K"]
[null,null,null,null,{"$f":"CONCATENATE(G66,\": '\",F66,\"'\")","v":"ATT-471V1-K: 'A+ Physical Science A (Attendance)'"},"A+ Physical Science A (Attendance)","ATT-471V1-K"]
[null,null,null,null,"ATT-472V1-K: 'A+ Physical Science B (Attendance)'","A+ Physical Science B (Attendance)","ATT-472V1-K"]
[null,null,null,null,"ATT-473V1-K: 'NO'","NO","ATT-473V1-K"]
[null,null,null,null,"ATT-475V1-K: 'A+ Biology A (Attendance)'","A+ Biology A (Attendance)","ATT-475V1-K"]
[null,null,null,null,"ATT-476V1-K: 'A+ Biology B (Attendance)'","A+ Biology B (Attendance)","ATT-476V1-K"]
[null,null,null,null,"ATT-477V1-K: 'A+ Chemistry II (Attendance)'","A+ Chemistry II (Attendance)","ATT-477V1-K"]
[null,null,null,null,"ATT-486V1-K: 'NO'","NO","ATT-486V1-K"]
[null,null,null,null,"ATT-487V1-K: 'A+ American History B (Attendance)'","A+ American History B (Attendance)","ATT-487V1-K"]
[null,null,null,null,"ATT-488V1-K: 'A+ World History B (Attendance)'","A+ World History B (Attendance)","ATT-488V1-K"]
[null,null,null,null,"ATT-489V1-K: 'A+ Sociology (Attendance)'","A+ Sociology (Attendance)","ATT-489V1-K"]
[null,null,null,null,"ATT-490V1-K: 'A+ Psychology (Attendance)'","A+ Psychology (Attendance)","ATT-490V1-K"]
[null,null,null,null,"ATT-491V1-K: 'A+ Anthropology (Attendance)'","A+ Anthropology (Attendance)","ATT-491V1-K"]
[null,null,null,null,"ATT-553V1-K: 'NO'","NO","ATT-553V1-K"]
[null,null,null,null,"ATT-554V1-K: 'NO'","NO","ATT-554V1-K"]
[null,null,null,null,"ATT-555V1-K: 'NO'","NO","ATT-555V1-K"]
[null,null,null,null,"ATT-556V1-K: 'A+ Math 6  (Attendance)'","A+ Math 6  (Attendance)","ATT-556V1-K"]
[null,null,null,null,"ATT-560V1-K: 'A+ Algebra Fundamentals (Attendance)'","A+ Algebra Fundamentals (Attendance)","ATT-560V1-K"]
[null,null,null,null,"ATT-562V1-K: 'A+ Science Fundamentals (Attendance)'","A+ Science Fundamentals (Attendance)","ATT-562V1-K"]
[null,null,null,null,"ATT-563V1-K: 'A+ General Life Science (Attendance)'","A+ General Life Science (Attendance)","ATT-563V1-K"]
[null,null,null,null,"AV-ACCTa-HS-A07: 'Accounting A'","Accounting A","AV-ACCTa-HS-A07"]
[null,null,null,null,"AV-ACCTb-HS-A07: 'Accounting B'","Accounting B","AV-ACCTb-HS-A07"]
[null,null,null,null,"AV-ALG1a-CR-A09: 'Algebra I A CR*'","Algebra I A CR*","AV-ALG1a-CR-A09"]
[null,null,null,null,"AV-ALG1a-CR-CA10: 'Algebra I A CR-CA'","Algebra I A CR-CA","AV-ALG1a-CR-CA10"]
[null,null,null,null,"AV-ALG1a-CR-U11: 'Algebra I A CR'","Algebra I A CR","AV-ALG1a-CR-U11"]
[null,null,null,null,"AV-ALG1a-FN-A08: 'Algebra I A FN'","Algebra I A FN","AV-ALG1a-FN-A08"]
[null,null,null,null,"AV-ALG1a-HS-A08: 'Algebra I A*'","Algebra I A*","AV-ALG1a-HS-A08"]
[null,null,null,null,"AV-ALG1a-HS-CA10: 'Algebra I A-CA'","Algebra I A-CA","AV-ALG1a-HS-CA10"]
[null,null,null,null,"AV-ALG1a-HSs-A08: 'Algebra I A - Summer*'","Algebra I A - Summer*","AV-ALG1a-HSs-A08"]
[null,null,null,null,"AV-ALG1a-HSs-U12: 'Algebra I A - Summer'","Algebra I A - Summer","AV-ALG1a-HSs-U12"]
[null,null,null,null,"AV-ALG1a-HS-TX08: 'Algebra I A-TX'","Algebra I A-TX","AV-ALG1a-HS-TX08"]
[null,null,null,null,"AV-ALG1a-HS-U12: 'Algebra I A'","Algebra I A","AV-ALG1a-HS-U12"]
[null,null,null,null,"AV-ALG1b-CR-A09: 'Algebra I B CR*'","Algebra I B CR*","AV-ALG1b-CR-A09"]
[null,null,null,null,"AV-ALG1b-CR-CA10: 'Algebra I B CR-CA'","Algebra I B CR-CA","AV-ALG1b-CR-CA10"]
[null,null,null,null,"AV-ALG1b-CR-U11: 'Algebra I B CR'","Algebra I B CR","AV-ALG1b-CR-U11"]
[null,null,null,null,"AV-ALG1b-FN-A08: 'Algebra I B FN'","Algebra I B FN","AV-ALG1b-FN-A08"]
[null,null,null,null,"AV-ALG1b-HS-A08: 'Algebra I B*'","Algebra I B*","AV-ALG1b-HS-A08"]
[null,null,null,null,"AV-ALG1b-HS-CA10: 'Algebra I B-CA'","Algebra I B-CA","AV-ALG1b-HS-CA10"]
[null,null,null,null,"AV-ALG1b-HSs-A08: 'Algebra I B - Summer*'","Algebra I B - Summer*","AV-ALG1b-HSs-A08"]
[null,null,null,null,"AV-ALG1b-HSs-U12: 'Algebra I B - Summer'","Algebra I B - Summer","AV-ALG1b-HSs-U12"]
[null,null,null,null,"AV-ALG1b-HS-TX08: 'Algebra I B-TX'","Algebra I B-TX","AV-ALG1b-HS-TX08"]
[null,null,null,null,"AV-ALG1b-HS-U12: 'Algebra I B'","Algebra I B","AV-ALG1b-HS-U12"]
[null,null,null,null,"AV-ALG2a-CR-A09: 'Algebra II A CR'","Algebra II A CR","AV-ALG2a-CR-A09"]
[null,null,null,null,"AV-ALG2a-FN-A08: 'Algebra II A FN'","Algebra II A FN","AV-ALG2a-FN-A08"]
[null,null,null,null,"AV-ALG2a-HS-A09: 'Algebra II A*'","Algebra II A*","AV-ALG2a-HS-A09"]
[null,null,null,null,"AV-ALG2a-HSs-A09: 'Algebra II A - Summer*'","Algebra II A - Summer*","AV-ALG2a-HSs-A09"]
[null,null,null,null,"AV-ALG2a-HSs-U12: 'Algebra II A - Summer'","Algebra II A - Summer","AV-ALG2a-HSs-U12"]
[null,null,null,null,"AV-ALG2a-HS-U12: 'Algebra II A'","Algebra II A","AV-ALG2a-HS-U12"]
[null,null,null,null,"AV-ALG2b-CR-A09: 'Algebra II B CR'","Algebra II B CR","AV-ALG2b-CR-A09"]
[null,null,null,null,"AV-ALG2b-FN-A08: 'Algebra II B FN'","Algebra II B FN","AV-ALG2b-FN-A08"]
[null,null,null,null,"AV-ALG2b-HS-A09: 'Algebra II B*'","Algebra II B*","AV-ALG2b-HS-A09"]
[null,null,null,null,"AV-ALG2b-HSs-A09: 'Algebra II B - Summer*'","Algebra II B - Summer*","AV-ALG2b-HSs-A09"]
[null,null,null,null,"AV-ALG2b-HSs-U12: 'Algebra II B - Summer'","Algebra II B - Summer","AV-ALG2b-HSs-U12"]
[null,null,null,null,"AV-ALG2b-HS-U12: 'Algebra II B'","Algebra II B","AV-ALG2b-HS-U12"]
[null,null,null,null,"AV-AMGOVTs-HS-A07: 'American (US) Government'","American (US) Government","AV-AMGOVTs-HS-A07"]
[null,null,null,null,"AV-AMGOVTs-HSs-A07: 'American (US) Government - Summer'","American (US) Government - Summer","AV-AMGOVTs-HSs-A07"]
[null,null,null,null,"AV-AMHISTa-AP-U10: 'AP(R) US History A'","AP(R) US History A","AV-AMHISTa-AP-U10"]
[null,null,null,null,"AV-AMHISTa-FN-A08: 'American History A FN'","American History A FN","AV-AMHISTa-FN-A08"]
[null,null,null,null,"AV-AMHISTa-HS-A08: 'American History A - AVT*'","American History A - AVT*","AV-AMHISTa-HS-A08"]
[null,null,null,null,"AV-AMHISTa-HSs-A08: 'American History A - AVT - Summer'","American History A - AVT - Summer","AV-AMHISTa-HSs-A08"]
[null,null,null,null,"AV-AMHISTa-HS-WA10: 'American History A-WA'","American History A-WA","AV-AMHISTa-HS-WA10"]
[null,null,null,null,"AV-AMHISTb-AP-U10: 'AP(R) US History B'","AP(R) US History B","AV-AMHISTb-AP-U10"]
[null,null,null,null,"AV-AMHISTb-FN-A08: 'American History B FN'","American History B FN","AV-AMHISTb-FN-A08"]
[null,null,null,null,"AV-AMHISTb-HS-A08: 'American History B - AVT*'","American History B - AVT*","AV-AMHISTb-HS-A08"]
[null,null,null,null,"AV-AMHISTb-HSs-A08: 'American History B - AVT - Summer'","American History B - AVT - Summer","AV-AMHISTb-HSs-A08"]
[null,null,null,null,{"$f":"CONCATENATE(G130,\": '\",F130,\"'\")","v":"AV-AMHISTb-HS-WA10: 'American History B-WA'"},"American History B-WA","AV-AMHISTb-HS-WA10"]
[null,null,null,null,"AV-ART6s-MS-A08: 'Art 6'","Art 6","AV-ART6s-MS-A08"]
[null,null,null,null,"AV-ART6s-MS-WA10: 'Art 6-WA'","Art 6-WA","AV-ART6s-MS-WA10"]
[null,null,null,null,"AV-ART7s-MS-A08: 'Art 7'","Art 7","AV-ART7s-MS-A08"]
[null,null,null,null,"AV-ART8s-MS-A08: 'Art 8'","Art 8","AV-ART8s-MS-A08"]
[null,null,null,null,"AV-ARTa-AP-A07: 'AP(R) Art History A'","AP(R) Art History A","AV-ARTa-AP-A07"]
[null,null,null,null,"AV-ARTAPPs-HS-A08: 'Art Appreciation'","Art Appreciation","AV-ARTAPPs-HS-A08"]
[null,null,null,null,"AV-ARTAPPs-HS-WA10: 'Art Appreciation-WA'","Art Appreciation-WA","AV-ARTAPPs-HS-WA10"]
[null,null,null,null,"AV-ARTb-AP-A07: 'AP(R) Art History B'","AP(R) Art History B","AV-ARTb-AP-A07"]
[null,null,null,null,"AV-BIOa-AP-A09: 'AP(R) Biology A*'","AP(R) Biology A*","AV-BIOa-AP-A09"]
[null,null,null,null,"AV-BIOa-CR-A09: 'Biology A CR*'","Biology A CR*","AV-BIOa-CR-A09"]
[null,null,null,null,"AV-BIOa-CR-A11: 'Biology A CR'","Biology A CR","AV-BIOa-CR-A11"]
[null,null,null,null,"AV-BIOa-CR-CA10: 'Biology A CR-CA*'","Biology A CR-CA*","AV-BIOa-CR-CA10"]
[null,null,null,null,"AV-BIOa-CR-CA11: 'Biology A CR-CA'","Biology A CR-CA","AV-BIOa-CR-CA11"]
[null,null,null,null,"AV-BIOa-FN-A08: 'Biology A FN*'","Biology A FN*","AV-BIOa-FN-A08"]
[null,null,null,null,"AV-BIOa-FN-A11: 'Biology A FN'","Biology A FN","AV-BIOa-FN-A11"]
[null,null,null,null,"AV-BIOa-HS-A09: 'Biology A'","Biology A","AV-BIOa-HS-A09"]
[null,null,null,null,"AV-BIOa-HS-CA10: 'Biology A-CA'","Biology A-CA","AV-BIOa-HS-CA10"]
[null,null,null,null,"AV-BIOa-HSs-A09: 'Biology A - Summer'","Biology A - Summer","AV-BIOa-HSs-A09"]
[null,null,null,null,"AV-BIOb-AP-A09: 'AP(R) Biology B*'","AP(R) Biology B*","AV-BIOb-AP-A09"]
[null,null,null,null,"AV-BIOb-CR-A09: 'Biology B CR*'","Biology B CR*","AV-BIOb-CR-A09"]
[null,null,null,null,"AV-BIOb-CR-A11: 'Biology B CR'","Biology B CR","AV-BIOb-CR-A11"]
[null,null,null,null,"AV-BIOb-CR-CA10: 'Biology B CR-CA*'","Biology B CR-CA*","AV-BIOb-CR-CA10"]
[null,null,null,null,"AV-BIOb-CR-CA11: 'Biology B CR-CA'","Biology B CR-CA","AV-BIOb-CR-CA11"]
[null,null,null,null,"AV-BIOb-FN-A08: 'Biology B FN*'","Biology B FN*","AV-BIOb-FN-A08"]
[null,null,null,null,"AV-BIOb-FN-A11: 'Biology B FN'","Biology B FN","AV-BIOb-FN-A11"]
[null,null,null,null,"AV-BIOb-HS-A09: 'Biology B'","Biology B","AV-BIOb-HS-A09"]
[null,null,null,null,"AV-BIOb-HS-CA10: 'Biology B-CA'","Biology B-CA","AV-BIOb-HS-CA10"]
[null,null,null,null,"AV-BIOb-HSs-A09: 'Biology B - Summer'","Biology B - Summer","AV-BIOb-HSs-A09"]
[null,null,null,null,"AV-CALCABa-AP-A09: 'AP(R) Calculus AB A'","AP(R) Calculus AB A","AV-CALCABa-AP-A09"]
[null,null,null,null,"AV-CALCABb-AP-A09: 'AP(R) Calculus AB B'","AP(R) Calculus AB B","AV-CALCABb-AP-A09"]
[null,null,null,null,"AV-CALCa-HS-A09: 'Calculus A'","Calculus A","AV-CALCa-HS-A09"]
[null,null,null,null,"AV-CALCa-HSs-A09: 'Calculus A - Summer'","Calculus A - Summer","AV-CALCa-HSs-A09"]
[null,null,null,null,"AV-CALCb-HS-A09: 'Calculus B'","Calculus B","AV-CALCb-HS-A09"]
[null,null,null,null,"AV-CALCb-HSs-A09: 'Calculus B - Summer'","Calculus B - Summer","AV-CALCb-HSs-A09"]
[null,null,null,null,"AV-CAREXPs-MS-A08: 'Career Explorations'","Career Explorations","AV-CAREXPs-MS-A08"]
[null,null,null,null,"AV-CARPLNs-HS-A07: 'Career Planning - AVT*'","Career Planning - AVT*","AV-CARPLNs-HS-A07"]
[null,null,null,null,"AV-CARPLNs-HSs-A07: 'Career Planning - AVT - Summer'","Career Planning - AVT - Summer","AV-CARPLNs-HSs-A07"]
[null,null,null,null,"AV-CFUNDa-HS-A08: 'Computer Fundamentals A'","Computer Fundamentals A","AV-CFUNDa-HS-A08"]
[null,null,null,null,"AV-CFUNDa-HSs-A08: 'Computer Fundamentals A - Summer'","Computer Fundamentals A - Summer","AV-CFUNDa-HSs-A08"]
[null,null,null,null,"AV-CFUNDa-HS-TX08: 'Computer Fundamentals A - TX'","Computer Fundamentals A - TX","AV-CFUNDa-HS-TX08"]
[null,null,null,null,"AV-CFUNDb-HS-A08: 'Computer Fundamentals B'","Computer Fundamentals B","AV-CFUNDb-HS-A08"]
[null,null,null,null,"AV-CFUNDb-HSs-A08: 'Computer Fundamentals B - Summer'","Computer Fundamentals B - Summer","AV-CFUNDb-HSs-A08"]
[null,null,null,null,"AV-CFUNDb-HS-TX08: 'Computer Fundamentals B - TX'","Computer Fundamentals B - TX","AV-CFUNDb-HS-TX08"]
[null,null,null,null,"AV-CHEMa-AP-A09: 'AP(R) Chemistry A*'","AP(R) Chemistry A*","AV-CHEMa-AP-A09"]
[null,null,null,null,"AV-CHEMa-CR-U13: 'Chemistry A CR'","Chemistry A CR","AV-CHEMa-CR-U13"]
[null,null,null,null,"AV-CHEMa-HSs-U10: 'Chemistry A - Summer'","Chemistry A - Summer","AV-CHEMa-HSs-U10"]
[null,null,null,null,"AV-CHEMa-HS-U10: 'Chemistry A'","Chemistry A","AV-CHEMa-HS-U10"]
[null,null,null,null,"AV-CHEMb-AP-A09: 'AP(R) Chemistry B*'","AP(R) Chemistry B*","AV-CHEMb-AP-A09"]
[null,null,null,null,"AV-CHEMb-CR-U13: 'Chemistry B CR'","Chemistry B CR","AV-CHEMb-CR-U13"]
[null,null,null,null,"AV-CHEMb-HSs-U10: 'Chemistry B - Summer'","Chemistry B - Summer","AV-CHEMb-HSs-U10"]
[null,null,null,null,"AV-CHEMb-HS-U10: 'Chemistry B'","Chemistry B","AV-CHEMb-HS-U10"]
[null,null,null,null,"AV-CHIN1a-HS-A06: 'Mandarin (Chinese) I A*'","Mandarin (Chinese) I A*","AV-CHIN1a-HS-A06"]
[null,null,null,null,"AV-CHIN1a-HSs-A06: 'Mandarin (Chinese) I A - Summer'","Mandarin (Chinese) I A - Summer","AV-CHIN1a-HSs-A06"]
[null,null,null,null,"AV-CHIN1b-HS-A06: 'Mandarin (Chinese) I B*'","Mandarin (Chinese) I B*","AV-CHIN1b-HS-A06"]
[null,null,null,null,"AV-CHIN1b-HSs-A06: 'Mandarin (Chinese) I B - Summer'","Mandarin (Chinese) I B - Summer","AV-CHIN1b-HSs-A06"]
[null,null,null,null,"AV-CHIN2a-HS-A07: 'Mandarin (Chinese) II A*'","Mandarin (Chinese) II A*","AV-CHIN2a-HS-A07"]
[null,null,null,null,"AV-CHIN2a-HSs-A07: 'Mandarin (Chinese) II A - Summer'","Mandarin (Chinese) II A - Summer","AV-CHIN2a-HSs-A07"]
[null,null,null,null,"AV-CHIN2b-HS-A07: 'Mandarin (Chinese) II B*'","Mandarin (Chinese) II B*","AV-CHIN2b-HS-A07"]
[null,null,null,null,"AV-CHIN2b-HSs-A07: 'Mandarin (Chinese) II B - Summer'","Mandarin (Chinese) II B - Summer","AV-CHIN2b-HSs-A07"]
[null,null,null,null,"AV-CIVICs-HS-A06: 'Civics'","Civics","AV-CIVICs-HS-A06"]
[null,null,null,null,"AV-COMPa-AP-A07: 'AP(R) Computer Science A'","AP(R) Computer Science A","AV-COMPa-AP-A07"]
[null,null,null,null,"AV-COMPb-AP-A07: 'AP(R) Computer Science B'","AP(R) Computer Science B","AV-COMPb-AP-A07"]
[null,null,null,null,"AV-CONMTHa-HS-A06: 'Consumer Math A'","Consumer Math A","AV-CONMTHa-HS-A06"]
[null,null,null,null,{"$f":"CONCATENATE(G194,\": '\",F194,\"'\")","v":"AV-CONMTHa-HSs-A06: 'Consumer Math A - Summer'"},"Consumer Math A - Summer","AV-CONMTHa-HSs-A06"]
[null,null,null,null,"AV-CONMTHb-HS-A06: 'Consumer Math B'","Consumer Math B","AV-CONMTHb-HS-A06"]
[null,null,null,null,"AV-CONMTHb-HSs-A06: 'Consumer Math B - Summer'","Consumer Math B - Summer","AV-CONMTHb-HSs-A06"]
[null,null,null,null,"AV-CRWRITEa-HS-A09: 'Creative Writing A'","Creative Writing A","AV-CRWRITEa-HS-A09"]
[null,null,null,null,"AV-CRWRITEb-HS-A09: 'Creative Writing B'","Creative Writing B","AV-CRWRITEb-HS-A09"]
[null,null,null,null,"AV-CWIa-HS-A09: 'Contemporary World Issues A'","Contemporary World Issues A","AV-CWIa-HS-A09"]
[null,null,null,null,"AV-CWIa-HS-QWA09: 'Contemporary World Issues A-WA'","Contemporary World Issues A-WA","AV-CWIa-HS-QWA09"]
[null,null,null,null,"AV-CWIb-HS-A09: 'Contemporary World Issues B'","Contemporary World Issues B","AV-CWIb-HS-A09"]
[null,null,null,null,"AV-CWIb-HS-QWA09: 'Contemporary World Issues B-WA'","Contemporary World Issues B-WA","AV-CWIb-HS-QWA09"]
[null,null,null,null,"AV-DIGPHOs-HS-A08: 'Digital Photography'","Digital Photography","AV-DIGPHOs-HS-A08"]
[null,null,null,null,"AV-DIGPHOs-HSs-A08: 'Digital Photography - Summer'","Digital Photography - Summer","AV-DIGPHOs-HSs-A08"]
[null,null,null,null,"AV-DRIVERs-HS-A04: 'Drivers Safety'","Drivers Safety","AV-DRIVERs-HS-A04"]
[null,null,null,null,"AV-DRIVERs-HSs-A04: 'Drivers Safety - Summer'","Drivers Safety - Summer","AV-DRIVERs-HSs-A04"]
[null,null,null,null,"AV-EARTHSCIa-CR-A09: 'Earth Science A CR*'","Earth Science A CR*","AV-EARTHSCIa-CR-A09"]
[null,null,null,null,"AV-EARTHSCIa-CR-U11: 'Earth Science A CR'","Earth Science A CR","AV-EARTHSCIa-CR-U11"]
[null,null,null,null,"AV-EARTHSCIa-FN-A08: 'Earth Science A FN'","Earth Science A FN","AV-EARTHSCIa-FN-A08"]
[null,null,null,null,"AV-EARTHSCIa-HSs-U10: 'Earth Science A - Summer'","Earth Science A - Summer","AV-EARTHSCIa-HSs-U10"]
[null,null,null,null,"AV-EARTHSCIa-HS-U10: 'Earth Science A'","Earth Science A","AV-EARTHSCIa-HS-U10"]
[null,null,null,null,"AV-EARTHSCIb-CR-A09: 'Earth Science B CR*'","Earth Science B CR*","AV-EARTHSCIb-CR-A09"]
[null,null,null,null,"AV-EARTHSCIb-CR-U11: 'Earth Science B CR'","Earth Science B CR","AV-EARTHSCIb-CR-U11"]
[null,null,null,null,"AV-EARTHSCIb-FN-A08: 'Earth Science B FN'","Earth Science B FN","AV-EARTHSCIb-FN-A08"]
[null,null,null,null,"AV-EARTHSCIb-HSs-U10: 'Earth Science B - Summer'","Earth Science B - Summer","AV-EARTHSCIb-HSs-U10"]
[null,null,null,null,"AV-EARTHSCIb-HS-U10: 'Earth Science B'","Earth Science B","AV-EARTHSCIb-HS-U10"]
[null,null,null,null,"AV-ECONs-CR-U10: 'Economics CR'","Economics CR","AV-ECONs-CR-U10"]
[null,null,null,null,"AV-ECONs-HS-A07: 'Economics - AVT'","Economics - AVT","AV-ECONs-HS-A07"]
[null,null,null,null,"AV-ENG1a-CR-A09: 'English I A CR'","English I A CR","AV-ENG1a-CR-A09"]
[null,null,null,null,"AV-ENG1a-CR-CA10: 'English I A CR-CA'","English I A CR-CA","AV-ENG1a-CR-CA10"]
[null,null,null,null,"AV-ENG1a-FN-A08: 'English I A FN'","English I A FN","AV-ENG1a-FN-A08"]
[null,null,null,null,"AV-ENG1a-HS-A05: 'English I A*'","English I A*","AV-ENG1a-HS-A05"]
[null,null,null,null,"AV-ENG1a-HS-CA10: 'English I A-CA'","English I A-CA","AV-ENG1a-HS-CA10"]
[null,null,null,null,"AV-ENG1a-HS-FL11: 'English 1 A-FL'","English 1 A-FL","AV-ENG1a-HS-FL11"]
[null,null,null,null,"AV-ENG1a-HSs-A05: 'English I A - Summer'","English I A - Summer","AV-ENG1a-HSs-A05"]
[null,null,null,null,"AV-ENG1a-HS-U13: 'English I A'","English I A","AV-ENG1a-HS-U13"]
[null,null,null,null,"AV-ENG1b-CR-A09: 'English I B CR'","English I B CR","AV-ENG1b-CR-A09"]
[null,null,null,null,"AV-ENG1b-CR-CA10: 'English I B CR-CA'","English I B CR-CA","AV-ENG1b-CR-CA10"]
[null,null,null,null,"AV-ENG1b-FN-A08: 'English I B FN'","English I B FN","AV-ENG1b-FN-A08"]
[null,null,null,null,"AV-ENG1b-HS-A05: 'English I B*'","English I B*","AV-ENG1b-HS-A05"]
[null,null,null,null,"AV-ENG1b-HS-CA10: 'English I B-CA'","English I B-CA","AV-ENG1b-HS-CA10"]
[null,null,null,null,"AV-ENG1b-HS-FL11: 'English 1 B-FL'","English 1 B-FL","AV-ENG1b-HS-FL11"]
[null,null,null,null,"AV-ENG1b-HSs-A05: 'English I B - Summer'","English I B - Summer","AV-ENG1b-HSs-A05"]
[null,null,null,null,"AV-ENG1b-HS-U13: 'English I B'","English I B","AV-ENG1b-HS-U13"]
[null,null,null,null,"AV-ENG2a-CR-A09: 'English II A CR'","English II A CR","AV-ENG2a-CR-A09"]
[null,null,null,null,"AV-ENG2a-CR-CA10: 'English II A CR-CA'","English II A CR-CA","AV-ENG2a-CR-CA10"]
[null,null,null,null,"AV-ENG2a-FN-A08: 'English II A FN'","English II A FN","AV-ENG2a-FN-A08"]
[null,null,null,null,"AV-ENG2a-HS-A06: 'English II A*'","English II A*","AV-ENG2a-HS-A06"]
[null,null,null,null,"AV-ENG2a-HS-CA10: 'English II A-CA'","English II A-CA","AV-ENG2a-HS-CA10"]
[null,null,null,null,"AV-ENG2a-HSs-A06: 'English II A - Summer'","English II A - Summer","AV-ENG2a-HSs-A06"]
[null,null,null,null,"AV-ENG2a-HS-U12: 'English II A'","English II A","AV-ENG2a-HS-U12"]
[null,null,null,null,"AV-ENG2b-CR-A09: 'English II B CR'","English II B CR","AV-ENG2b-CR-A09"]
[null,null,null,null,"AV-ENG2b-CR-CA10: 'English II B CR-CA'","English II B CR-CA","AV-ENG2b-CR-CA10"]
[null,null,null,null,"AV-ENG2b-FN-A08: 'English II B FN'","English II B FN","AV-ENG2b-FN-A08"]
[null,null,null,null,"AV-ENG2b-HS-A06: 'English II B*'","English II B*","AV-ENG2b-HS-A06"]
[null,null,null,null,"AV-ENG2b-HS-CA10: 'English II B-CA'","English II B-CA","AV-ENG2b-HS-CA10"]
[null,null,null,null,"AV-ENG2b-HSs-A06: 'English II B - Summer'","English II B - Summer","AV-ENG2b-HSs-A06"]
[null,null,null,null,"AV-ENG2b-HS-U12: 'English II B'","English II B","AV-ENG2b-HS-U12"]
[null,null,null,null,"AV-ENG3a-CR-U10: 'English III A CR*'","English III A CR*","AV-ENG3a-CR-U10"]
[null,null,null,null,"AV-ENG3a-CR-U11: 'English III A CR'","English III A CR","AV-ENG3a-CR-U11"]
[null,null,null,null,"AV-ENG3a-FN-A09: 'English III A FN'","English III A FN","AV-ENG3a-FN-A09"]
[null,null,null,null,"AV-ENG3a-HSs-U10: 'English III A - Summer'","English III A - Summer","AV-ENG3a-HSs-U10"]
[null,null,null,null,"AV-ENG3a-HS-U10: 'English III A*'","English III A*","AV-ENG3a-HS-U10"]
[null,null,null,null,"AV-ENG3a-HS-U12: 'English III A'","English III A","AV-ENG3a-HS-U12"]
[null,null,null,null,"AV-ENG3b-CR-U10: 'English III B CR*'","English III B CR*","AV-ENG3b-CR-U10"]
[null,null,null,null,"AV-ENG3b-CR-U11: 'English III B CR'","English III B CR","AV-ENG3b-CR-U11"]
[null,null,null,null,"AV-ENG3b-FN-A09: 'English III B FN'","English III B FN","AV-ENG3b-FN-A09"]
[null,null,null,null,{"$f":"CONCATENATE(G258,\": '\",F258,\"'\")","v":"AV-ENG3b-HSs-U10: 'English III B - Summer'"},"English III B - Summer","AV-ENG3b-HSs-U10"]
[null,null,null,null,"AV-ENG3b-HS-U10: 'English III B*'","English III B*","AV-ENG3b-HS-U10"]
[null,null,null,null,"AV-ENG3b-HS-U12: 'English III B'","English III B","AV-ENG3b-HS-U12"]
[null,null,null,null,"AV-ENG4a-CR-A09: 'English IV A CR'","English IV A CR","AV-ENG4a-CR-A09"]
[null,null,null,null,"AV-ENG4a-FN-A09: 'English IV A FN'","English IV A FN","AV-ENG4a-FN-A09"]
[null,null,null,null,"AV-ENG4a-HS-A08: 'English IV A*'","English IV A*","AV-ENG4a-HS-A08"]
[null,null,null,null,"AV-ENG4a-HSs-A08: 'English IV A - Summer'","English IV A - Summer","AV-ENG4a-HSs-A08"]
[null,null,null,null,"AV-ENG4a-HS-U13: 'English IV A'","English IV A","AV-ENG4a-HS-U13"]
[null,null,null,null,"AV-ENG4b-CR-A09: 'English IV B CR'","English IV B CR","AV-ENG4b-CR-A09"]
[null,null,null,null,"AV-ENG4b-FN-A09: 'English IV B FN'","English IV B FN","AV-ENG4b-FN-A09"]
[null,null,null,null,"AV-ENG4b-HS-A08: 'English IV B*'","English IV B*","AV-ENG4b-HS-A08"]
[null,null,null,null,"AV-ENG4b-HSs-A08: 'English IV B - Summer'","English IV B - Summer","AV-ENG4b-HSs-A08"]
[null,null,null,null,"AV-ENG4b-HS-U13: 'English IV B'","English IV B","AV-ENG4b-HS-U13"]
[null,null,null,null,"AV-ENG6a-MS-A08: 'Language Arts 6 A'","Language Arts 6 A","AV-ENG6a-MS-A08"]
[null,null,null,null,"AV-ENG6b-MS-A08: 'Language Arts 6 B'","Language Arts 6 B","AV-ENG6b-MS-A08"]
[null,null,null,null,"AV-ENG7a-MS-A08: 'Language Arts 7 A'","Language Arts 7 A","AV-ENG7a-MS-A08"]
[null,null,null,null,"AV-ENG7a-MSs-A08: 'Language Arts 7 A - Summer'","Language Arts 7 A - Summer","AV-ENG7a-MSs-A08"]
[null,null,null,null,"AV-ENG7b-MS-A08: 'Language Arts 7 B'","Language Arts 7 B","AV-ENG7b-MS-A08"]
[null,null,null,null,"AV-ENG7b-MSs-A08: 'Language Arts 7 B - Summer'","Language Arts 7 B - Summer","AV-ENG7b-MSs-A08"]
[null,null,null,null,"AV-ENG8a-MS-A08: 'Language Arts 8 A'","Language Arts 8 A","AV-ENG8a-MS-A08"]
[null,null,null,null,"AV-ENG8a-MSs-A08: 'Language Arts 8 A - Summer'","Language Arts 8 A - Summer","AV-ENG8a-MSs-A08"]
[null,null,null,null,"AV-ENG8b-MS-A08: 'Language Arts 8 B'","Language Arts 8 B","AV-ENG8b-MS-A08"]
[null,null,null,null,"AV-ENG8b-MSs-A08: 'Language Arts 8 B - Summer'","Language Arts 8 B - Summer","AV-ENG8b-MSs-A08"]
[null,null,null,null,"AV-ENGa-AP-A07: 'AP(R) English Language A'","AP(R) English Language A","AV-ENGa-AP-A07"]
[null,null,null,null,"AV-ENGb-AP-A07: 'AP(R) English Language B'","AP(R) English Language B","AV-ENGb-AP-A07"]
[null,null,null,null,"AV-ENVSCIa-AP-U10: 'AP(R) Environmental Science A'","AP(R) Environmental Science A","AV-ENVSCIa-AP-U10"]
[null,null,null,null,"AV-ENVSCIa-HS-A07: 'Environmental Science A'","Environmental Science A","AV-ENVSCIa-HS-A07"]
[null,null,null,null,"AV-ENVSCIa-HSs-A07: 'Environmental Science A - Summer'","Environmental Science A - Summer","AV-ENVSCIa-HSs-A07"]
[null,null,null,null,"AV-ENVSCIb-AP-U10: 'AP(R) Environmental Science B'","AP(R) Environmental Science B","AV-ENVSCIb-AP-U10"]
[null,null,null,null,"AV-ENVSCIb-HS-A07: 'Environmental Science B'","Environmental Science B","AV-ENVSCIb-HS-A07"]
[null,null,null,null,"AV-ENVSCIb-HSs-A07: 'Environmental Science B - Summer'","Environmental Science B - Summer","AV-ENVSCIb-HSs-A07"]
[null,null,null,null,"AV-EUHISTa-AP-A04: 'AP(R) European History A'","AP(R) European History A","AV-EUHISTa-AP-A04"]
[null,null,null,null,"AV-EUHISTb-AP-A04: 'AP(R) European History B'","AP(R) European History B","AV-EUHISTb-AP-A04"]
[null,null,null,null,"AV-FAMCONSCIs-MS-U11: 'MS Family and Consumer Science'","MS Family and Consumer Science","AV-FAMCONSCIs-MS-U11"]
[null,null,null,null,"AV-FREN1a-HS-A07: 'French I A*'","French I A*","AV-FREN1a-HS-A07"]
[null,null,null,null,"AV-FREN1a-HSs-A07: 'French I A - Summer'","French I A - Summer","AV-FREN1a-HSs-A07"]
[null,null,null,null,"AV-FREN1b-HS-A07: 'French I B*'","French I B*","AV-FREN1b-HS-A07"]
[null,null,null,null,"AV-FREN1b-HSs-A07: 'French I B - Summer'","French I B - Summer","AV-FREN1b-HSs-A07"]
[null,null,null,null,"AV-FREN2a-HS-A07: 'French II A*'","French II A*","AV-FREN2a-HS-A07"]
[null,null,null,null,"AV-FREN2a-HSs-A07: 'French II A - Summer'","French II A - Summer","AV-FREN2a-HSs-A07"]
[null,null,null,null,"AV-FREN2b-HS-A07: 'French II B*'","French II B*","AV-FREN2b-HS-A07"]
[null,null,null,null,"AV-FREN2b-HSs-A07: 'French II B - Summer'","French II B - Summer","AV-FREN2b-HSs-A07"]
[null,null,null,null,"AV-FREN3a-HS-A07: 'French III A*'","French III A*","AV-FREN3a-HS-A07"]
[null,null,null,null,"AV-FREN3a-HSs-A07: 'French III A - Summer'","French III A - Summer","AV-FREN3a-HSs-A07"]
[null,null,null,null,"AV-FREN3b-HS-A07: 'French III B*'","French III B*","AV-FREN3b-HS-A07"]
[null,null,null,null,"AV-FREN3b-HSs-A07: 'French III B - Summer'","French III B - Summer","AV-FREN3b-HSs-A07"]
[null,null,null,null,"AV-FREN4a-HS-A07: 'French IV A*'","French IV A*","AV-FREN4a-HS-A07"]
[null,null,null,null,"AV-FREN4b-HS-A07: 'French IV B*'","French IV B*","AV-FREN4b-HS-A07"]
[null,null,null,null,"AV-FRENa-AP-U10: 'AP(R) French Language A*'","AP(R) French Language A*","AV-FRENa-AP-U10"]
[null,null,null,null,"AV-FRENb-AP-U10: 'AP(R) French Language B*'","AP(R) French Language B*","AV-FRENb-AP-U10"]
[null,null,null,null,"AV-GAMEs-HS-A08: 'Game Design'","Game Design","AV-GAMEs-HS-A08"]
[null,null,null,null,"AV-GEOGa-CR-A09: 'Geography A CR - AVT'","Geography A CR - AVT","AV-GEOGa-CR-A09"]
[null,null,null,null,"AV-GEOGa-FN-A09: 'Geography A FN - AVT*'","Geography A FN - AVT*","AV-GEOGa-FN-A09"]
[null,null,null,null,"AV-GEOGa-HS-A09: 'Geography A - AVT*'","Geography A - AVT*","AV-GEOGa-HS-A09"]
[null,null,null,null,"AV-GEOGa-HS-TX09: 'Geography A - AVT - TX*'","Geography A - AVT - TX*","AV-GEOGa-HS-TX09"]
[null,null,null,null,"AV-GEOGb-CR-A09: 'Geography B CR - AVT'","Geography B CR - AVT","AV-GEOGb-CR-A09"]
[null,null,null,null,"AV-GEOGb-FN-A09: 'Geography B FN - AVT*'","Geography B FN - AVT*","AV-GEOGb-FN-A09"]
[null,null,null,null,"AV-GEOGb-HS-A09: 'Geography B - AVT*'","Geography B - AVT*","AV-GEOGb-HS-A09"]
[null,null,null,null,"AV-GEOGb-HS-TX09: 'Geography B - AVT - TX*'","Geography B - AVT - TX*","AV-GEOGb-HS-TX09"]
[null,null,null,null,"AV-GEOMa-CR-A09: 'Geometry A CR'","Geometry A CR","AV-GEOMa-CR-A09"]
[null,null,null,null,"AV-GEOMa-CR-CA10: 'Geometry A CR-CA'","Geometry A CR-CA","AV-GEOMa-CR-CA10"]
[null,null,null,null,"AV-GEOMa-FN-A08: 'Geometry A FN'","Geometry A FN","AV-GEOMa-FN-A08"]
[null,null,null,null,"AV-GEOMa-HS-A09: 'Geometry A*'","Geometry A*","AV-GEOMa-HS-A09"]
[null,null,null,null,"AV-GEOMa-HS-CA10: 'Geometry A-CA'","Geometry A-CA","AV-GEOMa-HS-CA10"]
[null,null,null,null,{"$f":"CONCATENATE(G322,\": '\",F322,\"'\")","v":"AV-GEOMa-HSs-A09: 'Geometry A - Summer*'"},"Geometry A - Summer*","AV-GEOMa-HSs-A09"]
[null,null,null,null,"AV-GEOMa-HSs-U12: 'Geometry A - Summer'","Geometry A - Summer","AV-GEOMa-HSs-U12"]
[null,null,null,null,"AV-GEOMa-HS-U12: 'Geometry A'","Geometry A","AV-GEOMa-HS-U12"]
[null,null,null,null,"AV-GEOMa-HS-WA10: 'Geometry A-WA'","Geometry A-WA","AV-GEOMa-HS-WA10"]
[null,null,null,null,"AV-GEOMb-CR-A09: 'Geometry B CR'","Geometry B CR","AV-GEOMb-CR-A09"]
[null,null,null,null,"AV-GEOMb-CR-CA10: 'Geometry B CR-CA'","Geometry B CR-CA","AV-GEOMb-CR-CA10"]
[null,null,null,null,"AV-GEOMb-FN-A08: 'Geometry B FN'","Geometry B FN","AV-GEOMb-FN-A08"]
[null,null,null,null,"AV-GEOMb-HS-A09: 'Geometry B*'","Geometry B*","AV-GEOMb-HS-A09"]
[null,null,null,null,"AV-GEOMb-HS-CA10: 'Geometry B-CA'","Geometry B-CA","AV-GEOMb-HS-CA10"]
[null,null,null,null,"AV-GEOMb-HSs-A09: 'Geometry B - Summer*'","Geometry B - Summer*","AV-GEOMb-HSs-A09"]
[null,null,null,null,"AV-GEOMb-HSs-U12: 'Geometry B - Summer'","Geometry B - Summer","AV-GEOMb-HSs-U12"]
[null,null,null,null,"AV-GEOMb-HS-U12: 'Geometry B'","Geometry B","AV-GEOMb-HS-U12"]
[null,null,null,null,"AV-GEOMb-HS-WA10: 'Geometry B-WA'","Geometry B-WA","AV-GEOMb-HS-WA10"]
[null,null,null,null,"AV-GERM1a-HS-A09: 'German I A*'","German I A*","AV-GERM1a-HS-A09"]
[null,null,null,null,"AV-GERM1a-HSs-A09: 'German I A - Summer'","German I A - Summer","AV-GERM1a-HSs-A09"]
[null,null,null,null,"AV-GERM1b-HS-A09: 'German I B*'","German I B*","AV-GERM1b-HS-A09"]
[null,null,null,null,"AV-GERM1b-HSs-A09: 'German I B - Summer'","German I B - Summer","AV-GERM1b-HSs-A09"]
[null,null,null,null,"AV-GERM2a-HS-A09: 'German II A*'","German II A*","AV-GERM2a-HS-A09"]
[null,null,null,null,"AV-GERM2a-HSs-A09: 'German II A - Summer'","German II A - Summer","AV-GERM2a-HSs-A09"]
[null,null,null,null,"AV-GERM2b-HS-A09: 'German II B*'","German II B*","AV-GERM2b-HS-A09"]
[null,null,null,null,"AV-GERM2b-HSs-A09: 'German II B - Summer'","German II B - Summer","AV-GERM2b-HSs-A09"]
[null,null,null,null,"AV-GERM3a-HS-A06: 'German III A*'","German III A*","AV-GERM3a-HS-A06"]
[null,null,null,null,"AV-GERM3b-HS-A06: 'German III B*'","German III B*","AV-GERM3b-HS-A06"]
[null,null,null,null,"AV-GERM4a-HS-A07: 'German IV A*'","German IV A*","AV-GERM4a-HS-A07"]
[null,null,null,null,"AV-GERM4b-HS-A07: 'German IV B*'","German IV B*","AV-GERM4b-HS-A07"]
[null,null,null,null,"AV-GOVTAMs-CR-A09: 'American (US) Government CR'","American (US) Government CR","AV-GOVTAMs-CR-A09"]
[null,null,null,null,"AV-GOVTUSs-AP-A09: 'AP(R) U.S. Government'","AP(R) U.S. Government","AV-GOVTUSs-AP-A09"]
[null,null,null,null,"AV-GRAMCOMPa-HS-A06: 'Grammar and Composition A'","Grammar and Composition A","AV-GRAMCOMPa-HS-A06"]
[null,null,null,null,"AV-GRAMCOMPb-HS-A06: 'Grammar and Composition B'","Grammar and Composition B","AV-GRAMCOMPb-HS-A06"]
[null,null,null,null,"AV-HEALTH6s-MS-A08: 'Health 6 - AVT*'","Health 6 - AVT*","AV-HEALTH6s-MS-A08"]
[null,null,null,null,"AV-HEALTH7s-MS-A08: 'Health 7 - AVT*'","Health 7 - AVT*","AV-HEALTH7s-MS-A08"]
[null,null,null,null,"AV-HEALTH8s-MS-A08: 'Health 8 - AVT*'","Health 8 - AVT*","AV-HEALTH8s-MS-A08"]
[null,null,null,null,"AV-HEALTHs-CR-A09: 'Health CR - AVT'","Health CR - AVT","AV-HEALTHs-CR-A09"]
[null,null,null,null,"AV-HEALTHs-FN-A09: 'Health FN - AVT'","Health FN - AVT","AV-HEALTHs-FN-A09"]
[null,null,null,null,"AV-HEALTHs-HS-A09: 'Health - AVT*'","Health - AVT*","AV-HEALTHs-HS-A09"]
[null,null,null,null,"AV-HEALTHs-HS-WA10: 'Health- AVT- WA'","Health- AVT- WA","AV-HEALTHs-HS-WA10"]
[null,null,null,null,"AV-HEALTHSs-HSs-A09: 'Health - AVT - Summer'","Health - AVT - Summer","AV-HEALTHSs-HSs-A09"]
[null,null,null,null,"AV-HISKSs-MS-QKS10: 'Kansas History 8 - AVT'","Kansas History 8 - AVT","AV-HISKSs-MS-QKS10"]
[null,null,null,null,"AV-HISTAMa-CR-A09: 'American History A CR'","American History A CR","AV-HISTAMa-CR-A09"]
[null,null,null,null,"AV-HISTAMb-CR-A09: 'American History B CR'","American History B CR","AV-HISTAMb-CR-A09"]
[null,null,null,null,"AV-HISTMNs-MS-QMN08: 'Minnesota History  (MS)-MN'","Minnesota History  (MS)-MN","AV-HISTMNs-MS-QMN08"]
[null,null,null,null,"AV-HISTWAs-MS-QWA08: 'Washington History (MS)-WA'","Washington History (MS)-WA","AV-HISTWAs-MS-QWA08"]
[null,null,null,null,"AV-HISTWOa-CR-CA10: 'World History A CR-CA'","World History A CR-CA","AV-HISTWOa-CR-CA10"]
[null,null,null,null,"AV-HISTWOb-CR-CA10: 'World History B CR-CA'","World History B CR-CA","AV-HISTWOb-CR-CA10"]
[null,null,null,null,"AV-INTMATHa-HS-A06: 'Integrated Math A'","Integrated Math A","AV-INTMATHa-HS-A06"]
[null,null,null,null,"AV-INTMATHa-HS-WA10: 'Integrated Math A-WA'","Integrated Math A-WA","AV-INTMATHa-HS-WA10"]
[null,null,null,null,"AV-INTMATHb-HS-A06: 'Integrated Math B'","Integrated Math B","AV-INTMATHb-HS-A06"]
[null,null,null,null,"AV-INTMATHb-HS-WA10: 'Integrated Math B-WA'","Integrated Math B-WA","AV-INTMATHb-HS-WA10"]
[null,null,null,null,"AV-JAP1a-HS-A06: 'Japanese I A*'","Japanese I A*","AV-JAP1a-HS-A06"]
[null,null,null,null,"AV-JAP1b-HS-A06: 'Japanese I B*'","Japanese I B*","AV-JAP1b-HS-A06"]
[null,null,null,null,"AV-JAP2a-HS-A06: 'Japanese II A*'","Japanese II A*","AV-JAP2a-HS-A06"]
[null,null,null,null,"AV-JAP2b-HS-A06: 'Japanese II B*'","Japanese II B*","AV-JAP2b-HS-A06"]
[null,null,null,null,"AV-JOURNs-HS-A04: 'Journalism'","Journalism","AV-JOURNs-HS-A04"]
[null,null,null,null,"AV-LANGART6a-MS-U14: 'Grade 6 Language Arts A'","Grade 6 Language Arts A","AV-LANGART6a-MS-U14"]
[null,null,null,null,"AV-LANGART6b-MS-U14: 'Grade 6 Language Arts B'","Grade 6 Language Arts B","AV-LANGART6b-MS-U14"]
[null,null,null,null,"AV-LANGART7a-MS-U14: 'Grade 7 Language Arts A'","Grade 7 Language Arts A","AV-LANGART7a-MS-U14"]
[null,null,null,null,"AV-LANGART7b-MS-U14: 'Grade 7 Language Arts B'","Grade 7 Language Arts B","AV-LANGART7b-MS-U14"]
[null,null,null,null,"AV-LANGART8a-MS-U14: 'Grade 8 Language Arts A'","Grade 8 Language Arts A","AV-LANGART8a-MS-U14"]
[null,null,null,null,"AV-LANGART8b-MS-U14: 'Grade 8 Language Arts B'","Grade 8 Language Arts B","AV-LANGART8b-MS-U14"]
[null,null,null,null,"AV-LAT1a-HS-A08: 'Latin I A*'","Latin I A*","AV-LAT1a-HS-A08"]
[null,null,null,null,"AV-LAT1a-HSs-A08: 'Latin I A - Summer'","Latin I A - Summer","AV-LAT1a-HSs-A08"]
[null,null,null,null,"AV-LAT1b-HS-A08: 'Latin I B*'","Latin I B*","AV-LAT1b-HS-A08"]
[null,null,null,null,"AV-LAT1b-HSs-A08: 'Latin I B - Summer'","Latin I B - Summer","AV-LAT1b-HSs-A08"]
[null,null,null,null,"AV-LAT2a-HS-A09: 'Latin II A*'","Latin II A*","AV-LAT2a-HS-A09"]
[null,null,null,null,{"$f":"CONCATENATE(G386,\": '\",F386,\"'\")","v":"AV-LAT2a-HSs-A09: 'Latin II A - Summer'"},"Latin II A - Summer","AV-LAT2a-HSs-A09"]
[null,null,null,null,"AV-LAT2b-HS-A09: 'Latin II B*'","Latin II B*","AV-LAT2b-HS-A09"]
[null,null,null,null,"AV-LAT2b-HSs-A09: 'Latin II B - Summer'","Latin II B - Summer","AV-LAT2b-HSs-A09"]
[null,null,null,null,"AV-LIFESKs-HS-A04: 'Life Skills'","Life Skills","AV-LIFESKs-HS-A04"]
[null,null,null,null,"AV-LITa-AP-A05: 'AP(R) English Literature A'","AP(R) English Literature A","AV-LITa-AP-A05"]
[null,null,null,null,"AV-LITb-AP-A05: 'AP(R) English Literature B'","AP(R) English Literature B","AV-LITb-AP-A05"]
[null,null,null,null,"AV-MACROs-AP-A05: 'AP(R) Macroeconomics'","AP(R) Macroeconomics","AV-MACROs-AP-A05"]
[null,null,null,null,"AV-MATH6a-MS-A08: 'Math 6 A'","Math 6 A","AV-MATH6a-MS-A08"]
[null,null,null,null,"AV-MATH6a-MS-U14: 'Grade 6 Fundamentals of Geometry and Algebra A'","Grade 6 Fundamentals of Geometry and Algebra A","AV-MATH6a-MS-U14"]
[null,null,null,null,"AV-MATH6a-MS-WA10: 'Math 6 A-WA'","Math 6 A-WA","AV-MATH6a-MS-WA10"]
[null,null,null,null,"AV-MATH6b-MS-A08: 'Math 6 B'","Math 6 B","AV-MATH6b-MS-A08"]
[null,null,null,null,"AV-MATH6b-MS-U14: 'Grade 6 Fundamentals of Geometry and Algebra B'","Grade 6 Fundamentals of Geometry and Algebra B","AV-MATH6b-MS-U14"]
[null,null,null,null,"AV-MATH6b-MS-WA10: 'Math 6 B-WA'","Math 6 B-WA","AV-MATH6b-MS-WA10"]
[null,null,null,null,"AV-MATH7a-MS-A08: 'Math 7 A'","Math 7 A","AV-MATH7a-MS-A08"]
[null,null,null,null,"AV-MATH7a-MSs-A08: 'Math 7 A - Summer'","Math 7 A - Summer","AV-MATH7a-MSs-A08"]
[null,null,null,null,"AV-MATH7a-MS-U14: 'Grade 7 Pre-Algebra A'","Grade 7 Pre-Algebra A","AV-MATH7a-MS-U14"]
[null,null,null,null,"AV-MATH7b-MS-A08: 'Math 7 B'","Math 7 B","AV-MATH7b-MS-A08"]
[null,null,null,null,"AV-MATH7b-MSs-A08: 'Math 7 B - Summer'","Math 7 B - Summer","AV-MATH7b-MSs-A08"]
[null,null,null,null,"AV-MATH7b-MS-U14: 'Grade 7 Pre-Algebra B'","Grade 7 Pre-Algebra B","AV-MATH7b-MS-U14"]
[null,null,null,null,"AV-MATH8a-MS-A08: 'Math 8 A'","Math 8 A","AV-MATH8a-MS-A08"]
[null,null,null,null,"AV-MATH8a-MSs-A08: 'Math 8 A - Summer'","Math 8 A - Summer","AV-MATH8a-MSs-A08"]
[null,null,null,null,"AV-MATH8a-MS-U14: 'Grade 8 Algebra A'","Grade 8 Algebra A","AV-MATH8a-MS-U14"]
[null,null,null,null,"AV-MATH8b-MS-A08: 'Math 8 B'","Math 8 B","AV-MATH8b-MS-A08"]
[null,null,null,null,"AV-MATH8b-MSs-A08: 'Math 8 B - Summer'","Math 8 B - Summer","AV-MATH8b-MSs-A08"]
[null,null,null,null,"AV-MATH8b-MS-U14: 'Grade 8 Algebra B'","Grade 8 Algebra B","AV-MATH8b-MS-U14"]
[null,null,null,null,"AV-MICROs-AP-A05: 'AP(R) Microeconomics'","AP(R) Microeconomics","AV-MICROs-AP-A05"]
[null,null,null,null,"AV-MUSIC6s-MS-A08: 'Music 6 - AVT*'","Music 6 - AVT*","AV-MUSIC6s-MS-A08"]
[null,null,null,null,"AV-MUSIC7s-MS-A08: 'Music 7 - AVT*'","Music 7 - AVT*","AV-MUSIC7s-MS-A08"]
[null,null,null,null,"AV-MUSIC8s-MS-A08: 'Music 8 - AVT*'","Music 8 - AVT*","AV-MUSIC8s-MS-A08"]
[null,null,null,null,"AV-MUSICa-HS-TX08: 'Music Appreciation A - AVT - TX'","Music Appreciation A - AVT - TX","AV-MUSICa-HS-TX08"]
[null,null,null,null,"AV-MUSICb-HS-TX08: 'Music Appreciation B - AVT - TX'","Music Appreciation B - AVT - TX","AV-MUSICb-HS-TX08"]
[null,null,null,null,"AV-MUSICs-HS-A08: 'Music Appreciation - AVT*'","Music Appreciation - AVT*","AV-MUSICs-HS-A08"]
[null,null,null,null,"AV-MUSICs-HS-TX08: 'Music Appreciation - AVT - TX'","Music Appreciation - AVT - TX","AV-MUSICs-HS-TX08"]
[null,null,null,null,"AV-NUTWELs-HS-A07: 'Nutrition & Wellness'","Nutrition & Wellness","AV-NUTWELs-HS-A07"]
[null,null,null,null,"AV-PERFINs-HS-A09: 'Personal Finance - AVT*'","Personal Finance - AVT*","AV-PERFINs-HS-A09"]
[null,null,null,null,"AV-PHYSa-HS-A08: 'Physics A'","Physics A","AV-PHYSa-HS-A08"]
[null,null,null,null,"AV-PHYSa-HSs-A08: 'Physics A - Summer'","Physics A - Summer","AV-PHYSa-HSs-A08"]
[null,null,null,null,"AV-PHYSBa-AP-A09: 'AP(R) Physics B A'","AP(R) Physics B A","AV-PHYSBa-AP-A09"]
[null,null,null,null,"AV-PHYSBb-AP-A09: 'AP(R) Physics B B'","AP(R) Physics B B","AV-PHYSBb-AP-A09"]
[null,null,null,null,"AV-PHYSb-HS-A08: 'Physics B'","Physics B","AV-PHYSb-HS-A08"]
[null,null,null,null,"AV-PHYSb-HSs-A08: 'Physics B - Summer'","Physics B - Summer","AV-PHYSb-HSs-A08"]
[null,null,null,null,"AV-PHYSCIa-CR-A09: 'Physical Science A CR'","Physical Science A CR","AV-PHYSCIa-CR-A09"]
[null,null,null,null,"AV-PHYSCIa-FN-A09: 'Physical Science A FN'","Physical Science A FN","AV-PHYSCIa-FN-A09"]
[null,null,null,null,"AV-PHYSCIa-HS-A09: 'Physical Science A'","Physical Science A","AV-PHYSCIa-HS-A09"]
[null,null,null,null,"AV-PHYSCIa-HSs-A09: 'Physical Science A - Summer'","Physical Science A - Summer","AV-PHYSCIa-HSs-A09"]
[null,null,null,null,"AV-PHYSCIa-HS-TX09: 'Physical Science A - TX'","Physical Science A - TX","AV-PHYSCIa-HS-TX09"]
[null,null,null,null,"AV-PHYSCIb-CR-A09: 'Physical Science B CR'","Physical Science B CR","AV-PHYSCIb-CR-A09"]
[null,null,null,null,"AV-PHYSCIb-FN-A09: 'Physical Science B FN'","Physical Science B FN","AV-PHYSCIb-FN-A09"]
[null,null,null,null,"AV-PHYSCIb-HS-A09: 'Physical Science B'","Physical Science B","AV-PHYSCIb-HS-A09"]
[null,null,null,null,"AV-PHYSCIb-HSs-A09: 'Physical Science B - Summer'","Physical Science B - Summer","AV-PHYSCIb-HSs-A09"]
[null,null,null,null,"AV-PHYSCIb-HS-TX09: 'Physical Science B - TX'","Physical Science B - TX","AV-PHYSCIb-HS-TX09"]
[null,null,null,null,"AV-PHYSED6s-MS-A08: 'Physical Education 6 - AVT*'","Physical Education 6 - AVT*","AV-PHYSED6s-MS-A08"]
[null,null,null,null,"AV-PHYSED7s-MS-A08: 'Physical Education 7 - AVT*'","Physical Education 7 - AVT*","AV-PHYSED7s-MS-A08"]
[null,null,null,null,"AV-PHYSED8s-MS-A08: 'Physical Education 8 - AVT*'","Physical Education 8 - AVT*","AV-PHYSED8s-MS-A08"]
[null,null,null,null,"AV-PHYSEDa-HS-A05: 'Physical Education A - AVT*'","Physical Education A - AVT*","AV-PHYSEDa-HS-A05"]
[null,null,null,null,"AV-PHYSEDa-HSs-A05: 'Physical Education A - AVT - Summer'","Physical Education A - AVT - Summer","AV-PHYSEDa-HSs-A05"]
[null,null,null,null,"AV-PHYSEDa-HS-TX05: 'Physical Education A - AVT - TX*'","Physical Education A - AVT - TX*","AV-PHYSEDa-HS-TX05"]
[null,null,null,null,"AV-PHYSEDb-HS-A05: 'Physical Education B - AVT*'","Physical Education B - AVT*","AV-PHYSEDb-HS-A05"]
[null,null,null,null,"AV-PHYSEDb-HSs-A05: 'Physical Education B - AVT - Summer'","Physical Education B - AVT - Summer","AV-PHYSEDb-HSs-A05"]
[null,null,null,null,"AV-PHYSEDb-HS-TX05: 'Physical Education B - AVT - TX*'","Physical Education B - AVT - TX*","AV-PHYSEDb-HS-TX05"]
[null,null,null,null,"AV-PHYSEDs-CR-A09: 'Physical Education CR'","Physical Education CR","AV-PHYSEDs-CR-A09"]
[null,null,null,null,"AV-PREALGa-HS-A07: 'Pre-Algebra A - AVT'","Pre-Algebra A - AVT","AV-PREALGa-HS-A07"]
[null,null,null,null,"AV-PREALGa-HS-WA10: 'Pre-Algebra A-WA - AVT'","Pre-Algebra A-WA - AVT","AV-PREALGa-HS-WA10"]
[null,null,null,null,"AV-PREALGb-HS-A07: 'Pre-Algebra B - AVT*'","Pre-Algebra B - AVT*","AV-PREALGb-HS-A07"]
[null,null,null,null,{"$f":"CONCATENATE(G450,\": '\",F450,\"'\")","v":"AV-PREALGb-HS-WA10: 'Pre-Algebra B-WA - AVT*'"},"Pre-Algebra B-WA - AVT*","AV-PREALGb-HS-WA10"]
[null,null,null,null,"AV-PRECALCs-HS-A08: 'Pre-Calculus*'","Pre-Calculus*","AV-PRECALCs-HS-A08"]
[null,null,null,null,"AV-PRECALCs-HSs-A08: 'Pre-Calculus* - Summer'","Pre-Calculus* - Summer","AV-PRECALCs-HSs-A08"]
[null,null,null,null,"AV-PRECALCs-HSs-U12: 'Pre-Calculus - Summer'","Pre-Calculus - Summer","AV-PRECALCs-HSs-U12"]
[null,null,null,null,"AV-PRECALCs-HS-U12: 'Pre-Calculus'","Pre-Calculus","AV-PRECALCs-HS-U12"]
[null,null,null,null,"AV-PROG1s-HS-A08: 'Programming I (VB.Net)'","Programming I (VB.Net)","AV-PROG1s-HS-A08"]
[null,null,null,null,"AV-PROG2s-HS-A08: 'Programming II (Java)'","Programming II (Java)","AV-PROG2s-HS-A08"]
[null,null,null,null,"AV-PSYCHs-AP-U10: 'AP(R) Psychology'","AP(R) Psychology","AV-PSYCHs-AP-U10"]
[null,null,null,null,"AV-PSYCHs-HS-A06: 'Psychology'","Psychology","AV-PSYCHs-HS-A06"]
[null,null,null,null,"AV-SCIENCE6a-MS-A08: 'Science 6 A'","Science 6 A","AV-SCIENCE6a-MS-A08"]
[null,null,null,null,"AV-SCIENCE6a-MS-WA10: 'Science 6 A-WA'","Science 6 A-WA","AV-SCIENCE6a-MS-WA10"]
[null,null,null,null,"AV-SCIENCE6b-MS-A08: 'Science 6 B'","Science 6 B","AV-SCIENCE6b-MS-A08"]
[null,null,null,null,"AV-SCIENCE6b-MS-WA10: 'Science 6 B-WA'","Science 6 B-WA","AV-SCIENCE6b-MS-WA10"]
[null,null,null,null,"AV-SCIENCE7a-MS-A08: 'Science 7 A'","Science 7 A","AV-SCIENCE7a-MS-A08"]
[null,null,null,null,"AV-SCIENCE7a-MSs-A08: 'Science 7 A - Summer'","Science 7 A - Summer","AV-SCIENCE7a-MSs-A08"]
[null,null,null,null,"AV-SCIENCE7b-MS-A08: 'Science 7 B'","Science 7 B","AV-SCIENCE7b-MS-A08"]
[null,null,null,null,"AV-SCIENCE7b-MSs-A08: 'Science 7 B - Summer'","Science 7 B - Summer","AV-SCIENCE7b-MSs-A08"]
[null,null,null,null,"AV-SCIENCE8a-MS-A08: 'Science 8 A'","Science 8 A","AV-SCIENCE8a-MS-A08"]
[null,null,null,null,"AV-SCIENCE8a-MSs-A08: 'Science 8 A - Summer'","Science 8 A - Summer","AV-SCIENCE8a-MSs-A08"]
[null,null,null,null,"AV-SCIENCE8a-MS-WA10: 'Science 8 A-WA'","Science 8 A-WA","AV-SCIENCE8a-MS-WA10"]
[null,null,null,null,"AV-SCIENCE8b-MS-A08: 'Science 8 B'","Science 8 B","AV-SCIENCE8b-MS-A08"]
[null,null,null,null,"AV-SCIENCE8b-MSs-A08: 'Science 8 B - Summer'","Science 8 B - Summer","AV-SCIENCE8b-MSs-A08"]
[null,null,null,null,"AV-SCIENCE8b-MS-WA10: 'Science 8 B-WA'","Science 8 B-WA","AV-SCIENCE8b-MS-WA10"]
[null,null,null,null,"AV-SOCIOa-HS-A05: 'Sociology A'","Sociology A","AV-SOCIOa-HS-A05"]
[null,null,null,null,"AV-SOCIOb-HS-A05: 'Sociology B'","Sociology B","AV-SOCIOb-HS-A05"]
[null,null,null,null,"AV-SOCSTU6a-MS-A08: 'Social Studies 6 A'","Social Studies 6 A","AV-SOCSTU6a-MS-A08"]
[null,null,null,null,"AV-SOCSTU6b-MS-A08: 'Social Studies 6 B'","Social Studies 6 B","AV-SOCSTU6b-MS-A08"]
[null,null,null,null,"AV-SOCSTU7a-MS-A08: 'Social Studies 7 A'","Social Studies 7 A","AV-SOCSTU7a-MS-A08"]
[null,null,null,null,"AV-SOCSTU7a-MSs-A08: 'Social Studies 7 A - Summer'","Social Studies 7 A - Summer","AV-SOCSTU7a-MSs-A08"]
[null,null,null,null,"AV-SOCSTU7b-MS-A08: 'Social Studies 7 B'","Social Studies 7 B","AV-SOCSTU7b-MS-A08"]
[null,null,null,null,"AV-SOCSTU7b-MSs-A08: 'Social Studies 7 B - Summer'","Social Studies 7 B - Summer","AV-SOCSTU7b-MSs-A08"]
[null,null,null,null,"AV-SOCSTU8a-MS-A08: 'Social Studies 8 A'","Social Studies 8 A","AV-SOCSTU8a-MS-A08"]
[null,null,null,null,"AV-SOCSTU8a-MSs-A08: 'Social Studies 8 A - Summer'","Social Studies 8 A - Summer","AV-SOCSTU8a-MSs-A08"]
[null,null,null,null,"AV-SOCSTU8a-MS-WA10: 'Social Studies 8 A-WA'","Social Studies 8 A-WA","AV-SOCSTU8a-MS-WA10"]
[null,null,null,null,"AV-SOCSTU8b-MS-A08: 'Social Studies 8 B'","Social Studies 8 B","AV-SOCSTU8b-MS-A08"]
[null,null,null,null,"AV-SOCSTU8b-MSs-A08: 'Social Studies 8 B - Summer'","Social Studies 8 B - Summer","AV-SOCSTU8b-MSs-A08"]
[null,null,null,null,"AV-SOCSTU8b-MS-WA10: 'Social Studies 8 B-WA'","Social Studies 8 B-WA","AV-SOCSTU8b-MS-WA10"]
[null,null,null,null,"AV-SPAN1a-CR-A09: 'Spanish I A CR*'","Spanish I A CR*","AV-SPAN1a-CR-A09"]
[null,null,null,null,"AV-SPAN1a-HS-A09: 'Spanish I A*'","Spanish I A*","AV-SPAN1a-HS-A09"]
[null,null,null,null,"AV-SPAN1a-HSs-A09: 'Spanish I A - Summer'","Spanish I A - Summer","AV-SPAN1a-HSs-A09"]
[null,null,null,null,"AV-SPAN1b-CR-A09: 'Spanish I B CR*'","Spanish I B CR*","AV-SPAN1b-CR-A09"]
[null,null,null,null,"AV-SPAN1b-HS-A09: 'Spanish I B*'","Spanish I B*","AV-SPAN1b-HS-A09"]
[null,null,null,null,"AV-SPAN1b-HSs-A09: 'Spanish I B - Summer'","Spanish I B - Summer","AV-SPAN1b-HSs-A09"]
[null,null,null,null,"AV-SPAN1s-MS-QKS10: 'MS Introduction to Spanish-KS'","MS Introduction to Spanish-KS","AV-SPAN1s-MS-QKS10"]
[null,null,null,null,"AV-SPAN2a-HS-A09: 'Spanish II A*'","Spanish II A*","AV-SPAN2a-HS-A09"]
[null,null,null,null,"AV-SPAN2a-HSs-A09: 'Spanish II A - Summer'","Spanish II A - Summer","AV-SPAN2a-HSs-A09"]
[null,null,null,null,"AV-SPAN2b-HS-A09: 'Spanish II B*'","Spanish II B*","AV-SPAN2b-HS-A09"]
[null,null,null,null,"AV-SPAN2b-HSs-A09: 'Spanish II B - Summer'","Spanish II B - Summer","AV-SPAN2b-HSs-A09"]
[null,null,null,null,"AV-SPAN3a-HS-A09: 'Spanish III A*'","Spanish III A*","AV-SPAN3a-HS-A09"]
[null,null,null,null,"AV-SPAN3a-HSs-A09: 'Spanish III A - Summer'","Spanish III A - Summer","AV-SPAN3a-HSs-A09"]
[null,null,null,null,"AV-SPAN3b-HS-A09: 'Spanish III B*'","Spanish III B*","AV-SPAN3b-HS-A09"]
[null,null,null,null,"AV-SPAN3b-HSs-A09: 'Spanish III B - Summer'","Spanish III B - Summer","AV-SPAN3b-HSs-A09"]
[null,null,null,null,"AV-SPAN4a-HS-A06: 'Spanish IV A*'","Spanish IV A*","AV-SPAN4a-HS-A06"]
[null,null,null,null,"AV-SPAN4b-HS-A06: 'Spanish IV B*'","Spanish IV B*","AV-SPAN4b-HS-A06"]
[null,null,null,null,"AV-SPANa-AP-A04: 'AP(R) Spanish Language A**'","AP(R) Spanish Language A**","AV-SPANa-AP-A04"]
[null,null,null,null,"AV-SPANa-AP-U11: 'AP(R) Spanish Language A*'","AP(R) Spanish Language A*","AV-SPANa-AP-U11"]
[null,null,null,null,"AV-SPANb-AP-A04: 'AP(R) Spanish Language B**'","AP(R) Spanish Language B**","AV-SPANb-AP-A04"]
[null,null,null,null,"AV-SPANb-AP-U11: 'AP(R) Spanish Language B*'","AP(R) Spanish Language B*","AV-SPANb-AP-U11"]
[null,null,null,null,"AV-STATa-AP-A08: 'AP(R) Statistics A'","AP(R) Statistics A","AV-STATa-AP-A08"]
[null,null,null,null,"AV-STATb-AP-A08: 'AP(R) Statistics B'","AP(R) Statistics B","AV-STATb-AP-A08"]
[null,null,null,null,"AV-TRIGs-HS-A08: 'Trigonometry*'","Trigonometry*","AV-TRIGs-HS-A08"]
[null,null,null,null,"AV-TRIGs-HSs-A08: 'Trigonometry* - Summer'","Trigonometry* - Summer","AV-TRIGs-HSs-A08"]
[null,null,null,null,"AV-TRIGs-HSs-U12: 'Trigonometry - Summer'","Trigonometry - Summer","AV-TRIGs-HSs-U12"]
[null,null,null,null,"AV-TRIGs-HS-U12: 'Trigonometry'","Trigonometry","AV-TRIGs-HS-U12"]
[null,null,null,null,{"$f":"CONCATENATE(G514,\": '\",F514,\"'\")","v":"AV-WEBDESs-HS-A08: 'Web Design - AVT'"},"Web Design - AVT","AV-WEBDESs-HS-A08"]
[null,null,null,null,"AV-WHISTa-AP-A04: 'AP(R) World History A*'","AP(R) World History A*","AV-WHISTa-AP-A04"]
[null,null,null,null,"AV-WHISTa-CR-A09: 'World History A CR'","World History A CR","AV-WHISTa-CR-A09"]
[null,null,null,null,"AV-WHISTa-FN-A08: 'World History A FN'","World History A FN","AV-WHISTa-FN-A08"]
[null,null,null,null,"AV-WHISTa-HS-A08: 'World History A'","World History A","AV-WHISTa-HS-A08"]
[null,null,null,null,"AV-WHISTa-HS-CA10: 'World History A-CA'","World History A-CA","AV-WHISTa-HS-CA10"]
[null,null,null,null,"AV-WHISTa-HSs-A08: 'World History A - Summer'","World History A - Summer","AV-WHISTa-HSs-A08"]
[null,null,null,null,"AV-WHISTb-AP-A04: 'AP(R) World History B*'","AP(R) World History B*","AV-WHISTb-AP-A04"]
[null,null,null,null,"AV-WHISTb-CR-A09: 'World History B CR'","World History B CR","AV-WHISTb-CR-A09"]
[null,null,null,null,"AV-WHISTb-FN-A08: 'World History B FN'","World History B FN","AV-WHISTb-FN-A08"]
[null,null,null,null,"AV-WHISTb-HS-A08: 'World History B'","World History B","AV-WHISTb-HS-A08"]
[null,null,null,null,"AV-WHISTb-HS-CA10: 'World History B-CA'","World History B-CA","AV-WHISTb-HS-CA10"]
[null,null,null,null,"AV-WHISTb-HSs-A08: 'World History B - Summer'","World History B - Summer","AV-WHISTb-HSs-A08"]
[null,null,null,null,"AV-WLANG6s-MS-A08: 'World Languages and Culture'","World Languages and Culture","AV-WLANG6s-MS-A08"]
[null,null,null,null,"BU-101AG-C: 'Business and Personal Relationships - Sem 1'","Business and Personal Relationships - Sem 1","BU-101AG-C"]
[null,null,null,null,"BU-101BG-C: 'Business and Personal Relationships - Sem 2'","Business and Personal Relationships - Sem 2","BU-101BG-C"]
[null,null,null,null,"BU-102G-C: 'Career Planning'","Career Planning","BU-102G-C"]
[null,null,null,null,"BUS-030V2-G: 'BUS030: Personal Finance'","BUS030: Personal Finance","BUS-030V2-G"]
[null,null,null,null,"BUS-030V2TX-G: 'BUS030: Personal Finance - TX'","BUS030: Personal Finance - TX","BUS-030V2TX-G"]
[null,null,null,null,"BUS-030VS1-C: 'BUS030S: Personal Finance'","BUS030S: Personal Finance","BUS-030VS1-C"]
[null,null,null,null,"BUS-030VS2-G: 'BUS030S:  Personal Finance'","BUS030S:  Personal Finance","BUS-030VS2-G"]
[null,null,null,null,"BUS-040V1-G: 'BUS040: Introduction to Entrepreneurship I'","BUS040: Introduction to Entrepreneurship I","BUS-040V1-G"]
[null,null,null,null,"BUS-050V1-G: 'BUS050: Introduction to Entrepreneurship II'","BUS050: Introduction to Entrepreneurship II","BUS-050V1-G"]
[null,null,null,null,"BUS-060V1-G: 'BUS060: Introduction to Marketing I'","BUS060: Introduction to Marketing I","BUS-060V1-G"]
[null,null,null,null,"BUS-070V1-G: 'BUS070: Introduction to Marketing II'","BUS070: Introduction to Marketing II","BUS-070V1-G"]
[null,null,null,null,"BUS-080V1-DYN: 'BUS080-DYN: International Business'","BUS080-DYN: International Business","BUS-080V1-DYN"]
[null,null,null,null,"BUS-090V1-DYN: 'BUS090-DYN: Sports and Entertainment Marketing'","BUS090-DYN: Sports and Entertainment Marketing","BUS-090V1-DYN"]
[null,null,null,null,"BUS-091V1-DYN: 'BUS091-DYN: Introduction to Social Media'","BUS091-DYN: Introduction to Social Media","BUS-091V1-DYN"]
[null,null,null,null,"CALMS10: 'Math Plus Red ^'","Math Plus Red ^","CALMS10"]
[null,null,null,null,"CALMS100: 'Math Plus Purple WY'","Math Plus Purple WY","CALMS100"]
[null,null,null,null,"CALMS101: 'Math Plus Red WY'","Math Plus Red WY","CALMS101"]
[null,null,null,null,"CALMS102: 'Math Plus Yellow WY'","Math Plus Yellow WY","CALMS102"]
[null,null,null,null,"CALMS103: 'Math Plus Purple NV'","Math Plus Purple NV","CALMS103"]
[null,null,null,null,"CALMS1036: 'Science 4 (Texas)'","Science 4 (Texas)","CALMS1036"]
[null,null,null,null,"CALMS104: 'Math Plus Red NV'","Math Plus Red NV","CALMS104"]
[null,null,null,null,"CALMS105: 'Math Plus Yellow NV'","Math Plus Yellow NV","CALMS105"]
[null,null,null,null,"CALMS106: 'Math Plus Yellow FL'","Math Plus Yellow FL","CALMS106"]
[null,null,null,null,"CALMS1099: 'Physical  Science'","Physical  Science","CALMS1099"]
[null,null,null,null,"CALMS11: 'Math Plus Yellow ^'","Math Plus Yellow ^","CALMS11"]
[null,null,null,null,"CALMS1100: 'Advanced Life Science'","Advanced Life Science","CALMS1100"]
[null,null,null,null,"CALMS1101: 'Advanced Physical Science'","Advanced Physical Science","CALMS1101"]
[null,null,null,null,"CALMS1102: 'Intermediate World History B'","Intermediate World History B","CALMS1102"]
[null,null,null,null,"CALMS1103: 'Life Science'","Life Science","CALMS1103"]
[null,null,null,null,"CALMS1104: 'Advanced Earth Science'","Advanced Earth Science","CALMS1104"]
[null,null,null,null,"CALMS1105: 'Intermediate World History A'","Intermediate World History A","CALMS1105"]
[null,null,null,null,"CALMS1106: 'Earth Science'","Earth Science","CALMS1106"]
[null,null,null,null,"CALMS1107: 'American History B'","American History B","CALMS1107"]
[null,null,null,null,"CALMS1108: 'American History A'","American History A","CALMS1108"]
[null,null,null,null,"CALMS112: 'Math Plus Yellow WA'","Math Plus Yellow WA","CALMS112"]
[null,null,null,null,"CALMS1127: 'Language Arts Purple - Cursive Handwriting'","Language Arts Purple - Cursive Handwriting","CALMS1127"]
[null,null,null,null,"CALMS113: 'Math Plus Yellow OH'","Math Plus Yellow OH","CALMS113"]
[null,null,null,null,"CALMS1133: 'Language Skills 4 - Composition ^'","Language Skills 4 - Composition ^","CALMS1133"]
[null,null,null,null,"CALMS1134: 'Language Skills 4 - GUM'","Language Skills 4 - GUM","CALMS1134"]
[null,null,null,null,"CALMS1135: 'Language Skills 4 - Test Readiness'","Language Skills 4 - Test Readiness","CALMS1135"]
[null,null,null,null,"CALMS1136: 'Language Skills 4 - Vocabulary'","Language Skills 4 - Vocabulary","CALMS1136"]
[null,null,null,null,"CALMS1137: 'Literature 4 ^'","Literature 4 ^","CALMS1137"]
[null,null,null,null,"CALMS1138: 'Spelling 4'","Spelling 4","CALMS1138"]
[null,null,null,null,"CALMS1139: 'Language Skills 5 - Composition ^'","Language Skills 5 - Composition ^","CALMS1139"]
[null,null,null,null,"CALMS1140: 'Language Skills 5 - GUM'","Language Skills 5 - GUM","CALMS1140"]
[null,null,null,null,"CALMS1141: 'Language Skills 5 - Test Readiness'","Language Skills 5 - Test Readiness","CALMS1141"]
[null,null,null,null,"CALMS1142: 'Language Skills 5 - Vocabulary'","Language Skills 5 - Vocabulary","CALMS1142"]
[null,null,null,null,"CALMS1143: 'Literature 5 ^'","Literature 5 ^","CALMS1143"]
[null,null,null,null,"CALMS1144: 'Spelling 5'","Spelling 5","CALMS1144"]
[null,null,null,null,"CALMS1145: 'Intermediate Language Skills A - Composition ^'","Intermediate Language Skills A - Composition ^","CALMS1145"]
[null,null,null,null,{"$f":"CONCATENATE(G578,\": '\",F578,\"'\")","v":"CALMS1146: 'Intermediate Language Skills A - GUM'"},"Intermediate Language Skills A - GUM","CALMS1146"]
[null,null,null,null,"CALMS1147: 'Intermediate Language Skills A - Vocabulary'","Intermediate Language Skills A - Vocabulary","CALMS1147"]
[null,null,null,null,"CALMS1148: 'Intermediate Literature A ^'","Intermediate Literature A ^","CALMS1148"]
[null,null,null,null,"CALMS1149: 'Intermediate Language Skills B - Composition ^'","Intermediate Language Skills B - Composition ^","CALMS1149"]
[null,null,null,null,"CALMS1150: 'Intermediate Language Skills B - GUM'","Intermediate Language Skills B - GUM","CALMS1150"]
[null,null,null,null,"CALMS1151: 'Intermediate Language Skills B - Vocabulary'","Intermediate Language Skills B - Vocabulary","CALMS1151"]
[null,null,null,null,"CALMS1152: 'Intermediate Literature B ^'","Intermediate Literature B ^","CALMS1152"]
[null,null,null,null,"CALMS1153: 'Literary Analysis and Composition - Composition ^'","Literary Analysis and Composition - Composition ^","CALMS1153"]
[null,null,null,null,"CALMS1154: 'Literary Analysis and Composition - GUM'","Literary Analysis and Composition - GUM","CALMS1154"]
[null,null,null,null,"CALMS1155: 'Literary Analysis and Composition - Vocabulary'","Literary Analysis and Composition - Vocabulary","CALMS1155"]
[null,null,null,null,"CALMS1156: 'Literary Analysis and Composition - Literature ^'","Literary Analysis and Composition - Literature ^","CALMS1156"]
[null,null,null,null,"CALMS1175: 'Math Plus Purple GA'","Math Plus Purple GA","CALMS1175"]
[null,null,null,null,"CALMS1176: 'Math Plus Red GA'","Math Plus Red GA","CALMS1176"]
[null,null,null,null,"CALMS1177: 'Math Plus Yellow GA'","Math Plus Yellow GA","CALMS1177"]
[null,null,null,null,"CALMS1178: 'Math 6 - Fundamentals of Geometry & Algebra'","Math 6 - Fundamentals of Geometry & Algebra","CALMS1178"]
[null,null,null,null,"CALMS1179: 'Math 7 - Pre-Algebra'","Math 7 - Pre-Algebra","CALMS1179"]
[null,null,null,null,"CALMS1180: 'Math 8 - Algebra'","Math 8 - Algebra","CALMS1180"]
[null,null,null,null,"CALMS1181: 'GA Science 3'","GA Science 3","CALMS1181"]
[null,null,null,null,"CALMS1182: 'GA Science 4'","GA Science 4","CALMS1182"]
[null,null,null,null,"CALMS1183: 'GA Science 5'","GA Science 5","CALMS1183"]
[null,null,null,null,"CALMS1184: 'Math Plus Yellow 6'","Math Plus Yellow 6","CALMS1184"]
[null,null,null,null,"CALMS1185: 'Fundamentals of Geometry and Algebra 7'","Fundamentals of Geometry and Algebra 7","CALMS1185"]
[null,null,null,null,"CALMS1186: 'MS Pre-Algebra 8'","MS Pre-Algebra 8","CALMS1186"]
[null,null,null,null,"CALMS119: 'LA 3 Lit/Comp Blueprinting'","LA 3 Lit/Comp Blueprinting","CALMS119"]
[null,null,null,null,"CALMS12: 'Stage 1: MARK12 Reading I'","Stage 1: MARK12 Reading I","CALMS12"]
[null,null,null,null,"CALMS1201: 'Math Plus Purple Agora (PA)'","Math Plus Purple Agora (PA)","CALMS1201"]
[null,null,null,null,"CALMS1202: 'Math Plus Red Agora (PA)'","Math Plus Red Agora (PA)","CALMS1202"]
[null,null,null,null,"CALMS1203: 'Math Plus Yellow Agora (PA)'","Math Plus Yellow Agora (PA)","CALMS1203"]
[null,null,null,null,"CALMS1204: 'Agora Math 6 (PA)'","Agora Math 6 (PA)","CALMS1204"]
[null,null,null,null,"CALMS1205: 'Agora Math 7 (PA)'","Agora Math 7 (PA)","CALMS1205"]
[null,null,null,null,"CALMS1206: 'Agora Math 8 (PA)'","Agora Math 8 (PA)","CALMS1206"]
[null,null,null,null,"CALMS121: 'Language Arts Blue - Literature and Comprehension'","Language Arts Blue - Literature and Comprehension","CALMS121"]
[null,null,null,null,"CALMS122: 'Language Arts Blue - Language Skills'","Language Arts Blue - Language Skills","CALMS122"]
[null,null,null,null,"CALMS123: 'Language Arts Blue - Handwriting'","Language Arts Blue - Handwriting","CALMS123"]
[null,null,null,null,"CALMS124: 'Language Arts Green - Phonics'","Language Arts Green - Phonics","CALMS124"]
[null,null,null,null,"CALMS125: 'Language Arts Green - Literature and Comprehension'","Language Arts Green - Literature and Comprehension","CALMS125"]
[null,null,null,null,"CALMS127: 'Language Arts Green - Vocabulary'","Language Arts Green - Vocabulary","CALMS127"]
[null,null,null,null,"CALMS128: 'Language Arts Green - Spelling'","Language Arts Green - Spelling","CALMS128"]
[null,null,null,null,"CALMS13: 'Stage 3: MARK12 Reading III'","Stage 3: MARK12 Reading III","CALMS13"]
[null,null,null,null,"CALMS131: 'Language Arts Green - Writing Skills'","Language Arts Green - Writing Skills","CALMS131"]
[null,null,null,null,"CALMS132: 'Language Arts Green - Handwriting'","Language Arts Green - Handwriting","CALMS132"]
[null,null,null,null,"CALMS137: 'Language Arts Blue - Phonics'","Language Arts Blue - Phonics","CALMS137"]
[null,null,null,null,"CALMS139: 'Fundamentals of Geometry and Algebra (Math 6)'","Fundamentals of Geometry and Algebra (Math 6)","CALMS139"]
[null,null,null,null,"CALMS140: 'Language Arts Purple - Literature and Comprehension'","Language Arts Purple - Literature and Comprehension","CALMS140"]
[null,null,null,null,"CALMS141: 'Language Arts Orange - Writing Skills'","Language Arts Orange - Writing Skills","CALMS141"]
[null,null,null,null,"CALMS142: 'Language Arts Purple - Writing Skills'","Language Arts Purple - Writing Skills","CALMS142"]
[null,null,null,null,"CALMS143: 'Math 6'","Math 6","CALMS143"]
[null,null,null,null,"CALMS144: 'American History B*'","American History B*","CALMS144"]
[null,null,null,null,"CALMS145: 'Intermediate World History B**'","Intermediate World History B**","CALMS145"]
[null,null,null,null,"CALMS146: 'Advanced Life Science**'","Advanced Life Science**","CALMS146"]
[null,null,null,null,"CALMS147: 'Science 5'","Science 5","CALMS147"]
[null,null,null,null,"CALMS1513: 'Texas Math Plus Purple'","Texas Math Plus Purple","CALMS1513"]
[null,null,null,null,"CALMS1514: 'Texas Math Plus Red'","Texas Math Plus Red","CALMS1514"]
[null,null,null,null,"CALMS1515: 'Texas Math Plus Yellow'","Texas Math Plus Yellow","CALMS1515"]
[null,null,null,null,"CALMS1517: 'Texas Math - Fundamentals of Geometry & Algebra'","Texas Math - Fundamentals of Geometry & Algebra","CALMS1517"]
[null,null,null,null,"CALMS152: 'Language Arts Orange - Vocabulary'","Language Arts Orange - Vocabulary","CALMS152"]
[null,null,null,null,"CALMS1523: 'Texas Math - MS Pre-Algebra 7'","Texas Math - MS Pre-Algebra 7","CALMS1523"]
[null,null,null,null,"CALMS1524: 'Texas Math - MS Algebra 1'","Texas Math - MS Algebra 1","CALMS1524"]
[null,null,null,null,"CALMS1525: 'Texas Math - Pre-Algebra 8'","Texas Math - Pre-Algebra 8","CALMS1525"]
[null,null,null,null,"CALMS1528: 'Math Plus Purple'","Math Plus Purple","CALMS1528"]
[null,null,null,null,"CALMS1529: 'Math Plus Red'","Math Plus Red","CALMS1529"]
[null,null,null,null,"CALMS153: 'Language Arts Orange - Spelling'","Language Arts Orange - Spelling","CALMS153"]
[null,null,null,null,"CALMS1530: 'Math Plus Yellow'","Math Plus Yellow","CALMS1530"]
[null,null,null,null,"CALMS1535: 'Intermediate Mathematics A'","Intermediate Mathematics A","CALMS1535"]
[null,null,null,null,{"$f":"CONCATENATE(G642,\": '\",F642,\"'\")","v":"CALMS1536: 'Intermediate Mathematics B'"},"Intermediate Mathematics B","CALMS1536"]
[null,null,null,null,"CALMS1538: 'Literature 4'","Literature 4","CALMS1538"]
[null,null,null,null,"CALMS1540: 'Language Skills 4 - Composition'","Language Skills 4 - Composition","CALMS1540"]
[null,null,null,null,"CALMS1541: 'Language Arts Red - Vocabulary'","Language Arts Red - Vocabulary","CALMS1541"]
[null,null,null,null,"CALMS1542: 'Literature 5'","Literature 5","CALMS1542"]
[null,null,null,null,"CALMS1544: 'Language Skills 5: Composition'","Language Skills 5: Composition","CALMS1544"]
[null,null,null,null,"CALMS1545: 'Language Arts Yellow - Vocabulary'","Language Arts Yellow - Vocabulary","CALMS1545"]
[null,null,null,null,"CALMS1565: 'Intermediate Literature A'","Intermediate Literature A","CALMS1565"]
[null,null,null,null,"CALMS1566: 'Intermediate Language Skills A - Composition'","Intermediate Language Skills A - Composition","CALMS1566"]
[null,null,null,null,"CALMS1567: 'Intermediate Literature B'","Intermediate Literature B","CALMS1567"]
[null,null,null,null,"CALMS1568: 'Intermediate Language Skills B - Composition'","Intermediate Language Skills B - Composition","CALMS1568"]
[null,null,null,null,"CALMS1569: 'Literary Analysis and Composition - Literature'","Literary Analysis and Composition - Literature","CALMS1569"]
[null,null,null,null,"CALMS157: 'History 1'","History 1","CALMS157"]
[null,null,null,null,"CALMS1570: 'Literary Analysis and Composition - Composition'","Literary Analysis and Composition - Composition","CALMS1570"]
[null,null,null,null,"CALMS158: 'Science 1'","Science 1","CALMS158"]
[null,null,null,null,"CALMS159: 'Science 2'","Science 2","CALMS159"]
[null,null,null,null,"CALMS1591: 'TX Language Skills 4 - Composition'","TX Language Skills 4 - Composition","CALMS1591"]
[null,null,null,null,"CALMS1592: 'TX Literary Analysis and Composition - Composition'","TX Literary Analysis and Composition - Composition","CALMS1592"]
[null,null,null,null,"CALMS1593: 'TX Literary Analysis and Composition - GUM'","TX Literary Analysis and Composition - GUM","CALMS1593"]
[null,null,null,null,"CALMS1594: 'TX Language Skills 4 - GUM'","TX Language Skills 4 - GUM","CALMS1594"]
[null,null,null,null,"CALMS1595: 'TX Language Skills 4 - Test Readiness'","TX Language Skills 4 - Test Readiness","CALMS1595"]
[null,null,null,null,"CALMS1596: 'TX Language Skills 4 - Vocabulary'","TX Language Skills 4 - Vocabulary","CALMS1596"]
[null,null,null,null,"CALMS1597: 'TX Literature 4'","TX Literature 4","CALMS1597"]
[null,null,null,null,"CALMS1598: 'TX Spelling 4'","TX Spelling 4","CALMS1598"]
[null,null,null,null,"CALMS1599: 'TX Language Skills 5 - Composition'","TX Language Skills 5 - Composition","CALMS1599"]
[null,null,null,null,"CALMS160: 'Science 3'","Science 3","CALMS160"]
[null,null,null,null,"CALMS1600: 'TX Language Skills 5 - GUM'","TX Language Skills 5 - GUM","CALMS1600"]
[null,null,null,null,"CALMS1601: 'TX Language Skills 5 - Test Readiness'","TX Language Skills 5 - Test Readiness","CALMS1601"]
[null,null,null,null,"CALMS1602: 'TX Language Skills 5 - Vocabulary'","TX Language Skills 5 - Vocabulary","CALMS1602"]
[null,null,null,null,"CALMS1603: 'TX Literature 5'","TX Literature 5","CALMS1603"]
[null,null,null,null,"CALMS1604: 'TX Spelling 5'","TX Spelling 5","CALMS1604"]
[null,null,null,null,"CALMS1605: 'TX Intermediate Language Skills A - Composition'","TX Intermediate Language Skills A - Composition","CALMS1605"]
[null,null,null,null,"CALMS1606: 'TX Intermediate Language Skills A - GUM'","TX Intermediate Language Skills A - GUM","CALMS1606"]
[null,null,null,null,"CALMS1607: 'TX Intermediate Language Skills A - Vocabulary'","TX Intermediate Language Skills A - Vocabulary","CALMS1607"]
[null,null,null,null,"CALMS1608: 'TX Intermediate Literature A'","TX Intermediate Literature A","CALMS1608"]
[null,null,null,null,"CALMS1609: 'TX Intermediate Language Skills B - Composition'","TX Intermediate Language Skills B - Composition","CALMS1609"]
[null,null,null,null,"CALMS161: 'Science 4'","Science 4","CALMS161"]
[null,null,null,null,"CALMS1610: 'TX Intermediate Language Skills B - GUM'","TX Intermediate Language Skills B - GUM","CALMS1610"]
[null,null,null,null,"CALMS1611: 'TX Intermediate Language Skills B - Vocabulary'","TX Intermediate Language Skills B - Vocabulary","CALMS1611"]
[null,null,null,null,"CALMS1612: 'TX Intermediate Literature B'","TX Intermediate Literature B","CALMS1612"]
[null,null,null,null,"CALMS1613: 'TX Literary Analysis and Composition - Literature'","TX Literary Analysis and Composition - Literature","CALMS1613"]
[null,null,null,null,"CALMS1614: 'TX Literary Analysis and Composition - Vocabulary'","TX Literary Analysis and Composition - Vocabulary","CALMS1614"]
[null,null,null,null,"CALMS164: 'American History A*'","American History A*","CALMS164"]
[null,null,null,null,"CALMS165: 'Advanced Earth Science**'","Advanced Earth Science**","CALMS165"]
[null,null,null,null,"CALMS1651: 'TN Science 6'","TN Science 6","CALMS1651"]
[null,null,null,null,"CALMS1652: 'TN Science 7'","TN Science 7","CALMS1652"]
[null,null,null,null,"CALMS1653: 'Intermediate Mathematics C'","Intermediate Mathematics C","CALMS1653"]
[null,null,null,null,"CALMS166: 'Advanced Physical Science**'","Advanced Physical Science**","CALMS166"]
[null,null,null,null,"CALMS167: 'Earth Science**'","Earth Science**","CALMS167"]
[null,null,null,null,"CALMS168: 'Life Science**'","Life Science**","CALMS168"]
[null,null,null,null,"CALMS169: 'Physical Science**'","Physical Science**","CALMS169"]
[null,null,null,null,"CALMS170: 'History 2'","History 2","CALMS170"]
[null,null,null,null,"CALMS172: 'Social Studies 1'","Social Studies 1","CALMS172"]
[null,null,null,null,"CALMS175: 'Intermediate World History A**'","Intermediate World History A**","CALMS175"]
[null,null,null,null,"CALMS176: 'History 3'","History 3","CALMS176"]
[null,null,null,null,"CALMS177: 'History 4'","History 4","CALMS177"]
[null,null,null,null,"CALMS1806: 'TX2 MS Pre-Algebra 8'","TX2 MS Pre-Algebra 8","CALMS1806"]
[null,null,null,null,"CALMS1807: 'TX2 Language Skills 4: Composition'","TX2 Language Skills 4: Composition","CALMS1807"]
[null,null,null,null,"CALMS1808: 'TX2 Language Skills 5: Composition'","TX2 Language Skills 5: Composition","CALMS1808"]
[null,null,null,null,"CALMS1809: 'TX2 Intermediate Literature A'","TX2 Intermediate Literature A","CALMS1809"]
[null,null,null,null,"CALMS181: 'Science K'","Science K","CALMS181"]
[null,null,null,null,"CALMS1810: 'TX2 Intermediate Literature B'","TX2 Intermediate Literature B","CALMS1810"]
[null,null,null,null,"CALMS1811: 'TX2 Literary Analysis and Composition: Literature'","TX2 Literary Analysis and Composition: Literature","CALMS1811"]
[null,null,null,null,"CALMS1813: 'TX2 Math+ Purple'","TX2 Math+ Purple","CALMS1813"]
[null,null,null,null,{"$f":"CONCATENATE(G706,\": '\",F706,\"'\")","v":"CALMS1816: 'TX Computer Literacy'"},"TX Computer Literacy","CALMS1816"]
[null,null,null,null,"CALMS1817: 'TX Language Arts Purple | Literature & Comprehension'","TX Language Arts Purple | Literature & Comprehension","CALMS1817"]
[null,null,null,null,"CALMS182: 'History K'","History K","CALMS182"]
[null,null,null,null,"CALMS1820: 'SC Science 3'","SC Science 3","CALMS1820"]
[null,null,null,null,"CALMS1821: 'SC Science 4'","SC Science 4","CALMS1821"]
[null,null,null,null,"CALMS1822: 'SC Science 5'","SC Science 5","CALMS1822"]
[null,null,null,null,"CALMS1823: 'SC Science 6'","SC Science 6","CALMS1823"]
[null,null,null,null,"CALMS1824: 'SC Science 7'","SC Science 7","CALMS1824"]
[null,null,null,null,"CALMS1825: 'SC Science 8'","SC Science 8","CALMS1825"]
[null,null,null,null,"CALMS1868: 'Embark Plus Math'","Embark Plus Math","CALMS1868"]
[null,null,null,null,"CALMS1869: 'Embark Plus Science'","Embark Plus Science","CALMS1869"]
[null,null,null,null,"CALMS1870: 'Embark Plus Social Studies'","Embark Plus Social Studies","CALMS1870"]
[null,null,null,null,"CALMS1871: 'Embark Plus Art'","Embark Plus Art","CALMS1871"]
[null,null,null,null,"CALMS1872: 'Embark Plus Music'","Embark Plus Music","CALMS1872"]
[null,null,null,null,"CALMS1873: 'Embark Plus Tools Exploration'","Embark Plus Tools Exploration","CALMS1873"]
[null,null,null,null,"CALMS1874: 'Embark Plus Free Reading and Journal Writing'","Embark Plus Free Reading and Journal Writing","CALMS1874"]
[null,null,null,null,"CALMS1902: 'Intermediate Global Studies'","Intermediate Global Studies","CALMS1902"]
[null,null,null,null,"CALMS1908: 'Embark Plus Language Arts'","Embark Plus Language Arts","CALMS1908"]
[null,null,null,null,"CALMS1912: 'TX Language Arts Purple | Handwriting'","TX Language Arts Purple | Handwriting","CALMS1912"]
[null,null,null,null,"CALMS1916: 'Intermediate Civics and Economics'","Intermediate Civics and Economics","CALMS1916"]
[null,null,null,null,"CALMS1917: 'TX Language Arts Purple | Spelling'","TX Language Arts Purple | Spelling","CALMS1917"]
[null,null,null,null,"CALMS1930: 'TX Language Arts Purple | Vocabulary'","TX Language Arts Purple | Vocabulary","CALMS1930"]
[null,null,null,null,"CALMS1933: 'TX Language Arts Purple | Writing Skills'","TX Language Arts Purple | Writing Skills","CALMS1933"]
[null,null,null,null,"CALMS197: 'Language Arts Orange - Handwriting'","Language Arts Orange - Handwriting","CALMS197"]
[null,null,null,null,"CALMS198: 'Language Arts Purple - Spelling'","Language Arts Purple - Spelling","CALMS198"]
[null,null,null,null,"CALMS199: 'Language Arts Purple - Handwriting'","Language Arts Purple - Handwriting","CALMS199"]
[null,null,null,null,"CALMS2: 'Math Plus Blue'","Math Plus Blue","CALMS2"]
[null,null,null,null,"CALMS200: 'Language Arts Orange - Literature and Comprehension'","Language Arts Orange - Literature and Comprehension","CALMS200"]
[null,null,null,null,"CALMS2038: 'NC Science 5'","NC Science 5","CALMS2038"]
[null,null,null,null,"CALMS2039: 'NC Science 8'","NC Science 8","CALMS2039"]
[null,null,null,null,"CALMS2151: 'NC American History A'","NC American History A","CALMS2151"]
[null,null,null,null,"CALMS272: 'Social Studies 2'","Social Studies 2","CALMS272"]
[null,null,null,null,"CALMS273: 'Social Studies 3'","Social Studies 3","CALMS273"]
[null,null,null,null,"CALMS274: 'Social Studies 4'","Social Studies 4","CALMS274"]
[null,null,null,null,"CALMS2788: 'NC Science 6'","NC Science 6","CALMS2788"]
[null,null,null,null,"CALMS293: 'MS Pre-Algebra - Supplement CA'","MS Pre-Algebra - Supplement CA","CALMS293"]
[null,null,null,null,"CALMS3: 'Math Plus Green'","Math Plus Green","CALMS3"]
[null,null,null,null,"CALMS31: 'Social Studies K'","Social Studies K","CALMS31"]
[null,null,null,null,"CALMS39: 'Math Plus Orange CA'","Math Plus Orange CA","CALMS39"]
[null,null,null,null,"CALMS4: 'Math Plus Orange'","Math Plus Orange","CALMS4"]
[null,null,null,null,"CALMS40: 'Math Plus Purple AZ SY10'","Math Plus Purple AZ SY10","CALMS40"]
[null,null,null,null,"CALMS404: 'Fundamentals of Geometry and Algebra AR'","Fundamentals of Geometry and Algebra AR","CALMS404"]
[null,null,null,null,"CALMS405: 'Fundamentals of Geometry and Algebra AZ'","Fundamentals of Geometry and Algebra AZ","CALMS405"]
[null,null,null,null,"CALMS406: 'Fundamentals of Geometry and Algebra FL'","Fundamentals of Geometry and Algebra FL","CALMS406"]
[null,null,null,null,"CALMS407: 'Fundamentals of Geometry and Algebra ID'","Fundamentals of Geometry and Algebra ID","CALMS407"]
[null,null,null,null,"CALMS408: 'Fundamentals of Geometry and Algebra SC'","Fundamentals of Geometry and Algebra SC","CALMS408"]
[null,null,null,null,"CALMS409: 'Fundamentals of Geometry and Algebra AK'","Fundamentals of Geometry and Algebra AK","CALMS409"]
[null,null,null,null,"CALMS41: 'Math Plus Purple CA'","Math Plus Purple CA","CALMS41"]
[null,null,null,null,"CALMS410: 'Fundamentals of Geometry and Algebra IN'","Fundamentals of Geometry and Algebra IN","CALMS410"]
[null,null,null,null,"CALMS411: 'Fundamentals of Geometry and Algebra KS'","Fundamentals of Geometry and Algebra KS","CALMS411"]
[null,null,null,null,"CALMS412: 'Fundamentals of Geometry and Algebra OH'","Fundamentals of Geometry and Algebra OH","CALMS412"]
[null,null,null,null,"CALMS413: 'Fundamentals of Geometry and Algebra PA SY11'","Fundamentals of Geometry and Algebra PA SY11","CALMS413"]
[null,null,null,null,"CALMS414: 'Fundamentals of Geometry and Algebra TX'","Fundamentals of Geometry and Algebra TX","CALMS414"]
[null,null,null,null,"CALMS415: 'Fundamentals of Geometry and Algebra OK'","Fundamentals of Geometry and Algebra OK","CALMS415"]
[null,null,null,null,"CALMS416: 'Fundamentals of Geometry and Algebra OR'","Fundamentals of Geometry and Algebra OR","CALMS416"]
[null,null,null,null,"CALMS417: 'Fundamentals of Geometry and Algebra IL'","Fundamentals of Geometry and Algebra IL","CALMS417"]
[null,null,null,null,"CALMS418: 'Fundamentals of Geometry and Algebra WY'","Fundamentals of Geometry and Algebra WY","CALMS418"]
[null,null,null,null,"CALMS42: 'Math Plus Purple CO'","Math Plus Purple CO","CALMS42"]
[null,null,null,null,"CALMS421: 'Progress Test - Mathematics'","Progress Test - Mathematics","CALMS421"]
[null,null,null,null,"CALMS422: 'Algebra I AR'","Algebra I AR","CALMS422"]
[null,null,null,null,"CALMS423: 'Algebra I AZ'","Algebra I AZ","CALMS423"]
[null,null,null,null,"CALMS424: 'Algebra I CO'","Algebra I CO","CALMS424"]
[null,null,null,null,"CALMS425: 'Algebra I DC'","Algebra I DC","CALMS425"]
[null,null,null,null,"CALMS426: 'Algebra I FL'","Algebra I FL","CALMS426"]
[null,null,null,null,{"$f":"CONCATENATE(G770,\": '\",F770,\"'\")","v":"CALMS427: 'Algebra I ID'"},"Algebra I ID","CALMS427"]
[null,null,null,null,"CALMS428: 'Algebra I KS'","Algebra I KS","CALMS428"]
[null,null,null,null,"CALMS429: 'Algebra I MA'","Algebra I MA","CALMS429"]
[null,null,null,null,"CALMS43: 'Math Plus Purple FL'","Math Plus Purple FL","CALMS43"]
[null,null,null,null,"CALMS431: 'Algebra I NV'","Algebra I NV","CALMS431"]
[null,null,null,null,"CALMS432: 'Algebra I OH'","Algebra I OH","CALMS432"]
[null,null,null,null,"CALMS433: 'Algebra I OK'","Algebra I OK","CALMS433"]
[null,null,null,null,"CALMS434: 'Algebra I OR'","Algebra I OR","CALMS434"]
[null,null,null,null,"CALMS435: 'Algebra I PA SY11'","Algebra I PA SY11","CALMS435"]
[null,null,null,null,"CALMS436: 'Algebra I SC'","Algebra I SC","CALMS436"]
[null,null,null,null,"CALMS437: 'Algebra I TX 8'","Algebra I TX 8","CALMS437"]
[null,null,null,null,"CALMS438: 'Algebra I VA'","Algebra I VA","CALMS438"]
[null,null,null,null,"CALMS439: 'Algebra I WA'","Algebra I WA","CALMS439"]
[null,null,null,null,"CALMS44: 'Math Plus Purple IL'","Math Plus Purple IL","CALMS44"]
[null,null,null,null,"CALMS440: 'Algebra I WY'","Algebra I WY","CALMS440"]
[null,null,null,null,"CALMS441: 'Pre-Algebra AZ 7'","Pre-Algebra AZ 7","CALMS441"]
[null,null,null,null,"CALMS442: 'Pre-Algebra FL 7'","Pre-Algebra FL 7","CALMS442"]
[null,null,null,null,"CALMS443: 'GA Math 7'","GA Math 7","CALMS443"]
[null,null,null,null,"CALMS444: 'Pre-Algebra KS 7'","Pre-Algebra KS 7","CALMS444"]
[null,null,null,null,"CALMS445: 'Pre-Algebra MN 7'","Pre-Algebra MN 7","CALMS445"]
[null,null,null,null,"CALMS446: 'Pre-Algebra OH 7'","Pre-Algebra OH 7","CALMS446"]
[null,null,null,null,"CALMS447: 'Pre-Algebra OK 7'","Pre-Algebra OK 7","CALMS447"]
[null,null,null,null,"CALMS448: 'Pre-Algebra OR 7'","Pre-Algebra OR 7","CALMS448"]
[null,null,null,null,"CALMS449: 'Pre-Algebra SC 7'","Pre-Algebra SC 7","CALMS449"]
[null,null,null,null,"CALMS45: 'Math Plus Purple PA SY11'","Math Plus Purple PA SY11","CALMS45"]
[null,null,null,null,"CALMS450: 'Pre-Algebra TX 7'","Pre-Algebra TX 7","CALMS450"]
[null,null,null,null,"CALMS451: 'Pre-Algebra UT 7'","Pre-Algebra UT 7","CALMS451"]
[null,null,null,null,"CALMS452: 'Pre-Algebra VA 7'","Pre-Algebra VA 7","CALMS452"]
[null,null,null,null,"CALMS453: 'Pre-Algebra WA 7'","Pre-Algebra WA 7","CALMS453"]
[null,null,null,null,"CALMS454: 'Pre-Algebra AZ 8'","Pre-Algebra AZ 8","CALMS454"]
[null,null,null,null,"CALMS455: 'Pre-Algebra DC 8'","Pre-Algebra DC 8","CALMS455"]
[null,null,null,null,"CALMS456: 'Pre-Algebra KS 8'","Pre-Algebra KS 8","CALMS456"]
[null,null,null,null,"CALMS457: 'Pre-Algebra MN 8'","Pre-Algebra MN 8","CALMS457"]
[null,null,null,null,"CALMS459: 'Pre-Algebra OH 8'","Pre-Algebra OH 8","CALMS459"]
[null,null,null,null,"CALMS46: 'Math Plus Red AR'","Math Plus Red AR","CALMS46"]
[null,null,null,null,"CALMS460: 'Pre-Algebra OK 8'","Pre-Algebra OK 8","CALMS460"]
[null,null,null,null,"CALMS461: 'Pre-Algebra OR 8'","Pre-Algebra OR 8","CALMS461"]
[null,null,null,null,"CALMS462: 'Pre-Algebra SC 8'","Pre-Algebra SC 8","CALMS462"]
[null,null,null,null,"CALMS463: 'Pre-Algebra TX 8'","Pre-Algebra TX 8","CALMS463"]
[null,null,null,null,"CALMS464: 'Pre-Algebra UT 8'","Pre-Algebra UT 8","CALMS464"]
[null,null,null,null,"CALMS465: 'Pre-Algebra WA 8'","Pre-Algebra WA 8","CALMS465"]
[null,null,null,null,"CALMS466: 'Pre-Algebra ID'","Pre-Algebra ID","CALMS466"]
[null,null,null,null,"CALMS467: 'DO NOT USE Pre-Algebra MI'","DO NOT USE Pre-Algebra MI","CALMS467"]
[null,null,null,null,"CALMS468: 'Pre-Algebra NV'","Pre-Algebra NV","CALMS468"]
[null,null,null,null,"CALMS469: 'DO NOT USE Math Plus Green MI'","DO NOT USE Math Plus Green MI","CALMS469"]
[null,null,null,null,"CALMS47: 'Math Plus Red AZ'","Math Plus Red AZ","CALMS47"]
[null,null,null,null,"CALMS470: 'DO NOT USE Math Plus Blue MI'","DO NOT USE Math Plus Blue MI","CALMS470"]
[null,null,null,null,"CALMS471: 'Math Plus Orange AZ'","Math Plus Orange AZ","CALMS471"]
[null,null,null,null,"CALMS472: 'DO NOT USE Math Plus Orange MI'","DO NOT USE Math Plus Orange MI","CALMS472"]
[null,null,null,null,"CALMS473: 'Math Plus Orange WY'","Math Plus Orange WY","CALMS473"]
[null,null,null,null,"CALMS474: 'Math Plus Purple AZ'","Math Plus Purple AZ","CALMS474"]
[null,null,null,null,"CALMS475: 'Math Plus Purple GA*'","Math Plus Purple GA*","CALMS475"]
[null,null,null,null,"CALMS476: 'Math Plus Purple MA'","Math Plus Purple MA","CALMS476"]
[null,null,null,null,"CALMS477: 'DO NOT USE Math Plus Purple MI'","DO NOT USE Math Plus Purple MI","CALMS477"]
[null,null,null,null,"CALMS478: 'Math Plus Purple OR'","Math Plus Purple OR","CALMS478"]
[null,null,null,null,"CALMS479: 'Math Plus Purple VA'","Math Plus Purple VA","CALMS479"]
[null,null,null,null,"CALMS48: 'Math Plus Red CA'","Math Plus Red CA","CALMS48"]
[null,null,null,null,"CALMS480: 'Math Plus Red GA*'","Math Plus Red GA*","CALMS480"]
[null,null,null,null,"CALMS481: 'Math Plus Red MA'","Math Plus Red MA","CALMS481"]
[null,null,null,null,"CALMS482: 'DO NOT USE Math Plus Red MI'","DO NOT USE Math Plus Red MI","CALMS482"]
[null,null,null,null,"CALMS484: 'DO NOT USE Math Plus Red VA'","DO NOT USE Math Plus Red VA","CALMS484"]
[null,null,null,null,"CALMS485: 'Math Plus Yellow GA*'","Math Plus Yellow GA*","CALMS485"]
[null,null,null,null,"CALMS486: 'DO NOT USE Math Plus Yellow MI'","DO NOT USE Math Plus Yellow MI","CALMS486"]
[null,null,null,null,"CALMS487: 'Math Plus Yellow OR'","Math Plus Yellow OR","CALMS487"]
[null,null,null,null,{"$f":"CONCATENATE(G834,\": '\",F834,\"'\")","v":"CALMS488: 'Math Plus Yellow VA'"},"Math Plus Yellow VA","CALMS488"]
[null,null,null,null,"CALMS489: 'GA Math 8'","GA Math 8","CALMS489"]
[null,null,null,null,"CALMS49: 'Math Plus Red CO'","Math Plus Red CO","CALMS49"]
[null,null,null,null,"CALMS490: 'Utah Studies 4'","Utah Studies 4","CALMS490"]
[null,null,null,null,"CALMS494: 'Pre-Algebra CA'","Pre-Algebra CA","CALMS494"]
[null,null,null,null,"CALMS497: 'Math Plus Red OR'","Math Plus Red OR","CALMS497"]
[null,null,null,null,"CALMS50: 'Math Plus Red FL'","Math Plus Red FL","CALMS50"]
[null,null,null,null,"CALMS502: 'GA Math 6'","GA Math 6","CALMS502"]
[null,null,null,null,"CALMS503: 'DO NOT PUBLISH - Sample Aventa S&S'","DO NOT PUBLISH - Sample Aventa S&S","CALMS503"]
[null,null,null,null,"CALMS51: 'Math Plus Red ID'","Math Plus Red ID","CALMS51"]
[null,null,null,null,"CALMS512: 'Algebra I CA'","Algebra I CA","CALMS512"]
[null,null,null,null,"CALMS513: 'Algebra I MN'","Algebra I MN","CALMS513"]
[null,null,null,null,"CALMS514: 'Algebra I UT'","Algebra I UT","CALMS514"]
[null,null,null,null,"CALMS515: 'Algebra I IL'","Algebra I IL","CALMS515"]
[null,null,null,null,"CALMS52: 'Math Plus Red IL'","Math Plus Red IL","CALMS52"]
[null,null,null,null,"CALMS53: 'Math Plus Yellow AZ'","Math Plus Yellow AZ","CALMS53"]
[null,null,null,null,"CALMS537: 'Math Plus Yellow CO'","Math Plus Yellow CO","CALMS537"]
[null,null,null,null,"CALMS54: 'Math Plus Yellow ID'","Math Plus Yellow ID","CALMS54"]
[null,null,null,null,"CALMS56: 'Math Plus Yellow IL'","Math Plus Yellow IL","CALMS56"]
[null,null,null,null,"CALMS57: 'Math Plus Yellow PA SY11'","Math Plus Yellow PA SY11","CALMS57"]
[null,null,null,null,"CALMS586: 'Progress Test - Reading (UX)'","Progress Test - Reading (UX)","CALMS586"]
[null,null,null,null,"CALMS587: 'Progress Test - Math (UX)'","Progress Test - Math (UX)","CALMS587"]
[null,null,null,null,"CALMS61: 'Pre Algebra'","Pre Algebra","CALMS61"]
[null,null,null,null,"CALMS631: 'CO Science 8'","CO Science 8","CALMS631"]
[null,null,null,null,"CALMS632: 'AR State History'","AR State History","CALMS632"]
[null,null,null,null,"CALMS633: 'MI Science 6'","MI Science 6","CALMS633"]
[null,null,null,null,"CALMS634: 'MI Science 7'","MI Science 7","CALMS634"]
[null,null,null,null,"CALMS635: 'UT Science 6'","UT Science 6","CALMS635"]
[null,null,null,null,"CALMS636: 'UT Science 7'","UT Science 7","CALMS636"]
[null,null,null,null,"CALMS637: 'UT Science 8'","UT Science 8","CALMS637"]
[null,null,null,null,"CALMS638: 'Virginia Studies'","Virginia Studies","CALMS638"]
[null,null,null,null,"CALMS639: 'WA Science 5'","WA Science 5","CALMS639"]
[null,null,null,null,"CALMS64: 'Algebra I'","Algebra I","CALMS64"]
[null,null,null,null,"CALMS640: 'AZ Earth Science'","AZ Earth Science","CALMS640"]
[null,null,null,null,"CALMS641: 'AZ Life Science'","AZ Life Science","CALMS641"]
[null,null,null,null,"CALMS642: 'AZ Physical Science'","AZ Physical Science","CALMS642"]
[null,null,null,null,"CALMS643: 'WA Earth Science'","WA Earth Science","CALMS643"]
[null,null,null,null,"CALMS644: 'WA Life Science'","WA Life Science","CALMS644"]
[null,null,null,null,"CALMS645: 'WA Physical Science'","WA Physical Science","CALMS645"]
[null,null,null,null,"CALMS646: 'Math Plus Purple Agora*'","Math Plus Purple Agora*","CALMS646"]
[null,null,null,null,"CALMS647: 'Math Plus Red Agora*'","Math Plus Red Agora*","CALMS647"]
[null,null,null,null,"CALMS648: 'Math Plus Yellow Agora*'","Math Plus Yellow Agora*","CALMS648"]
[null,null,null,null,"CALMS649: 'Agora Math 6*'","Agora Math 6*","CALMS649"]
[null,null,null,null,"CALMS65: 'Math Plus Purple AK'","Math Plus Purple AK","CALMS65"]
[null,null,null,null,"CALMS650: 'Agora Math 7*'","Agora Math 7*","CALMS650"]
[null,null,null,null,"CALMS651: 'Agora Math 8*'","Agora Math 8*","CALMS651"]
[null,null,null,null,"CALMS656: 'Language Arts Purple - Vocabulary'","Language Arts Purple - Vocabulary","CALMS656"]
[null,null,null,null,"CALMS66: 'Math Plus Red AK'","Math Plus Red AK","CALMS66"]
[null,null,null,null,"CALMS67: 'Math Plus Yellow AR'","Math Plus Yellow AR","CALMS67"]
[null,null,null,null,"CALMS670: 'Language Arts Green - PhonicsWorks Advanced & Spelling'","Language Arts Green - PhonicsWorks Advanced & Spelling","CALMS670"]
[null,null,null,null,"CALMS671: 'Language Arts Green - Handwriting & Writing Skills'","Language Arts Green - Handwriting & Writing Skills","CALMS671"]
[null,null,null,null,"CALMS673: 'Language Arts Green | Literature and Comprehension Choice Novels'","Language Arts Green | Literature and Comprehension Choice Novels","CALMS673"]
[null,null,null,null,"CALMS68: 'Math Plus Purple DC'","Math Plus Purple DC","CALMS68"]
[null,null,null,null,"CALMS682: 'FAMCONSCIs-HS-U11 - K12 LMS'","FAMCONSCIs-HS-U11 - K12 LMS","CALMS682"]
[null,null,null,null,"CALMS69: 'Math Plus Red DC'","Math Plus Red DC","CALMS69"]
[null,null,null,null,"CALMS695: 'REVIEW ONLY - GE Maths+ (Blue)'","REVIEW ONLY - GE Maths+ (Blue)","CALMS695"]
[null,null,null,null,"CALMS696: 'REVIEW ONLY - GE Maths+ (Green)'","REVIEW ONLY - GE Maths+ (Green)","CALMS696"]
[null,null,null,null,"CALMS697: 'REVIEW ONLY - GE Maths+ (Orange)'","REVIEW ONLY - GE Maths+ (Orange)","CALMS697"]
[null,null,null,null,"CALMS698: 'REVIEW ONLY - GE Maths+ (Purple)'","REVIEW ONLY - GE Maths+ (Purple)","CALMS698"]
[null,null,null,null,"CALMS699: 'REVIEW ONLY - GE Maths+ (Red)'","REVIEW ONLY - GE Maths+ (Red)","CALMS699"]
[null,null,null,null,"CALMS70: 'Math Plus Purple GA SY10'","Math Plus Purple GA SY10","CALMS70"]
[null,null,null,null,"CALMS700: 'REVIEW ONLY - GE Maths+ (Yellow)'","REVIEW ONLY - GE Maths+ (Yellow)","CALMS700"]
[null,null,null,null,"CALMS701: 'REVIEW ONLY - GE Fundamentals of Geometry and Algebra'","REVIEW ONLY - GE Fundamentals of Geometry and Algebra","CALMS701"]
[null,null,null,null,"CALMS702: 'REVIEW ONLY - GE Science F'","REVIEW ONLY - GE Science F","CALMS702"]
[null,null,null,null,{"$f":"CONCATENATE(G898,\": '\",F898,\"'\")","v":"CALMS703: 'REVIEW ONLY - GE Science B'"},"REVIEW ONLY - GE Science B","CALMS703"]
[null,null,null,null,"CALMS704: 'REVIEW ONLY - GE Science C'","REVIEW ONLY - GE Science C","CALMS704"]
[null,null,null,null,"CALMS705: 'REVIEW ONLY - GE Science D'","REVIEW ONLY - GE Science D","CALMS705"]
[null,null,null,null,"CALMS706: 'REVIEW ONLY - GE Science E'","REVIEW ONLY - GE Science E","CALMS706"]
[null,null,null,null,"CALMS707: 'REVIEW ONLY - GE Earth Science'","REVIEW ONLY - GE Earth Science","CALMS707"]
[null,null,null,null,"CALMS708: 'REVIEW ONLY - GE Science A'","REVIEW ONLY - GE Science A","CALMS708"]
[null,null,null,null,"CALMS71: 'Math Plus Red GA SY10'","Math Plus Red GA SY10","CALMS71"]
[null,null,null,null,"CALMS73: 'Math Plus Purple IN'","Math Plus Purple IN","CALMS73"]
[null,null,null,null,"CALMS74: 'Math Plus Purple KS'","Math Plus Purple KS","CALMS74"]
[null,null,null,null,"CALMS75: 'Math Plus Red KS'","Math Plus Red KS","CALMS75"]
[null,null,null,null,"CALMS76: 'Math Plus Yellow KS'","Math Plus Yellow KS","CALMS76"]
[null,null,null,null,"CALMS77: 'Math Plus Purple MO'","Math Plus Purple MO","CALMS77"]
[null,null,null,null,"CALMS78: 'Math Plus Red MO'","Math Plus Red MO","CALMS78"]
[null,null,null,null,"CALMS79: 'Math Plus Purple MN'","Math Plus Purple MN","CALMS79"]
[null,null,null,null,"CALMS8: 'Stage 2: MARK12 Reading II'","Stage 2: MARK12 Reading II","CALMS8"]
[null,null,null,null,"CALMS80: 'Math Plus Yellow MN'","Math Plus Yellow MN","CALMS80"]
[null,null,null,null,"CALMS81: 'Math Plus Purple OH'","Math Plus Purple OH","CALMS81"]
[null,null,null,null,"CALMS83: 'Math Plus Red OK'","Math Plus Red OK","CALMS83"]
[null,null,null,null,"CALMS830: 'Math+ Blue Common Core Appendix'","Math+ Blue Common Core Appendix","CALMS830"]
[null,null,null,null,"CALMS831: 'Math+ Green Common Core Appendix'","Math+ Green Common Core Appendix","CALMS831"]
[null,null,null,null,"CALMS832: 'Math+ Orange Common Core Appendix'","Math+ Orange Common Core Appendix","CALMS832"]
[null,null,null,null,"CALMS833: 'Math+ Purple Common Core Appendix'","Math+ Purple Common Core Appendix","CALMS833"]
[null,null,null,null,"CALMS834: 'Math+ Red Common Core Appendix'","Math+ Red Common Core Appendix","CALMS834"]
[null,null,null,null,"CALMS835: 'Math+ Yellow Common Core Appendix'","Math+ Yellow Common Core Appendix","CALMS835"]
[null,null,null,null,"CALMS836: 'Pre-Algebra Common Core Appendix'","Pre-Algebra Common Core Appendix","CALMS836"]
[null,null,null,null,"CALMS837: 'MS Algebra Common Core Appendix'","MS Algebra Common Core Appendix","CALMS837"]
[null,null,null,null,"CALMS84: 'Math Plus Yellow OK'","Math Plus Yellow OK","CALMS84"]
[null,null,null,null,"CALMS85: 'Math Plus Purple OR SY10'","Math Plus Purple OR SY10","CALMS85"]
[null,null,null,null,"CALMS86: 'Math Plus Red OR SY10'","Math Plus Red OR SY10","CALMS86"]
[null,null,null,null,"CALMS87: 'Math Plus Purple SC'","Math Plus Purple SC","CALMS87"]
[null,null,null,null,"CALMS88: 'Math Plus Yellow SC'","Math Plus Yellow SC","CALMS88"]
[null,null,null,null,"CALMS89: 'Math Plus Purple TX'","Math Plus Purple TX","CALMS89"]
[null,null,null,null,"CALMS9: 'Math Plus Purple ^'","Math Plus Purple ^","CALMS9"]
[null,null,null,null,"CALMS90: 'Math Plus Red TX'","Math Plus Red TX","CALMS90"]
[null,null,null,null,"CALMS908: 'Language Arts Checkpoint 1'","Language Arts Checkpoint 1","CALMS908"]
[null,null,null,null,"CALMS91: 'Math Plus Yellow TX'","Math Plus Yellow TX","CALMS91"]
[null,null,null,null,"CALMS92: 'Math Plus Purple UT'","Math Plus Purple UT","CALMS92"]
[null,null,null,null,"CALMS93: 'Math Plus Red UT'","Math Plus Red UT","CALMS93"]
[null,null,null,null,"CALMS938: 'A1G2 User Test'","A1G2 User Test","CALMS938"]
[null,null,null,null,"CALMS939: 'Language Arts Checkpoint 2'","Language Arts Checkpoint 2","CALMS939"]
[null,null,null,null,"CALMS94: 'Math Plus Yellow UT'","Math Plus Yellow UT","CALMS94"]
[null,null,null,null,"CALMS96: 'Math Plus Red VA SY10'","Math Plus Red VA SY10","CALMS96"]
[null,null,null,null,"CALMS97: 'Math Plus Yellow VA SY10'","Math Plus Yellow VA SY10","CALMS97"]
[null,null,null,null,"CALMS98: 'Math Plus Purple WA'","Math Plus Purple WA","CALMS98"]
[null,null,null,null,"CALMS99: 'Math Plus Red WA'","Math Plus Red WA","CALMS99"]
[null,null,null,null,"CAR-010V1-DYN: 'CAR010: Business and Healthcare Explorations'","CAR010: Business and Healthcare Explorations","CAR-010V1-DYN"]
[null,null,null,null,"CAR-020V1-K: 'CAR020: IT and Manufacturing Explorations'","CAR020: IT and Manufacturing Explorations","CAR-020V1-K"]
[null,null,null,null,"CEDF1: 'Career Exploration/Development'","Career Exploration/Development","CEDF1"]
[null,null,null,null,"CNMY1-AG-MIL: 'Chinese Middle School 1 - AG*'","Chinese Middle School 1 - AG*","CNMY1-AG-MIL"]
[null,null,null,null,"CNMY1-TG-V2-MIL: 'Chinese Middle School 1 - TG**'","Chinese Middle School 1 - TG**","CNMY1-TG-V2-MIL"]
[null,null,null,null,"CNMY2-AG-MIL: 'Chinese Middle School 2 - AG*'","Chinese Middle School 2 - AG*","CNMY2-AG-MIL"]
[null,null,null,null,"COS-100AV1-K: 'COS100A: Integrated Science'","COS100A: Integrated Science","COS-100AV1-K"]
[null,null,null,null,"COS-100BV1-K: 'COS100B: Integrated Science'","COS100B: Integrated Science","COS-100BV1-K"]
[null,null,null,null,"CS-ACTPrep: 'CS-ACTPrep*'","CS-ACTPrep*","CS-ACTPrep"]
[null,null,null,null,"CS-Alg1Int: 'CS-Algebra I Intervention'","CS-Algebra I Intervention","CS-Alg1Int"]
[null,null,null,null,"CS-BioInt: 'CS-Biology Intervention'","CS-Biology Intervention","CS-BioInt"]
[null,null,null,null,"CS-COEBio: 'CS-COE Biology'","CS-COE Biology","CS-COEBio"]
[null,null,null,null,"CS-COEMath: 'CS-COE Math'","CS-COE Math","CS-COEMath"]
[null,null,null,null,"CS-COERead: 'CS-COE Reading'","CS-COE Reading","CS-COERead"]
[null,null,null,null,"CS-COEWrit: 'CS-COE Writing'","CS-COE Writing","CS-COEWrit"]
[null,null,null,null,"CS-ELATESTPREP: 'CS- ELA Test Prep*'","CS- ELA Test Prep*","CS-ELATESTPREP"]
[null,null,null,null,"CS-ENG1Int: 'CS-English I Intervention'","CS-English I Intervention","CS-ENG1Int"]
[null,null,null,null,"CS-ENG2Int: 'CS-English II Intervention'","CS-English II Intervention","CS-ENG2Int"]
[null,null,null,null,"CS-EssenSkillMath: 'CS-Essential Skills Math'","CS-Essential Skills Math","CS-EssenSkillMath"]
[null,null,null,null,{"$f":"CONCATENATE(G962,\": '\",F962,\"'\")","v":"CS-EssenSkillRead: 'CS-Essential Skills Reading'"},"CS-Essential Skills Reading","CS-EssenSkillRead"]
[null,null,null,null,"CS-EssenSkillWrit: 'CS-Essential Skills Writing'","CS-Essential Skills Writing","CS-EssenSkillWrit"]
[null,null,null,null,"CS-FuncEng: 'CS-Functional English'","CS-Functional English","CS-FuncEng"]
[null,null,null,null,"CS-FuncLifeSkill: 'CS-Functional Life Skills'","CS-Functional Life Skills","CS-FuncLifeSkill"]
[null,null,null,null,"CS-FuncMath: 'CS-Functional Math'","CS-Functional Math","CS-FuncMath"]
[null,null,null,null,"CS-LASTATEHIST: 'CS- LA State History*'","CS- LA State History*","CS-LASTATEHIST"]
[null,null,null,null,"CS-MTHTESTPREP: 'CS- Math Test Prep*'","CS- Math Test Prep*","CS-MTHTESTPREP"]
[null,null,null,null,"CS-OKStateHist: 'CS-OK State History'","CS-OK State History","CS-OKStateHist"]
[null,null,null,null,"CS-PerStudioI: 'CS- Performance Studio I*'","CS- Performance Studio I*","CS-PerStudioI"]
[null,null,null,null,"CS-PerStudioII: 'CS-Performance Studio II'","CS-Performance Studio II","CS-PerStudioII"]
[null,null,null,null,"CS-PerStudioIII: 'CS-Performance Studio III'","CS-Performance Studio III","CS-PerStudioIII"]
[null,null,null,null,"CS-PerStudioIV: 'CS-Performance Studio IV'","CS-Performance Studio IV","CS-PerStudioIV"]
[null,null,null,null,"CS-PHYSED10A: 'CS-Physical Education 10 A'","CS-Physical Education 10 A","CS-PHYSED10A"]
[null,null,null,null,"CS-PHYSED10B: 'CS-Physical Education 10 B'","CS-Physical Education 10 B","CS-PHYSED10B"]
[null,null,null,null,"CS-ReadProf: 'CS-Reading Proficiency'","CS-Reading Proficiency","CS-ReadProf"]
[null,null,null,null,"CS-RHETORICB: 'CS- Rhetoric B*'","CS- Rhetoric B*","CS-RHETORICB"]
[null,null,null,null,"CS-SECONDARYMTH1: 'CS- Secondary Math I A'","CS- Secondary Math I A","CS-SECONDARYMTH1"]
[null,null,null,null,"CS-SECONDARYMTH1B: 'CS- Secondary Math I B'","CS- Secondary Math I B","CS-SECONDARYMTH1B"]
[null,null,null,null,"CS-StudAthleteI: 'CS-Student Athlete I'","CS-Student Athlete I","CS-StudAthleteI"]
[null,null,null,null,"CS-StudAthleteII: 'CS-Student Athlete II'","CS-Student Athlete II","CS-StudAthleteII"]
[null,null,null,null,"CS-StudAthleteIII: 'CS-Student Athlete III'","CS-Student Athlete III","CS-StudAthleteIII"]
[null,null,null,null,"CS-TransSkill: 'CS-Transition Skills'","CS-Transition Skills","CS-TransSkill"]
[null,null,null,null,"CS-USHistInt: 'CS-US History Intervention'","CS-US History Intervention","CS-USHistInt"]
[null,null,null,null,"D-ART-010AV1-K: 'ART010A Fine Art'","ART010A Fine Art","D-ART-010AV1-K"]
[null,null,null,null,"D-ART-010BV1-K: 'ART010B Fine Art'","ART010B Fine Art","D-ART-010BV1-K"]
[null,null,null,null,"D-ART-020AV1-K: 'ART020A Music Appreciation'","ART020A Music Appreciation","D-ART-020AV1-K"]
[null,null,null,null,"D-ART-020BV1-K: 'ART020B Music Appreciation'","ART020B Music Appreciation","D-ART-020BV1-K"]
[null,null,null,null,"D-AV-ALG1a-FN-A08: 'Algebra I A-AVT FN'","Algebra I A-AVT FN","D-AV-ALG1a-FN-A08"]
[null,null,null,null,"D-AV-ALG1a-HS-U12: 'Algebra I A-AVT'","Algebra I A-AVT","D-AV-ALG1a-HS-U12"]
[null,null,null,null,"D-AV-ALG1b-FN-A08: 'Algebra I B-AVT FN'","Algebra I B-AVT FN","D-AV-ALG1b-FN-A08"]
[null,null,null,null,"D-AV-ALG1b-HS-U12: 'Algebra I B-AVT'","Algebra I B-AVT","D-AV-ALG1b-HS-U12"]
[null,null,null,null,"D-AV-ALG2a-HS-U12: 'Algebra II A-AVT'","Algebra II A-AVT","D-AV-ALG2a-HS-U12"]
[null,null,null,null,"D-AV-ALG2b-HS-U12: 'Algebra II B-AVT'","Algebra II B-AVT","D-AV-ALG2b-HS-U12"]
[null,null,null,null,"D-AV-AMGOVTs-HS-A07: 'American (US) Government-AVT'","American (US) Government-AVT","D-AV-AMGOVTs-HS-A07"]
[null,null,null,null,"D-AV-AMHISTa-FN-A08: 'American History A-AVT FN'","American History A-AVT FN","D-AV-AMHISTa-FN-A08"]
[null,null,null,null,"D-AV-AMHISTa-HS-A08: 'American History A-AVT'","American History A-AVT","D-AV-AMHISTa-HS-A08"]
[null,null,null,null,"D-AV-AMHISTb-FN-A08: 'American History B-AVT FN'","American History B-AVT FN","D-AV-AMHISTb-FN-A08"]
[null,null,null,null,"D-AV-AMHISTb-HS-A08: 'American History B-AVT'","American History B-AVT","D-AV-AMHISTb-HS-A08"]
[null,null,null,null,"D-AV-ART6s-MS-A08: 'Art 6-AVT'","Art 6-AVT","D-AV-ART6s-MS-A08"]
[null,null,null,null,"D-AV-ART7s-MS-A08: 'Art 7-AVT'","Art 7-AVT","D-AV-ART7s-MS-A08"]
[null,null,null,null,"D-AV-ART8s-MS-A08: 'Art 8-AVT'","Art 8-AVT","D-AV-ART8s-MS-A08"]
[null,null,null,null,"D-AV-ARTAPPs-HS-A08: 'Art Appreciation-AVT'","Art Appreciation-AVT","D-AV-ARTAPPs-HS-A08"]
[null,null,null,null,"D-AV-ARTAPPs-HS-WA10: 'Art Appreciation-AVT WA'","Art Appreciation-AVT WA","D-AV-ARTAPPs-HS-WA10"]
[null,null,null,null,"D-AV-BIOa-FN-A11: 'Biology A-AVT FN'","Biology A-AVT FN","D-AV-BIOa-FN-A11"]
[null,null,null,null,"D-AV-BIOa-HS-A09: 'Biology A-AVT'","Biology A-AVT","D-AV-BIOa-HS-A09"]
[null,null,null,null,"D-AV-BIOb-FN-A11: 'Biology B-AVT FN'","Biology B-AVT FN","D-AV-BIOb-FN-A11"]
[null,null,null,null,"D-AV-BIOb-HS-A09: 'Biology B-AVT'","Biology B-AVT","D-AV-BIOb-HS-A09"]
[null,null,null,null,"D-AV-CAREXPs-MS-A08: 'Career Explorations-AVT'","Career Explorations-AVT","D-AV-CAREXPs-MS-A08"]
[null,null,null,null,"D-AV-CARPLNs-HS-A07: 'Career Planning-AVT'","Career Planning-AVT","D-AV-CARPLNs-HS-A07"]
[null,null,null,null,"D-AV-CHEMa-HS-U10: 'Chemistry A-AVT'","Chemistry A-AVT","D-AV-CHEMa-HS-U10"]
[null,null,null,null,"D-AV-CHEMb-HS-U10: 'Chemistry B-AVT'","Chemistry B-AVT","D-AV-CHEMb-HS-U10"]
[null,null,null,null,"D-AV-CWIa-HS-QWA09: 'Contemporary World Issues A-AVT WA'","Contemporary World Issues A-AVT WA","D-AV-CWIa-HS-QWA09"]
[null,null,null,null,"D-AV-CWIb-HS-QWA09: 'Contemporary World Issues B-AVT WA'","Contemporary World Issues B-AVT WA","D-AV-CWIb-HS-QWA09"]
[null,null,null,null,"D-AV-ENG1a-FN-A08: 'English I A-AVT FN'","English I A-AVT FN","D-AV-ENG1a-FN-A08"]
[null,null,null,null,"D-AV-ENG1a-HS-FL11: 'English 1 A-AVT FL'","English 1 A-AVT FL","D-AV-ENG1a-HS-FL11"]
[null,null,null,null,"D-AV-ENG1a-HS-U13: 'English I A-AVT'","English I A-AVT","D-AV-ENG1a-HS-U13"]
[null,null,null,null,"D-AV-ENG1a-MS-FL11: 'M/J Language Arts 3 A-AVT'","M/J Language Arts 3 A-AVT","D-AV-ENG1a-MS-FL11"]
[null,null,null,null,"D-AV-ENG1b-FN-A08: 'English I B-AVT FN'","English I B-AVT FN","D-AV-ENG1b-FN-A08"]
[null,null,null,null,"D-AV-ENG1b-HS-U13: 'English I B-AVT'","English I B-AVT","D-AV-ENG1b-HS-U13"]
[null,null,null,null,"D-AV-ENG1b-MS-FL11: 'M/J Language Arts 3 B-AVT'","M/J Language Arts 3 B-AVT","D-AV-ENG1b-MS-FL11"]
[null,null,null,null,"D-AV-ENG1Ra-MS-FL11: 'MJ Reading 3A-AVT'","MJ Reading 3A-AVT","D-AV-ENG1Ra-MS-FL11"]
[null,null,null,null,"D-AV-ENG1Rb-MS-FL11: 'MJ Reading 3B-AVT'","MJ Reading 3B-AVT","D-AV-ENG1Rb-MS-FL11"]
[null,null,null,null,"D-AV-ENG2a-FN-A08: 'English II A-AVT FN'","English II A-AVT FN","D-AV-ENG2a-FN-A08"]
[null,null,null,null,"D-AV-ENG2a-HS-U12: 'English II A-AVT'","English II A-AVT","D-AV-ENG2a-HS-U12"]
[null,null,null,null,{"$f":"CONCATENATE(G1026,\": '\",F1026,\"'\")","v":"D-AV-ENG2b-FN-A08: 'English II B-AVT FN'"},"English II B-AVT FN","D-AV-ENG2b-FN-A08"]
[null,null,null,null,"D-AV-ENG2b-HS-U12: 'English II B-AVT'","English II B-AVT","D-AV-ENG2b-HS-U12"]
[null,null,null,null,"D-AV-ENG3a-FN-A09: 'English III A-AVT FN'","English III A-AVT FN","D-AV-ENG3a-FN-A09"]
[null,null,null,null,"D-AV-ENG3a-HS-U12: 'English III A-AVT'","English III A-AVT","D-AV-ENG3a-HS-U12"]
[null,null,null,null,"D-AV-ENG3b-FN-A09: 'English III B-AVT FN'","English III B-AVT FN","D-AV-ENG3b-FN-A09"]
[null,null,null,null,"D-AV-ENG3b-HS-U12: 'English III B-AVT'","English III B-AVT","D-AV-ENG3b-HS-U12"]
[null,null,null,null,"D-AV-ENG4a-FN-A09: 'English IV A-AVT FN'","English IV A-AVT FN","D-AV-ENG4a-FN-A09"]
[null,null,null,null,"D-AV-ENG4a-HS-U13: 'English IV A-AVT'","English IV A-AVT","D-AV-ENG4a-HS-U13"]
[null,null,null,null,"D-AV-ENG4b-HS-U13: 'English IV B-AVT'","English IV B-AVT","D-AV-ENG4b-HS-U13"]
[null,null,null,null,"D-AV-ENG7a-MS-A08: 'Language Arts 7A-AVT'","Language Arts 7A-AVT","D-AV-ENG7a-MS-A08"]
[null,null,null,null,"D-AV-ENG7b-MS-A08: 'Language Arts 7B-AVT'","Language Arts 7B-AVT","D-AV-ENG7b-MS-A08"]
[null,null,null,null,"D-AV-ENG8a-MS-A08: 'Language Arts 8A-AVT'","Language Arts 8A-AVT","D-AV-ENG8a-MS-A08"]
[null,null,null,null,"D-AV-ENG8b-MS-A08: 'Language Arts 8B-AVT'","Language Arts 8B-AVT","D-AV-ENG8b-MS-A08"]
[null,null,null,null,"D-AV-ENGa-AP-A07: 'AP(R) English Language A-AVT'","AP(R) English Language A-AVT","D-AV-ENGa-AP-A07"]
[null,null,null,null,"D-AV-ENGb-AP-A07: 'AP(R) English Language B-AVT'","AP(R) English Language B-AVT","D-AV-ENGb-AP-A07"]
[null,null,null,null,"D-AV-ENVSCIa-HS-A07: 'Environmental Science A-AVT'","Environmental Science A-AVT","D-AV-ENVSCIa-HS-A07"]
[null,null,null,null,"D-AV-ENVSCIb-HS-A07: 'Environmental Science B-AVT'","Environmental Science B-AVT","D-AV-ENVSCIb-HS-A07"]
[null,null,null,null,"D-AV-ERTHSCIa-FN-A08: 'Earth Science A-AVT FN'","Earth Science A-AVT FN","D-AV-ERTHSCIa-FN-A08"]
[null,null,null,null,"D-AV-ERTHSCIa-HS-U10: 'Earth Science A-AVT'","Earth Science A-AVT","D-AV-ERTHSCIa-HS-U10"]
[null,null,null,null,"D-AV-ERTHSCIb-FN-A08: 'Earth Science B-AVT FN'","Earth Science B-AVT FN","D-AV-ERTHSCIb-FN-A08"]
[null,null,null,null,"D-AV-FAMSCIs-MS-U11: 'MS Family and Consumer Science-AVT'","MS Family and Consumer Science-AVT","D-AV-FAMSCIs-MS-U11"]
[null,null,null,null,"D-AV-GAMEs-HS-A08: 'Game Design-AVT'","Game Design-AVT","D-AV-GAMEs-HS-A08"]
[null,null,null,null,"D-AV-GEOGa-FN-A09: 'Geography A-AVT FN'","Geography A-AVT FN","D-AV-GEOGa-FN-A09"]
[null,null,null,null,"D-AV-GEOGb-FN-A09: 'Geography B-AVT FN'","Geography B-AVT FN","D-AV-GEOGb-FN-A09"]
[null,null,null,null,"D-AV-GEOMa-FN-A08: 'Geometry A-AVT FN'","Geometry A-AVT FN","D-AV-GEOMa-FN-A08"]
[null,null,null,null,"D-AV-GEOMa-HS-U12: 'Geometry A-AVT'","Geometry A-AVT","D-AV-GEOMa-HS-U12"]
[null,null,null,null,"D-AV-GEOMb-FN-A08: 'Geometry B-AVT FN'","Geometry B-AVT FN","D-AV-GEOMb-FN-A08"]
[null,null,null,null,"D-AV-GEOMb-HS-U12: 'Geometry B-AVT'","Geometry B-AVT","D-AV-GEOMb-HS-U12"]
[null,null,null,null,"D-AV-GOVTUSs-AP-A09: 'AP(R) US Government-AVT'","AP(R) US Government-AVT","D-AV-GOVTUSs-AP-A09"]
[null,null,null,null,"D-AV-GRAMCOMa-HS-A06: 'Grammar and Composition A-AVT'","Grammar and Composition A-AVT","D-AV-GRAMCOMa-HS-A06"]
[null,null,null,null,"D-AV-GRAMCOMb-HS-A06: 'Grammar and Composition B-AVT'","Grammar and Composition B-AVT","D-AV-GRAMCOMb-HS-A06"]
[null,null,null,null,"D-AV-HEALTH6s-MS-A08: 'Health 6-AVT'","Health 6-AVT","D-AV-HEALTH6s-MS-A08"]
[null,null,null,null,"D-AV-HEALTH7s-MS-A08: 'Health 7-AVT'","Health 7-AVT","D-AV-HEALTH7s-MS-A08"]
[null,null,null,null,"D-AV-HEALTH8s-MS-A08: 'Health 8-AVT'","Health 8-AVT","D-AV-HEALTH8s-MS-A08"]
[null,null,null,null,"D-AV-HEALTHs-FN-A09: 'Health-AVT FN'","Health-AVT FN","D-AV-HEALTHs-FN-A09"]
[null,null,null,null,"D-AV-HEALTHs-HS-A09: 'Health-AVT'","Health-AVT","D-AV-HEALTHs-HS-A09"]
[null,null,null,null,"D-AV-HEALTHs-HS-WA10: 'Health-AVT WA'","Health-AVT WA","D-AV-HEALTHs-HS-WA10"]
[null,null,null,null,"D-AV-HISMNs-MS-QMN08: 'Minnesota History-AVT MN'","Minnesota History-AVT MN","D-AV-HISMNs-MS-QMN08"]
[null,null,null,null,"D-AV-HISTGAa-MS-GA12: 'Georgia State History A-AVT'","Georgia State History A-AVT","D-AV-HISTGAa-MS-GA12"]
[null,null,null,null,"D-AV-HISTLAa-MS-LA12: 'Louisiana State History A-AVT'","Louisiana State History A-AVT","D-AV-HISTLAa-MS-LA12"]
[null,null,null,null,"D-AV-JOURNs-HS-A04: 'Journalism-AVT'","Journalism-AVT","D-AV-JOURNs-HS-A04"]
[null,null,null,null,"D-AV-LANART6a-MS-U14: 'Grade 6 Language Arts A-AVT'","Grade 6 Language Arts A-AVT","D-AV-LANART6a-MS-U14"]
[null,null,null,null,"D-AV-LANART6b-MS-U14: 'Grade 6 Language Arts B-AVT'","Grade 6 Language Arts B-AVT","D-AV-LANART6b-MS-U14"]
[null,null,null,null,"D-AV-LANART7a-MS-U14: 'Grade 7 Language Arts A-AVT'","Grade 7 Language Arts A-AVT","D-AV-LANART7a-MS-U14"]
[null,null,null,null,"D-AV-LANART7b-MS-U14: 'Grade 7 Language Arts B-AVT'","Grade 7 Language Arts B-AVT","D-AV-LANART7b-MS-U14"]
[null,null,null,null,"D-AV-LANART8a-MS-U14: 'Grade 8 Language Arts A-AVT'","Grade 8 Language Arts A-AVT","D-AV-LANART8a-MS-U14"]
[null,null,null,null,"D-AV-LANART8b-MS-U14: 'Grade 8 Language Arts B-AVT'","Grade 8 Language Arts B-AVT","D-AV-LANART8b-MS-U14"]
[null,null,null,null,"D-AV-LITa-AP-A05: 'AP(R) English Literature A-AVT'","AP(R) English Literature A-AVT","D-AV-LITa-AP-A05"]
[null,null,null,null,"D-AV-MATH6a-MS-U14: 'Grade 6 Fundamentals of Geometry and Algebra A-AVT'","Grade 6 Fundamentals of Geometry and Algebra A-AVT","D-AV-MATH6a-MS-U14"]
[null,null,null,null,"D-AV-MATH6b-MS-U14: 'Grade 6 Fundamentals of Geometry and Algebra B-AVT'","Grade 6 Fundamentals of Geometry and Algebra B-AVT","D-AV-MATH6b-MS-U14"]
[null,null,null,null,"D-AV-MATH7a-MS-A08: 'Math 7A-AVT'","Math 7A-AVT","D-AV-MATH7a-MS-A08"]
[null,null,null,null,"D-AV-MATH7a-MS-U14: 'Grade 7 Pre-Algebra A-AVT'","Grade 7 Pre-Algebra A-AVT","D-AV-MATH7a-MS-U14"]
[null,null,null,null,"D-AV-MATH7b-MS-U14: 'Grade 7 Pre-Algebra B-AVT'","Grade 7 Pre-Algebra B-AVT","D-AV-MATH7b-MS-U14"]
[null,null,null,null,"D-AV-MATH8a-MS-A08: 'Math 8A-AVT'","Math 8A-AVT","D-AV-MATH8a-MS-A08"]
[null,null,null,null,"D-AV-MATH8a-MS-U14: 'Grade 8 Algebra A-AVT'","Grade 8 Algebra A-AVT","D-AV-MATH8a-MS-U14"]
[null,null,null,null,"D-AV-MATH8b-MS-U14: 'Grade 8 Algebra B-AVT'","Grade 8 Algebra B-AVT","D-AV-MATH8b-MS-U14"]
[null,null,null,null,"D-AV-MUSIC6s-MS-A08: 'Music 6-AVT'","Music 6-AVT","D-AV-MUSIC6s-MS-A08"]
[null,null,null,null,"D-AV-MUSIC7s-MS-A08: 'Music 7-AVT'","Music 7-AVT","D-AV-MUSIC7s-MS-A08"]
[null,null,null,null,"D-AV-MUSIC8s-MS-A08: 'Music 8-AVT'","Music 8-AVT","D-AV-MUSIC8s-MS-A08"]
[null,null,null,null,"D-AV-MUSICs-HS-A08: 'Music Appreciation-AVT'","Music Appreciation-AVT","D-AV-MUSICs-HS-A08"]
[null,null,null,null,"D-AV-PERFINs-HS-A09: 'Personal Finance-AVT'","Personal Finance-AVT","D-AV-PERFINs-HS-A09"]
[null,null,null,null,"D-AV-PHYSa-HS-A08: 'Physics A-AVT'","Physics A-AVT","D-AV-PHYSa-HS-A08"]
[null,null,null,null,"D-AV-PHYSb-HS-A08: 'Physics B-AVT'","Physics B-AVT","D-AV-PHYSb-HS-A08"]
[null,null,null,null,"D-AV-PHYSCIa-FN-A09: 'Physical Science A-AVT FN'","Physical Science A-AVT FN","D-AV-PHYSCIa-FN-A09"]
[null,null,null,null,{"$f":"CONCATENATE(G1090,\": '\",F1090,\"'\")","v":"D-AV-PHYSCIa-HS-A09: 'Physical Science A-AVT'"},"Physical Science A-AVT","D-AV-PHYSCIa-HS-A09"]
[null,null,null,null,"D-AV-PHYSCIa-HS-TX13: 'Physical Science A-AVT TX'","Physical Science A-AVT TX","D-AV-PHYSCIa-HS-TX13"]
[null,null,null,null,"D-AV-PHYSCIb-FN-A09: 'Physical Science B-AVT FN'","Physical Science B-AVT FN","D-AV-PHYSCIb-FN-A09"]
[null,null,null,null,"D-AV-PHYSCIb-HS-A09: 'Physical Science B-AVT'","Physical Science B-AVT","D-AV-PHYSCIb-HS-A09"]
[null,null,null,null,"D-AV-PHYSCIb-HS-TX13: 'Physical Science B-AVT TX'","Physical Science B-AVT TX","D-AV-PHYSCIb-HS-TX13"]
[null,null,null,null,"D-AV-PHYSED6s-MS-A08: 'Physical Education 6-AVT'","Physical Education 6-AVT","D-AV-PHYSED6s-MS-A08"]
[null,null,null,null,"D-AV-PHYSED7s-MS-A08: 'Physical Education 7-AVT'","Physical Education 7-AVT","D-AV-PHYSED7s-MS-A08"]
[null,null,null,null,"D-AV-PHYSED8s-MS-A08: 'Physical Education 8-AVT'","Physical Education 8-AVT","D-AV-PHYSED8s-MS-A08"]
[null,null,null,null,"D-AV-PHYSEDa-HS-A05: 'Physical Education A-AVT'","Physical Education A-AVT","D-AV-PHYSEDa-HS-A05"]
[null,null,null,null,"D-AV-PHYSEDa-HS-TX05: 'Physical Education A-AVT TX'","Physical Education A-AVT TX","D-AV-PHYSEDa-HS-TX05"]
[null,null,null,null,"D-AV-PHYSEDb-HS-A05: 'Physical Education B-AVT'","Physical Education B-AVT","D-AV-PHYSEDb-HS-A05"]
[null,null,null,null,"D-AV-PREALGa-HS-WA10: 'Pre-Algebra A-AVT WA'","Pre-Algebra A-AVT WA","D-AV-PREALGa-HS-WA10"]
[null,null,null,null,"D-AV-PREALGb-HS-WA10: 'Pre-Algebra B-AVT WA'","Pre-Algebra B-AVT WA","D-AV-PREALGb-HS-WA10"]
[null,null,null,null,"D-AV-PRECALCs-HS-U12: 'Pre-Calculus-AVT'","Pre-Calculus-AVT","D-AV-PRECALCs-HS-U12"]
[null,null,null,null,"D-AV-PSYCHs-AP-U10: 'AP(R) Psychology-AVT'","AP(R) Psychology-AVT","D-AV-PSYCHs-AP-U10"]
[null,null,null,null,"D-AV-SCI6a-MS-A08: 'Science 6A-AVT'","Science 6A-AVT","D-AV-SCI6a-MS-A08"]
[null,null,null,null,"D-AV-SCI6b-MS-A08: 'Science 6B-AVT'","Science 6B-AVT","D-AV-SCI6b-MS-A08"]
[null,null,null,null,"D-AV-SCI7a-MS-A08: 'Science 7A-AVT'","Science 7A-AVT","D-AV-SCI7a-MS-A08"]
[null,null,null,null,"D-AV-SCI7b-MS-A08: 'Science 7B-AVT'","Science 7B-AVT","D-AV-SCI7b-MS-A08"]
[null,null,null,null,"D-AV-SCI8a-MS-A08: 'Science 8A-AVT'","Science 8A-AVT","D-AV-SCI8a-MS-A08"]
[null,null,null,null,"D-AV-SCI8b-MS-A08: 'Science 8B-AVT'","Science 8B-AVT","D-AV-SCI8b-MS-A08"]
[null,null,null,null,"D-AV-SOCST6a-MS-A08: 'Social Studies 6A-AVT'","Social Studies 6A-AVT","D-AV-SOCST6a-MS-A08"]
[null,null,null,null,"D-AV-SOCST6b-MS-A08: 'Social Studies 6B-AVT'","Social Studies 6B-AVT","D-AV-SOCST6b-MS-A08"]
[null,null,null,null,"D-AV-SOCST7a-MS-A08: 'Social Studies 7A-AVT'","Social Studies 7A-AVT","D-AV-SOCST7a-MS-A08"]
[null,null,null,null,"D-AV-SOCST7b-MS-A08: 'Social Studies 7B-AVT'","Social Studies 7B-AVT","D-AV-SOCST7b-MS-A08"]
[null,null,null,null,"D-AV-SOCST8a-MS-A08: 'Social Studies 8A-AVT'","Social Studies 8A-AVT","D-AV-SOCST8a-MS-A08"]
[null,null,null,null,"D-AV-SOCST8a-MS-WA10: 'Social Studies 8A-AVT WA'","Social Studies 8A-AVT WA","D-AV-SOCST8a-MS-WA10"]
[null,null,null,null,"D-AV-SOCST8b-MS-A08: 'Social Studies 8B-AVT'","Social Studies 8B-AVT","D-AV-SOCST8b-MS-A08"]
[null,null,null,null,"D-AV-SOCST8b-MS-WA10: 'Social Studies 8B-AVT WA'","Social Studies 8B-AVT WA","D-AV-SOCST8b-MS-WA10"]
[null,null,null,null,"D-AV-STATa-AP-A08: 'AP(R) Statistics A-AVT'","AP(R) Statistics A-AVT","D-AV-STATa-AP-A08"]
[null,null,null,null,"D-AV-TRIGs-HS-U12: 'Trigonometry-AVT'","Trigonometry-AVT","D-AV-TRIGs-HS-U12"]
[null,null,null,null,"D-AV-WHISTa-FN-A08: 'World History A-AVT FN'","World History A-AVT FN","D-AV-WHISTa-FN-A08"]
[null,null,null,null,"D-AV-WHISTa-HS-A08: 'World History A-AVT'","World History A-AVT","D-AV-WHISTa-HS-A08"]
[null,null,null,null,"D-AV-WHISTb-FN-A08: 'World History B-AVT FN'","World History B-AVT FN","D-AV-WHISTb-FN-A08"]
[null,null,null,null,"D-AV-WHISTb-HS-A08: 'World History B-AVT'","World History B-AVT","D-AV-WHISTb-HS-A08"]
[null,null,null,null,"D-AV-WLANG6s-MS-A08: 'World Languages and Culture-AVT'","World Languages and Culture-AVT","D-AV-WLANG6s-MS-A08"]
[null,null,null,null,"D-BUS-030V1OK-K: 'BUS030 Personal Finance OK'","BUS030 Personal Finance OK","D-BUS-030V1OK-K"]
[null,null,null,null,"D-BUS-030V2-K: 'BUS030 Personal Finance'","BUS030 Personal Finance","D-BUS-030V2-K"]
[null,null,null,null,"D-BUS-030V2TX-K: 'BUS030 Personal Finance TX'","BUS030 Personal Finance TX","D-BUS-030V2TX-K"]
[null,null,null,null,"D-BUS-040V1-K: 'BUS040 Introduction to Entrepreneurship I'","BUS040 Introduction to Entrepreneurship I","D-BUS-040V1-K"]
[null,null,null,null,"D-BUS-050V1-K: 'BUS050 Introduction to Entrepreneurship II'","BUS050 Introduction to Entrepreneurship II","D-BUS-050V1-K"]
[null,null,null,null,"D-BUS-060V1-K: 'BUS060 Introduction to Marketing I'","BUS060 Introduction to Marketing I","D-BUS-060V1-K"]
[null,null,null,null,"D-BUS-070V1-K: 'BUS070 Introduction to Marketing II'","BUS070 Introduction to Marketing II","D-BUS-070V1-K"]
[null,null,null,null,"D-BUS-080V1-DYN: 'BUS080-DYN International Business'","BUS080-DYN International Business","D-BUS-080V1-DYN"]
[null,null,null,null,"D-BUS-090V1-DYN: 'BUS090-DYN Sports and Entertainment Marketing'","BUS090-DYN Sports and Entertainment Marketing","D-BUS-090V1-DYN"]
[null,null,null,null,"D-CAR-010V1-DYN: 'CAR010-DYN Business and Healthcare Explorations'","CAR010-DYN Business and Healthcare Explorations","D-CAR-010V1-DYN"]
[null,null,null,null,"D-CAR-030V1-LT: 'CAR030-LT Medical Terminology'","CAR030-LT Medical Terminology","D-CAR-030V1-LT"]
[null,null,null,null,"D-CAR-040AV1-LT: 'CAR040A-LT Anatomy & Physiology I'","CAR040A-LT Anatomy & Physiology I","D-CAR-040AV1-LT"]
[null,null,null,null,"D-CS-ACTPrep: 'CS ACT Prep'","CS ACT Prep","D-CS-ACTPrep"]
[null,null,null,null,"D-CS-ACTPrepA: 'CS ACT Prep A'","CS ACT Prep A","D-CS-ACTPrepA"]
[null,null,null,null,"D-CS-ACTPrepB: 'CS ACT Prep B'","CS ACT Prep B","D-CS-ACTPrepB"]
[null,null,null,null,"D-CS-BASICENGLISH2: 'CS Basic English 2'","CS Basic English 2","D-CS-BASICENGLISH2"]
[null,null,null,null,"D-CS-BASICGEOMETRY: 'CS Basic Geometry'","CS Basic Geometry","D-CS-BASICGEOMETRY"]
[null,null,null,null,"D-CS-BASICWORLDHIST: 'CS Basic World History'","CS Basic World History","D-CS-BASICWORLDHIST"]
[null,null,null,null,"D-CS-COEMath: 'CS COE Math'","CS COE Math","D-CS-COEMath"]
[null,null,null,null,"D-CS-COERead: 'CS COE Reading'","CS COE Reading","D-CS-COERead"]
[null,null,null,null,"D-CS-DRAWINING1A: 'CS Drawing I A'","CS Drawing I A","D-CS-DRAWINING1A"]
[null,null,null,null,"D-CS-ELATESTPREP: 'CS ELA Test Prep'","CS ELA Test Prep","D-CS-ELATESTPREP"]
[null,null,null,null,"D-CS-FounAlgA: 'CS Foundations of Algebra A'","CS Foundations of Algebra A","D-CS-FounAlgA"]
[null,null,null,null,"D-CS-FOUNDATIONMUSIC: 'CS Foundations of Music'","CS Foundations of Music","D-CS-FOUNDATIONMUSIC"]
[null,null,null,null,"D-CS-FuncEng: 'CS Functional English'","CS Functional English","D-CS-FuncEng"]
[null,null,null,null,"D-CS-FuncLifeSkill: 'CS Functional Life Skills'","CS Functional Life Skills","D-CS-FuncLifeSkill"]
[null,null,null,null,"D-CS-FuncMath: 'CS Functional Math'","CS Functional Math","D-CS-FuncMath"]
[null,null,null,null,"D-CS-INTRODRAWINGA: 'CS Intro to Drawing A'","CS Intro to Drawing A","D-CS-INTRODRAWINGA"]
[null,null,null,null,{"$f":"CONCATENATE(G1154,\": '\",F1154,\"'\")","v":"D-CS-INTRODRAWINGB: 'CS Intro to Drawing B'"},"CS Intro to Drawing B","D-CS-INTRODRAWINGB"]
[null,null,null,null,"D-CS-LASTATEHIST: 'CS LA State History'","CS LA State History","D-CS-LASTATEHIST"]
[null,null,null,null,"D-CS-MNSTATEHISTORY: 'CS-MN State History'","CS-MN State History","D-CS-MNSTATEHISTORY"]
[null,null,null,null,"D-CS-MTHTESTPREP: 'CS Math Test Prep'","CS Math Test Prep","D-CS-MTHTESTPREP"]
[null,null,null,null,"D-CS-MULTICULLITA: 'CS Multicultural Literature A'","CS Multicultural Literature A","D-CS-MULTICULLITA"]
[null,null,null,null,"D-CS-MULTICULLITB: 'CS Multicultural Literature B'","CS Multicultural Literature B","D-CS-MULTICULLITB"]
[null,null,null,null,"D-CS-PerStudioI: 'CS Performance Studio I'","CS Performance Studio I","D-CS-PerStudioI"]
[null,null,null,null,"D-CS-PerStudioII: 'CS Performance Studio II'","CS Performance Studio II","D-CS-PerStudioII"]
[null,null,null,null,"D-CS-PerStudioIII: 'CS Performance Studio III'","CS Performance Studio III","D-CS-PerStudioIII"]
[null,null,null,null,"D-CS-PerStudioIV: 'CS Performance Studio IV'","CS Performance Studio IV","D-CS-PerStudioIV"]
[null,null,null,null,"D-CS-PHYSED10A: 'CS Physical Education 10A'","CS Physical Education 10A","D-CS-PHYSED10A"]
[null,null,null,null,"D-CS-PHYSED10B: 'CS Physical Education 10B'","CS Physical Education 10B","D-CS-PHYSED10B"]
[null,null,null,null,"D-CS-StudAthleteI: 'CS Student Athlete I'","CS Student Athlete I","D-CS-StudAthleteI"]
[null,null,null,null,"D-CS-StudAthleteII: 'CS Student Athlete II'","CS Student Athlete II","D-CS-StudAthleteII"]
[null,null,null,null,"D-CS-StudAthleteIII: 'CS Student Athlete III'","CS Student Athlete III","D-CS-StudAthleteIII"]
[null,null,null,null,"D-CS-StudAthleteIV: 'CS Student Athlete IV'","CS Student Athlete IV","D-CS-StudAthleteIV"]
[null,null,null,null,"D-CS-TEACHING1A: 'CS Teaching I A'","CS Teaching I A","D-CS-TEACHING1A"]
[null,null,null,null,"D-CS-TEACHING1B: 'CS Teaching I B'","CS Teaching I B","D-CS-TEACHING1B"]
[null,null,null,null,"D-CS-THEATRE1A: 'CS Theatre I A'","CS Theatre I A","D-CS-THEATRE1A"]
[null,null,null,null,"D-CS-THEATRE1B: 'CS Theatre I B'","CS Theatre I B","D-CS-THEATRE1B"]
[null,null,null,null,"DEMY1-AG-MIL: 'German Middle School 1 - AG*'","German Middle School 1 - AG*","DEMY1-AG-MIL"]
[null,null,null,null,"DEMY1-TG-V2-MIL: 'German Middle School 1 - TG**'","German Middle School 1 - TG**","DEMY1-TG-V2-MIL"]
[null,null,null,null,"D-ENG-001AV2-APL: 'ENG001A-APL English Foundations I'","ENG001A-APL English Foundations I","D-ENG-001AV2-APL"]
[null,null,null,null,"D-ENG-001BV2-APL: 'ENG001B-APL English Foundations I'","ENG001B-APL English Foundations I","D-ENG-001BV2-APL"]
[null,null,null,null,"D-ENG-010V2-K: 'ENG010 Journalism'","ENG010 Journalism","D-ENG-010V2-K"]
[null,null,null,null,"D-ENG-010V2TX-K: 'ENG010 Journalism TX'","ENG010 Journalism TX","D-ENG-010V2TX-K"]
[null,null,null,null,"D-ENG-011AV2-APL: 'ENG011A-APL English Foundations II'","ENG011A-APL English Foundations II","D-ENG-011AV2-APL"]
[null,null,null,null,"D-ENG-011BV2-APL: 'ENG011B-APL English Foundations II'","ENG011B-APL English Foundations II","D-ENG-011BV2-APL"]
[null,null,null,null,"D-ENG-020V1-K: 'ENG020 Public Speaking'","ENG020 Public Speaking","D-ENG-020V1-K"]
[null,null,null,null,"D-ENG-020V1TX-K: 'ENG020 Public Speaking TX'","ENG020 Public Speaking TX","D-ENG-020V1TX-K"]
[null,null,null,null,"D-ENG-030AV1-AVT: 'ENG030A-AVT Creative Writing'","ENG030A-AVT Creative Writing","D-ENG-030AV1-AVT"]
[null,null,null,null,"D-ENG-030BV1-AVT: 'ENG030B-AVT Creative Writing'","ENG030B-AVT Creative Writing","D-ENG-030BV1-AVT"]
[null,null,null,null,"D-ENG-102AV1-K: 'ENG102A Literary Analysis and Composition I'","ENG102A Literary Analysis and Composition I","D-ENG-102AV1-K"]
[null,null,null,null,"D-ENG-102BV1-K: 'ENG102B Literary Analysis and Composition I'","ENG102B Literary Analysis and Composition I","D-ENG-102BV1-K"]
[null,null,null,null,"D-ENG-103AV1-K: 'ENG103A Literary Analysis and Composition I'","ENG103A Literary Analysis and Composition I","D-ENG-103AV1-K"]
[null,null,null,null,"D-ENG-103AV1TX-K: 'ENG103A Literary Analysis and Composition I TX'","ENG103A Literary Analysis and Composition I TX","D-ENG-103AV1TX-K"]
[null,null,null,null,"D-ENG-103BV1-K: 'ENG103B Literary Analysis and Composition I'","ENG103B Literary Analysis and Composition I","D-ENG-103BV1-K"]
[null,null,null,null,"D-ENG-103BV1TX-K: 'ENG103B Literary Analysis and Composition I TX'","ENG103B Literary Analysis and Composition I TX","D-ENG-103BV1TX-K"]
[null,null,null,null,"D-ENG-104AV1-K: 'ENG104A Honors Literary Analysis and Composition I'","ENG104A Honors Literary Analysis and Composition I","D-ENG-104AV1-K"]
[null,null,null,null,"D-ENG-104AV1TX-K: 'ENG104A Honors Literary Analysis and Composition I TX'","ENG104A Honors Literary Analysis and Composition I TX","D-ENG-104AV1TX-K"]
[null,null,null,null,"D-ENG-104BV1-K: 'ENG104B Honors Literary Analysis and Composition I'","ENG104B Honors Literary Analysis and Composition I","D-ENG-104BV1-K"]
[null,null,null,null,"D-ENG-106AV1-AVT: 'ENG106A-AVT English I'","ENG106A-AVT English I","D-ENG-106AV1-AVT"]
[null,null,null,null,"D-ENG-106AV1CA-AVT: 'ENG106A-AVT English I CA'","ENG106A-AVT English I CA","D-ENG-106AV1CA-AVT"]
[null,null,null,null,"D-ENG-106AVG1-K: 'ENG106AG Literary Analysis and Composition I'","ENG106AG Literary Analysis and Composition I","D-ENG-106AVG1-K"]
[null,null,null,null,"D-ENG-106BV1-AVT: 'ENG106B-AVT English I'","ENG106B-AVT English I","D-ENG-106BV1-AVT"]
[null,null,null,null,"D-ENG-106BV1CA-AVT: 'ENG106B-AVT English I CA'","ENG106B-AVT English I CA","D-ENG-106BV1CA-AVT"]
[null,null,null,null,"D-ENG-106BVG1-K: 'ENG106BG Literary Analysis and Composition I'","ENG106BG Literary Analysis and Composition I","D-ENG-106BVG1-K"]
[null,null,null,null,"D-ENG-202AV1-K: 'ENG202A Literary Analysis and Composition II'","ENG202A Literary Analysis and Composition II","D-ENG-202AV1-K"]
[null,null,null,null,"D-ENG-202BV1-K: 'ENG202B Literary Analysis and Composition II'","ENG202B Literary Analysis and Composition II","D-ENG-202BV1-K"]
[null,null,null,null,"D-ENG-203AV1-K: 'ENG203A Literary Analysis and Composition II'","ENG203A Literary Analysis and Composition II","D-ENG-203AV1-K"]
[null,null,null,null,"D-ENG-203AV1TX-K: 'ENG203A Literary Analysis and Composition II TX'","ENG203A Literary Analysis and Composition II TX","D-ENG-203AV1TX-K"]
[null,null,null,null,"D-ENG-203BV1-K: 'ENG203B Literary Analysis and Composition II'","ENG203B Literary Analysis and Composition II","D-ENG-203BV1-K"]
[null,null,null,null,"D-ENG-203BV1TX-K: 'ENG203B Literary Analysis and Composition II TX'","ENG203B Literary Analysis and Composition II TX","D-ENG-203BV1TX-K"]
[null,null,null,null,"D-ENG-204AV1-K: 'ENG204A Honors Literary Analysis and Composition II'","ENG204A Honors Literary Analysis and Composition II","D-ENG-204AV1-K"]
[null,null,null,null,"D-ENG-204AV1TX-K: 'ENG204A Honors Literary Analysis and Composition II TX'","ENG204A Honors Literary Analysis and Composition II TX","D-ENG-204AV1TX-K"]
[null,null,null,null,"D-ENG-204BV1-K: 'ENG204B Honors Literary Analysis and Composition II'","ENG204B Honors Literary Analysis and Composition II","D-ENG-204BV1-K"]
[null,null,null,null,"D-ENG-206AV1-AVT: 'ENG206A-AVT English II'","ENG206A-AVT English II","D-ENG-206AV1-AVT"]
[null,null,null,null,"D-ENG-206AV1CA-AVT: 'ENG206A-AVT English II CA'","ENG206A-AVT English II CA","D-ENG-206AV1CA-AVT"]
[null,null,null,null,"D-ENG-206AVG1-K: 'ENG206AG Literary Analysis and Composition II'","ENG206AG Literary Analysis and Composition II","D-ENG-206AVG1-K"]
[null,null,null,null,"D-ENG-206BV1-AVT: 'ENG206B-AVT English II'","ENG206B-AVT English II","D-ENG-206BV1-AVT"]
[null,null,null,null,"D-ENG-206BV1CA-AVT: 'ENG206B-AVT English II CA'","ENG206B-AVT English II CA","D-ENG-206BV1CA-AVT"]
[null,null,null,null,"D-ENG-206BVG1-K: 'ENG206BG Literary Analysis and Composition II'","ENG206BG Literary Analysis and Composition II","D-ENG-206BVG1-K"]
[null,null,null,null,"D-ENG-302AV1-K: 'ENG302A American Literature'","ENG302A American Literature","D-ENG-302AV1-K"]
[null,null,null,null,"D-ENG-302AXV1-K: 'ENG302AX American Literature'","ENG302AX American Literature","D-ENG-302AXV1-K"]
[null,null,null,null,{"$f":"CONCATENATE(G1218,\": '\",F1218,\"'\")","v":"D-ENG-302BV1-K: 'ENG302B American Literature'"},"ENG302B American Literature","D-ENG-302BV1-K"]
[null,null,null,null,"D-ENG-303AV1-K: 'ENG303A American Literature'","ENG303A American Literature","D-ENG-303AV1-K"]
[null,null,null,null,"D-ENG-303AV1TX-K: 'ENG303A American Literature TX'","ENG303A American Literature TX","D-ENG-303AV1TX-K"]
[null,null,null,null,"D-ENG-303AXV1-K: 'ENG303AX American Literature'","ENG303AX American Literature","D-ENG-303AXV1-K"]
[null,null,null,null,"D-ENG-303BV1-K: 'ENG303B American Literature'","ENG303B American Literature","D-ENG-303BV1-K"]
[null,null,null,null,"D-ENG-303BV1TX-K: 'ENG303B American Literature TX'","ENG303B American Literature TX","D-ENG-303BV1TX-K"]
[null,null,null,null,"D-ENG-304AV1-K: 'ENG304A Honors American Literature'","ENG304A Honors American Literature","D-ENG-304AV1-K"]
[null,null,null,null,"D-ENG-304AV1TX-K: 'ENG304A Honors American Literature TX'","ENG304A Honors American Literature TX","D-ENG-304AV1TX-K"]
[null,null,null,null,"D-ENG-304BV1-K: 'ENG304B Honors American Literature'","ENG304B Honors American Literature","D-ENG-304BV1-K"]
[null,null,null,null,"D-ENG-306AV2-AVT: 'ENG306A-AVT English III'","ENG306A-AVT English III","D-ENG-306AV2-AVT"]
[null,null,null,null,"D-ENG-306AVG1-K: 'ENG306AG American Literature'","ENG306AG American Literature","D-ENG-306AVG1-K"]
[null,null,null,null,"D-ENG-306BV2-AVT: 'ENG306B-AVT English III'","ENG306B-AVT English III","D-ENG-306BV2-AVT"]
[null,null,null,null,"D-ENG-306BVG1-K: 'ENG306BG American Literature'","ENG306BG American Literature","D-ENG-306BVG1-K"]
[null,null,null,null,"D-ENG-313-AV1-K: 'ENG313A Rhetoric'","ENG313A Rhetoric","D-ENG-313-AV1-K"]
[null,null,null,null,"D-ENG-402AV1-K: 'ENG402A British and World Literature'","ENG402A British and World Literature","D-ENG-402AV1-K"]
[null,null,null,null,"D-ENG-402AXV1-K: 'ENG402AX British and World Literature'","ENG402AX British and World Literature","D-ENG-402AXV1-K"]
[null,null,null,null,"D-ENG-402BV1-K: 'ENG402B British and World Literature'","ENG402B British and World Literature","D-ENG-402BV1-K"]
[null,null,null,null,"D-ENG-403AV1-K: 'ENG403A British and World Literature'","ENG403A British and World Literature","D-ENG-403AV1-K"]
[null,null,null,null,"D-ENG-403AV1TX-K: 'ENG403A British and World Literature TX'","ENG403A British and World Literature TX","D-ENG-403AV1TX-K"]
[null,null,null,null,"D-ENG-403BV1-K: 'ENG403B British and World Literature'","ENG403B British and World Literature","D-ENG-403BV1-K"]
[null,null,null,null,"D-ENG-403BV1TX-K: 'ENG403B British and World Literature TX'","ENG403B British and World Literature TX","D-ENG-403BV1TX-K"]
[null,null,null,null,"D-ENG-404AV1-K: 'ENG404A Honors British and World Literature'","ENG404A Honors British and World Literature","D-ENG-404AV1-K"]
[null,null,null,null,"D-ENG-404AV1TX-K: 'ENG404A Honors British and World Literature TX'","ENG404A Honors British and World Literature TX","D-ENG-404AV1TX-K"]
[null,null,null,null,"D-ENG-404BV1-K: 'ENG404B Honors British and World Literature'","ENG404B Honors British and World Literature","D-ENG-404BV1-K"]
[null,null,null,null,"D-ENG-404BXV1-K: 'ENG404BX Honors British and World Literature'","ENG404BX Honors British and World Literature","D-ENG-404BXV1-K"]
[null,null,null,null,"D-ENG-406AV1-AVT: 'ENG406A-AVT English IV'","ENG406A-AVT English IV","D-ENG-406AV1-AVT"]
[null,null,null,null,"D-ENG-406AVG1-K: 'ENG406AG British and World Literature'","ENG406AG British and World Literature","D-ENG-406AVG1-K"]
[null,null,null,null,"D-ENG-406BV1-AVT: 'ENG406B-AVT English IV'","ENG406B-AVT English IV","D-ENG-406BV1-AVT"]
[null,null,null,null,"D-ENG-406BVG1-K: 'ENG406BG British and World Literature'","ENG406BG British and World Literature","D-ENG-406BVG1-K"]
[null,null,null,null,"D-ENG-500AV1-K: 'ENG500A AP(R) English Language and Composition'","ENG500A AP(R) English Language and Composition","D-ENG-500AV1-K"]
[null,null,null,null,"D-ENG-500BV1-K: 'ENG500B AP(R) English Language and Composition'","ENG500B AP(R) English Language and Composition","D-ENG-500BV1-K"]
[null,null,null,null,"D-ENG-510AV1-K: 'ENG510A AP(R) English Literature and Composition'","ENG510A AP(R) English Literature and Composition","D-ENG-510AV1-K"]
[null,null,null,null,"D-ENG-510BV1-K: 'ENG510B AP(R) English Literature and Composition'","ENG510B AP(R) English Literature and Composition","D-ENG-510BV1-K"]
[null,null,null,null,"D-HST-010V2-APL: 'HST010-APL Anthropology'","HST010-APL Anthropology","D-HST-010V2-APL"]
[null,null,null,null,"D-HST-020V2-AVT: 'HST020-AVT Psychology'","HST020-AVT Psychology","D-HST-020V2-AVT"]
[null,null,null,null,"D-HST-030V2-AVT: 'HST030-AVT Economics'","HST030-AVT Economics","D-HST-030V2-AVT"]
[null,null,null,null,"D-HST-040V1-AVT: 'HST040-AVT Civics'","HST040-AVT Civics","D-HST-040V1-AVT"]
[null,null,null,null,"D-HST-040V1FL-AVT: 'HST040-AVT Civics FL'","HST040-AVT Civics FL","D-HST-040V1FL-AVT"]
[null,null,null,null,"D-HST-050AV1-AVT: 'HST050A-AVT Sociology'","HST050A-AVT Sociology","D-HST-050AV1-AVT"]
[null,null,null,null,"D-HST-050BV1-AVT: 'HST050B-AVT Sociology'","HST050B-AVT Sociology","D-HST-050BV1-AVT"]
[null,null,null,null,"D-HST-102AV2-K: 'HST102A World History'","HST102A World History","D-HST-102AV2-K"]
[null,null,null,null,"D-HST-102BV2-K: 'HST102B World History'","HST102B World History","D-HST-102BV2-K"]
[null,null,null,null,"D-HST-103AV2-K: 'HST103A World History'","HST103A World History","D-HST-103AV2-K"]
[null,null,null,null,"D-HST-103AXV2-K: 'HST103AX World History'","HST103AX World History","D-HST-103AXV2-K"]
[null,null,null,null,"D-HST-103BV2-K: 'HST103B World History'","HST103B World History","D-HST-103BV2-K"]
[null,null,null,null,"D-HST-103BXV2-K: 'HST103BX World History'","HST103BX World History","D-HST-103BXV2-K"]
[null,null,null,null,"D-HST-104AV1-K: 'HST104A Honors World History'","HST104A Honors World History","D-HST-104AV1-K"]
[null,null,null,null,"D-HST-104BV1-K: 'HST104B Honors World History'","HST104B Honors World History","D-HST-104BV1-K"]
[null,null,null,null,"D-HST-106AV1-AVT: 'HST106A-AVT World History'","HST106A-AVT World History","D-HST-106AV1-AVT"]
[null,null,null,null,"D-HST-106AV1CA-AVT: 'HST106A-AVT World History CA'","HST106A-AVT World History CA","D-HST-106AV1CA-AVT"]
[null,null,null,null,"D-HST-106AVG1-K: 'HST106AG World History'","HST106AG World History","D-HST-106AVG1-K"]
[null,null,null,null,"D-HST-106BV1-AVT: 'HST106B-AVT World History'","HST106B-AVT World History","D-HST-106BV1-AVT"]
[null,null,null,null,"D-HST-106BV1CA-AVT: 'HST106B-AVT World History CA'","HST106B-AVT World History CA","D-HST-106BV1CA-AVT"]
[null,null,null,null,"D-HST-106BVG1-K: 'HST106BG World History'","HST106BG World History","D-HST-106BVG1-K"]
[null,null,null,null,"D-HST-202AV1-K: 'HST202A Modern World Studies'","HST202A Modern World Studies","D-HST-202AV1-K"]
[null,null,null,null,"D-HST-202BV1-K: 'HST202B Modern World Studies'","HST202B Modern World Studies","D-HST-202BV1-K"]
[null,null,null,null,"D-HST-203AV1-K: 'HST203A Modern World Studies'","HST203A Modern World Studies","D-HST-203AV1-K"]
[null,null,null,null,"D-HST-203BV1-K: 'HST203B Modern World Studies'","HST203B Modern World Studies","D-HST-203BV1-K"]
[null,null,null,null,"D-HST-204AV1-K: 'HST204A Honors Modern World Studies'","HST204A Honors Modern World Studies","D-HST-204AV1-K"]
[null,null,null,null,"D-HST-204BV1-K: 'HST204B Honors Modern World Studies'","HST204B Honors Modern World Studies","D-HST-204BV1-K"]
[null,null,null,null,"D-HST-206AVG1-K: 'HST206AG Modern World Studies'","HST206AG Modern World Studies","D-HST-206AVG1-K"]
[null,null,null,null,"D-HST-206BVG1-K: 'HST206BG Modern World Studies'","HST206BG Modern World Studies","D-HST-206BVG1-K"]
[null,null,null,null,"D-HST-213AV1-AVT: 'HST213A-AVT Geography'","HST213A-AVT Geography","D-HST-213AV1-AVT"]
[null,null,null,null,"D-HST-213BV1-AVT: 'HST213B-AVT Geography'","HST213B-AVT Geography","D-HST-213BV1-AVT"]
[null,null,null,null,{"$f":"CONCATENATE(G1282,\": '\",F1282,\"'\")","v":"D-HST-216AV1-AVT: 'HST216A-AVT Geography'"},"HST216A-AVT Geography","D-HST-216AV1-AVT"]
[null,null,null,null,"D-HST-216BV1-AVT: 'HST216B-AVT Geography'","HST216B-AVT Geography","D-HST-216BV1-AVT"]
[null,null,null,null,"D-HST-222AV1-AVT: 'HST222A-AVT Contemporary World Issues'","HST222A-AVT Contemporary World Issues","D-HST-222AV1-AVT"]
[null,null,null,null,"D-HST-222BV1-AVT: 'HST222B-AVT Contemporary World Issues'","HST222B-AVT Contemporary World Issues","D-HST-222BV1-AVT"]
[null,null,null,null,"D-HST-230V1OK-K: 'HST230 Oklahoma State History'","HST230 Oklahoma State History","D-HST-230V1OK-K"]
[null,null,null,null,"D-HST-302AV1-K: 'HST302A US History'","HST302A US History","D-HST-302AV1-K"]
[null,null,null,null,"D-HST-302AXV1-K: 'HST302AX US History'","HST302AX US History","D-HST-302AXV1-K"]
[null,null,null,null,"D-HST-302BV1-K: 'HST302B US History'","HST302B US History","D-HST-302BV1-K"]
[null,null,null,null,"D-HST-302BXV1-K: 'HST302BX US History'","HST302BX US History","D-HST-302BXV1-K"]
[null,null,null,null,"D-HST-303AV1-K: 'HST303A US History'","HST303A US History","D-HST-303AV1-K"]
[null,null,null,null,"D-HST-303AXV1-K: 'HST303AX US History'","HST303AX US History","D-HST-303AXV1-K"]
[null,null,null,null,"D-HST-303BV1-K: 'HST303B US History'","HST303B US History","D-HST-303BV1-K"]
[null,null,null,null,"D-HST-304AV1-K: 'HST304A Honors US History'","HST304A Honors US History","D-HST-304AV1-K"]
[null,null,null,null,"D-HST-304BV1-K: 'HST304B Honors US History'","HST304B Honors US History","D-HST-304BV1-K"]
[null,null,null,null,"D-HST-306AV1-AVT: 'HST306A-AVT American History'","HST306A-AVT American History","D-HST-306AV1-AVT"]
[null,null,null,null,"D-HST-306AVG1-K: 'HST306AG US History'","HST306AG US History","D-HST-306AVG1-K"]
[null,null,null,null,"D-HST-306BV1-AVT: 'HST306B-AVT American History'","HST306B-AVT American History","D-HST-306BV1-AVT"]
[null,null,null,null,"D-HST-306BVG1-K: 'HST306BG US History'","HST306BG US History","D-HST-306BVG1-K"]
[null,null,null,null,"D-HST-312AV1-K: 'HST312A Modern US History'","HST312A Modern US History","D-HST-312AV1-K"]
[null,null,null,null,"D-HST-312AXV1-K: 'HST312AX Modern US History'","HST312AX Modern US History","D-HST-312AXV1-K"]
[null,null,null,null,"D-HST-312BV1-K: 'HST312B Modern US History'","HST312B Modern US History","D-HST-312BV1-K"]
[null,null,null,null,"D-HST-313AV1-K: 'HST313A Modern US History'","HST313A Modern US History","D-HST-313AV1-K"]
[null,null,null,null,"D-HST-313AV1TX-K: 'HST313A Modern US History TX'","HST313A Modern US History TX","D-HST-313AV1TX-K"]
[null,null,null,null,"D-HST-313AXV1-K: 'HST313AX Modern US History'","HST313AX Modern US History","D-HST-313AXV1-K"]
[null,null,null,null,"D-HST-313BV1-K: 'HST313B Modern US History'","HST313B Modern US History","D-HST-313BV1-K"]
[null,null,null,null,"D-HST-313BV1TX-K: 'HST313B Modern US History TX'","HST313B Modern US History TX","D-HST-313BV1TX-K"]
[null,null,null,null,"D-HST-314AV1-K: 'HST314A Honors Modern US History'","HST314A Honors Modern US History","D-HST-314AV1-K"]
[null,null,null,null,"D-HST-314AV1TX-K: 'HST314A Honors Modern US History TX'","HST314A Honors Modern US History TX","D-HST-314AV1TX-K"]
[null,null,null,null,"D-HST-314BV1-K: 'HST314B Honors Modern US History'","HST314B Honors Modern US History","D-HST-314BV1-K"]
[null,null,null,null,"D-HST-316AVG1-K: 'HST316AG Modern US History'","HST316AG Modern US History","D-HST-316AVG1-K"]
[null,null,null,null,"D-HST-316BVG1-K: 'HST316BG Modern US History'","HST316BG Modern US History","D-HST-316BVG1-K"]
[null,null,null,null,"D-HST-402V1-K: 'HST402 US Government and Politics'","HST402 US Government and Politics","D-HST-402V1-K"]
[null,null,null,null,"D-HST-403AV1ID-K: 'HST403A US Government and Politics ID'","HST403A US Government and Politics ID","D-HST-403AV1ID-K"]
[null,null,null,null,"D-HST-403BV1ID-K: 'HST403B US Government and Politics ID'","HST403B US Government and Politics ID","D-HST-403BV1ID-K"]
[null,null,null,null,"D-HST-403V1-K: 'HST403 US Government and Politics'","HST403 US Government and Politics","D-HST-403V1-K"]
[null,null,null,null,"D-HST-403V1TX-K: 'HST403 US Government and Politics TX'","HST403 US Government and Politics TX","D-HST-403V1TX-K"]
[null,null,null,null,"D-HST-406V1-AVT: 'HST406-AVT American Government'","HST406-AVT American Government","D-HST-406V1-AVT"]
[null,null,null,null,"D-HST-412V1-K: 'HST412 US and Global Economics'","HST412 US and Global Economics","D-HST-412V1-K"]
[null,null,null,null,"D-HST-413V1-K: 'HST413 US and Global Economics'","HST413 US and Global Economics","D-HST-413V1-K"]
[null,null,null,null,"D-HST-413V1TX-K: 'HST413 US and Global Economics TX'","HST413 US and Global Economics TX","D-HST-413V1TX-K"]
[null,null,null,null,"D-HST-416V1-AVT: 'HST416-AVT Economics'","HST416-AVT Economics","D-HST-416V1-AVT"]
[null,null,null,null,"D-HST-422AV1-AVT: 'HST422A-AVT Contemporary World Issues'","HST422A-AVT Contemporary World Issues","D-HST-422AV1-AVT"]
[null,null,null,null,"D-HST-422BV1-AVT: 'HST422B-AVT Contemporary World Issues'","HST422B-AVT Contemporary World Issues","D-HST-422BV1-AVT"]
[null,null,null,null,"D-HST-423AV1-K: 'HST423A US Government'","HST423A US Government","D-HST-423AV1-K"]
[null,null,null,null,"D-HST-423BV1-K: 'HST423B US Government'","HST423B US Government","D-HST-423BV1-K"]
[null,null,null,null,"D-HST-424AV1-K: 'HST424A Honors US Government'","HST424A Honors US Government","D-HST-424AV1-K"]
[null,null,null,null,"D-HST-500AV2-A: 'HST500A AP(R) US History'","HST500A AP(R) US History","D-HST-500AV2-A"]
[null,null,null,null,"D-HST-500BV2-A: 'HST500B AP(R) US History'","HST500B AP(R) US History","D-HST-500BV2-A"]
[null,null,null,null,"D-HST-510V1-K: 'HST510 AP(R) US Government and Politics'","HST510 AP(R) US Government and Politics","D-HST-510V1-K"]
[null,null,null,null,"D-HST-520V1-K: 'HST520 AP(R) Macroeconomics'","HST520 AP(R) Macroeconomics","D-HST-520V1-K"]
[null,null,null,null,"D-HST-530V1-K: 'HST530 AP(R) Microeconomics'","HST530 AP(R) Microeconomics","D-HST-530V1-K"]
[null,null,null,null,"D-HST-540V1-K: 'HST540 AP(R) Psychology'","HST540 AP(R) Psychology","D-HST-540V1-K"]
[null,null,null,null,"D-HST-560AV1-K: 'HST560A AP(R) World History'","HST560A AP(R) World History","D-HST-560AV1-K"]
[null,null,null,null,"D-HST-560BV1-K: 'HST560B AP(R) World History'","HST560B AP(R) World History","D-HST-560BV1-K"]
[null,null,null,null,"D-MTH-001AV2-APL: 'MTH001A-APL Math Foundations I'","MTH001A-APL Math Foundations I","D-MTH-001AV2-APL"]
[null,null,null,null,"D-MTH-001BV2-APL: 'MTH001B-APL Math Foundations I'","MTH001B-APL Math Foundations I","D-MTH-001BV2-APL"]
[null,null,null,null,"D-MTH-011AV2-APL: 'MTH011A-APL Math Foundations II'","MTH011A-APL Math Foundations II","D-MTH-011AV2-APL"]
[null,null,null,null,"D-MTH-011BV2-APL: 'MTH011B-APL Math Foundations II'","MTH011B-APL Math Foundations II","D-MTH-011BV2-APL"]
[null,null,null,null,"D-MTH-107AV1-K: 'MTH107A Developmental Algebra'","MTH107A Developmental Algebra","D-MTH-107AV1-K"]
[null,null,null,null,"D-MTH-107BV1-K: 'MTH107B Developmental Algebra'","MTH107B Developmental Algebra","D-MTH-107BV1-K"]
[null,null,null,null,"D-MTH-112AV1-K: 'MTH112A Pre-Algebra'","MTH112A Pre-Algebra","D-MTH-112AV1-K"]
[null,null,null,null,"D-MTH-112AXV1-K: 'MTH112AX Pre-Algebra'","MTH112AX Pre-Algebra","D-MTH-112AXV1-K"]
[null,null,null,null,"D-MTH-112BV1-K: 'MTH112B Pre-Algebra'","MTH112B Pre-Algebra","D-MTH-112BV1-K"]
[null,null,null,null,"D-MTH-113AV1-K: 'MTH113A Pre-Algebra'","MTH113A Pre-Algebra","D-MTH-113AV1-K"]
[null,null,null,null,{"$f":"CONCATENATE(G1346,\": '\",F1346,\"'\")","v":"D-MTH-113BV1-K: 'MTH113B Pre-Algebra'"},"MTH113B Pre-Algebra","D-MTH-113BV1-K"]
[null,null,null,null,"D-MTH-122AV2ID-K: 'MTH122A Algebra I ID'","MTH122A Algebra I ID","D-MTH-122AV2ID-K"]
[null,null,null,null,"D-MTH-122AV2-K: 'MTH122A Algebra I'","MTH122A Algebra I","D-MTH-122AV2-K"]
[null,null,null,null,"D-MTH-122BV2-K: 'MTH122B Algebra I'","MTH122B Algebra I","D-MTH-122BV2-K"]
[null,null,null,null,"D-MTH122BV2TX-K: 'MTH122B Algebra I TX'","MTH122B Algebra I TX","D-MTH122BV2TX-K"]
[null,null,null,null,"D-MTH-123AV2ID-K: 'MTH123A Algebra I ID'","MTH123A Algebra I ID","D-MTH-123AV2ID-K"]
[null,null,null,null,"D-MTH-123AV2-K: 'MTH123A Algebra I'","MTH123A Algebra I","D-MTH-123AV2-K"]
[null,null,null,null,"D-MTH-123AXV3-K: 'MTH123AX Algebra I'","MTH123AX Algebra I","D-MTH-123AXV3-K"]
[null,null,null,null,"D-MTH-123BV2-K: 'MTH123B Algebra I'","MTH123B Algebra I","D-MTH-123BV2-K"]
[null,null,null,null,"D-MTH-123BV2TX-K: 'MTH123B Algebra I TX'","MTH123B Algebra I TX","D-MTH-123BV2TX-K"]
[null,null,null,null,"D-MTH-124AV2-K: 'MTH124A Honors Algebra I'","MTH124A Honors Algebra I","D-MTH-124AV2-K"]
[null,null,null,null,"D-MTH-124BV2-K: 'MTH124B Honors Algebra I'","MTH124B Honors Algebra I","D-MTH-124BV2-K"]
[null,null,null,null,"D-MTH-126AV2-AVT: 'MTH126A-AVT Algebra I'","MTH126A-AVT Algebra I","D-MTH-126AV2-AVT"]
[null,null,null,null,"D-MTH-126AVG1-K: 'MTH126AG Algebra I'","MTH126AG Algebra I","D-MTH-126AVG1-K"]
[null,null,null,null,"D-MTH-126BV2-AVT: 'MTH126B-AVT Algebra I'","MTH126B-AVT Algebra I","D-MTH-126BV2-AVT"]
[null,null,null,null,"D-MTH-126BVG1-K: 'MTH126BG Algebra I'","MTH126BG Algebra I","D-MTH-126BVG1-K"]
[null,null,null,null,"D-MTH-148AV1-K: 'MTH148A Integrated Mathematics I'","MTH148A Integrated Mathematics I","D-MTH-148AV1-K"]
[null,null,null,null,"D-MTH-148BV1-K: 'MTH148B Integrated Mathematics I'","MTH148B Integrated Mathematics I","D-MTH-148BV1-K"]
[null,null,null,null,"D-MTH-202AV1-K: 'MTH202A Geometry'","MTH202A Geometry","D-MTH-202AV1-K"]
[null,null,null,null,"D-MTH-202AXV1-K: 'MTH202AX Geometry'","MTH202AX Geometry","D-MTH-202AXV1-K"]
[null,null,null,null,"D-MTH-202BV1-K: 'MTH202B Geometry'","MTH202B Geometry","D-MTH-202BV1-K"]
[null,null,null,null,"D-MTH-202BV1TX-K: 'MTH202B Geometry TX'","MTH202B Geometry TX","D-MTH-202BV1TX-K"]
[null,null,null,null,"D-MTH-202BXV1-K: 'MTH202BX Geometry'","MTH202BX Geometry","D-MTH-202BXV1-K"]
[null,null,null,null,"D-MTH-203AV1-K: 'MTH203A Geometry'","MTH203A Geometry","D-MTH-203AV1-K"]
[null,null,null,null,"D-MTH-203AXV1-K: 'MTH203AX Geometry'","MTH203AX Geometry","D-MTH-203AXV1-K"]
[null,null,null,null,"D-MTH-203BV1-K: 'MTH203B Geometry'","MTH203B Geometry","D-MTH-203BV1-K"]
[null,null,null,null,"D-MTH-203BV1TX-K: 'MTH203B Geometry TX'","MTH203B Geometry TX","D-MTH-203BV1TX-K"]
[null,null,null,null,"D-MTH-203BXV1-K: 'MTH203BX Geometry'","MTH203BX Geometry","D-MTH-203BXV1-K"]
[null,null,null,null,"D-MTH-204AV1-K: 'MTH204A Honors Geometry'","MTH204A Honors Geometry","D-MTH-204AV1-K"]
[null,null,null,null,"D-MTH-204BV1-K: 'MTH204B Honors Geometry'","MTH204B Honors Geometry","D-MTH-204BV1-K"]
[null,null,null,null,"D-MTH-206AV1-AVT: 'MTH206A-AVT Geometry'","MTH206A-AVT Geometry","D-MTH-206AV1-AVT"]
[null,null,null,null,"D-MTH-206AV1CA-AVT: 'MTH206A-AVT Geometry CA'","MTH206A-AVT Geometry CA","D-MTH-206AV1CA-AVT"]
[null,null,null,null,"D-MTH-206AVG1-K: 'MTH206AG Geometry'","MTH206AG Geometry","D-MTH-206AVG1-K"]
[null,null,null,null,"D-MTH-206BV1-AVT: 'MTH206B-AVT Geometry'","MTH206B-AVT Geometry","D-MTH-206BV1-AVT"]
[null,null,null,null,"D-MTH-206BV1CA-AVT: 'MTH206B-AVT Geometry CA'","MTH206B-AVT Geometry CA","D-MTH-206BV1CA-AVT"]
[null,null,null,null,"D-MTH-206BVG1-K: 'MTH206BG Geometry'","MTH206BG Geometry","D-MTH-206BVG1-K"]
[null,null,null,null,"D-MTH-207AV1-K: 'MTH207A Continuing Algebra'","MTH207A Continuing Algebra","D-MTH-207AV1-K"]
[null,null,null,null,"D-MTH-207BV1-K: 'MTH207B Continuing Algebra'","MTH207B Continuing Algebra","D-MTH-207BV1-K"]
[null,null,null,null,"D-MTH-248AV1-K: 'MTH248A Integrated Mathematics II'","MTH248A Integrated Mathematics II","D-MTH-248AV1-K"]
[null,null,null,null,"D-MTH-248BV1-K: 'MTH248B Integrated Mathematics II'","MTH248B Integrated Mathematics II","D-MTH-248BV1-K"]
[null,null,null,null,"D-MTH-302AV1-K: 'MTH302A Algebra II'","MTH302A Algebra II","D-MTH-302AV1-K"]
[null,null,null,null,"D-MTH-302AXV1-K: 'MTH302AX Algebra II'","MTH302AX Algebra II","D-MTH-302AXV1-K"]
[null,null,null,null,"D-MTH-302BV1-K: 'MTH302B Algebra II'","MTH302B Algebra II","D-MTH-302BV1-K"]
[null,null,null,null,"D-MTH-302BV1TX-K: 'MTH302B Algebra II TX'","MTH302B Algebra II TX","D-MTH-302BV1TX-K"]
[null,null,null,null,"D-MTH-302BXV1-K: 'MTH302BX Algebra II'","MTH302BX Algebra II","D-MTH-302BXV1-K"]
[null,null,null,null,"D-MTH-303AV1-K: 'MTH303A Algebra II'","MTH303A Algebra II","D-MTH-303AV1-K"]
[null,null,null,null,"D-MTH-303BV1-K: 'MTH303B Algebra II'","MTH303B Algebra II","D-MTH-303BV1-K"]
[null,null,null,null,"D-MTH-304AV1-K: 'MTH304A Honors Algebra II'","MTH304A Honors Algebra II","D-MTH-304AV1-K"]
[null,null,null,null,"D-MTH-304BV1-K: 'MTH304B Honors Algebra II'","MTH304B Honors Algebra II","D-MTH-304BV1-K"]
[null,null,null,null,"D-MTH-306AV1-AVT: 'MTH306A-AVT Algebra II'","MTH306A-AVT Algebra II","D-MTH-306AV1-AVT"]
[null,null,null,null,"D-MTH-306AVG1-K: 'MTH306AG Algebra II'","MTH306AG Algebra II","D-MTH-306AVG1-K"]
[null,null,null,null,"D-MTH-306BV1-AVT: 'MTH306B-AVT Algebra II'","MTH306B-AVT Algebra II","D-MTH-306BV1-AVT"]
[null,null,null,null,"D-MTH-306BVG1-K: 'MTH306BG Algebra II'","MTH306BG Algebra II","D-MTH-306BVG1-K"]
[null,null,null,null,"D-MTH-307AV1CROH-K: 'MTH307A Practical Math CR OH'","MTH307A Practical Math CR OH","D-MTH-307AV1CROH-K"]
[null,null,null,null,"D-MTH-307AV1-K: 'MTH307A Practical Math'","MTH307A Practical Math","D-MTH-307AV1-K"]
[null,null,null,null,"D-MTH-307BV1CROH-K: 'MTH307B Practical Math CR OH'","MTH307B Practical Math CR OH","D-MTH-307BV1CROH-K"]
[null,null,null,null,"D-MTH-307BV1-K: 'MTH307B Practical Math'","MTH307B Practical Math","D-MTH-307BV1-K"]
[null,null,null,null,"D-MTH-307BV1TX-K: 'MTH307B Practical Math TX'","MTH307B Practical Math TX","D-MTH-307BV1TX-K"]
[null,null,null,null,"D-MTH-322AV1-AVT: 'MTH322A-AVT Consumer Math'","MTH322A-AVT Consumer Math","D-MTH-322AV1-AVT"]
[null,null,null,null,"D-MTH-322BV1-AVT: 'MTH322B-AVT Consumer Math'","MTH322B-AVT Consumer Math","D-MTH-322BV1-AVT"]
[null,null,null,null,"D-MTH-332AV1-AVT: 'MTH332A-AVT Integrated Math'","MTH332A-AVT Integrated Math","D-MTH-332AV1-AVT"]
[null,null,null,null,"D-MTH-332AV1OH-AVT: 'MTH332A-AVT Integrated Math OH'","MTH332A-AVT Integrated Math OH","D-MTH-332AV1OH-AVT"]
[null,null,null,null,"D-MTH-332BV1-AVT: 'MTH332B-AVT Integrated Math'","MTH332B-AVT Integrated Math","D-MTH-332BV1-AVT"]
[null,null,null,null,"D-MTH-332BV1OH-AVT: 'MTH332B-AVT Integrated Math OH'","MTH332B-AVT Integrated Math OH","D-MTH-332BV1OH-AVT"]
[null,null,null,null,{"$f":"CONCATENATE(G1410,\": '\",F1410,\"'\")","v":"D-MTH-342AV1-AVT: 'MTH342A-AVT Accounting'"},"MTH342A-AVT Accounting","D-MTH-342AV1-AVT"]
[null,null,null,null,"D-MTH-342BV1-AVT: 'MTH342B-AVT Accounting'","MTH342B-AVT Accounting","D-MTH-342BV1-AVT"]
[null,null,null,null,"D-MTH-348AV1-K: 'MTH348A Integrated Mathematics III'","MTH348A Integrated Mathematics III","D-MTH-348AV1-K"]
[null,null,null,null,"D-MTH-348BV1-K: 'MTH348B Integrated Mathematics III'","MTH348B Integrated Mathematics III","D-MTH-348BV1-K"]
[null,null,null,null,"D-MTH-392AV1-AVT: 'MTH392A-AVT Mathematics of Personal Finance'","MTH392A-AVT Mathematics of Personal Finance","D-MTH-392AV1-AVT"]
[null,null,null,null,"D-MTH-392BV1-AVT: 'MTH392B-AVT Mathematics of Personal Finance'","MTH392B-AVT Mathematics of Personal Finance","D-MTH-392BV1-AVT"]
[null,null,null,null,"D-MTH-403AV1-K: 'MTH403A Pre-Calculus/Trigonometry'","MTH403A Pre-Calculus/Trigonometry","D-MTH-403AV1-K"]
[null,null,null,null,"D-MTH-403BV1-K: 'MTH403B Pre-Calculus/Trigonometry'","MTH403B Pre-Calculus/Trigonometry","D-MTH-403BV1-K"]
[null,null,null,null,"D-MTH-403BV1TX-A: 'MTH403B Pre-Calculus/Trigonometry TX'","MTH403B Pre-Calculus/Trigonometry TX","D-MTH-403BV1TX-A"]
[null,null,null,null,"D-MTH-413V1-K: 'MTH413 Probability and Statistics'","MTH413 Probability and Statistics","D-MTH-413V1-K"]
[null,null,null,null,"D-MTH-433AV1-AVT: 'MTH433A-AVT Calculus'","MTH433A-AVT Calculus","D-MTH-433AV1-AVT"]
[null,null,null,null,"D-MTH-433BV1-AVT: 'MTH433B-AVT Calculus'","MTH433B-AVT Calculus","D-MTH-433BV1-AVT"]
[null,null,null,null,"D-MTH-500AV2-K: 'MTH500A AP(R) Calculus AB'","MTH500A AP(R) Calculus AB","D-MTH-500AV2-K"]
[null,null,null,null,"D-MTH-500BV2-K: 'MTH500B AP(R) Calculus AB'","MTH500B AP(R) Calculus AB","D-MTH-500BV2-K"]
[null,null,null,null,"D-MTH-510AV1-K: 'MTH510A AP(R) Statistics'","MTH510A AP(R) Statistics","D-MTH-510AV1-K"]
[null,null,null,null,"D-MTH-510BV1-K: 'MTH510B AP(R) Statistics'","MTH510B AP(R) Statistics","D-MTH-510BV1-K"]
[null,null,null,null,"D-MTH-520AV2-K: 'MTH520A AP(R) Calculus BC'","MTH520A AP(R) Calculus BC","D-MTH-520AV2-K"]
[null,null,null,null,"D-MTH-520BV2-K: 'MTH520B AP(R) Calculus BC'","MTH520B AP(R) Calculus BC","D-MTH-520BV2-K"]
[null,null,null,null,"D-ORN-100ADV2V1-K: 'ORN100 Advisory 2 Finding Your Path I'","ORN100 Advisory 2 Finding Your Path I","D-ORN-100ADV2V1-K"]
[null,null,null,null,"D-ORN-100ADVSM2V1-K: 'ORN100 Advisory SM2 Finding Your Path I'","ORN100 Advisory SM2 Finding Your Path I","D-ORN-100ADVSM2V1-K"]
[null,null,null,null,"D-ORN-100ADVV1-K: 'ORN100 Advisory Finding Your Path I'","ORN100 Advisory Finding Your Path I","D-ORN-100ADVV1-K"]
[null,null,null,null,"D-ORN-100V1-K: 'ORN100 Finding Your Path I'","ORN100 Finding Your Path I","D-ORN-100V1-K"]
[null,null,null,null,"D-ORN-200ADV2V1-K: 'ORN200 Advisory 2 Finding Your Path II'","ORN200 Advisory 2 Finding Your Path II","D-ORN-200ADV2V1-K"]
[null,null,null,null,"D-ORN-200ADVSM2V1-K: 'ORN200 Advisory SM2 Finding Your Path II'","ORN200 Advisory SM2 Finding Your Path II","D-ORN-200ADVSM2V1-K"]
[null,null,null,null,"D-ORN-200ADVV1-K: 'ORN200 Advisory Finding Your Path II'","ORN200 Advisory Finding Your Path II","D-ORN-200ADVV1-K"]
[null,null,null,null,"D-ORN-200V1-K: 'ORN200 Finding Your Path II'","ORN200 Finding Your Path II","D-ORN-200V1-K"]
[null,null,null,null,"D-ORN-300ADV2V1-K: 'ORN300 Advisory 2 Finding Your Path III'","ORN300 Advisory 2 Finding Your Path III","D-ORN-300ADV2V1-K"]
[null,null,null,null,"D-ORN-300ADVSM2V1-K: 'ORN300 Advisory SM2 Finding Your Path III'","ORN300 Advisory SM2 Finding Your Path III","D-ORN-300ADVSM2V1-K"]
[null,null,null,null,"D-ORN-300ADVV1-K: 'ORN300 Advisory Finding Your Path III'","ORN300 Advisory Finding Your Path III","D-ORN-300ADVV1-K"]
[null,null,null,null,"D-ORN-300V1-K: 'ORN300 Finding Your Path III'","ORN300 Finding Your Path III","D-ORN-300V1-K"]
[null,null,null,null,"D-ORN-400ADV2V1-K: 'ORN400 Advisory 2 Finding Your Path IV'","ORN400 Advisory 2 Finding Your Path IV","D-ORN-400ADV2V1-K"]
[null,null,null,null,"D-ORN-400ADVSM2V1-K: 'ORN400 Advisory SM2 Finding Your Path IV'","ORN400 Advisory SM2 Finding Your Path IV","D-ORN-400ADVSM2V1-K"]
[null,null,null,null,"D-ORN-400ADVV1-K: 'ORN400 Advisory Finding Your Path IV'","ORN400 Advisory Finding Your Path IV","D-ORN-400ADVV1-K"]
[null,null,null,null,"D-ORN-400V1-K: 'ORN400 Finding Your Path IV'","ORN400 Finding Your Path IV","D-ORN-400V1-K"]
[null,null,null,null,"D-OTH-010V1-K: 'OTH010 Skills for Health'","OTH010 Skills for Health","D-OTH-010V1-K"]
[null,null,null,null,"D-OTH-010V1TX-K: 'OTH010 Skills for Health TX'","OTH010 Skills for Health TX","D-OTH-010V1TX-K"]
[null,null,null,null,"D-OTH-010VS1-K: 'OTH010S Skills for Health'","OTH010S Skills for Health","D-OTH-010VS1-K"]
[null,null,null,null,"D-OTH-016V1-AVT: 'OTH016-AVT Health'","OTH016-AVT Health","D-OTH-016V1-AVT"]
[null,null,null,null,"D-OTH-018V1-DYN: 'OTH018-DYN Fashion Design and Interior Design'","OTH018-DYN Fashion Design and Interior Design","D-OTH-018V1-DYN"]
[null,null,null,null,"D-OTH-020AV1-K: 'OTH020A Physical Education'","OTH020A Physical Education","D-OTH-020AV1-K"]
[null,null,null,null,"D-OTH-020BV1-K: 'OTH020B Physical Education'","OTH020B Physical Education","D-OTH-020BV1-K"]
[null,null,null,null,"D-OTH-026V1-AVT: 'OTH026-AVT Physical Education'","OTH026-AVT Physical Education","D-OTH-026V1-AVT"]
[null,null,null,null,"D-OTH-031V1-DYN: 'OTH031-DYN Archaeology'","OTH031-DYN Archaeology","D-OTH-031V1-DYN"]
[null,null,null,null,"D-OTH-032V1-DYN: 'OTH032-DYN Astronomy'","OTH032-DYN Astronomy","D-OTH-032V1-DYN"]
[null,null,null,null,"D-OTH-033V1-DYN: 'OTH033-DYN Veterinary Science'","OTH033-DYN Veterinary Science","D-OTH-033V1-DYN"]
[null,null,null,null,"D-OTH-034V1-DYN: 'OTH034-DYN Introduction to Agriscience'","OTH034-DYN Introduction to Agriscience","D-OTH-034V1-DYN"]
[null,null,null,null,"D-OTH-035V1-DYN: 'OTH035-DYN Early Childhood Education'","OTH035-DYN Early Childhood Education","D-OTH-035V1-DYN"]
[null,null,null,null,"D-OTH-036V1-DYN: 'OTH036-DYN Gothic Literature'","OTH036-DYN Gothic Literature","D-OTH-036V1-DYN"]
[null,null,null,null,"D-OTH-037V1-DYN: 'OTH037-DYN Hospitality and Tourism'","OTH037-DYN Hospitality and Tourism","D-OTH-037V1-DYN"]
[null,null,null,null,"D-OTH-038V1-DYN: 'OTH038-DYN Careers in Criminal Justice'","OTH038-DYN Careers in Criminal Justice","D-OTH-038V1-DYN"]
[null,null,null,null,"D-OTH-039V1-DYN: 'OTH039-DYN Criminology'","OTH039-DYN Criminology","D-OTH-039V1-DYN"]
[null,null,null,null,"D-OTH-040V1-K: 'OTH040 Reaching Your Academic Potential'","OTH040 Reaching Your Academic Potential","D-OTH-040V1-K"]
[null,null,null,null,"D-OTH-040V1TX-K: 'OTH040 Reaching Your Academic Potential TX'","OTH040 Reaching Your Academic Potential TX","D-OTH-040V1TX-K"]
[null,null,null,null,"D-OTH-050V1-K: 'OTH050 Achieving Your Career and College Goals'","OTH050 Achieving Your Career and College Goals","D-OTH-050V1-K"]
[null,null,null,null,"D-OTH-060V1-AVT: 'OTH060-AVT Family and Consumer Science'","OTH060-AVT Family and Consumer Science","D-OTH-060V1-AVT"]
[null,null,null,null,"D-OTH-070V1-AVT: 'OTH070-AVT Drivers Safety'","OTH070-AVT Drivers Safety","D-OTH-070V1-AVT"]
[null,null,null,null,"D-OTH-080V1-AVT: 'OTH080-AVT Nutrition and Wellness'","OTH080-AVT Nutrition and Wellness","D-OTH-080V1-AVT"]
[null,null,null,null,"D-OTH-090V1-AVT: 'OTH090-AVT Life Skills'","OTH090-AVT Life Skills","D-OTH-090V1-AVT"]
[null,null,null,null,"D-OTH-091V1-DYN: 'OTH091-DYN Law and Order'","OTH091-DYN Law and Order","D-OTH-091V1-DYN"]
[null,null,null,null,"D-OTH-092V1-DYN: 'OTH092-DYN Health Sciences I'","OTH092-DYN Health Sciences I","D-OTH-092V1-DYN"]
[null,null,null,null,"D-OTH-093V1-DYN: 'OTH093-DYN Introduction to Culinary Arts'","OTH093-DYN Introduction to Culinary Arts","D-OTH-093V1-DYN"]
[null,null,null,null,"D-OTH-094V1-DYN: 'OTH094-DYN Health Sciences II'","OTH094-DYN Health Sciences II","D-OTH-094V1-DYN"]
[null,null,null,null,"D-OTH-095V1-DYN: 'OTH095-DYN Mythology and Folklore'","OTH095-DYN Mythology and Folklore","D-OTH-095V1-DYN"]
[null,null,null,null,"D-OTH-103AV1-K: 'OTH103A Journeys Symposium I'","OTH103A Journeys Symposium I","D-OTH-103AV1-K"]
[null,null,null,null,{"$f":"CONCATENATE(G1474,\": '\",F1474,\"'\")","v":"D-OTH-203AV1-K: 'OTH203A Journeys Symposium II'"},"OTH203A Journeys Symposium II","D-OTH-203AV1-K"]
[null,null,null,null,"D-OTH-303AV1-K: 'OTH303A Journeys Symposium III'","OTH303A Journeys Symposium III","D-OTH-303AV1-K"]
[null,null,null,null,"D-OTH-403AV1-K: 'OTH403A Journeys Symposium IV'","OTH403A Journeys Symposium IV","D-OTH-403AV1-K"]
[null,null,null,null,"D-SCI-010AV2TX-K: 'SCI010A Environmental Science TX'","SCI010A Environmental Science TX","D-SCI-010AV2TX-K"]
[null,null,null,null,"D-SCI-010V2-K: 'SCI010 Environmental Science'","SCI010 Environmental Science","D-SCI-010V2-K"]
[null,null,null,null,"D-SCI-010V2TX-K: 'SCI010 Environmental Science TX'","SCI010 Environmental Science TX","D-SCI-010V2TX-K"]
[null,null,null,null,"D-SCI-010VS2-K: 'SCI010S Environmental Science'","SCI010S Environmental Science","D-SCI-010VS2-K"]
[null,null,null,null,"D-SCI-030AV2TX-K: 'SCI030A Forensic Science TX'","SCI030A Forensic Science TX","D-SCI-030AV2TX-K"]
[null,null,null,null,"D-SCI-030BV2TX-K: 'SCI030B Forensic Science TX'","SCI030B Forensic Science TX","D-SCI-030BV2TX-K"]
[null,null,null,null,"D-SCI-030V1-K: 'SCI030 Forensic Science'","SCI030 Forensic Science","D-SCI-030V1-K"]
[null,null,null,null,"D-SCI-102AV1-K: 'SCI102A Physical Science'","SCI102A Physical Science","D-SCI-102AV1-K"]
[null,null,null,null,"D-SCI-102AXV1-K: 'SCI102AX Physical Science'","SCI102AX Physical Science","D-SCI-102AXV1-K"]
[null,null,null,null,"D-SCI-102BV1IN-K: 'SCI102B Integrated Chemistry-Physics IN'","SCI102B Integrated Chemistry-Physics IN","D-SCI-102BV1IN-K"]
[null,null,null,null,"D-SCI-102BV1-K: 'SCI102B Physical Science'","SCI102B Physical Science","D-SCI-102BV1-K"]
[null,null,null,null,"D-SCI-102BXV1-K: 'SCI102BX Physical Science'","SCI102BX Physical Science","D-SCI-102BXV1-K"]
[null,null,null,null,"D-SCI-106AV1-AVT: 'SCI106A-AVT Physical Science'","SCI106A-AVT Physical Science","D-SCI-106AV1-AVT"]
[null,null,null,null,"D-SCI-106AVG1-K: 'SCI106AG Physical Science'","SCI106AG Physical Science","D-SCI-106AVG1-K"]
[null,null,null,null,"D-SCI-106BV1-AVT: 'SCI106B-AVT Physical Science'","SCI106B-AVT Physical Science","D-SCI-106BV1-AVT"]
[null,null,null,null,"D-SCI-106BVG1IN-K: 'SCI106BG Integrated Chemistry-Physics IN'","SCI106BG Integrated Chemistry-Physics IN","D-SCI-106BVG1IN-K"]
[null,null,null,null,"D-SCI-106BVG1-K: 'SCI106BG Physical Science'","SCI106BG Physical Science","D-SCI-106BVG1-K"]
[null,null,null,null,"D-SCI-112AV1-K: 'SCI112A Earth Science'","SCI112A Earth Science","D-SCI-112AV1-K"]
[null,null,null,null,"D-SCI-112AXV1-K: 'SCI112AX Earth Science'","SCI112AX Earth Science","D-SCI-112AXV1-K"]
[null,null,null,null,"D-SCI-112BV1-K: 'SCI112B Earth Science'","SCI112B Earth Science","D-SCI-112BV1-K"]
[null,null,null,null,"D-SCI-112BXV1-K: 'SCI112BX Earth Science'","SCI112BX Earth Science","D-SCI-112BXV1-K"]
[null,null,null,null,"D-SCI-113AV1-K: 'SCI113A Earth Science'","SCI113A Earth Science","D-SCI-113AV1-K"]
[null,null,null,null,"D-SCI-113AXV1-K: 'SCI113AX Earth Science'","SCI113AX Earth Science","D-SCI-113AXV1-K"]
[null,null,null,null,"D-SCI-113BV1-K: 'SCI113B Earth Science'","SCI113B Earth Science","D-SCI-113BV1-K"]
[null,null,null,null,"D-SCI-113BXV1-K: 'SCI113BX Earth Science'","SCI113BX Earth Science","D-SCI-113BXV1-K"]
[null,null,null,null,"D-SCI-114AV1-K: 'SCI114A Honors Earth Science'","SCI114A Honors Earth Science","D-SCI-114AV1-K"]
[null,null,null,null,"D-SCI-114AXV1-K: 'SCI114AX Honors Earth Science'","SCI114AX Honors Earth Science","D-SCI-114AXV1-K"]
[null,null,null,null,"D-SCI-114BV1-K: 'SCI114B Honors Earth Science'","SCI114B Honors Earth Science","D-SCI-114BV1-K"]
[null,null,null,null,"D-SCI-114BXV1-K: 'SCI114BX Honors Earth Science'","SCI114BX Honors Earth Science","D-SCI-114BXV1-K"]
[null,null,null,null,"D-SCI-116AV2-AVT: 'SCI116A-AVT Earth Science'","SCI116A-AVT Earth Science","D-SCI-116AV2-AVT"]
[null,null,null,null,"D-SCI-116AVG1-K: 'SCI116AG Earth Science'","SCI116AG Earth Science","D-SCI-116AVG1-K"]
[null,null,null,null,"D-SCI-116BV2-AVT: 'SCI116B-AVT Earth Science'","SCI116B-AVT Earth Science","D-SCI-116BV2-AVT"]
[null,null,null,null,"D-SCI-116BVG1-K: 'SCI116BG Earth Science'","SCI116BG Earth Science","D-SCI-116BVG1-K"]
[null,null,null,null,"D-SCI-202AV1-K: 'SCI202A Biology'","SCI202A Biology","D-SCI-202AV1-K"]
[null,null,null,null,"D-SCI-202AV1TX-K: 'SCI202A Biology TX'","SCI202A Biology TX","D-SCI-202AV1TX-K"]
[null,null,null,null,"D-SCI-202AXV1-K: 'SCI202AX Biology'","SCI202AX Biology","D-SCI-202AXV1-K"]
[null,null,null,null,"D-SCI-202BV1-K: 'SCI202B Biology'","SCI202B Biology","D-SCI-202BV1-K"]
[null,null,null,null,"D-SCI-202BV1TX-K: 'SCI202B Biology TX'","SCI202B Biology TX","D-SCI-202BV1TX-K"]
[null,null,null,null,"D-SCI-202BXV1-K: 'SCI202BX Biology'","SCI202BX Biology","D-SCI-202BXV1-K"]
[null,null,null,null,"D-SCI-203AV1-K: 'SCI203A Biology'","SCI203A Biology","D-SCI-203AV1-K"]
[null,null,null,null,"D-SCI-203AV1TX-K: 'SCI203A Biology TX'","SCI203A Biology TX","D-SCI-203AV1TX-K"]
[null,null,null,null,"D-SCI-203AXV1-K: 'SCI203AX Biology'","SCI203AX Biology","D-SCI-203AXV1-K"]
[null,null,null,null,"D-SCI-203BV1-K: 'SCI203B Biology'","SCI203B Biology","D-SCI-203BV1-K"]
[null,null,null,null,"D-SCI-203BV1TX-K: 'SCI203B Biology TX'","SCI203B Biology TX","D-SCI-203BV1TX-K"]
[null,null,null,null,"D-SCI-203BXV1-K: 'SCI203BX Biology'","SCI203BX Biology","D-SCI-203BXV1-K"]
[null,null,null,null,"D-SCI-204AV1-K: 'SCI204A Honors Biology'","SCI204A Honors Biology","D-SCI-204AV1-K"]
[null,null,null,null,"D-SCI-204AV1TX-K: 'SCI204A Honors Biology TX'","SCI204A Honors Biology TX","D-SCI-204AV1TX-K"]
[null,null,null,null,"D-SCI-204AXV1-K: 'SCI204AX Honors Biology'","SCI204AX Honors Biology","D-SCI-204AXV1-K"]
[null,null,null,null,"D-SCI-204BV1-K: 'SCI204B Honors Biology'","SCI204B Honors Biology","D-SCI-204BV1-K"]
[null,null,null,null,"D-SCI-204BXV1-K: 'SCI204BX Honors Biology'","SCI204BX Honors Biology","D-SCI-204BXV1-K"]
[null,null,null,null,"D-SCI-206AV2-AVT: 'SCI206A-AVT Biology'","SCI206A-AVT Biology","D-SCI-206AV2-AVT"]
[null,null,null,null,"D-SCI-206AV2CA-AVT: 'SCI206A-AVT Biology CA'","SCI206A-AVT Biology CA","D-SCI-206AV2CA-AVT"]
[null,null,null,null,"D-SCI-206AVG1-K: 'SCI206AG Biology'","SCI206AG Biology","D-SCI-206AVG1-K"]
[null,null,null,null,"D-SCI-206BV2-AVT: 'SCI206B-AVT Biology'","SCI206B-AVT Biology","D-SCI-206BV2-AVT"]
[null,null,null,null,"D-SCI-206BV2CA-AVT: 'SCI206B-AVT Biology CA'","SCI206B-AVT Biology CA","D-SCI-206BV2CA-AVT"]
[null,null,null,null,"D-SCI-206BVG1-K: 'SCI206BG Biology'","SCI206BG Biology","D-SCI-206BVG1-K"]
[null,null,null,null,"D-SCI-302AV1-K: 'SCI302A Chemistry'","SCI302A Chemistry","D-SCI-302AV1-K"]
[null,null,null,null,"D-SCI-302AXV1-K: 'SCI302AX Chemistry'","SCI302AX Chemistry","D-SCI-302AXV1-K"]
[null,null,null,null,"D-SCI-302BV1-K: 'SCI302B Chemistry'","SCI302B Chemistry","D-SCI-302BV1-K"]
[null,null,null,null,"D-SCI-302BXV1-K: 'SCI302BX Chemistry'","SCI302BX Chemistry","D-SCI-302BXV1-K"]
[null,null,null,null,"D-SCI-303AV1-K: 'SCI303A Chemistry'","SCI303A Chemistry","D-SCI-303AV1-K"]
[null,null,null,null,{"$f":"CONCATENATE(G1538,\": '\",F1538,\"'\")","v":"D-SCI-303AXV1-K: 'SCI303AX Chemistry'"},"SCI303AX Chemistry","D-SCI-303AXV1-K"]
[null,null,null,null,"D-SCI-303BV1-K: 'SCI303B Chemistry'","SCI303B Chemistry","D-SCI-303BV1-K"]
[null,null,null,null,"D-SCI-303BXV1-K: 'SCI303BX Chemistry'","SCI303BX Chemistry","D-SCI-303BXV1-K"]
[null,null,null,null,"D-SCI-304AV1-K: 'SCI304A Honors Chemistry'","SCI304A Honors Chemistry","D-SCI-304AV1-K"]
[null,null,null,null,"D-SCI-304AXV1-K: 'SCI304AX Honors Chemistry'","SCI304AX Honors Chemistry","D-SCI-304AXV1-K"]
[null,null,null,null,"D-SCI-304BV1-K: 'SCI304B Honors Chemistry'","SCI304B Honors Chemistry","D-SCI-304BV1-K"]
[null,null,null,null,"D-SCI-304BXV1-K: 'SCI304BX Honors Chemistry'","SCI304BX Honors Chemistry","D-SCI-304BXV1-K"]
[null,null,null,null,"D-SCI-306AVG1-K: 'SCI306AG Chemistry'","SCI306AG Chemistry","D-SCI-306AVG1-K"]
[null,null,null,null,"D-SCI-306BV1-AVT: 'SCI306B-AVT Chemistry'","SCI306B-AVT Chemistry","D-SCI-306BV1-AVT"]
[null,null,null,null,"D-SCI-306BVG1-K: 'SCI306BG Chemistry'","SCI306BG Chemistry","D-SCI-306BVG1-K"]
[null,null,null,null,"D-SCI-403AV1-K: 'SCI403A Physics'","SCI403A Physics","D-SCI-403AV1-K"]
[null,null,null,null,"D-SCI-403AXV1-K: 'SCI403AX Physics'","SCI403AX Physics","D-SCI-403AXV1-K"]
[null,null,null,null,"D-SCI-403BV1-K: 'SCI403B Physics'","SCI403B Physics","D-SCI-403BV1-K"]
[null,null,null,null,"D-SCI-403BXV1-K: 'SCI403BX Physics'","SCI403BX Physics","D-SCI-403BXV1-K"]
[null,null,null,null,"D-SCI-404AV1-K: 'SCI404A Honors Physics'","SCI404A Honors Physics","D-SCI-404AV1-K"]
[null,null,null,null,"D-SCI-404AXV1-K: 'SCI404AX Honors Physics'","SCI404AX Honors Physics","D-SCI-404AXV1-K"]
[null,null,null,null,"D-SCI-404BV1-K: 'SCI404B Honors Physics'","SCI404B Honors Physics","D-SCI-404BV1-K"]
[null,null,null,null,"D-SCI-404BXV1-K: 'SCI404BX Honors Physics'","SCI404BX Honors Physics","D-SCI-404BXV1-K"]
[null,null,null,null,"D-SCI-500AV2-K: 'SCI500A AP(R) Biology'","SCI500A AP(R) Biology","D-SCI-500AV2-K"]
[null,null,null,null,"D-SCI-500BV2-K: 'SCI500B AP(R) Biology'","SCI500B AP(R) Biology","D-SCI-500BV2-K"]
[null,null,null,null,"D-SCI-510AV2-A: 'SCI510A AP(R) Chemistry'","SCI510A AP(R) Chemistry","D-SCI-510AV2-A"]
[null,null,null,null,"D-SCI-510BV2-A: 'SCI510B AP(R) Chemistry'","SCI510B AP(R) Chemistry","D-SCI-510BV2-A"]
[null,null,null,null,"D-SCI-530AV1-AVT: 'SCI530A-AVT AP(R) Environmental Science'","SCI530A-AVT AP(R) Environmental Science","D-SCI-530AV1-AVT"]
[null,null,null,null,"D-SCI-530BV1-AVT: 'SCI530B-AVT AP(R) Environmental Science'","SCI530B-AVT AP(R) Environmental Science","D-SCI-530BV1-AVT"]
[null,null,null,null,"D-TCH-010V3-K: 'TCH010 Computer Literacy'","TCH010 Computer Literacy","D-TCH-010V3-K"]
[null,null,null,null,"D-TCH-017V1-K: 'TCH017 3D Art I-Modeling'","TCH017 3D Art I-Modeling","D-TCH-017V1-K"]
[null,null,null,null,"D-TCH-018V1-K: 'TCH018 3D Art II-Animation'","TCH018 3D Art II-Animation","D-TCH-018V1-K"]
[null,null,null,null,"D-TCH-020AV2-K: 'TCH020A Computer Fundamentals'","TCH020A Computer Fundamentals","D-TCH-020AV2-K"]
[null,null,null,null,"D-TCH-020BV2-K: 'TCH020B Computer Fundamentals'","TCH020B Computer Fundamentals","D-TCH-020BV2-K"]
[null,null,null,null,"D-TCH-026V1-K: 'TCH026 Audio Engineering'","TCH026 Audio Engineering","D-TCH-026V1-K"]
[null,null,null,null,"D-TCH-027V1-K: 'TCH027 Green Design and Technology'","TCH027 Green Design and Technology","D-TCH-027V1-K"]
[null,null,null,null,"D-TCH-028V1-K: 'TCH028 Digital Arts I'","TCH028 Digital Arts I","D-TCH-028V1-K"]
[null,null,null,null,"D-TCH-029V1-G: 'TCH029 Digital Arts II'","TCH029 Digital Arts II","D-TCH-029V1-G"]
[null,null,null,null,"D-TCH-030V3-K: 'TCH030 Image Design and Editing'","TCH030 Image Design and Editing","D-TCH-030V3-K"]
[null,null,null,null,"D-TCH-030VS2-K: 'TCH030S Image Design and Editing'","TCH030S Image Design and Editing","D-TCH-030VS2-K"]
[null,null,null,null,"D-TCH-031V1-DYN: 'TCH031-DYN Digital Photography I'","TCH031-DYN Digital Photography I","D-TCH-031V1-DYN"]
[null,null,null,null,"D-TCH-032V1-DYN: 'TCH032-DYN Digital Photography II'","TCH032-DYN Digital Photography II","D-TCH-032V1-DYN"]
[null,null,null,null,"D-TCH-036V1-K: 'TCH036 Computer Science'","TCH036 Computer Science","D-TCH-036V1-K"]
[null,null,null,null,"D-TCH-038V1-K: 'TCH038 Engineering Design'","TCH038 Engineering Design","D-TCH-038V1-K"]
[null,null,null,null,"D-TCH-040V2-K: 'TCH040 Web Design'","TCH040 Web Design","D-TCH-040V2-K"]
[null,null,null,null,"D-TCH-040VS1-K: 'TCH040S Web Design'","TCH040S Web Design","D-TCH-040VS1-K"]
[null,null,null,null,"D-TCH-041V1-K: 'TCH041 Web Design'","TCH041 Web Design","D-TCH-041V1-K"]
[null,null,null,null,"D-TCH-042V1-LT: 'TCH042-LT Fundamentals of Design'","TCH042-LT Fundamentals of Design","D-TCH-042V1-LT"]
[null,null,null,null,"D-TCH-060V1-K: 'TCH060 C++ Programming'","TCH060 C++ Programming","D-TCH-060V1-K"]
[null,null,null,null,"D-TCH-061V1-AVT: 'TCH061-AVT Programming I-VB.NET'","TCH061-AVT Programming I-VB.NET","D-TCH-061V1-AVT"]
[null,null,null,null,"D-TCH-062V1-AVT: 'TCH062-AVT Programming II-Java'","TCH062-AVT Programming II-Java","D-TCH-062V1-AVT"]
[null,null,null,null,"D-TCH-070V2-K: 'TCH070 Game Design'","TCH070 Game Design","D-TCH-070V2-K"]
[null,null,null,null,"D-TCH-101V1-AVT: 'TCH101-AVT Digital Photography'","TCH101-AVT Digital Photography","D-TCH-101V1-AVT"]
[null,null,null,null,"D-WAH-100V1-K: 'WAH100  Washington State History'","WAH100  Washington State History","D-WAH-100V1-K"]
[null,null,null,null,"D-WLG-100AV1-M: 'WLG100A Spanish I'","WLG100A Spanish I","D-WLG-100AV1-M"]
[null,null,null,null,"D-WLG-100BV1-M: 'WLG100B Spanish I'","WLG100B Spanish I","D-WLG-100BV1-M"]
[null,null,null,null,"D-WLG-106AV1-AVT: 'WLG106A-AVT Spanish I'","WLG106A-AVT Spanish I","D-WLG-106AV1-AVT"]
[null,null,null,null,"D-WLG-106BV1-AVT: 'WLG106B-AVT Spanish I'","WLG106B-AVT Spanish I","D-WLG-106BV1-AVT"]
[null,null,null,null,"D-WLG-110AV1-M: 'WLG110A French I'","WLG110A French I","D-WLG-110AV1-M"]
[null,null,null,null,"D-WLG-110BV1-M: 'WLG110B French I'","WLG110B French I","D-WLG-110BV1-M"]
[null,null,null,null,"D-WLG-120AV1-M: 'WLG120A German I'","WLG120A German I","D-WLG-120AV1-M"]
[null,null,null,null,"D-WLG-120BV1-M: 'WLG120B German I'","WLG120B German I","D-WLG-120BV1-M"]
[null,null,null,null,"D-WLG-130AV1-M: 'WLG130A Latin I'","WLG130A Latin I","D-WLG-130AV1-M"]
[null,null,null,null,"D-WLG-130BV1-M: 'WLG130B Latin I'","WLG130B Latin I","D-WLG-130BV1-M"]
[null,null,null,null,"D-WLG-140AV1-M: 'WLG140A Chinese I'","WLG140A Chinese I","D-WLG-140AV1-M"]
[null,null,null,null,"D-WLG-140BV1-M: 'WLG140B Chinese I'","WLG140B Chinese I","D-WLG-140BV1-M"]
[null,null,null,null,"D-WLG-150AV1-AVT: 'WLG150A-AVT Japanese I'","WLG150A-AVT Japanese I","D-WLG-150AV1-AVT"]
[null,null,null,null,"D-WLG-150BV1-AVT: 'WLG150B-AVT Japanese I'","WLG150B-AVT Japanese I","D-WLG-150BV1-AVT"]
[null,null,null,null,"D-WLG-200AV1-M: 'WLG200A Spanish II'","WLG200A Spanish II","D-WLG-200AV1-M"]
[null,null,null,null,{"$f":"CONCATENATE(G1602,\": '\",F1602,\"'\")","v":"D-WLG-200BV1-M: 'WLG200B Spanish II'"},"WLG200B Spanish II","D-WLG-200BV1-M"]
[null,null,null,null,"D-WLG-210AV1-M: 'WLG210A French II'","WLG210A French II","D-WLG-210AV1-M"]
[null,null,null,null,"D-WLG-210BV1-M: 'WLG210B French II'","WLG210B French II","D-WLG-210BV1-M"]
[null,null,null,null,"D-WLG-220AV1-M: 'WLG220A German II'","WLG220A German II","D-WLG-220AV1-M"]
[null,null,null,null,"D-WLG-220BV1-M: 'WLG220B German II'","WLG220B German II","D-WLG-220BV1-M"]
[null,null,null,null,"D-WLG-230AV1-M: 'WLG230A Latin II'","WLG230A Latin II","D-WLG-230AV1-M"]
[null,null,null,null,"D-WLG-230BV1-M: 'WLG230B Latin II'","WLG230B Latin II","D-WLG-230BV1-M"]
[null,null,null,null,"D-WLG-240AV1-M: 'WLG240A Chinese II'","WLG240A Chinese II","D-WLG-240AV1-M"]
[null,null,null,null,"D-WLG-240BV1-M: 'WLG240B Chinese II'","WLG240B Chinese II","D-WLG-240BV1-M"]
[null,null,null,null,"D-WLG-250AV1-AVT: 'WLG250A-AVT Japanese II'","WLG250A-AVT Japanese II","D-WLG-250AV1-AVT"]
[null,null,null,null,"D-WLG-250BV1-AVT: 'WLG250B-AVT Japanese II'","WLG250B-AVT Japanese II","D-WLG-250BV1-AVT"]
[null,null,null,null,"D-WLG-300AV1-M: 'WLG300A Spanish III'","WLG300A Spanish III","D-WLG-300AV1-M"]
[null,null,null,null,"D-WLG-300BV1-M: 'WLG300B Spanish III'","WLG300B Spanish III","D-WLG-300BV1-M"]
[null,null,null,null,"D-WLG-310AV1-M: 'WLG310A French III'","WLG310A French III","D-WLG-310AV1-M"]
[null,null,null,null,"D-WLG-310BV1-M: 'WLG310B French III'","WLG310B French III","D-WLG-310BV1-M"]
[null,null,null,null,"D-WLG-320AV1-AVT: 'WLG320A-AVT German III'","WLG320A-AVT German III","D-WLG-320AV1-AVT"]
[null,null,null,null,"D-WLG-320BV1-AVT: 'WLG320B-AVT German III'","WLG320B-AVT German III","D-WLG-320BV1-AVT"]
[null,null,null,null,"D-WLG-400AV1-AVT: 'WLG400A-AVT Spanish IV'","WLG400A-AVT Spanish IV","D-WLG-400AV1-AVT"]
[null,null,null,null,"D-WLG-400BV1-AVT: 'WLG400B-AVT Spanish IV'","WLG400B-AVT Spanish IV","D-WLG-400BV1-AVT"]
[null,null,null,null,"D-WLG-410AV1-AVT: 'WLG410A-AVT French IV'","WLG410A-AVT French IV","D-WLG-410AV1-AVT"]
[null,null,null,null,"D-WLG-410BV1-AVT: 'WLG410B-AVT French IV'","WLG410B-AVT French IV","D-WLG-410BV1-AVT"]
[null,null,null,null,"D-WLG-420AV1-AVT: 'WLG420A-AVT German IV'","WLG420A-AVT German IV","D-WLG-420AV1-AVT"]
[null,null,null,null,"D-WLG-420BV1-AVT: 'WLG420B-AVT German IV'","WLG420B-AVT German IV","D-WLG-420BV1-AVT"]
[null,null,null,null,"D-WLG-500AV1-M: 'WLG500A AP(R) Spanish Language and Culture'","WLG500A AP(R) Spanish Language and Culture","D-WLG-500AV1-M"]
[null,null,null,null,"D-WLG-500BV1-M: 'WLG500B AP(R) Spanish Language and Culture'","WLG500B AP(R) Spanish Language and Culture","D-WLG-500BV1-M"]
[null,null,null,null,"D-WLG-510AV1-M: 'WLG510A AP(R) French Language and Culture'","WLG510A AP(R) French Language and Culture","D-WLG-510AV1-M"]
[null,null,null,null,"D-WLG-510BV1-M: 'WLG510B AP(R) French Language and Culture'","WLG510B AP(R) French Language and Culture","D-WLG-510BV1-M"]
[null,null,null,null,"EC-451G-C: 'Macroeconomics'","Macroeconomics","EC-451G-C"]
[null,null,null,null,"EC-MAF1A-A: 'Apex AP Macroeconomics'","Apex AP Macroeconomics","EC-MAF1A-A"]
[null,null,null,null,"EC-MIF1A-A: 'Apex AP Microeconomics'","Apex AP Microeconomics","EC-MIF1A-A"]
[null,null,null,null,"EMBARK12: 'embarK12 Pre-K Program'","embarK12 Pre-K Program","EMBARK12"]
[null,null,null,null,"EMBARK12COMP-INSTFRE: 'embarK12 Comprehensive'","embarK12 Comprehensive","EMBARK12COMP-INSTFRE"]
[null,null,null,null,"EMBARK12ONLINE: 'embarK12 Online'","embarK12 Online","EMBARK12ONLINE"]
[null,null,null,null,"EMBARK12VACOURSEONLY: 'embarK12 Comprehensive (cO)'","embarK12 Comprehensive (cO)","EMBARK12VACOURSEONLY"]
[null,null,null,null,"EMBARK12VAGUIDES: 'embarK12 Comprehensive (wG)'","embarK12 Comprehensive (wG)","EMBARK12VAGUIDES"]
[null,null,null,null,"EMBARK12VANOGUIDES: 'embarK12 Comprehensive (nG)'","embarK12 Comprehensive (nG)","EMBARK12VANOGUIDES"]
[null,null,null,null,"EMBARK-PLUS-CIRCLE: 'Embark Plus Circle Time'","Embark Plus Circle Time","EMBARK-PLUS-CIRCLE"]
[null,null,null,null,"EMBARK-PLUS-GUIDES: 'embarK12 Plus -wG'","embarK12 Plus -wG","EMBARK-PLUS-GUIDES"]
[null,null,null,null,"EMBARK-PLUS-PE: 'Embark Plus Physical Education'","Embark Plus Physical Education","EMBARK-PLUS-PE"]
[null,null,null,null,"ENG-001AV2-APL: 'ENG001A-APL: English Foundations I'","ENG001A-APL: English Foundations I","ENG-001AV2-APL"]
[null,null,null,null,"ENG-001AVS2-APL: 'ENG001AS-APL: English Foundations I'","ENG001AS-APL: English Foundations I","ENG-001AVS2-APL"]
[null,null,null,null,"ENG-001BV2-APL: 'ENG001B-APL: English Foundations I'","ENG001B-APL: English Foundations I","ENG-001BV2-APL"]
[null,null,null,null,"ENG-001BVS2-APL: 'ENG001BS-APL: English Foundations I'","ENG001BS-APL: English Foundations I","ENG-001BVS2-APL"]
[null,null,null,null,"ENG-010AV1-V: 'ENG010AR: Journalism'","ENG010AR: Journalism","ENG-010AV1-V"]
[null,null,null,null,"ENG-010BV1-V: 'ENG010BR: Journalism'","ENG010BR: Journalism","ENG-010BV1-V"]
[null,null,null,null,"ENG-010V2-K: 'ENG010: Journalism'","ENG010: Journalism","ENG-010V2-K"]
[null,null,null,null,"ENG-010-V2-K: 'ENG010: Journalism*'","ENG010: Journalism*","ENG-010-V2-K"]
[null,null,null,null,"ENG-010V2TX-K: 'ENG010: Journalism - TX'","ENG010: Journalism - TX","ENG-010V2TX-K"]
[null,null,null,null,"ENG-010VS2-K: 'ENG010S: Journalism'","ENG010S: Journalism","ENG-010VS2-K"]
[null,null,null,null,"ENG-011AV2-APL: 'ENG011A-APL: English Foundations II'","ENG011A-APL: English Foundations II","ENG-011AV2-APL"]
[null,null,null,null,"ENG-011AVS2-APL: 'ENG011AS-APL: English Foundations II'","ENG011AS-APL: English Foundations II","ENG-011AVS2-APL"]
[null,null,null,null,"ENG-011BV2-APL: 'ENG011B-APL: English Foundations II'","ENG011B-APL: English Foundations II","ENG-011BV2-APL"]
[null,null,null,null,"ENG-011BVS2-APL: 'ENG011BS-APL: English Foundations II'","ENG011BS-APL: English Foundations II","ENG-011BVS2-APL"]
[null,null,null,null,"ENG-020V1-K: 'ENG020: Public Speaking'","ENG020: Public Speaking","ENG-020V1-K"]
[null,null,null,null,"ENG-020V1TX-K: 'ENG020: Public Speaking - TX'","ENG020: Public Speaking - TX","ENG-020V1TX-K"]
[null,null,null,null,"ENG-030AV1-AVT: 'ENG030A-AVT: Creative Writing'","ENG030A-AVT: Creative Writing","ENG-030AV1-AVT"]
[null,null,null,null,"ENG-030AVS1-AVT: 'ENG030AS-AVT: Creative Writing'","ENG030AS-AVT: Creative Writing","ENG-030AVS1-AVT"]
[null,null,null,null,"ENG-030BV1-AVT: 'ENG030B-AVT: Creative Writing'","ENG030B-AVT: Creative Writing","ENG-030BV1-AVT"]
[null,null,null,null,"ENG-030BVS1-AVT: 'ENG030BS-AVT: Creative Writing'","ENG030BS-AVT: Creative Writing","ENG-030BVS1-AVT"]
[null,null,null,null,"ENG-102ABLV1-K: 'ENG102A-BL: Literary Analysis and Composition I'","ENG102A-BL: Literary Analysis and Composition I","ENG-102ABLV1-K"]
[null,null,null,null,"ENG-102AV1-K: 'ENG102A:   Literary Analysis and Composition I'","ENG102A:   Literary Analysis and Composition I","ENG-102AV1-K"]
[null,null,null,null,"ENG-102AVS1-K: 'ENG102AS:   Literary Analysis and Composition I'","ENG102AS:   Literary Analysis and Composition I","ENG-102AVS1-K"]
[null,null,null,null,"ENG-102BBLV1-K: 'ENG102B-BL: Literary Analysis and Composition I'","ENG102B-BL: Literary Analysis and Composition I","ENG-102BBLV1-K"]
[null,null,null,null,"ENG-102BV1-K: 'ENG102B:   Literary Analysis and Composition I'","ENG102B:   Literary Analysis and Composition I","ENG-102BV1-K"]
[null,null,null,null,{"$f":"CONCATENATE(G1666,\": '\",F1666,\"'\")","v":"ENG-102BVS1-K: 'ENG102BS:   Literary Analysis and Composition I'"},"ENG102BS:   Literary Analysis and Composition I","ENG-102BVS1-K"]
[null,null,null,null,"ENG-103ABLV1-K: 'ENG103A-BL: Literary Analysis and Composition I'","ENG103A-BL: Literary Analysis and Composition I","ENG-103ABLV1-K"]
[null,null,null,null,"ENG-103AV1-K: 'ENG103A:   Literary Analysis and Composition I'","ENG103A:   Literary Analysis and Composition I","ENG-103AV1-K"]
[null,null,null,null,"ENG-103AV1TX-K: 'ENG103A: Literary Analysis and Composition I - TX'","ENG103A: Literary Analysis and Composition I - TX","ENG-103AV1TX-K"]
[null,null,null,null,"ENG-103BBLV1-K: 'ENG103B-BL: Literary Analysis and Composition I'","ENG103B-BL: Literary Analysis and Composition I","ENG-103BBLV1-K"]
[null,null,null,null,"ENG-103BV1-K: 'ENG103B:   Literary Analysis and Composition I'","ENG103B:   Literary Analysis and Composition I","ENG-103BV1-K"]
[null,null,null,null,"ENG-104ABLV1-K: 'ENG104A-BL: Honors Literary Analysis and Composition I'","ENG104A-BL: Honors Literary Analysis and Composition I","ENG-104ABLV1-K"]
[null,null,null,null,"ENG-104AV1-K: 'ENG104A:  Honors Literary Analysis and Composition I'","ENG104A:  Honors Literary Analysis and Composition I","ENG-104AV1-K"]
[null,null,null,null,"ENG-104AV1TX-K: 'ENG104A: Honors Literary Analysis and Composition I - TX'","ENG104A: Honors Literary Analysis and Composition I - TX","ENG-104AV1TX-K"]
[null,null,null,null,"ENG-104BBLV1-K: 'ENG104B-BL: Honors Literary Analysis and Composition I'","ENG104B-BL: Honors Literary Analysis and Composition I","ENG-104BBLV1-K"]
[null,null,null,null,"ENG-104BV1-K: 'ENG104B: Honors Literary Analysis and Composition I'","ENG104B: Honors Literary Analysis and Composition I","ENG-104BV1-K"]
[null,null,null,null,"ENG-106AV1-AVT: 'ENG106A-AVT: English I'","ENG106A-AVT: English I","ENG-106AV1-AVT"]
[null,null,null,null,"ENG-106AV1CA-AVT: 'ENG106A-AVT-CA: English I'","ENG106A-AVT-CA: English I","ENG-106AV1CA-AVT"]
[null,null,null,null,"ENG-106AV1-K: 'ENG106A: Literary Analysis and Composition I'","ENG106A: Literary Analysis and Composition I","ENG-106AV1-K"]
[null,null,null,null,"ENG-106AV1LA-AVT: 'ENG106A-AVT-LA: English I'","ENG106A-AVT-LA: English I","ENG-106AV1LA-AVT"]
[null,null,null,null,"ENG-106AV1NY-AVT: 'ENG106A-AVT-NY: English I'","ENG106A-AVT-NY: English I","ENG-106AV1NY-AVT"]
[null,null,null,null,"ENG-106AVG1-K: 'ENG106AG: Literary Analysis and Composition I'","ENG106AG: Literary Analysis and Composition I","ENG-106AVG1-K"]
[null,null,null,null,"ENG-106AVS1-AVT: 'ENG106AS-AVT: English I'","ENG106AS-AVT: English I","ENG-106AVS1-AVT"]
[null,null,null,null,"ENG-106AVS1CA-AVT: 'ENG106AS-AVT-CA: English I'","ENG106AS-AVT-CA: English I","ENG-106AVS1CA-AVT"]
[null,null,null,null,"ENG-106AVS1-K: 'ENG106AS:   Literary Analysis and Composition I'","ENG106AS:   Literary Analysis and Composition I","ENG-106AVS1-K"]
[null,null,null,null,"ENG-106AVS1LA-AVT: 'ENG106AS-AVT-LA: English I'","ENG106AS-AVT-LA: English I","ENG-106AVS1LA-AVT"]
[null,null,null,null,"ENG-106AVS1NY-AVT: 'ENG106AS-AVT-NY: English I'","ENG106AS-AVT-NY: English I","ENG-106AVS1NY-AVT"]
[null,null,null,null,"ENG-106AVSG1-K: 'ENG106ASG:   Literary Analysis and Composition I'","ENG106ASG:   Literary Analysis and Composition I","ENG-106AVSG1-K"]
[null,null,null,null,"ENG-106BV1-AVT: 'ENG106B-AVT: English I'","ENG106B-AVT: English I","ENG-106BV1-AVT"]
[null,null,null,null,"ENG-106BV1CA-AVT: 'ENG106B-AVT-CA: English I'","ENG106B-AVT-CA: English I","ENG-106BV1CA-AVT"]
[null,null,null,null,"ENG-106BV1-K: 'ENG106B: Literary Analysis and Composition I'","ENG106B: Literary Analysis and Composition I","ENG-106BV1-K"]
[null,null,null,null,"ENG-106BV1LA-AVT: 'ENG106B-AVT-LA: English I'","ENG106B-AVT-LA: English I","ENG-106BV1LA-AVT"]
[null,null,null,null,"ENG-106BV1NY-AVT: 'ENG106B-AVT-NY: English I'","ENG106B-AVT-NY: English I","ENG-106BV1NY-AVT"]
[null,null,null,null,"ENG-106BVG1-K: 'ENG106BG: Literary Analysis and Composition I'","ENG106BG: Literary Analysis and Composition I","ENG-106BVG1-K"]
[null,null,null,null,"ENG-106BVS1-AVT: 'ENG106BS-AVT: English I'","ENG106BS-AVT: English I","ENG-106BVS1-AVT"]
[null,null,null,null,"ENG-106BVS1CA-AVT: 'ENG106BS-AVT-CA: English I'","ENG106BS-AVT-CA: English I","ENG-106BVS1CA-AVT"]
[null,null,null,null,"ENG-106BVS1-K: 'ENG106BS:   Literary Bnalysis and Composition I'","ENG106BS:   Literary Bnalysis and Composition I","ENG-106BVS1-K"]
[null,null,null,null,"ENG-106BVS1LA-AVT: 'ENG106BS-AVT-LA: English I'","ENG106BS-AVT-LA: English I","ENG-106BVS1LA-AVT"]
[null,null,null,null,"ENG-106BVS1NY-AVT: 'ENG106BS-AVT-NY: English I'","ENG106BS-AVT-NY: English I","ENG-106BVS1NY-AVT"]
[null,null,null,null,"ENG-106BVSG1-K: 'ENG106BSG:   Literary Analysis and Composition I'","ENG106BSG:   Literary Analysis and Composition I","ENG-106BVSG1-K"]
[null,null,null,null,"ENG-202ABLV1-K: 'ENG202A-BL: Literary Analysis and Composition II'","ENG202A-BL: Literary Analysis and Composition II","ENG-202ABLV1-K"]
[null,null,null,null,"ENG-202AV1-K: 'ENG202A:   Literary Analysis and Composition II'","ENG202A:   Literary Analysis and Composition II","ENG-202AV1-K"]
[null,null,null,null,"ENG-202AVSG1-K: 'ENG202AS: Literary Analysis and Composition II'","ENG202AS: Literary Analysis and Composition II","ENG-202AVSG1-K"]
[null,null,null,null,"ENG-202BBLV1-K: 'ENG202B-BL: Literary Analysis and Composition II'","ENG202B-BL: Literary Analysis and Composition II","ENG-202BBLV1-K"]
[null,null,null,null,"ENG-202BV1-K: 'ENG202B:   Literary Analysis and Composition II'","ENG202B:   Literary Analysis and Composition II","ENG-202BV1-K"]
[null,null,null,null,"ENG-202BVSG1-K: 'ENG202BS: Literary Analysis and Composition II'","ENG202BS: Literary Analysis and Composition II","ENG-202BVSG1-K"]
[null,null,null,null,"ENG-203ABLV1-K: 'ENG203A-BL: Literary Analysis and Composition II'","ENG203A-BL: Literary Analysis and Composition II","ENG-203ABLV1-K"]
[null,null,null,null,"ENG-203AV1-K: 'ENG203A:   Literary Analysis and Composition II'","ENG203A:   Literary Analysis and Composition II","ENG-203AV1-K"]
[null,null,null,null,"ENG-203AV1TX-K: 'ENG203A: Literary Analysis and Composition II - TX'","ENG203A: Literary Analysis and Composition II - TX","ENG-203AV1TX-K"]
[null,null,null,null,"ENG-203BBLV1-K: 'ENG203B-BL: Literary Analysis and Composition II'","ENG203B-BL: Literary Analysis and Composition II","ENG-203BBLV1-K"]
[null,null,null,null,"ENG-203BV1-K: 'ENG203B:   Literary Analysis and Composition II'","ENG203B:   Literary Analysis and Composition II","ENG-203BV1-K"]
[null,null,null,null,"ENG-203B-V1-K: 'ENG203B: Literary Analysis and Composition II*'","ENG203B: Literary Analysis and Composition II*","ENG-203B-V1-K"]
[null,null,null,null,"ENG-203BV1TX-K: 'ENG203B: Literary Analysis and Composition II - TX'","ENG203B: Literary Analysis and Composition II - TX","ENG-203BV1TX-K"]
[null,null,null,null,"ENG-204ABLV1-K: 'ENG204A-BL: Honors Literary Analysis and Composition II'","ENG204A-BL: Honors Literary Analysis and Composition II","ENG-204ABLV1-K"]
[null,null,null,null,"ENG-204AV1-K: 'ENG204A: Honors Literary Analysis and Composition II'","ENG204A: Honors Literary Analysis and Composition II","ENG-204AV1-K"]
[null,null,null,null,"ENG-204AV1TX-K: 'ENG204A: Honors Literary Analysis and Composition II - TX'","ENG204A: Honors Literary Analysis and Composition II - TX","ENG-204AV1TX-K"]
[null,null,null,null,"ENG-204BBLV1-K: 'ENG204B-BL: Honors Literary Analysis and Composition II'","ENG204B-BL: Honors Literary Analysis and Composition II","ENG-204BBLV1-K"]
[null,null,null,null,"ENG-204BV1-K: 'ENG204B: Honors Literary Analysis and Composition II'","ENG204B: Honors Literary Analysis and Composition II","ENG-204BV1-K"]
[null,null,null,null,"ENG-204BV1TX-K: 'ENG204B: Honors Literary Analysis and Composition II - TX'","ENG204B: Honors Literary Analysis and Composition II - TX","ENG-204BV1TX-K"]
[null,null,null,null,"ENG-206AV1-AVT: 'ENG206A-AVT: English II'","ENG206A-AVT: English II","ENG-206AV1-AVT"]
[null,null,null,null,"ENG-206AV1CA-AVT: 'ENG206A-AVT-CA: English II'","ENG206A-AVT-CA: English II","ENG-206AV1CA-AVT"]
[null,null,null,null,"ENG-206AV1-K: 'ENG206A: Literary Analysis and Composition II'","ENG206A: Literary Analysis and Composition II","ENG-206AV1-K"]
[null,null,null,null,"ENG-206AV1LA-AVT: 'ENG206A-AVT-LA: English II'","ENG206A-AVT-LA: English II","ENG-206AV1LA-AVT"]
[null,null,null,null,"ENG-206AV1NY-AVT: 'ENG206A-AVT-NY: English II'","ENG206A-AVT-NY: English II","ENG-206AV1NY-AVT"]
[null,null,null,null,"ENG-206AVG1-K: 'ENG206AG: Literary Analysis and Composition II'","ENG206AG: Literary Analysis and Composition II","ENG-206AVG1-K"]
[null,null,null,null,"ENG-206AVS1-AVT: 'ENG206AS-AVT: English II'","ENG206AS-AVT: English II","ENG-206AVS1-AVT"]
[null,null,null,null,"ENG-206AVS1CA-AVT: 'ENG206AS-AVT-CA: English II'","ENG206AS-AVT-CA: English II","ENG-206AVS1CA-AVT"]
[null,null,null,null,"ENG-206AVS1-K: 'ENG206AS:   Literary Analysis and Composition II'","ENG206AS:   Literary Analysis and Composition II","ENG-206AVS1-K"]
[null,null,null,null,"ENG-206AVS1LA-AVT: 'ENG206AS-AVT-LA: English II'","ENG206AS-AVT-LA: English II","ENG-206AVS1LA-AVT"]
[null,null,null,null,{"$f":"CONCATENATE(G1730,\": '\",F1730,\"'\")","v":"ENG-206AVS1NY-AVT: 'ENG206AS-AVT-NY: English II'"},"ENG206AS-AVT-NY: English II","ENG-206AVS1NY-AVT"]
[null,null,null,null,"ENG-206AVSG1-K: 'ENG206ASG:   Literary Analysis and Composition II'","ENG206ASG:   Literary Analysis and Composition II","ENG-206AVSG1-K"]
[null,null,null,null,"ENG-206BV1-AVT: 'ENG206B-AVT: English II'","ENG206B-AVT: English II","ENG-206BV1-AVT"]
[null,null,null,null,"ENG-206BV1CA-AVT: 'ENG206B-AVT-CA: English II'","ENG206B-AVT-CA: English II","ENG-206BV1CA-AVT"]
[null,null,null,null,"ENG-206BV1-K: 'ENG206B: Literary Analysis and Composition II'","ENG206B: Literary Analysis and Composition II","ENG-206BV1-K"]
[null,null,null,null,"ENG-206BV1LA-AVT: 'ENG206B-AVT-LA: English II'","ENG206B-AVT-LA: English II","ENG-206BV1LA-AVT"]
[null,null,null,null,"ENG-206BV1NY-AVT: 'ENG206B-AVT-NY: English II'","ENG206B-AVT-NY: English II","ENG-206BV1NY-AVT"]
[null,null,null,null,"ENG-206BVG1-K: 'ENG206BG: Literary Analysis and Composition II'","ENG206BG: Literary Analysis and Composition II","ENG-206BVG1-K"]
[null,null,null,null,"ENG-206BVS1-AVT: 'ENG206BS-AVT: English II'","ENG206BS-AVT: English II","ENG-206BVS1-AVT"]
[null,null,null,null,"ENG-206BVS1CA-AVT: 'ENG206BS-AVT-CA: English II'","ENG206BS-AVT-CA: English II","ENG-206BVS1CA-AVT"]
[null,null,null,null,"ENG-206BVS1-K: 'ENG206BS:   Literary Analysis and Composition II'","ENG206BS:   Literary Analysis and Composition II","ENG-206BVS1-K"]
[null,null,null,null,"ENG-206BVS1LA-AVT: 'ENG206BS-AVT-LA: English II'","ENG206BS-AVT-LA: English II","ENG-206BVS1LA-AVT"]
[null,null,null,null,"ENG-206BVS1NY-AVT: 'ENG206BS-AVT-NY: English II'","ENG206BS-AVT-NY: English II","ENG-206BVS1NY-AVT"]
[null,null,null,null,"ENG-206BVSG1-K: 'ENG206BSG:   Literary Analysis and Composition II'","ENG206BSG:   Literary Analysis and Composition II","ENG-206BVSG1-K"]
[null,null,null,null,"ENG-302ABLV1-K: 'ENG302A-BL: American Literature'","ENG302A-BL: American Literature","ENG-302ABLV1-K"]
[null,null,null,null,"ENG-302AV1-K: 'ENG302A:   American Literature'","ENG302A:   American Literature","ENG-302AV1-K"]
[null,null,null,null,"ENG-302AVS1-K: 'ENG302AS: American Literature'","ENG302AS: American Literature","ENG-302AVS1-K"]
[null,null,null,null,"ENG-302AXV1-K: 'ENG302AX: American Literature'","ENG302AX: American Literature","ENG-302AXV1-K"]
[null,null,null,null,"ENG-302BBLV1-K: 'ENG302B-BL: American Literature'","ENG302B-BL: American Literature","ENG-302BBLV1-K"]
[null,null,null,null,"ENG-302BV1-K: 'ENG302B:   American Literature'","ENG302B:   American Literature","ENG-302BV1-K"]
[null,null,null,null,"ENG-302BVS1-K: 'ENG302BS: American Literature'","ENG302BS: American Literature","ENG-302BVS1-K"]
[null,null,null,null,"ENG-302BXV1-K: 'ENG302BX: American Literature'","ENG302BX: American Literature","ENG-302BXV1-K"]
[null,null,null,null,"ENG-303ABLV1-K: 'ENG303A-BL: American Literature'","ENG303A-BL: American Literature","ENG-303ABLV1-K"]
[null,null,null,null,"ENG-303AV1-K: 'ENG303A:   American Literature'","ENG303A:   American Literature","ENG-303AV1-K"]
[null,null,null,null,"ENG-303AV1TX-K: 'ENG303A: American Literature - TX'","ENG303A: American Literature - TX","ENG-303AV1TX-K"]
[null,null,null,null,"ENG-303AXV1-K: 'ENG303AX: American Literature'","ENG303AX: American Literature","ENG-303AXV1-K"]
[null,null,null,null,"ENG-303BBLV1-K: 'ENG303B-BL: American Literature'","ENG303B-BL: American Literature","ENG-303BBLV1-K"]
[null,null,null,null,"ENG-303BV1-K: 'ENG303B:   American Literature'","ENG303B:   American Literature","ENG-303BV1-K"]
[null,null,null,null,"ENG-303BV1TX-K: 'ENG303B: American Literature - TX'","ENG303B: American Literature - TX","ENG-303BV1TX-K"]
[null,null,null,null,"ENG-303BXV1-K: 'ENG303BX: American Literature'","ENG303BX: American Literature","ENG-303BXV1-K"]
[null,null,null,null,"ENG-304ABLV1-K: 'ENG304A-BL: Honors American Literature'","ENG304A-BL: Honors American Literature","ENG-304ABLV1-K"]
[null,null,null,null,"ENG-304AV1-K: 'ENG304A:   Honors American Literature'","ENG304A:   Honors American Literature","ENG-304AV1-K"]
[null,null,null,null,"ENG-304AV1TX-K: 'ENG304A:  Honors American Literature - TX'","ENG304A:  Honors American Literature - TX","ENG-304AV1TX-K"]
[null,null,null,null,"ENG-304AVS1-K: 'ENG304A:   Honors American Literature (Summer)'","ENG304A:   Honors American Literature (Summer)","ENG-304AVS1-K"]
[null,null,null,null,"ENG-304AXV1-K: 'ENG304AX: Honors American Literature'","ENG304AX: Honors American Literature","ENG-304AXV1-K"]
[null,null,null,null,"ENG-304BBLV1-K: 'ENG304B-BL: Honors American Literature'","ENG304B-BL: Honors American Literature","ENG-304BBLV1-K"]
[null,null,null,null,"ENG-304BV1-K: 'ENG304B:   Honors American Literature'","ENG304B:   Honors American Literature","ENG-304BV1-K"]
[null,null,null,null,"ENG-304BV1TX-K: 'ENG304B:  Honors American Literature - TX'","ENG304B:  Honors American Literature - TX","ENG-304BV1TX-K"]
[null,null,null,null,"ENG-304BVS1-K: 'ENG304B:   Honors American Literature (Summer)'","ENG304B:   Honors American Literature (Summer)","ENG-304BVS1-K"]
[null,null,null,null,"ENG-304BXV1-K: 'ENG304BX: Honors American Literature'","ENG304BX: Honors American Literature","ENG-304BXV1-K"]
[null,null,null,null,"ENG-306AV1-AVT: 'ENG306AR-AVT: English III'","ENG306AR-AVT: English III","ENG-306AV1-AVT"]
[null,null,null,null,"ENG-306AV1-K: 'ENG306A: American Literature'","ENG306A: American Literature","ENG-306AV1-K"]
[null,null,null,null,"ENG-306AV1NY-AVT: 'ENG306A-AVT-NY: English III'","ENG306A-AVT-NY: English III","ENG-306AV1NY-AVT"]
[null,null,null,null,"ENG-306AV2-AVT: 'ENG306A-AVT: English III'","ENG306A-AVT: English III","ENG-306AV2-AVT"]
[null,null,null,null,"ENG-306AVG1-K: 'ENG306AG: American Literature'","ENG306AG: American Literature","ENG-306AVG1-K"]
[null,null,null,null,"ENG-306AVS1-AVT: 'ENG306ARS-AVT: English III'","ENG306ARS-AVT: English III","ENG-306AVS1-AVT"]
[null,null,null,null,"ENG-306AVS1-K: 'ENG306AS:   American Literature'","ENG306AS:   American Literature","ENG-306AVS1-K"]
[null,null,null,null,"ENG-306AVS1NY-AVT: 'ENG306AS-AVT-NY: English III'","ENG306AS-AVT-NY: English III","ENG-306AVS1NY-AVT"]
[null,null,null,null,"ENG-306AVS2-AVT: 'ENG306AS-AVT: English III'","ENG306AS-AVT: English III","ENG-306AVS2-AVT"]
[null,null,null,null,"ENG-306AVSG1-K: 'ENG306ASG:   American Literature'","ENG306ASG:   American Literature","ENG-306AVSG1-K"]
[null,null,null,null,"ENG-306BV1-AVT: 'ENG306BR-AVT: English III'","ENG306BR-AVT: English III","ENG-306BV1-AVT"]
[null,null,null,null,"ENG-306BV1-K: 'ENG306B: American Literature'","ENG306B: American Literature","ENG-306BV1-K"]
[null,null,null,null,"ENG-306BV1NY-AVT: 'ENG306B-AVT-NY: English III'","ENG306B-AVT-NY: English III","ENG-306BV1NY-AVT"]
[null,null,null,null,"ENG-306BV2-AVT: 'ENG306B-AVT: English III'","ENG306B-AVT: English III","ENG-306BV2-AVT"]
[null,null,null,null,"ENG-306BVG1-K: 'ENG306BG: American Literature'","ENG306BG: American Literature","ENG-306BVG1-K"]
[null,null,null,null,"ENG-306BVS1-AVT: 'ENG306BRS-AVT: English III'","ENG306BRS-AVT: English III","ENG-306BVS1-AVT"]
[null,null,null,null,"ENG-306BVS1-K: 'ENG306BS:   American Literature'","ENG306BS:   American Literature","ENG-306BVS1-K"]
[null,null,null,null,"ENG-306BVS1NY-AVT: 'ENG306BS-AVT-NY: English III'","ENG306BS-AVT-NY: English III","ENG-306BVS1NY-AVT"]
[null,null,null,null,"ENG-306BVS2-AVT: 'ENG306BS-AVT: English III'","ENG306BS-AVT: English III","ENG-306BVS2-AVT"]
[null,null,null,null,"ENG-306BVSG1-K: 'ENG306BSG:   American Literature'","ENG306BSG:   American Literature","ENG-306BVSG1-K"]
[null,null,null,null,"ENG-402ABLV1-K: 'ENG402A-BL: British and World Literature'","ENG402A-BL: British and World Literature","ENG-402ABLV1-K"]
[null,null,null,null,"ENG-402AV1-A: 'ENG402A:   British and World Literature 08-09'","ENG402A:   British and World Literature 08-09","ENG-402AV1-A"]
[null,null,null,null,"ENG-402AV1-K: 'ENG402A:   British and World Literature'","ENG402A:   British and World Literature","ENG-402AV1-K"]
[null,null,null,null,"ENG-402AVS1-K: 'ENG402AS:  British and World Literature'","ENG402AS:  British and World Literature","ENG-402AVS1-K"]
[null,null,null,null,{"$f":"CONCATENATE(G1794,\": '\",F1794,\"'\")","v":"ENG-402AXV1-K: 'ENG402AX: British and World Literature'"},"ENG402AX: British and World Literature","ENG-402AXV1-K"]
[null,null,null,null,"ENG-402BBLV1-K: 'ENG402B-BL: British and World Literature'","ENG402B-BL: British and World Literature","ENG-402BBLV1-K"]
[null,null,null,null,"ENG-402BV1-A: 'ENG402B:   British and World Literature 08-09'","ENG402B:   British and World Literature 08-09","ENG-402BV1-A"]
[null,null,null,null,"ENG-402BV1-K: 'ENG402B:   British and World Literature'","ENG402B:   British and World Literature","ENG-402BV1-K"]
[null,null,null,null,"ENG-402BVS1-K: 'ENG402BS:  British and World Literature'","ENG402BS:  British and World Literature","ENG-402BVS1-K"]
[null,null,null,null,"ENG-402BXV1-K: 'ENG402BX: British and World Literature'","ENG402BX: British and World Literature","ENG-402BXV1-K"]
[null,null,null,null,"ENG-403ABLV1-K: 'ENG403A-BL: British and World Literature'","ENG403A-BL: British and World Literature","ENG-403ABLV1-K"]
[null,null,null,null,"ENG-403AV1-A: 'ENG403A:   British and World Literature 08-09'","ENG403A:   British and World Literature 08-09","ENG-403AV1-A"]
[null,null,null,null,"ENG-403AV1-K: 'ENG403A:   British and World Literature'","ENG403A:   British and World Literature","ENG-403AV1-K"]
[null,null,null,null,"ENG-403AV1TX-K: 'ENG403A: British and World Literature - TX'","ENG403A: British and World Literature - TX","ENG-403AV1TX-K"]
[null,null,null,null,"ENG-403AXV1-K: 'ENG403AX: British and World Literature'","ENG403AX: British and World Literature","ENG-403AXV1-K"]
[null,null,null,null,"ENG-403BBLV1-K: 'ENG403B-BL: British and World Literature'","ENG403B-BL: British and World Literature","ENG-403BBLV1-K"]
[null,null,null,null,"ENG-403BV1-A: 'ENG403B:   British and World Literature 08-09'","ENG403B:   British and World Literature 08-09","ENG-403BV1-A"]
[null,null,null,null,"ENG-403BV1-K: 'ENG403B:   British and World Literature'","ENG403B:   British and World Literature","ENG-403BV1-K"]
[null,null,null,null,"ENG-403BV1TX-K: 'ENG403B: British and World Literature - TX'","ENG403B: British and World Literature - TX","ENG-403BV1TX-K"]
[null,null,null,null,"ENG-403BXV1-K: 'ENG403BX: British and World Literature'","ENG403BX: British and World Literature","ENG-403BXV1-K"]
[null,null,null,null,"ENG-404ABLV1-K: 'ENG404A-BL: Honors British and World Literature'","ENG404A-BL: Honors British and World Literature","ENG-404ABLV1-K"]
[null,null,null,null,"ENG-404AV1-K: 'ENG404A:   Honors British and World Literature'","ENG404A:   Honors British and World Literature","ENG-404AV1-K"]
[null,null,null,null,"ENG-404AV1TX-K: 'ENG404A:  Honors British and World Literature - TX'","ENG404A:  Honors British and World Literature - TX","ENG-404AV1TX-K"]
[null,null,null,null,"ENG-404AXV1-K: 'ENG404AX: Honors British and World Literature'","ENG404AX: Honors British and World Literature","ENG-404AXV1-K"]
[null,null,null,null,"ENG-404BBLV1-K: 'ENG404B-BL: Honors British and World Literature'","ENG404B-BL: Honors British and World Literature","ENG-404BBLV1-K"]
[null,null,null,null,"ENG-404BV1-K: 'ENG404B:   Honors British and World Literature'","ENG404B:   Honors British and World Literature","ENG-404BV1-K"]
[null,null,null,null,"ENG-404BV1TX-K: 'ENG404B:  Honors British and World Literature - TX'","ENG404B:  Honors British and World Literature - TX","ENG-404BV1TX-K"]
[null,null,null,null,"ENG-404BXV1-K: 'ENG404BX: Honors British and World Literature'","ENG404BX: Honors British and World Literature","ENG-404BXV1-K"]
[null,null,null,null,"ENG-406AV1-AVT: 'ENG406A-AVT: English IV'","ENG406A-AVT: English IV","ENG-406AV1-AVT"]
[null,null,null,null,"ENG-406AV1-K: 'ENG406A: British and World Literature'","ENG406A: British and World Literature","ENG-406AV1-K"]
[null,null,null,null,"ENG-406AV1NY-AVT: 'ENG406A-AVT-NY: English IV'","ENG406A-AVT-NY: English IV","ENG-406AV1NY-AVT"]
[null,null,null,null,"ENG-406AVG1-K: 'ENG406AG: British and World Literature'","ENG406AG: British and World Literature","ENG-406AVG1-K"]
[null,null,null,null,"ENG-406AVS1-AVT: 'ENG406AS-AVT: English IV'","ENG406AS-AVT: English IV","ENG-406AVS1-AVT"]
[null,null,null,null,"ENG-406AVS1NY-AVT: 'ENG406AS-AVT-NY: English IV'","ENG406AS-AVT-NY: English IV","ENG-406AVS1NY-AVT"]
[null,null,null,null,"ENG-406AVSG1-K: 'ENG406ASG: British and World Literature'","ENG406ASG: British and World Literature","ENG-406AVSG1-K"]
[null,null,null,null,"ENG-406BV1-AVT: 'ENG406B-AVT: English IV'","ENG406B-AVT: English IV","ENG-406BV1-AVT"]
[null,null,null,null,"ENG-406BV1-K: 'ENG406B: British and World Literature'","ENG406B: British and World Literature","ENG-406BV1-K"]
[null,null,null,null,"ENG-406BV1NY-AVT: 'ENG406B-AVT-NY: English IV'","ENG406B-AVT-NY: English IV","ENG-406BV1NY-AVT"]
[null,null,null,null,"ENG-406BVG1-K: 'ENG406BG: British and World Literature'","ENG406BG: British and World Literature","ENG-406BVG1-K"]
[null,null,null,null,"ENG-406BVS1-AVT: 'ENG406BS-AVT: English IV'","ENG406BS-AVT: English IV","ENG-406BVS1-AVT"]
[null,null,null,null,"ENG-406BVS1NY-AVT: 'ENG406BS-AVT-NY: English IV'","ENG406BS-AVT-NY: English IV","ENG-406BVS1NY-AVT"]
[null,null,null,null,"ENG-406BVSG1-K: 'ENG406BSG: British and World Literature'","ENG406BSG: British and World Literature","ENG-406BVSG1-K"]
[null,null,null,null,"ENG-500AV1-A: 'ENG500A:   AP(R) English Language and Composition'","ENG500A:   AP(R) English Language and Composition","ENG-500AV1-A"]
[null,null,null,null,"ENG-500AV1TX-A: 'ENG500A: AP(R) English Language and Composition - TX'","ENG500A: AP(R) English Language and Composition - TX","ENG-500AV1TX-A"]
[null,null,null,null,"ENG-500BV1-A: 'ENG500B:   AP(R) English Language and Composition'","ENG500B:   AP(R) English Language and Composition","ENG-500BV1-A"]
[null,null,null,null,"ENG-500BV1TX-A: 'ENG500B: AP(R) English Language and Composition - TX'","ENG500B: AP(R) English Language and Composition - TX","ENG-500BV1TX-A"]
[null,null,null,null,"ENG-510AV1-A: 'ENG510A:   AP(R) English Literature and Composition'","ENG510A:   AP(R) English Literature and Composition","ENG-510AV1-A"]
[null,null,null,null,"ENG-510AV1TX-A: 'ENG510A: AP(R) English Literature and Composition - TX'","ENG510A: AP(R) English Literature and Composition - TX","ENG-510AV1TX-A"]
[null,null,null,null,"ENG-510AVS1-A: 'ENG510AS: AP® English Literature and Composition'","ENG510AS: AP® English Literature and Composition","ENG-510AVS1-A"]
[null,null,null,null,"ENG-510BV1-A: 'ENG510B:   AP(R) English Literature and Composition'","ENG510B:   AP(R) English Literature and Composition","ENG-510BV1-A"]
[null,null,null,null,"ENG-510BV1TX-A: 'ENG510B: AP(R) English Literature and Composition - TX'","ENG510B: AP(R) English Literature and Composition - TX","ENG-510BV1TX-A"]
[null,null,null,null,"ENG-510BVS1-A: 'ENG510BS: AP® English Literature and Composition'","ENG510BS: AP® English Literature and Composition","ENG-510BVS1-A"]
[null,null,null,null,"ENG-CCV1-K12: 'Common Core Supplement - ELA'","Common Core Supplement - ELA","ENG-CCV1-K12"]
[null,null,null,null,"ESMY1-AG-MIL: 'Spanish Middle School 1 - AG*'","Spanish Middle School 1 - AG*","ESMY1-AG-MIL"]
[null,null,null,null,"ESMY1-TG-V2-MIL: 'Spanish Middle School 1 - TG**'","Spanish Middle School 1 - TG**","ESMY1-TG-V2-MIL"]
[null,null,null,null,"ESMY2-AG-MIL: 'Spanish Middle School 2 - AG*'","Spanish Middle School 2 - AG*","ESMY2-AG-MIL"]
[null,null,null,null,"ESMY2-TG-V2-MIL: 'Spanish Middle School 2 - TG**'","Spanish Middle School 2 - TG**","ESMY2-TG-V2-MIL"]
[null,null,null,null,"ES-S1F1H-A: 'Apex Spanish I'","Apex Spanish I","ES-S1F1H-A"]
[null,null,null,null,"ES-S1S1A-A: 'Apex AP Spanish Lang. - Sem 1'","Apex AP Spanish Lang. - Sem 1","ES-S1S1A-A"]
[null,null,null,null,"ES-S1S1H-A: 'Apex Spanish I - Sem 1'","Apex Spanish I - Sem 1","ES-S1S1H-A"]
[null,null,null,null,"ES-S1S2A-A: 'Apex AP Spanish Lang. - Sem 2'","Apex AP Spanish Lang. - Sem 2","ES-S1S2A-A"]
[null,null,null,null,"ES-S1S2H-A: 'Apex Spanish I - Sem 2'","Apex Spanish I - Sem 2","ES-S1S2H-A"]
[null,null,null,null,"ES-S2F1H-A: 'Apex Spanish II'","Apex Spanish II","ES-S2F1H-A"]
[null,null,null,null,"ES-S2S1H-A: 'Apex Spanish II - Sem 1'","Apex Spanish II - Sem 1","ES-S2S1H-A"]
[null,null,null,null,"ES-S2S2H-A: 'Apex Spanish II - Sem 2'","Apex Spanish II - Sem 2","ES-S2S2H-A"]
[null,null,null,null,"FA-802AG-K: 'Fine Art and Art Appreciation - Sem 1'","Fine Art and Art Appreciation - Sem 1","FA-802AG-K"]
[null,null,null,null,"FA-802BG-K: 'Fine Art and Art Appreciation - Sem 2'","Fine Art and Art Appreciation - Sem 2","FA-802BG-K"]
[null,null,null,null,"FA-803AG-V: 'Art History - Sem 1'","Art History - Sem 1","FA-803AG-V"]
[null,null,null,null,{"$f":"CONCATENATE(G1858,\": '\",F1858,\"'\")","v":"FA-803BG-V: 'Art History - Sem 2'"},"Art History - Sem 2","FA-803BG-V"]
[null,null,null,null,"FA-FAS1H-Y: 'Keystone: Fine Art Sem 1'","Keystone: Fine Art Sem 1","FA-FAS1H-Y"]
[null,null,null,null,"FA-FAS2H-Y: 'Keystone: Fine Art Sem 2'","Keystone: Fine Art Sem 2","FA-FAS2H-Y"]
[null,null,null,null,"FR-F1F1H-A: 'Apex French I'","Apex French I","FR-F1F1H-A"]
[null,null,null,null,"FR-F1S1A-A: 'Apex AP French Lang. - Sem 1'","Apex AP French Lang. - Sem 1","FR-F1S1A-A"]
[null,null,null,null,"FR-F1S1H-A: 'Apex French I - Sem 1'","Apex French I - Sem 1","FR-F1S1H-A"]
[null,null,null,null,"FR-F1S2A-A: 'Apex AP French Lang. - Sem 2'","Apex AP French Lang. - Sem 2","FR-F1S2A-A"]
[null,null,null,null,"FR-F1S2H-A: 'Apex French I - Sem 2'","Apex French I - Sem 2","FR-F1S2H-A"]
[null,null,null,null,"FR-F2F1H-A: 'Apex French II'","Apex French II","FR-F2F1H-A"]
[null,null,null,null,"FR-F2S1H-A: 'Apex French II - Sem 1'","Apex French II - Sem 1","FR-F2S1H-A"]
[null,null,null,null,"FR-F2S2H-A: 'Apex French II - Sem 2'","Apex French II - Sem 2","FR-F2S2H-A"]
[null,null,null,null,"FRMY1-AG-MIL: 'French Middle School 1 - AG*'","French Middle School 1 - AG*","FRMY1-AG-MIL"]
[null,null,null,null,"FRMY1-TG-V2-MIL: 'French Middle School 1 - TG**'","French Middle School 1 - TG**","FRMY1-TG-V2-MIL"]
[null,null,null,null,"FRMY2-AG-MIL: 'French Middle School 2 - AG*'","French Middle School 2 - AG*","FRMY2-AG-MIL"]
[null,null,null,null,"FRMY2-TG-V2-MIL: 'French Middle School 2 - TG**'","French Middle School 2 - TG**","FRMY2-TG-V2-MIL"]
[null,null,null,null,"HI-101AG-V: 'World History - Sem 1'","World History - Sem 1","HI-101AG-V"]
[null,null,null,null,"HI-101BG-V: 'World History - Sem 2'","World History - Sem 2","HI-101BG-V"]
[null,null,null,null,"HI-151AG-C: 'World Civilizations - Sem 1'","World Civilizations - Sem 1","HI-151AG-C"]
[null,null,null,null,"HI-151BG-C: 'World Civilizations - Sem 2'","World Civilizations - Sem 2","HI-151BG-C"]
[null,null,null,null,"HI1F1: 'History 1*'","History 1*","HI1F1"]
[null,null,null,null,"HI-201AG-V: 'U.S. History - Sem 1'","U.S. History - Sem 1","HI-201AG-V"]
[null,null,null,null,"HI-201BG-V: 'U.S. History - Sem 2'","U.S. History - Sem 2","HI-201BG-V"]
[null,null,null,null,"HI-251AG-V: 'American History - Sem 1'","American History - Sem 1","HI-251AG-V"]
[null,null,null,null,"HI-251BG-V: 'American History - Sem 2'","American History - Sem 2","HI-251BG-V"]
[null,null,null,null,"HI-252AG-K: 'Modern World Studies - Sem 1'","Modern World Studies - Sem 1","HI-252AG-K"]
[null,null,null,null,"HI-252BG-K: 'Modern World Studies - Sem 2'","Modern World Studies - Sem 2","HI-252BG-K"]
[null,null,null,null,"HI2F1: 'History 2*'","History 2*","HI2F1"]
[null,null,null,null,"HI3F1: 'History 3 (v1)'","History 3 (v1)","HI3F1"]
[null,null,null,null,"HI3F1B: 'History 3*'","History 3*","HI3F1B"]
[null,null,null,null,"HI3GA: 'Georgia Soical Studies - Grade 3'","Georgia Soical Studies - Grade 3","HI3GA"]
[null,null,null,null,"HI3SC: 'SC State History - Grade 3'","SC State History - Grade 3","HI3SC"]
[null,null,null,null,"HI3TX: 'Social Studies 3 (Texas)'","Social Studies 3 (Texas)","HI3TX"]
[null,null,null,null,"HI4F1: 'History 4 (v1)'","History 4 (v1)","HI4F1"]
[null,null,null,null,"HI4F1B: 'History 4*'","History 4*","HI4F1B"]
[null,null,null,null,"HI4GA: 'Georgia Social Studies - Grade 4'","Georgia Social Studies - Grade 4","HI4GA"]
[null,null,null,null,"HI4TX: 'Social Studies 4 (Texas)'","Social Studies 4 (Texas)","HI4TX"]
[null,null,null,null,"HI4VA: 'Virginia Studies - Grade 4'","Virginia Studies - Grade 4","HI4VA"]
[null,null,null,null,"HI5F1: 'History 5 (v1)'","History 5 (v1)","HI5F1"]
[null,null,null,null,"HI5GA: 'Georgia Social Studies - Grade 5'","Georgia Social Studies - Grade 5","HI5GA"]
[null,null,null,null,"HI5OH: 'OHVA Grade 5: American History Before 1865'","OHVA Grade 5: American History Before 1865","HI5OH"]
[null,null,null,null,"HI5TX: 'Social Studies 5 (Texas)'","Social Studies 5 (Texas)","HI5TX"]
[null,null,null,null,"HI6AH: 'Ancient History 6'","Ancient History 6","HI6AH"]
[null,null,null,null,"HI6F1: 'American Hist. Before 1865 (v1)'","American Hist. Before 1865 (v1)","HI6F1"]
[null,null,null,null,"HI6F1B: 'American History Before 1865*'","American History Before 1865*","HI6F1B"]
[null,null,null,null,"HI6GA: 'GA Social Studies 6'","GA Social Studies 6","HI6GA"]
[null,null,null,null,"HI6TX: 'Social Studies 6 (Texas)'","Social Studies 6 (Texas)","HI6TX"]
[null,null,null,null,"HI7CO: 'CO Social Studies 7'","CO Social Studies 7","HI7CO"]
[null,null,null,null,"HI7F1: 'American Hist. Since 1865*'","American Hist. Since 1865*","HI7F1"]
[null,null,null,null,"HI7GA: 'GA Social Studies 7'","GA Social Studies 7","HI7GA"]
[null,null,null,null,"HI7TX: 'Social Studies 7 (Texas)'","Social Studies 7 (Texas)","HI7TX"]
[null,null,null,null,"HI7TXB: 'Texas Social Studies - Grade 7'","Texas Social Studies - Grade 7","HI7TXB"]
[null,null,null,null,"HI7UT: 'Utah Studies 7'","Utah Studies 7","HI7UT"]
[null,null,null,null,"HI8F1: 'Intermediate World History A*'","Intermediate World History A*","HI8F1"]
[null,null,null,null,"HI8GA: 'Georgia Social Studies - Grade 8'","Georgia Social Studies - Grade 8","HI8GA"]
[null,null,null,null,"HI8KS: 'Kansas History 8'","Kansas History 8","HI8KS"]
[null,null,null,null,"HI8OH: 'OHVA Grade 8: American History Before 1865'","OHVA Grade 8: American History Before 1865","HI8OH"]
[null,null,null,null,"HI8SC: 'SC State History - Grade 8'","SC State History - Grade 8","HI8SC"]
[null,null,null,null,"HI8VA: 'Civics & Economics'","Civics & Economics","HI8VA"]
[null,null,null,null,"HIBF1: 'Intermediate World History B*'","Intermediate World History B*","HIBF1"]
[null,null,null,null,"HI-GOVPA-A: 'Apex AP U.S. Gov't and Politics'","Apex AP U.S. Gov't and Politics","HI-GOVPA-A"]
[null,null,null,null,"HI-GOVPC-A: 'Apex: U.S. Government and Politics - Spring 2007'","Apex: U.S. Government and Politics - Spring 2007","HI-GOVPC-A"]
[null,null,null,null,"HI-GOVPH-A: 'Apex U.S. Gov't and Politics'","Apex U.S. Gov't and Politics","HI-GOVPH-A"]
[null,null,null,null,"HI-GOVPK-A: 'Apex: U.S. Government and Politics'","Apex: U.S. Government and Politics","HI-GOVPK-A"]
[null,null,null,null,"HIH-100V1-K: 'HIH100: Modern History of Hawai'i'","HIH100: Modern History of Hawai'i","HIH-100V1-K"]
[null,null,null,null,{"$f":"CONCATENATE(G1922,\": '\",F1922,\"'\")","v":"HIH-100VS1-K: 'HIH100S: Modern History of Hawaii'"},"HIH100S: Modern History of Hawaii","HIH-100VS1-K"]
[null,null,null,null,"HIKF1: 'History K*'","History K*","HIKF1"]
[null,null,null,null,"HISF1: 'State History'","State History","HISF1"]
[null,null,null,null,"HI-USGEC-A: 'Apex: AP U.S. and Global Economics - Comprehensive'","Apex: AP U.S. and Global Economics - Comprehensive","HI-USGEC-A"]
[null,null,null,null,"HI-USGEK-A: 'Apex: U.S. and Global Economics'","Apex: U.S. and Global Economics","HI-USGEK-A"]
[null,null,null,null,"HI-USS1A-A: 'Apex AP U.S. History - Sem 1'","Apex AP U.S. History - Sem 1","HI-USS1A-A"]
[null,null,null,null,"HI-USS1H-A: 'Apex U.S. History - Sem 1'","Apex U.S. History - Sem 1","HI-USS1H-A"]
[null,null,null,null,"HI-USS1K-A: 'Apex: U.S. History Sem 1'","Apex: U.S. History Sem 1","HI-USS1K-A"]
[null,null,null,null,"HI-USS2A-A: 'Apex AP U.S. History - Sem 2'","Apex AP U.S. History - Sem 2","HI-USS2A-A"]
[null,null,null,null,"HI-USS2H-A: 'OHVA U.S. History - Sem 2'","OHVA U.S. History - Sem 2","HI-USS2H-A"]
[null,null,null,null,"HI-USS2K-A: 'Apex: U.S. History Sem 2'","Apex: U.S. History Sem 2","HI-USS2K-A"]
[null,null,null,null,"HI-WASHG-R: 'Washington State History'","Washington State History","HI-WASHG-R"]
[null,null,null,null,"HI-WDF1H-A: 'Apex World History'","Apex World History","HI-WDF1H-A"]
[null,null,null,null,"HI-WDS1C-A: 'Apex: World History - Sem 1 - Comprehensive'","Apex: World History - Sem 1 - Comprehensive","HI-WDS1C-A"]
[null,null,null,null,"HI-WDS1H-A: 'Apex World History - Sem 1'","Apex World History - Sem 1","HI-WDS1H-A"]
[null,null,null,null,"HI-WDS2C-A: 'OHVA World History - Sem 2'","OHVA World History - Sem 2","HI-WDS2C-A"]
[null,null,null,null,"HI-WDS2H-A: 'Apex World History - Sem 2'","Apex World History - Sem 2","HI-WDS2H-A"]
[null,null,null,null,"HST-010V2-APL: 'HST010-APL: Anthropology'","HST010-APL: Anthropology","HST-010V2-APL"]
[null,null,null,null,"HST-010VS2-APL: 'HST010S-APL: Anthropology'","HST010S-APL: Anthropology","HST-010VS2-APL"]
[null,null,null,null,"HST-020V2-AVT: 'HST020-AVT: Psychology'","HST020-AVT: Psychology","HST-020V2-AVT"]
[null,null,null,null,"HST-020VS2-AVT: 'HST020S-AVT: Psychology '","HST020S-AVT: Psychology ","HST-020VS2-AVT"]
[null,null,null,null,"HST-030V2-AVT: 'HST030-AVT: Economics'","HST030-AVT: Economics","HST-030V2-AVT"]
[null,null,null,null,"HST-030VS1-C: 'HST030S: Macroeconomics'","HST030S: Macroeconomics","HST-030VS1-C"]
[null,null,null,null,"HST-040V1-AVT: 'HST040-AVT: Civics'","HST040-AVT: Civics","HST-040V1-AVT"]
[null,null,null,null,"HST-050AV1-AVT: 'HST050A-AVT: Sociology'","HST050A-AVT: Sociology","HST-050AV1-AVT"]
[null,null,null,null,"HST-050AVS1-AVT: 'HST050AS-AVT: Sociology'","HST050AS-AVT: Sociology","HST-050AVS1-AVT"]
[null,null,null,null,"HST-050BV1-AVT: 'HST050B-AVT: Sociology'","HST050B-AVT: Sociology","HST-050BV1-AVT"]
[null,null,null,null,"HST-050BVS1-AVT: 'HST050BS-AVT: Sociology'","HST050BS-AVT: Sociology","HST-050BVS1-AVT"]
[null,null,null,null,"HST-090AV1-C: 'LVS United States History - Sem 1'","LVS United States History - Sem 1","HST-090AV1-C"]
[null,null,null,null,"HST-090BV1-C: 'LVS United States History - Sem 2'","LVS United States History - Sem 2","HST-090BV1-C"]
[null,null,null,null,"HST-102ABLV2-K: 'HST102A-BL: World History'","HST102A-BL: World History","HST-102ABLV2-K"]
[null,null,null,null,"HST-102AV1TX-A: 'HST102AR: World History - TX'","HST102AR: World History - TX","HST-102AV1TX-A"]
[null,null,null,null,"HST-102AV2-K: 'HST102A: World History'","HST102A: World History","HST-102AV2-K"]
[null,null,null,null,"HST-102AVS1-A: 'HST102AS:  World History'","HST102AS:  World History","HST-102AVS1-A"]
[null,null,null,null,"HST-102AVS2-K: 'HST102AS: World History'","HST102AS: World History","HST-102AVS2-K"]
[null,null,null,null,"HST-102AXV2-K: 'HST102AX: World History'","HST102AX: World History","HST-102AXV2-K"]
[null,null,null,null,"HST-102BBLV2-K: 'HST102B-BL: World History'","HST102B-BL: World History","HST-102BBLV2-K"]
[null,null,null,null,"HST-102BV1TX-A: 'HST102BR: World History - TX'","HST102BR: World History - TX","HST-102BV1TX-A"]
[null,null,null,null,"HST-102BV2-K: 'HST102B: World History'","HST102B: World History","HST-102BV2-K"]
[null,null,null,null,"HST-102BVS1-A: 'HST102BS:  World History'","HST102BS:  World History","HST-102BVS1-A"]
[null,null,null,null,"HST-102BVS2-K: 'HST102BS: World History'","HST102BS: World History","HST-102BVS2-K"]
[null,null,null,null,"HST-102BXV2-K: 'HST102BX: World History'","HST102BX: World History","HST-102BXV2-K"]
[null,null,null,null,"HST-103ABLV2-K: 'HST103A-BL: World History'","HST103A-BL: World History","HST-103ABLV2-K"]
[null,null,null,null,"HST-103AV1TX-A: 'HST103AR: World History - TX'","HST103AR: World History - TX","HST-103AV1TX-A"]
[null,null,null,null,"HST-103AV2-K: 'HST103A: World History'","HST103A: World History","HST-103AV2-K"]
[null,null,null,null,"HST-103AXV2-K: 'HST103AX: World History'","HST103AX: World History","HST-103AXV2-K"]
[null,null,null,null,"HST-103BBLV2-K: 'HST103B-BL: World History'","HST103B-BL: World History","HST-103BBLV2-K"]
[null,null,null,null,"HST-103BV1TX-A: 'HST103BR: World History - TX'","HST103BR: World History - TX","HST-103BV1TX-A"]
[null,null,null,null,"HST-103BV2-K: 'HST103B: World History'","HST103B: World History","HST-103BV2-K"]
[null,null,null,null,"HST-103BXV2-K: 'HST103BX: World History'","HST103BX: World History","HST-103BXV2-K"]
[null,null,null,null,"HST-104ABLV1-K: 'HST104A-BL: Honors World History'","HST104A-BL: Honors World History","HST-104ABLV1-K"]
[null,null,null,null,"HST-104AV1-K: 'HST104A: Honors World History'","HST104A: Honors World History","HST-104AV1-K"]
[null,null,null,null,"HST-104AXV1-K: 'HST104AX: Honors World History'","HST104AX: Honors World History","HST-104AXV1-K"]
[null,null,null,null,"HST-104BBLV1-K: 'HST104B-BL: Honors World History'","HST104B-BL: Honors World History","HST-104BBLV1-K"]
[null,null,null,null,"HST-104BV1-K: 'HST104B: Honors World History'","HST104B: Honors World History","HST-104BV1-K"]
[null,null,null,null,"HST-104BXV1-K: 'HST104BX: Honors World History'","HST104BX: Honors World History","HST-104BXV1-K"]
[null,null,null,null,"HST-106AV1-AVT: 'HST106A-AVT: World History'","HST106A-AVT: World History","HST-106AV1-AVT"]
[null,null,null,null,"HST-106AV1CA-AVT: 'HST106A-AVT-CA: World History'","HST106A-AVT-CA: World History","HST-106AV1CA-AVT"]
[null,null,null,null,"HST-106AVG1-K: 'HST106AG: World History'","HST106AG: World History","HST-106AVG1-K"]
[null,null,null,null,"HST-106AVS1-AVT: 'HST106AS-AVT: World History'","HST106AS-AVT: World History","HST-106AVS1-AVT"]
[null,null,null,null,"HST-106AVS1CA-AVT: 'HST106AS-AVT-CA: World History'","HST106AS-AVT-CA: World History","HST-106AVS1CA-AVT"]
[null,null,null,null,"HST-106AVSG1-K: 'HST106ASG: World History'","HST106ASG: World History","HST-106AVSG1-K"]
[null,null,null,null,"HST-106BV1-AVT: 'HST106B-AVT: World History'","HST106B-AVT: World History","HST-106BV1-AVT"]
[null,null,null,null,"HST-106BV1CA-AVT: 'HST106B-AVT-CA: World History'","HST106B-AVT-CA: World History","HST-106BV1CA-AVT"]
[null,null,null,null,{"$f":"CONCATENATE(G1986,\": '\",F1986,\"'\")","v":"HST-106BVG1-K: 'HST106BG: World History'"},"HST106BG: World History","HST-106BVG1-K"]
[null,null,null,null,"HST-106BVS1-AVT: 'HST106BS-AVT: World History'","HST106BS-AVT: World History","HST-106BVS1-AVT"]
[null,null,null,null,"HST-106BVS1CA-AVT: 'HST106BS-AVT-CA: World History'","HST106BS-AVT-CA: World History","HST-106BVS1CA-AVT"]
[null,null,null,null,"HST-106BVSG1-K: 'HST106BSG: World History'","HST106BSG: World History","HST-106BVSG1-K"]
[null,null,null,null,"HST-202ABLV1-K: 'HST202A-BL: Modern World Studies'","HST202A-BL: Modern World Studies","HST-202ABLV1-K"]
[null,null,null,null,"HST-202AV1-K: 'HST202A:   Modern World Studies'","HST202A:   Modern World Studies","HST-202AV1-K"]
[null,null,null,null,"HST-202AXV1-K: 'HST202AX: Modern World Studies'","HST202AX: Modern World Studies","HST-202AXV1-K"]
[null,null,null,null,"HST-202BBLV1-K: 'HST202B-BL: Modern World Studies'","HST202B-BL: Modern World Studies","HST-202BBLV1-K"]
[null,null,null,null,"HST-202BV1-K: 'HST202B:   Modern World Studies'","HST202B:   Modern World Studies","HST-202BV1-K"]
[null,null,null,null,"HST-202BXV1-K: 'HST202BX: Modern World Studies'","HST202BX: Modern World Studies","HST-202BXV1-K"]
[null,null,null,null,"HST-203ABLV1-K: 'HST203A-BL: Modern World Studies'","HST203A-BL: Modern World Studies","HST-203ABLV1-K"]
[null,null,null,null,"HST-203AV1-K: 'HST203A:   Modern World Studies'","HST203A:   Modern World Studies","HST-203AV1-K"]
[null,null,null,null,"HST-203AXV1-K: 'HST203AX: Modern World Studies'","HST203AX: Modern World Studies","HST-203AXV1-K"]
[null,null,null,null,"HST-203BBLV1-K: 'HST203B-BL: Modern World Studies'","HST203B-BL: Modern World Studies","HST-203BBLV1-K"]
[null,null,null,null,"HST-203BV1-K: 'HST203B:   Modern World Studies'","HST203B:   Modern World Studies","HST-203BV1-K"]
[null,null,null,null,"HST-203BXV1-K: 'HST203BX: Modern World Studies'","HST203BX: Modern World Studies","HST-203BXV1-K"]
[null,null,null,null,"HST-204ABLV1-K: 'HST204A-BL: Honors Modern World Studies'","HST204A-BL: Honors Modern World Studies","HST-204ABLV1-K"]
[null,null,null,null,"HST-204AV1-K: 'HST204A:   Honors Modern World Studies'","HST204A:   Honors Modern World Studies","HST-204AV1-K"]
[null,null,null,null,"HST-204AXV1-K: 'HST204AX: Honors Modern World Studies'","HST204AX: Honors Modern World Studies","HST-204AXV1-K"]
[null,null,null,null,"HST-204BBLV1-K: 'HST204B-BL: Honors Modern World Studies'","HST204B-BL: Honors Modern World Studies","HST-204BBLV1-K"]
[null,null,null,null,"HST-204BV1-K: 'HST204B:   Honors Modern World Studies'","HST204B:   Honors Modern World Studies","HST-204BV1-K"]
[null,null,null,null,"HST-204BXV1-K: 'HST204BX: Honors Modern World Studies'","HST204BX: Honors Modern World Studies","HST-204BXV1-K"]
[null,null,null,null,"HST-206AV1-K: 'HST206A: Modern World Studies'","HST206A: Modern World Studies","HST-206AV1-K"]
[null,null,null,null,"HST-206AVG1-K: 'HST206AG: Modern World Studies'","HST206AG: Modern World Studies","HST-206AVG1-K"]
[null,null,null,null,"HST-206AVS1-K: 'HST206AS:   Modern World Studies'","HST206AS:   Modern World Studies","HST-206AVS1-K"]
[null,null,null,null,"HST-206AVSG1-K: 'HST206ASG:   Modern World Studies'","HST206ASG:   Modern World Studies","HST-206AVSG1-K"]
[null,null,null,null,"HST-206BV1-K: 'HST206B: Modern World Studies'","HST206B: Modern World Studies","HST-206BV1-K"]
[null,null,null,null,"HST-206BVG1-K: 'HST206BG: Modern World Studies'","HST206BG: Modern World Studies","HST-206BVG1-K"]
[null,null,null,null,"HST-206BVS1-K: 'HST206BS:   Modern World Studies'","HST206BS:   Modern World Studies","HST-206BVS1-K"]
[null,null,null,null,"HST-206BVSG1-K: 'HST206BSG:   Modern World Studies'","HST206BSG:   Modern World Studies","HST-206BVSG1-K"]
[null,null,null,null,"HST-212V1-A: 'HST212:   Geography and World Cultures'","HST212:   Geography and World Cultures","HST-212V1-A"]
[null,null,null,null,"HST-213BLV1-A: 'HST213-BL:  Geography and World Cultures'","HST213-BL:  Geography and World Cultures","HST-213BLV1-A"]
[null,null,null,null,"HST-213V1-A: 'HST213:   Geography and World Cultures'","HST213:   Geography and World Cultures","HST-213V1-A"]
[null,null,null,null,"HST-213VS1-A: 'HST213S: Geography and World Cultures'","HST213S: Geography and World Cultures","HST-213VS1-A"]
[null,null,null,null,"HST-216AV1-AVT: 'HST216A-AVT: Geography'","HST216A-AVT: Geography","HST-216AV1-AVT"]
[null,null,null,null,"HST-216AVS1-AVT: 'HST216AS-AVT: Geography'","HST216AS-AVT: Geography","HST-216AVS1-AVT"]
[null,null,null,null,"HST-216BV1-AVT: 'HST216B-AVT: Geography'","HST216B-AVT: Geography","HST-216BV1-AVT"]
[null,null,null,null,"HST-216BVS1-AVT: 'HST216BS-AVT: Geography'","HST216BS-AVT: Geography","HST-216BVS1-AVT"]
[null,null,null,null,"HST-222AV1-AVT: 'HST222A-AVT: Contemporary World Issues'","HST222A-AVT: Contemporary World Issues","HST-222AV1-AVT"]
[null,null,null,null,"HST-222BV1-AVT: 'HST222B-AVT: Contemporary World Issues'","HST222B-AVT: Contemporary World Issues","HST-222BV1-AVT"]
[null,null,null,null,"HST-302ABLV1-K: 'HST302A-BL: U.S. History'","HST302A-BL: U.S. History","HST-302ABLV1-K"]
[null,null,null,null,"HST-302AV1-K: 'HST302A:   U.S. History'","HST302A:   U.S. History","HST-302AV1-K"]
[null,null,null,null,"HST-302AVS1-K: 'HST302AS: US History'","HST302AS: US History","HST-302AVS1-K"]
[null,null,null,null,"HST-302AXV1-K: 'HST302AX: U.S. History'","HST302AX: U.S. History","HST-302AXV1-K"]
[null,null,null,null,"HST-302BBLV1-K: 'HST302B-BL: U.S. History'","HST302B-BL: U.S. History","HST-302BBLV1-K"]
[null,null,null,null,"HST-302BV1-K: 'HST302B:   U.S. History'","HST302B:   U.S. History","HST-302BV1-K"]
[null,null,null,null,"HST-302BVS1-K: 'HST302BS: US History'","HST302BS: US History","HST-302BVS1-K"]
[null,null,null,null,"HST-302BXV1-K: 'HST302BX: U.S. History'","HST302BX: U.S. History","HST-302BXV1-K"]
[null,null,null,null,"HST-303ABLV1-K: 'HST303A-BL: U.S. History'","HST303A-BL: U.S. History","HST-303ABLV1-K"]
[null,null,null,null,"HST-303AV1-K: 'HST303A:   U.S. History'","HST303A:   U.S. History","HST-303AV1-K"]
[null,null,null,null,"HST-303AXV1-K: 'HST303AX: U.S. History'","HST303AX: U.S. History","HST-303AXV1-K"]
[null,null,null,null,"HST-303BBLV1-K: 'HST303B-BL: U.S. History'","HST303B-BL: U.S. History","HST-303BBLV1-K"]
[null,null,null,null,"HST-303BV1-K: 'HST303B:   U.S. History'","HST303B:   U.S. History","HST-303BV1-K"]
[null,null,null,null,"HST-303B-V1-K: 'HST303B: U.S. History*'","HST303B: U.S. History*","HST-303B-V1-K"]
[null,null,null,null,"HST-303BXV1-K: 'HST303BX: U.S. History'","HST303BX: U.S. History","HST-303BXV1-K"]
[null,null,null,null,"HST-304ABLV1-K: 'HST304A-BL: Honors U.S. History'","HST304A-BL: Honors U.S. History","HST-304ABLV1-K"]
[null,null,null,null,"HST-304AV1-K: 'HST304A:   Honors U.S. History'","HST304A:   Honors U.S. History","HST-304AV1-K"]
[null,null,null,null,"HST-304AVS1-K: 'HST304A:   Honors U.S. History (Summer)'","HST304A:   Honors U.S. History (Summer)","HST-304AVS1-K"]
[null,null,null,null,"HST-304AXV1-K: 'HST304AX: Honors U.S. History'","HST304AX: Honors U.S. History","HST-304AXV1-K"]
[null,null,null,null,"HST-304BBLV1-K: 'HST304B-BL: Honors U.S. History'","HST304B-BL: Honors U.S. History","HST-304BBLV1-K"]
[null,null,null,null,"HST-304BV1-K: 'HST304B:   Honors U.S. History'","HST304B:   Honors U.S. History","HST-304BV1-K"]
[null,null,null,null,"HST-304BVS1-K: 'HST304B:   Honors U.S. History (Summer)'","HST304B:   Honors U.S. History (Summer)","HST-304BVS1-K"]
[null,null,null,null,"HST-304BXV1-K: 'HST304BX: Honors U.S. History'","HST304BX: Honors U.S. History","HST-304BXV1-K"]
[null,null,null,null,"HST-306AV1-AVT: 'HST306A-AVT: American History'","HST306A-AVT: American History","HST-306AV1-AVT"]
[null,null,null,null,{"$f":"CONCATENATE(G2050,\": '\",F2050,\"'\")","v":"HST-306AV1-K: 'HST306A: U.S. History'"},"HST306A: U.S. History","HST-306AV1-K"]
[null,null,null,null,"HST-306AVG1-K: 'HST306AG: U.S. History'","HST306AG: U.S. History","HST-306AVG1-K"]
[null,null,null,null,"HST-306AVS1-AVT: 'HST306AS-AVT: American History'","HST306AS-AVT: American History","HST-306AVS1-AVT"]
[null,null,null,null,"HST-306AVS1-K: 'HST306AS:   U.S. History'","HST306AS:   U.S. History","HST-306AVS1-K"]
[null,null,null,null,"HST-306AVSG1-K: 'HST306ASG:   U.S. History'","HST306ASG:   U.S. History","HST-306AVSG1-K"]
[null,null,null,null,"HST-306BV1-AVT: 'HST306B-AVT: American History'","HST306B-AVT: American History","HST-306BV1-AVT"]
[null,null,null,null,"HST-306BV1-K: 'HST306B: U.S. History'","HST306B: U.S. History","HST-306BV1-K"]
[null,null,null,null,"HST-306BVG1-K: 'HST306BG: U.S. History'","HST306BG: U.S. History","HST-306BVG1-K"]
[null,null,null,null,"HST-306BVS1-AVT: 'HST306BS-AVT: American History'","HST306BS-AVT: American History","HST-306BVS1-AVT"]
[null,null,null,null,"HST-306BVS1-K: 'HST306BS:   U.S. History'","HST306BS:   U.S. History","HST-306BVS1-K"]
[null,null,null,null,"HST-306BVSG1-K: 'HST306BSG:   U.S. History'","HST306BSG:   U.S. History","HST-306BVSG1-K"]
[null,null,null,null,"HST-312AV1-K: 'HST312A:  Modern U.S. History'","HST312A:  Modern U.S. History","HST-312AV1-K"]
[null,null,null,null,"HST-312AXV1-K: 'HST312AX: Modern U.S. History'","HST312AX: Modern U.S. History","HST-312AXV1-K"]
[null,null,null,null,"HST-312BV1-K: 'HST312B:  Modern U.S. History'","HST312B:  Modern U.S. History","HST-312BV1-K"]
[null,null,null,null,"HST-312BXV1-K: 'HST312BX: Modern U.S. History'","HST312BX: Modern U.S. History","HST-312BXV1-K"]
[null,null,null,null,"HST-313AV1-K: 'HST313A:  Modern U.S. History'","HST313A:  Modern U.S. History","HST-313AV1-K"]
[null,null,null,null,"HST-313AV1TX-K: 'HST313A: Modern U.S. History - TX'","HST313A: Modern U.S. History - TX","HST-313AV1TX-K"]
[null,null,null,null,"HST-313AXV1-K: 'HST313AX: Modern U.S. History'","HST313AX: Modern U.S. History","HST-313AXV1-K"]
[null,null,null,null,"HST-313BV1-K: 'HST313B:  Modern U.S. History'","HST313B:  Modern U.S. History","HST-313BV1-K"]
[null,null,null,null,"HST-313BV1TX-K: 'HST313B: Modern U.S. History - TX'","HST313B: Modern U.S. History - TX","HST-313BV1TX-K"]
[null,null,null,null,"HST-313BXV1-K: 'HST313BX: Modern U.S. History'","HST313BX: Modern U.S. History","HST-313BXV1-K"]
[null,null,null,null,"HST-314AV1-K: 'HST314A:  Honors Modern U.S. History'","HST314A:  Honors Modern U.S. History","HST-314AV1-K"]
[null,null,null,null,"HST-314AV1TX-K: 'HST314A: Honors Modern US History - TX'","HST314A: Honors Modern US History - TX","HST-314AV1TX-K"]
[null,null,null,null,"HST-314AXV1-K: 'HST314AX: Honors Modern U.S. History'","HST314AX: Honors Modern U.S. History","HST-314AXV1-K"]
[null,null,null,null,"HST-314BV1-K: 'HST314B:  Honors Modern U.S. History'","HST314B:  Honors Modern U.S. History","HST-314BV1-K"]
[null,null,null,null,"HST-314BV1TX-K: 'HST314B: Honors Modern US History - TX'","HST314B: Honors Modern US History - TX","HST-314BV1TX-K"]
[null,null,null,null,"HST-314BXV1-K: 'HST314BX: Honors Modern U.S. History'","HST314BX: Honors Modern U.S. History","HST-314BXV1-K"]
[null,null,null,null,"HST-316AV1-K: 'HST316A: Modern U.S. History'","HST316A: Modern U.S. History","HST-316AV1-K"]
[null,null,null,null,"HST-316AVG1-K: 'HST316AG: Modern U.S. History'","HST316AG: Modern U.S. History","HST-316AVG1-K"]
[null,null,null,null,"HST-316AVS1-K: 'HST316AS:   Modern U.S. History'","HST316AS:   Modern U.S. History","HST-316AVS1-K"]
[null,null,null,null,"HST-316AVSG1-K: 'HST316ASG:   Modern U.S. History'","HST316ASG:   Modern U.S. History","HST-316AVSG1-K"]
[null,null,null,null,"HST-316BV1-K: 'HST316B: Modern U.S. History'","HST316B: Modern U.S. History","HST-316BV1-K"]
[null,null,null,null,"HST-316BVG1-K: 'HST316BG: Modern U.S. History'","HST316BG: Modern U.S. History","HST-316BVG1-K"]
[null,null,null,null,"HST-316BVS1-K: 'HST316BS:   Modern U.S. History'","HST316BS:   Modern U.S. History","HST-316BVS1-K"]
[null,null,null,null,"HST-316BVSG1-K: 'HST316BSG:   Modern U.S. History'","HST316BSG:   Modern U.S. History","HST-316BVSG1-K"]
[null,null,null,null,"HST-402BLV1-A: 'HST402-BL:  U.S. Government and Politics'","HST402-BL:  U.S. Government and Politics","HST-402BLV1-A"]
[null,null,null,null,"HST-402V1-A: 'HST402:   U.S. Government and Politics'","HST402:   U.S. Government and Politics","HST-402V1-A"]
[null,null,null,null,"HST-402V1ID-A: 'K12 HST403A: U.S. Government and Politics - IDVA'","K12 HST403A: U.S. Government and Politics - IDVA","HST-402V1ID-A"]
[null,null,null,null,"HST-402VS1-A: 'HST402S: U.S. Government and Politics'","HST402S: U.S. Government and Politics","HST-402VS1-A"]
[null,null,null,null,"HST-403BLV1-A: 'HST403-BL:  U.S. Government and Politics'","HST403-BL:  U.S. Government and Politics","HST-403BLV1-A"]
[null,null,null,null,"HST-403V1-A: 'HST403:   U.S. Government and Politics'","HST403:   U.S. Government and Politics","HST-403V1-A"]
[null,null,null,null,"HST-403V1ID-A: 'K12 HST403B: U.S. Government and Politics - IDVA'","K12 HST403B: U.S. Government and Politics - IDVA","HST-403V1ID-A"]
[null,null,null,null,"HST-403V1TX-A: 'HST403: U.S. Government and Politics - TX'","HST403: U.S. Government and Politics - TX","HST-403V1TX-A"]
[null,null,null,null,"HST-403VS1-A: 'HST403S: U.S. Government and Politics'","HST403S: U.S. Government and Politics","HST-403VS1-A"]
[null,null,null,null,"HST-406V1-AVT: 'HST406-AVT: American Government'","HST406-AVT: American Government","HST-406V1-AVT"]
[null,null,null,null,"HST-406V1NY-AVT: 'HST406-AVT-NY: American Government'","HST406-AVT-NY: American Government","HST-406V1NY-AVT"]
[null,null,null,null,"HST-406VS1-AVT: 'HST406S-AVT: American Government'","HST406S-AVT: American Government","HST-406VS1-AVT"]
[null,null,null,null,"HST-406VS1NY-AVT: 'HST406S-AVT-NY: American Government'","HST406S-AVT-NY: American Government","HST-406VS1NY-AVT"]
[null,null,null,null,"HST-412BLV1-A: 'HST412-BL:  U.S. and Global Economics'","HST412-BL:  U.S. and Global Economics","HST-412BLV1-A"]
[null,null,null,null,"HST-412V1-A: 'HST412:   U.S. and Global Economics'","HST412:   U.S. and Global Economics","HST-412V1-A"]
[null,null,null,null,"HST-412VS1-A: 'HST412S: US and Global Economics'","HST412S: US and Global Economics","HST-412VS1-A"]
[null,null,null,null,"HST-413BLV1-A: 'HST413-BL:  U.S. and Global Economics'","HST413-BL:  U.S. and Global Economics","HST-413BLV1-A"]
[null,null,null,null,"HST-413V1-A: 'HST413:   U.S. and Global Economics'","HST413:   U.S. and Global Economics","HST-413V1-A"]
[null,null,null,null,"HST-413V1TX-A: 'HST413: U.S. and Global Economics - TX'","HST413: U.S. and Global Economics - TX","HST-413V1TX-A"]
[null,null,null,null,"HST-416V1-AVT: 'HST416-AVT: Economics'","HST416-AVT: Economics","HST-416V1-AVT"]
[null,null,null,null,"HST-416VS1-AVT: 'HST416S-AVT: Economics'","HST416S-AVT: Economics","HST-416VS1-AVT"]
[null,null,null,null,"HST-423AV1-K: 'HST423A: U.S. Government'","HST423A: U.S. Government","HST-423AV1-K"]
[null,null,null,null,"HST-423BV1-K: 'HST423B: U.S. Government'","HST423B: U.S. Government","HST-423BV1-K"]
[null,null,null,null,"HST-424AV1-K: 'HST424A: Honors U.S. Government'","HST424A: Honors U.S. Government","HST-424AV1-K"]
[null,null,null,null,"HST-424BV1-K: 'HST424B: Honors U.S. Government'","HST424B: Honors U.S. Government","HST-424BV1-K"]
[null,null,null,null,"HST-500AB1TX-K: 'HST500B: AP(R) U.S. History - TX'","HST500B: AP(R) U.S. History - TX","HST-500AB1TX-K"]
[null,null,null,null,"HST-500AV1-A: 'HST500AR: AP(R) U.S. History'","HST500AR: AP(R) U.S. History","HST-500AV1-A"]
[null,null,null,null,"HST-500AV1TX-A: 'HST500A: AP(R) U.S. History - TX'","HST500A: AP(R) U.S. History - TX","HST-500AV1TX-A"]
[null,null,null,null,"HST-500AV1TX-K: 'HST500A: AP?  U.S. History - TX'","HST500A: AP?  U.S. History - TX","HST-500AV1TX-K"]
[null,null,null,null,{"$f":"CONCATENATE(G2114,\": '\",F2114,\"'\")","v":"HST-500AV2-A: 'HST500A: AP(R) U.S. History'"},"HST500A: AP(R) U.S. History","HST-500AV2-A"]
[null,null,null,null,"HST-500BV1-A: 'HST500BR: AP(R) U.S. History'","HST500BR: AP(R) U.S. History","HST-500BV1-A"]
[null,null,null,null,"HST-500BV1TX-A: 'HST500B: AP(R) U.S. History-TX'","HST500B: AP(R) U.S. History-TX","HST-500BV1TX-A"]
[null,null,null,null,"HST-500BV2-A: 'HST500B: AP(R) U.S. History'","HST500B: AP(R) U.S. History","HST-500BV2-A"]
[null,null,null,null,"HST-510V1-A: 'HST510:   AP(R) U.S. Government and Politics'","HST510:   AP(R) U.S. Government and Politics","HST-510V1-A"]
[null,null,null,null,"HST-520V1-A: 'HST520:   AP(R) Macroeconomics'","HST520:   AP(R) Macroeconomics","HST-520V1-A"]
[null,null,null,null,"HST-530V1-A: 'HST530:   AP(R) Microeconomics'","HST530:   AP(R) Microeconomics","HST-530V1-A"]
[null,null,null,null,"HST-540V1-A: 'HST540:   AP(R) Psychology'","HST540:   AP(R) Psychology","HST-540V1-A"]
[null,null,null,null,"HST-540V1TX-A: 'HST540: AP(R) Psychology - TX'","HST540: AP(R) Psychology - TX","HST-540V1TX-A"]
[null,null,null,null,"HST-550AV1-K: 'HST550A: AP(R) European History'","HST550A: AP(R) European History","HST-550AV1-K"]
[null,null,null,null,"HST-550BV1-K: 'HST550B: AP(R) European History'","HST550B: AP(R) European History","HST-550BV1-K"]
[null,null,null,null,"HST-560AV1-AVT: 'HST560A-AVT: AP(R) World History'","HST560A-AVT: AP(R) World History","HST-560AV1-AVT"]
[null,null,null,null,"HST-560AV1-K: 'HST560A: AP(R) World History'","HST560A: AP(R) World History","HST-560AV1-K"]
[null,null,null,null,"HST-560BV1-AVT: 'HST560B-AVT: AP(R) World History'","HST560B-AVT: AP(R) World History","HST-560BV1-AVT"]
[null,null,null,null,"HST-560BV1-K: 'HST560B: AP(R) World History'","HST560B: AP(R) World History","HST-560BV1-K"]
[null,null,null,null,"HT3TX: 'Health & Fitness 3 (Texas)'","Health & Fitness 3 (Texas)","HT3TX"]
[null,null,null,null,"HT4TX: 'Health & Fitness 4 (Texas)'","Health & Fitness 4 (Texas)","HT4TX"]
[null,null,null,null,"HT5TX: 'Health & Fitness 5 (Texas)'","Health & Fitness 5 (Texas)","HT5TX"]
[null,null,null,null,"HT6TX: 'Health & Fitness 6 (Texas)'","Health & Fitness 6 (Texas)","HT6TX"]
[null,null,null,null,"HT7IL: 'IL Health 7'","IL Health 7","HT7IL"]
[null,null,null,null,"HT8IL: 'IL Health 8'","IL Health 8","HT8IL"]
[null,null,null,null,"HT8TX: 'Health &Fitness 8 (texas)'","Health &Fitness 8 (texas)","HT8TX"]
[null,null,null,null,"HT8TXB: 'TX Health 8'","TX Health 8","HT8TXB"]
[null,null,null,null,"HT9F1: 'Health 9'","Health 9","HT9F1"]
[null,null,null,null,"HX3F1: 'History 3 2006'","History 3 2006","HX3F1"]
[null,null,null,null,"HX4F1: 'History 4 2006'","History 4 2006","HX4F1"]
[null,null,null,null,"HX6F1: 'American History Before 1865 (2006)'","American History Before 1865 (2006)","HX6F1"]
[null,null,null,null,"ICLMATH: 'I Can Learn Math'","I Can Learn Math","ICLMATH"]
[null,null,null,null,"ID1TP: 'Reading Skills Course: Grade 1'","Reading Skills Course: Grade 1","ID1TP"]
[null,null,null,null,"ID2TP: 'Reading Skills Course: Grade 2'","Reading Skills Course: Grade 2","ID2TP"]
[null,null,null,null,"ID3TP: 'Reading Skills Course: Grade 3'","Reading Skills Course: Grade 3","ID3TP"]
[null,null,null,null,"IDKTP: 'Reading Skills Course: Kindergarten'","Reading Skills Course: Kindergarten","IDKTP"]
[null,null,null,null,"ISMMM: 'Best Basic Math'","Best Basic Math","ISMMM"]
[null,null,null,null,"ISMRR: 'Math Advancer'","Math Advancer","ISMRR"]
[null,null,null,null,"ISPSL: 'Math Problem Insight'","Math Problem Insight","ISPSL"]
[null,null,null,null,"LA-101AG-K: 'Literary Analysis and Composition I Foundations - Sem 1'","Literary Analysis and Composition I Foundations - Sem 1","LA-101AG-K"]
[null,null,null,null,"LA-101BG-K: 'Literary Analysis and Composition I Foundations - Sem 2'","Literary Analysis and Composition I Foundations - Sem 2","LA-101BG-K"]
[null,null,null,null,"LA-151AG-K: 'Literary Analysis and Composition I - Sem 1'","Literary Analysis and Composition I - Sem 1","LA-151AG-K"]
[null,null,null,null,"LA-151BG-K: 'Literary Analysis and Composition I - Sem 2'","Literary Analysis and Composition I - Sem 2","LA-151BG-K"]
[null,null,null,null,"LA1AS: 'SES Reading Level 1A'","SES Reading Level 1A","LA1AS"]
[null,null,null,null,"LA1BS: 'SES Reading Level 1B'","SES Reading Level 1B","LA1BS"]
[null,null,null,null,"LA1CS: 'SES Reading Level 1C'","SES Reading Level 1C","LA1CS"]
[null,null,null,null,"LA1F1: 'Language Arts 1'","Language Arts 1","LA1F1"]
[null,null,null,null,"LA-201AG-V: 'Everyday Language and Literature - Sem 1'","Everyday Language and Literature - Sem 1","LA-201AG-V"]
[null,null,null,null,"LA-201BG-V: 'Everyday Language and Literature - Sem 2'","Everyday Language and Literature - Sem 2","LA-201BG-V"]
[null,null,null,null,"LA-251AG-K: 'Literary Analysis and Composition II - Sem 1'","Literary Analysis and Composition II - Sem 1","LA-251AG-K"]
[null,null,null,null,"LA-251BG-K: 'Literary Analysis and Composition II - Sem 2'","Literary Analysis and Composition II - Sem 2","LA-251BG-K"]
[null,null,null,null,"LA2F1: 'Language Arts 2'","Language Arts 2","LA2F1"]
[null,null,null,null,"LA2SS: 'SES Reading Level 2'","SES Reading Level 2","LA2SS"]
[null,null,null,null,"LA-301AG-V: 'American Literature and Language - Sem 1'","American Literature and Language - Sem 1","LA-301AG-V"]
[null,null,null,null,"LA-301BG-V: 'American Literature and Language - Sem 2'","American Literature and Language - Sem 2","LA-301BG-V"]
[null,null,null,null,"LA-351AG-C: 'American Literature - Sem 1'","American Literature - Sem 1","LA-351AG-C"]
[null,null,null,null,"LA-351BG-C: 'American Literature - Sem 2'","American Literature - Sem 2","LA-351BG-C"]
[null,null,null,null,"LA3SS: 'SES Reading Level 3'","SES Reading Level 3","LA3SS"]
[null,null,null,null,"LA-401AG-V: 'World Literature and Language - Sem 1'","World Literature and Language - Sem 1","LA-401AG-V"]
[null,null,null,null,"LA-401BG-V: 'World Literature and Language - Sem 2'","World Literature and Language - Sem 2","LA-401BG-V"]
[null,null,null,null,"LA-451AG-V: 'British Literature  - Sem 1'","British Literature  - Sem 1","LA-451AG-V"]
[null,null,null,null,"LA-451BG-V: 'British Literature  - Sem 2'","British Literature  - Sem 2","LA-451BG-V"]
[null,null,null,null,"LA4SS: 'SES Reading Level 4'","SES Reading Level 4","LA4SS"]
[null,null,null,null,"LA5SS: 'SES Reading Level 5'","SES Reading Level 5","LA5SS"]
[null,null,null,null,"LA-801AG-V: 'Journalism - Sem 1'","Journalism - Sem 1","LA-801AG-V"]
[null,null,null,null,"LA-801BG-V: 'Journalism - Sem 2'","Journalism - Sem 2","LA-801BG-V"]
[null,null,null,null,"LA-802G-C: 'Business Communication and Career Exploration'","Business Communication and Career Exploration","LA-802G-C"]
[null,null,null,null,"LA8F1: 'Literary Analysis and Composition*'","Literary Analysis and Composition*","LA8F1"]
[null,null,null,null,{"$f":"CONCATENATE(G2178,\": '\",F2178,\"'\")","v":"LA-BLS1H-A: 'British and World Literature - Sem 1'"},"British and World Literature - Sem 1","LA-BLS1H-A"]
[null,null,null,null,"LA-BLS2H-A: 'British and World Literature - Sem 2'","British and World Literature - Sem 2","LA-BLS2H-A"]
[null,null,null,null,"LA-E1F1H-A: 'Apex English I'","Apex English I","LA-E1F1H-A"]
[null,null,null,null,"LA-E1S1A-A: 'Apex AP Eng. Lit. & Comp. - Sem 1'","Apex AP Eng. Lit. & Comp. - Sem 1","LA-E1S1A-A"]
[null,null,null,null,"LA-E1S1H-A: 'Apex English I: Sem 1'","Apex English I: Sem 1","LA-E1S1H-A"]
[null,null,null,null,"LA-E1S2A-A: 'Apex AP Eng. Lit. & Comp. - Sem 2'","Apex AP Eng. Lit. & Comp. - Sem 2","LA-E1S2A-A"]
[null,null,null,null,"LA-E1S2H-A: 'Apex English I: Sem 2'","Apex English I: Sem 2","LA-E1S2H-A"]
[null,null,null,null,"LA-E2F1H-A: 'Apex English II'","Apex English II","LA-E2F1H-A"]
[null,null,null,null,"LA-E2S1H-A: 'Apex English II: Sem 1'","Apex English II: Sem 1","LA-E2S1H-A"]
[null,null,null,null,"LA-E2S2H-A: 'Apex English II: Sem 2'","Apex English II: Sem 2","LA-E2S2H-A"]
[null,null,null,null,"LA-E3S1H-A: 'Apex: English III: American Literature Sem 1'","Apex: English III: American Literature Sem 1","LA-E3S1H-A"]
[null,null,null,null,"LA-E3S2H-A: 'Apex: English III: American Literature Sem 2'","Apex: English III: American Literature Sem 2","LA-E3S2H-A"]
[null,null,null,null,"LA-ELS1A-A: 'Apex: AP® English Language and Composition Sem 1'","Apex: AP® English Language and Composition Sem 1","LA-ELS1A-A"]
[null,null,null,null,"LA-ELS2A-A: 'Apex: AP® English Language and Composition Sem 2'","Apex: AP® English Language and Composition Sem 2","LA-ELS2A-A"]
[null,null,null,null,"LAKF1: 'Language Arts K'","Language Arts K","LAKF1"]
[null,null,null,null,"LA-LAS1H-K: 'High School: Literary Analysis and Composition I Sem 1'","High School: Literary Analysis and Composition I Sem 1","LA-LAS1H-K"]
[null,null,null,null,"LA-LAS2H-K: 'High School: Literary Analysis and Composition I Sem 2'","High School: Literary Analysis and Composition I Sem 2","LA-LAS2H-K"]
[null,null,null,null,"LFSHI: 'Life Skills: History'","Life Skills: History","LFSHI"]
[null,null,null,null,"LFSLA: 'Life Skills: Language Arts'","Life Skills: Language Arts","LFSLA"]
[null,null,null,null,"LFSMA: 'Life Skills: Math'","Life Skills: Math","LFSMA"]
[null,null,null,null,"LFSSC: 'Life Skills: Science'","Life Skills: Science","LFSSC"]
[null,null,null,null,"LI3F1: 'Literature 3 (v1)'","Literature 3 (v1)","LI3F1"]
[null,null,null,null,"LI3F1B: 'Literature 3'","Literature 3","LI3F1B"]
[null,null,null,null,"LI4F1: 'Literature 4 (v1)'","Literature 4 (v1)","LI4F1"]
[null,null,null,null,"LI4F1B: 'Literature 4 SY2011'","Literature 4 SY2011","LI4F1B"]
[null,null,null,null,"LI4F1C: 'Literature 4 Fall12'","Literature 4 Fall12","LI4F1C"]
[null,null,null,null,"LI4F1D: 'Literature 4*'","Literature 4*","LI4F1D"]
[null,null,null,null,"LI5F1: 'Literature 5 SY2011'","Literature 5 SY2011","LI5F1"]
[null,null,null,null,"LI5F1B: 'Literature 5 Fall12'","Literature 5 Fall12","LI5F1B"]
[null,null,null,null,"LI5F1C: 'Literature 5*'","Literature 5*","LI5F1C"]
[null,null,null,null,"LI6F1: 'Literature 6*'","Literature 6*","LI6F1"]
[null,null,null,null,"LI7F1: 'Literature 7*'","Literature 7*","LI7F1"]
[null,null,null,null,"LNMY1-AG-MIL: 'Latin Middle School 1 - AG*'","Latin Middle School 1 - AG*","LNMY1-AG-MIL"]
[null,null,null,null,"LNMY1-TG-V2-MIL: 'Latin Middle School 1 - TG**'","Latin Middle School 1 - TG**","LNMY1-TG-V2-MIL"]
[null,null,null,null,"LNMY2-TG-V2-MIL: 'Latin Middle School 2 - TG**'","Latin Middle School 2 - TG**","LNMY2-TG-V2-MIL"]
[null,null,null,null,"LS3F1: 'Language Skills 3 (v1)'","Language Skills 3 (v1)","LS3F1"]
[null,null,null,null,"LS3F1B: 'Language Skills 3'","Language Skills 3","LS3F1B"]
[null,null,null,null,"LS4F1: 'Language Skills 4 (v1)'","Language Skills 4 (v1)","LS4F1"]
[null,null,null,null,"LS4F1B: 'Language Skills 4*'","Language Skills 4*","LS4F1B"]
[null,null,null,null,"LS5F1: 'Language Skills 5 (v1)'","Language Skills 5 (v1)","LS5F1"]
[null,null,null,null,"LS5F1B: 'Language Skills 5*'","Language Skills 5*","LS5F1B"]
[null,null,null,null,"LS6F1: 'Language Skills 6*'","Language Skills 6*","LS6F1"]
[null,null,null,null,"LS7F1: 'Language Skills 7*'","Language Skills 7*","LS7F1"]
[null,null,null,null,"LX3F1: 'Literature 3 2006'","Literature 3 2006","LX3F1"]
[null,null,null,null,"MA-100AG-K: 'Pre-Algebra Foundations - Sem 1'","Pre-Algebra Foundations - Sem 1","MA-100AG-K"]
[null,null,null,null,"MA-100BG-K: 'Pre-Algebra Foundations - Sem 2'","Pre-Algebra Foundations - Sem 2","MA-100BG-K"]
[null,null,null,null,"MA-101AG-K: 'Pre-Algebra - Sem 1'","Pre-Algebra - Sem 1","MA-101AG-K"]
[null,null,null,null,"MA-101BG-K: 'Pre-Algebra - Sem 2'","Pre-Algebra - Sem 2","MA-101BG-K"]
[null,null,null,null,"MA-102AG-C: 'Math Foundations - Sem 1'","Math Foundations - Sem 1","MA-102AG-C"]
[null,null,null,null,"MA-102BG-C: 'Math Foundations - Sem 2'","Math Foundations - Sem 2","MA-102BG-C"]
[null,null,null,null,"MA-151AG-K: 'Algebra I - Sem 1'","Algebra I - Sem 1","MA-151AG-K"]
[null,null,null,null,"MA-151BG-K: 'Algebra I - Sem 2'","Algebra I - Sem 2","MA-151BG-K"]
[null,null,null,null,"MA1F1: 'Math 1'","Math 1","MA1F1"]
[null,null,null,null,"MA1F2: 'Math 1 (Sem2), 2 (Sem1)'","Math 1 (Sem2), 2 (Sem1)","MA1F2"]
[null,null,null,null,"MA1S1: 'Math 1 (Semester 1)'","Math 1 (Semester 1)","MA1S1"]
[null,null,null,null,"MA1S2: 'Math 1 (Semester 2)'","Math 1 (Semester 2)","MA1S2"]
[null,null,null,null,"MA-251AG-K: 'Geometry - Sem 1'","Geometry - Sem 1","MA-251AG-K"]
[null,null,null,null,"MA-251BG-K: 'Geometry - Sem 2'","Geometry - Sem 2","MA-251BG-K"]
[null,null,null,null,"MA2AZ: 'AZ Math 2'","AZ Math 2","MA2AZ"]
[null,null,null,null,"MA2CA: 'CA Math 2'","CA Math 2","MA2CA"]
[null,null,null,null,"MA2F1: 'Math 2'","Math 2","MA2F1"]
[null,null,null,null,"MA2F2: 'Math 2 (Sem2), 3 (Sem1)'","Math 2 (Sem2), 3 (Sem1)","MA2F2"]
[null,null,null,null,"MA2IL: 'IL Math 2'","IL Math 2","MA2IL"]
[null,null,null,null,"MA2S1: 'Math 2 (Semester 1)'","Math 2 (Semester 1)","MA2S1"]
[null,null,null,null,{"$f":"CONCATENATE(G2242,\": '\",F2242,\"'\")","v":"MA2S2: 'Math 2 (Semester 2)'"},"Math 2 (Semester 2)","MA2S2"]
[null,null,null,null,"MA-351AG-C: 'Algebra II - Sem 1'","Algebra II - Sem 1","MA-351AG-C"]
[null,null,null,null,"MA-351AG-K: 'Algebra Foundations - Sem 1'","Algebra Foundations - Sem 1","MA-351AG-K"]
[null,null,null,null,"MA-351BG-C: 'Algebra II - Sem 2'","Algebra II - Sem 2","MA-351BG-C"]
[null,null,null,null,"MA-351BG-K: 'Algebra Foundations - Sem 2'","Algebra Foundations - Sem 2","MA-351BG-K"]
[null,null,null,null,"MA3AR: 'AR Math 3'","AR Math 3","MA3AR"]
[null,null,null,null,"MA3AZ: 'AZ Math 3'","AZ Math 3","MA3AZ"]
[null,null,null,null,"MA3CA: 'CA Math 3'","CA Math 3","MA3CA"]
[null,null,null,null,"MA3CO: 'CO Math 3 2006'","CO Math 3 2006","MA3CO"]
[null,null,null,null,"MA3CO2: 'CO Math 3'","CO Math 3","MA3CO2"]
[null,null,null,null,"MA3F1: 'Math 3'","Math 3","MA3F1"]
[null,null,null,null,"MA3F2: 'Math 3 (Sem2), 4 (Sem1)'","Math 3 (Sem2), 4 (Sem1)","MA3F2"]
[null,null,null,null,"MA3FL: 'FL Math 3'","FL Math 3","MA3FL"]
[null,null,null,null,"MA3ID: 'ID Math 3'","ID Math 3","MA3ID"]
[null,null,null,null,"MA3IL: 'IL Math 3'","IL Math 3","MA3IL"]
[null,null,null,null,"MA3PA: 'PA Math 3'","PA Math 3","MA3PA"]
[null,null,null,null,"MA3S1: 'Math 3 (Semester 1)'","Math 3 (Semester 1)","MA3S1"]
[null,null,null,null,"MA3S2: 'Math 3 (Semester 2)'","Math 3 (Semester 2)","MA3S2"]
[null,null,null,null,"MA-451AG-C: 'Pre-Calculus - Sem 1'","Pre-Calculus - Sem 1","MA-451AG-C"]
[null,null,null,null,"MA-451BG-C: 'Pre-Calculus - Sem 2'","Pre-Calculus - Sem 2","MA-451BG-C"]
[null,null,null,null,"MA4AR: 'AR Math 4'","AR Math 4","MA4AR"]
[null,null,null,null,"MA4AZ: 'AZ Math 4 2006'","AZ Math 4 2006","MA4AZ"]
[null,null,null,null,"MA4AZ2: 'AZ Math 4'","AZ Math 4","MA4AZ2"]
[null,null,null,null,"MA4CAPA: 'California Math 4A'","California Math 4A","MA4CAPA"]
[null,null,null,null,"MA4CAPB: 'California Math 4B'","California Math 4B","MA4CAPB"]
[null,null,null,null,"MA4CO: 'CO Math 4'","CO Math 4","MA4CO"]
[null,null,null,null,"MA4F1: 'Math 4'","Math 4","MA4F1"]
[null,null,null,null,"MA4F2: 'Math 4 (Sem2), 5 (Sem1)'","Math 4 (Sem2), 5 (Sem1)","MA4F2"]
[null,null,null,null,"MA4FA: 'CA Math 4'","CA Math 4","MA4FA"]
[null,null,null,null,"MA4FB: 'PA Math 5'","PA Math 5","MA4FB"]
[null,null,null,null,"MA4FL: 'FL Math 4'","FL Math 4","MA4FL"]
[null,null,null,null,"MA4GAPA: 'Math 4A2'","Math 4A2","MA4GAPA"]
[null,null,null,null,"MA4GAPB: 'Math 4B2'","Math 4B2","MA4GAPB"]
[null,null,null,null,"MA4ID: 'ID Math 4 2006'","ID Math 4 2006","MA4ID"]
[null,null,null,null,"MA4ID2: 'ID Math 4'","ID Math 4","MA4ID2"]
[null,null,null,null,"MA4IDPA: 'Idaho Math 4A'","Idaho Math 4A","MA4IDPA"]
[null,null,null,null,"MA4IDPB: 'Idaho Math 4B'","Idaho Math 4B","MA4IDPB"]
[null,null,null,null,"MA4IL: 'IL Math 4'","IL Math 4","MA4IL"]
[null,null,null,null,"MA4OH: 'OH Math 4 2006'","OH Math 4 2006","MA4OH"]
[null,null,null,null,"MA4OH2: 'OH Math 4'","OH Math 4","MA4OH2"]
[null,null,null,null,"MA4OHPA: 'Ohio Math 4A'","Ohio Math 4A","MA4OHPA"]
[null,null,null,null,"MA4OHPB: 'Ohio Math 4B'","Ohio Math 4B","MA4OHPB"]
[null,null,null,null,"MA4PA: 'PA Math 4'","PA Math 4","MA4PA"]
[null,null,null,null,"MA4S1: 'Math 4 (Semester 1)'","Math 4 (Semester 1)","MA4S1"]
[null,null,null,null,"MA4S2: 'Math 4 (Semester 2)'","Math 4 (Semester 2)","MA4S2"]
[null,null,null,null,"MA4TX: 'TX Math 4'","TX Math 4","MA4TX"]
[null,null,null,null,"MA4WA: 'WA Math 4'","WA Math 4","MA4WA"]
[null,null,null,null,"MA4WAPA1: 'Washington Math 4A'","Washington Math 4A","MA4WAPA1"]
[null,null,null,null,"MA4WAPB1: 'Washington Math 4B'","Washington Math 4B","MA4WAPB1"]
[null,null,null,null,"MA5AZ: 'AZ Math 5 2006'","AZ Math 5 2006","MA5AZ"]
[null,null,null,null,"MA5AZ2: 'AZ Math 5'","AZ Math 5","MA5AZ2"]
[null,null,null,null,"MA5CA: 'CA Math 5'","CA Math 5","MA5CA"]
[null,null,null,null,"MA5CO: 'CO Math 5 2006'","CO Math 5 2006","MA5CO"]
[null,null,null,null,"MA5CO2: 'CO Math 5'","CO Math 5","MA5CO2"]
[null,null,null,null,"MA5F1: 'Math 5'","Math 5","MA5F1"]
[null,null,null,null,"MA5F2: 'Math 5 (Sem2), 6 (Sem1)'","Math 5 (Sem2), 6 (Sem1)","MA5F2"]
[null,null,null,null,"MA5ID: 'ID Math 5 2006'","ID Math 5 2006","MA5ID"]
[null,null,null,null,"MA5ID2: 'ID Math 5'","ID Math 5","MA5ID2"]
[null,null,null,null,"MA5IL: 'IL Math 5'","IL Math 5","MA5IL"]
[null,null,null,null,"MA5OH: 'OH Math 5 2006'","OH Math 5 2006","MA5OH"]
[null,null,null,null,"MA5OH2: 'OH Math 5'","OH Math 5","MA5OH2"]
[null,null,null,null,"MA5S1: 'Math 5 (Semester 1)'","Math 5 (Semester 1)","MA5S1"]
[null,null,null,null,"MA5S2: 'Math 5 (Semester 2)'","Math 5 (Semester 2)","MA5S2"]
[null,null,null,null,"MA5TX: 'TX Math 5'","TX Math 5","MA5TX"]
[null,null,null,null,{"$f":"CONCATENATE(G2306,\": '\",F2306,\"'\")","v":"MA5WA: 'WA Math 5'"},"WA Math 5","MA5WA"]
[null,null,null,null,"MA6AR: 'AR Pre-Algebra A'","AR Pre-Algebra A","MA6AR"]
[null,null,null,null,"MA6AZ: 'AZ Pre-Algebra A'","AZ Pre-Algebra A","MA6AZ"]
[null,null,null,null,"MA6CA: 'CA Pre-Algebra A'","CA Pre-Algebra A","MA6CA"]
[null,null,null,null,"MA6CO: 'CO Pre-Algebra A'","CO Pre-Algebra A","MA6CO"]
[null,null,null,null,"MA6F1: 'Pre-Algebra A'","Pre-Algebra A","MA6F1"]
[null,null,null,null,"MA6F2: 'Pre Algebra A (Sem2), B (Sem1)'","Pre Algebra A (Sem2), B (Sem1)","MA6F2"]
[null,null,null,null,"MA6GA: 'GA Pre-Algebra A'","GA Pre-Algebra A","MA6GA"]
[null,null,null,null,"MA6ID: 'ID Pre Algebra A 2006'","ID Pre Algebra A 2006","MA6ID"]
[null,null,null,null,"MA6ID2: 'ID Pre-Algebra A'","ID Pre-Algebra A","MA6ID2"]
[null,null,null,null,"MA6PA: 'PA Pre-Algebra A'","PA Pre-Algebra A","MA6PA"]
[null,null,null,null,"MA6S1: 'Pre-Algebra A (Semester 1)'","Pre-Algebra A (Semester 1)","MA6S1"]
[null,null,null,null,"MA6S2: 'Pre-Algebra A (Semester 2)'","Pre-Algebra A (Semester 2)","MA6S2"]
[null,null,null,null,"MA6WA: 'WA Pre-Algebra A'","WA Pre-Algebra A","MA6WA"]
[null,null,null,null,"MA7AR: 'AR Pre-Algebra B'","AR Pre-Algebra B","MA7AR"]
[null,null,null,null,"MA7AZ: 'AZ Pre-Algebra B'","AZ Pre-Algebra B","MA7AZ"]
[null,null,null,null,"MA7CA: 'CA Pre-Algebra B'","CA Pre-Algebra B","MA7CA"]
[null,null,null,null,"MA7CO: 'CO Pre-Algebra B'","CO Pre-Algebra B","MA7CO"]
[null,null,null,null,"MA7F1: 'Pre-Algebra B'","Pre-Algebra B","MA7F1"]
[null,null,null,null,"MA7F2: 'Pre-Algebra B (Sem2), 1 (Sem1)'","Pre-Algebra B (Sem2), 1 (Sem1)","MA7F2"]
[null,null,null,null,"MA7ID: 'ID Pre-Algebra B'","ID Pre-Algebra B","MA7ID"]
[null,null,null,null,"MA7S1: 'Pre-Algebra B (Semester 1)'","Pre-Algebra B (Semester 1)","MA7S1"]
[null,null,null,null,"MA7S2: 'Pre-Algebra B (Semester 2)'","Pre-Algebra B (Semester 2)","MA7S2"]
[null,null,null,null,"MA7TX: 'TX Math 7'","TX Math 7","MA7TX"]
[null,null,null,null,"MA7WA: 'WA Pre-Algebra B'","WA Pre-Algebra B","MA7WA"]
[null,null,null,null,"MA-801G-C: 'Business and Consumer Math'","Business and Consumer Math","MA-801G-C"]
[null,null,null,null,"MA-802G-C: 'Personal Finance'","Personal Finance","MA-802G-C"]
[null,null,null,null,"MA8AR: 'AR Math 8'","AR Math 8","MA8AR"]
[null,null,null,null,"MA8AZ: 'AZ Math 8'","AZ Math 8","MA8AZ"]
[null,null,null,null,"MA8AZ2: 'AZ Algebra 1'","AZ Algebra 1","MA8AZ2"]
[null,null,null,null,"MA8CO: 'CO Math 8'","CO Math 8","MA8CO"]
[null,null,null,null,"MA8F1: 'Algebra 1'","Algebra 1","MA8F1"]
[null,null,null,null,"MA8GA: 'GA Math 8*'","GA Math 8*","MA8GA"]
[null,null,null,null,"MA8GA2: 'GA Algebra 1'","GA Algebra 1","MA8GA2"]
[null,null,null,null,"MA8ID: 'ID Math 8'","ID Math 8","MA8ID"]
[null,null,null,null,"MA8S1: 'Algebra 1 (Semester 1)'","Algebra 1 (Semester 1)","MA8S1"]
[null,null,null,null,"MA8TX: 'TX Math 8'","TX Math 8","MA8TX"]
[null,null,null,null,"MA8WA: 'WA Math 8'","WA Math 8","MA8WA"]
[null,null,null,null,"MA-A1F1H-A: 'Apex Algebra 1'","Apex Algebra 1","MA-A1F1H-A"]
[null,null,null,null,"MA-A1S1H-A: 'Apex Algebra I - Sem 1'","Apex Algebra I - Sem 1","MA-A1S1H-A"]
[null,null,null,null,"MA-A1S1H-K: 'High School: Algebra I Sem 1'","High School: Algebra I Sem 1","MA-A1S1H-K"]
[null,null,null,null,"MA-A1S2H-A: 'Apex Algebra I - Sem 2'","Apex Algebra I - Sem 2","MA-A1S2H-A"]
[null,null,null,null,"MA-A1S2H-K: 'High School: Algebra I Sem 2'","High School: Algebra I Sem 2","MA-A1S2H-K"]
[null,null,null,null,"MA-A2S1H-A: 'Apex Algebra II - Sem 1'","Apex Algebra II - Sem 1","MA-A2S1H-A"]
[null,null,null,null,"MA-A2S1K-A: 'Apex: Algebra II Sem 1'","Apex: Algebra II Sem 1","MA-A2S1K-A"]
[null,null,null,null,"MA-A2S2H-A: 'Apex Algebra II - Sem 2'","Apex Algebra II - Sem 2","MA-A2S2H-A"]
[null,null,null,null,"MA-A2S2K-A: 'Apex: Algebra II Sem 2'","Apex: Algebra II Sem 2","MA-A2S2K-A"]
[null,null,null,null,"MA-ABS1H-K: 'High School: Pre-Algebra B Sem 1'","High School: Pre-Algebra B Sem 1","MA-ABS1H-K"]
[null,null,null,null,"MA-ABS2H-K: 'High School: Pre-Algebra B Sem 2'","High School: Pre-Algebra B Sem 2","MA-ABS2H-K"]
[null,null,null,null,"MAASS: 'SES Math Level A'","SES Math Level A","MAASS"]
[null,null,null,null,"MABSS: 'SES Math Level B'","SES Math Level B","MABSS"]
[null,null,null,null,"MA-CAS1A-A: 'Apex AP Calculus AB - Sem 1'","Apex AP Calculus AB - Sem 1","MA-CAS1A-A"]
[null,null,null,null,"MA-CAS2A-A: 'Apex AP Calculus AB - Sem 2'","Apex AP Calculus AB - Sem 2","MA-CAS2A-A"]
[null,null,null,null,"MACSS: 'SES Math Level C'","SES Math Level C","MACSS"]
[null,null,null,null,"MADSS: 'SES Math Level D'","SES Math Level D","MADSS"]
[null,null,null,null,"MA-ELMAH-K: 'K12 Classroom Elementary Math A'","K12 Classroom Elementary Math A","MA-ELMAH-K"]
[null,null,null,null,"MA-ELMBH-K: 'K12 Classroom Elementary Math B'","K12 Classroom Elementary Math B","MA-ELMBH-K"]
[null,null,null,null,"MA-ELMCH-K: 'K12 Classroom Elementary Math C'","K12 Classroom Elementary Math C","MA-ELMCH-K"]
[null,null,null,null,"MAESS: 'SES Math Level E'","SES Math Level E","MAESS"]
[null,null,null,null,"MAFSS: 'SES Math Level F'","SES Math Level F","MAFSS"]
[null,null,null,null,"MA-GEF1H-A: 'Apex Geometry'","Apex Geometry","MA-GEF1H-A"]
[null,null,null,null,"MA-GES1H-A: 'Apex Geometry - Sem 1'","Apex Geometry - Sem 1","MA-GES1H-A"]
[null,null,null,null,"MA-GES1H-K: 'High School: Geometry Sem 1'","High School: Geometry Sem 1","MA-GES1H-K"]
[null,null,null,null,"MA-GES2H-A: 'Apex Geometry - Sem 2'","Apex Geometry - Sem 2","MA-GES2H-A"]
[null,null,null,null,{"$f":"CONCATENATE(G2370,\": '\",F2370,\"'\")","v":"MA-GES2H-K: 'High School: Geometry Sem 2'"},"High School: Geometry Sem 2","MA-GES2H-K"]
[null,null,null,null,"MAGSS: 'SES Math Level G'","SES Math Level G","MAGSS"]
[null,null,null,null,"MAHSS: 'SES Math Level H'","SES Math Level H","MAHSS"]
[null,null,null,null,"MA-IAF1H-A: 'Apex Introductory Algebra'","Apex Introductory Algebra","MA-IAF1H-A"]
[null,null,null,null,"MA-IAS1H-A: 'Apex Introductory Algebra - Sem 1'","Apex Introductory Algebra - Sem 1","MA-IAS1H-A"]
[null,null,null,null,"MA-IAS2H-A: 'Apex Introductory Algebra - Sem 2'","Apex Introductory Algebra - Sem 2","MA-IAS2H-A"]
[null,null,null,null,"MAKF1: 'Math K'","Math K","MAKF1"]
[null,null,null,null,"MAKF2: 'Math K (Sem2), 1 (Sem1)'","Math K (Sem2), 1 (Sem1)","MAKF2"]
[null,null,null,null,"MAKS1: 'Math K (Semester 1)'","Math K (Semester 1)","MAKS1"]
[null,null,null,null,"MAKS2: 'Math K (Semester 2)'","Math K (Semester 2)","MAKS2"]
[null,null,null,null,"MA-MFF1H-A: 'Apex Math Fundamentals'","Apex Math Fundamentals","MA-MFF1H-A"]
[null,null,null,null,"MA-MFS1H-A: 'Apex Math Fundamentals - Sem 1'","Apex Math Fundamentals - Sem 1","MA-MFS1H-A"]
[null,null,null,null,"MA-MFS2H-A: 'Apex Math Fundamentals - Sem 2'","Apex Math Fundamentals - Sem 2","MA-MFS2H-A"]
[null,null,null,null,"MA-PCS1H-A: 'Precalculus - Sem 1'","Precalculus - Sem 1","MA-PCS1H-A"]
[null,null,null,null,"MA-PCS2H-A: 'Precalculus - Sem 2'","Precalculus - Sem 2","MA-PCS2H-A"]
[null,null,null,null,"MA-STS1A-A: 'Apex AP Statistics - Sem 1'","Apex AP Statistics - Sem 1","MA-STS1A-A"]
[null,null,null,null,"MA-STS2A-A: 'Apex AP Statistics - Sem 2'","Apex AP Statistics - Sem 2","MA-STS2A-A"]
[null,null,null,null,"MTH-001AV2-APL: 'MTH001A-APL: Math Foundations I'","MTH001A-APL: Math Foundations I","MTH-001AV2-APL"]
[null,null,null,null,"MTH-001AVS2-APL: 'MTH001AS-APL: Math Foundations I'","MTH001AS-APL: Math Foundations I","MTH-001AVS2-APL"]
[null,null,null,null,"MTH-001BV2-APL: 'MTH001B-APL: Math Foundations I'","MTH001B-APL: Math Foundations I","MTH-001BV2-APL"]
[null,null,null,null,"MTH-001BVS2-APL: 'MTH001BS-APL: Math Foundations I'","MTH001BS-APL: Math Foundations I","MTH-001BVS2-APL"]
[null,null,null,null,"MTH-011AV2-APL: 'MTH011A-APL: Math Foundations II'","MTH011A-APL: Math Foundations II","MTH-011AV2-APL"]
[null,null,null,null,"MTH-011AVS2-APL: 'MTH011AS-APL: Math Foundations II'","MTH011AS-APL: Math Foundations II","MTH-011AVS2-APL"]
[null,null,null,null,"MTH-011BV2-APL: 'MTH011B-APL: Math Foundations II'","MTH011B-APL: Math Foundations II","MTH-011BV2-APL"]
[null,null,null,null,"MTH-011BVS2-APL: 'MTH011BS-APL: Math Foundations II'","MTH011BS-APL: Math Foundations II","MTH-011BVS2-APL"]
[null,null,null,null,"MTH-102AV1-C: 'MTH102A:   Math Foundations'","MTH102A:   Math Foundations","MTH-102AV1-C"]
[null,null,null,null,"MTH-102BV1-C: 'MTH102B:   Math Foundations'","MTH102B:   Math Foundations","MTH-102BV1-C"]
[null,null,null,null,"MTH-107AV1-K: 'MTH107A: Developmental Algebra'","MTH107A: Developmental Algebra","MTH-107AV1-K"]
[null,null,null,null,"MTH-107AXV1-K: 'MTH107AX: Developmental Algebra'","MTH107AX: Developmental Algebra","MTH-107AXV1-K"]
[null,null,null,null,"MTH-107BV1-K: 'MTH107B: Developmental Algebra'","MTH107B: Developmental Algebra","MTH-107BV1-K"]
[null,null,null,null,"MTH-107BXV1-K: 'MTH107BX: Developmental Algebra'","MTH107BX: Developmental Algebra","MTH-107BXV1-K"]
[null,null,null,null,"MTH-112AV1-K: 'MTH112A:   Pre-Algebra'","MTH112A:   Pre-Algebra","MTH-112AV1-K"]
[null,null,null,null,"MTH-112AVS1-K: 'MTH112A: Pre-Algebra (Summer)'","MTH112A: Pre-Algebra (Summer)","MTH-112AVS1-K"]
[null,null,null,null,"MTH-112AXV1-K: 'MTH112AX: Pre-Algebra'","MTH112AX: Pre-Algebra","MTH-112AXV1-K"]
[null,null,null,null,"MTH-112BV1-K: 'MTH112B:   Pre-Algebra'","MTH112B:   Pre-Algebra","MTH-112BV1-K"]
[null,null,null,null,"MTH-112BXV1-K: 'MTH112BX: Pre-Algebra'","MTH112BX: Pre-Algebra","MTH-112BXV1-K"]
[null,null,null,null,"MTH-113AV1-K: 'MTH113A:   Pre-Algebra'","MTH113A:   Pre-Algebra","MTH-113AV1-K"]
[null,null,null,null,"MTH-113AXV1-K: 'MTH113AX: Pre-Algebra'","MTH113AX: Pre-Algebra","MTH-113AXV1-K"]
[null,null,null,null,"MTH-113BV1-K: 'MTH113B:   Pre-Algebra'","MTH113B:   Pre-Algebra","MTH-113BV1-K"]
[null,null,null,null,"MTH-113BXV1-K: 'MTH113BX: Pre-Algebra'","MTH113BX: Pre-Algebra","MTH-113BXV1-K"]
[null,null,null,null,"MTH-116AV1-K: 'MTH116A: Pre-Algebra'","MTH116A: Pre-Algebra","MTH-116AV1-K"]
[null,null,null,null,"MTH-116AVG1-K: 'MTH116AG: Pre-Algebra'","MTH116AG: Pre-Algebra","MTH-116AVG1-K"]
[null,null,null,null,"MTH-116AVS1-K: 'MTH116AS:   Pre-Algebra'","MTH116AS:   Pre-Algebra","MTH-116AVS1-K"]
[null,null,null,null,"MTH-116AVSG1-K: 'MTH116ASG:   Pre-Algebra'","MTH116ASG:   Pre-Algebra","MTH-116AVSG1-K"]
[null,null,null,null,"MTH-116BV1-K: 'MTH116B: Pre-Algebra'","MTH116B: Pre-Algebra","MTH-116BV1-K"]
[null,null,null,null,"MTH-116BVG1-K: 'MTH116BG: Pre-Algebra'","MTH116BG: Pre-Algebra","MTH-116BVG1-K"]
[null,null,null,null,"MTH-116BVS1-K: 'MTH116BS:   Pre-Algebra'","MTH116BS:   Pre-Algebra","MTH-116BVS1-K"]
[null,null,null,null,"MTH-116BVSG1-K: 'MTH116BSG:   Pre-Algebra'","MTH116BSG:   Pre-Algebra","MTH-116BVSG1-K"]
[null,null,null,null,"MTH-122ABLV1-K: 'MTH122AR-BL: Algebra I'","MTH122AR-BL: Algebra I","MTH-122ABLV1-K"]
[null,null,null,null,"MTH-122ABLV2-K: 'MTH122A-BL: Algebra I'","MTH122A-BL: Algebra I","MTH-122ABLV2-K"]
[null,null,null,null,"MTH-122AV1ID-K: 'MTH122AR:  Algebra I - IDVA'","MTH122AR:  Algebra I - IDVA","MTH-122AV1ID-K"]
[null,null,null,null,"MTH-122AV1-K: 'MTH122AR: Algebra I'","MTH122AR: Algebra I","MTH-122AV1-K"]
[null,null,null,null,"MTH-122AV2ID-K: 'MTH122A:  Algebra I - IDVA'","MTH122A:  Algebra I - IDVA","MTH-122AV2ID-K"]
[null,null,null,null,"MTH-122AV2-K: 'MTH122A: Algebra I'","MTH122A: Algebra I","MTH-122AV2-K"]
[null,null,null,null,"MTH-122AVS1-K: 'MTH122ARS: Algebra I'","MTH122ARS: Algebra I","MTH-122AVS1-K"]
[null,null,null,null,"MTH-122AVS2-K: 'MTH122AS: Algebra I'","MTH122AS: Algebra I","MTH-122AVS2-K"]
[null,null,null,null,"MTH-122AXV1-K: 'MTH122AXR: Algebra I'","MTH122AXR: Algebra I","MTH-122AXV1-K"]
[null,null,null,null,"MTH-122AXV3-K: 'MTH122AX: Algebra I'","MTH122AX: Algebra I","MTH-122AXV3-K"]
[null,null,null,null,"MTH-122BBLV1-K: 'MTH122BR-BL: Algebra I'","MTH122BR-BL: Algebra I","MTH-122BBLV1-K"]
[null,null,null,null,"MTH-122BBLV2-K: 'MTH122B-BL: Algebra I'","MTH122B-BL: Algebra I","MTH-122BBLV2-K"]
[null,null,null,null,"MTH-122BV1AZ-K: 'MTH122B: Algebra I - AZ'","MTH122B: Algebra I - AZ","MTH-122BV1AZ-K"]
[null,null,null,null,"MTH-122BV1-K: 'MTH122BR: Algebra I'","MTH122BR: Algebra I","MTH-122BV1-K"]
[null,null,null,null,"MTH-122BV2-K: 'MTH122B: Algebra I'","MTH122B: Algebra I","MTH-122BV2-K"]
[null,null,null,null,"MTH-122BVS1-K: 'MTH122BRS: Algebra I'","MTH122BRS: Algebra I","MTH-122BVS1-K"]
[null,null,null,null,{"$f":"CONCATENATE(G2434,\": '\",F2434,\"'\")","v":"MTH-122BVS2-K: 'MTH122BS: Algebra I'"},"MTH122BS: Algebra I","MTH-122BVS2-K"]
[null,null,null,null,"MTH-122BXV1-K: 'MTH122BXR: Algebra I'","MTH122BXR: Algebra I","MTH-122BXV1-K"]
[null,null,null,null,"MTH-122BXV3-K: 'MTH122BX: Algebra I'","MTH122BX: Algebra I","MTH-122BXV3-K"]
[null,null,null,null,"MTH-123ABLV1-K: 'MTH123AR-BL: Algebra I'","MTH123AR-BL: Algebra I","MTH-123ABLV1-K"]
[null,null,null,null,"MTH-123ABLV2-K: 'MTH123A-BL: Algebra I'","MTH123A-BL: Algebra I","MTH-123ABLV2-K"]
[null,null,null,null,"MTH-123AV1-AVT: 'MTH123A-AVT: Algebra 1'","MTH123A-AVT: Algebra 1","MTH-123AV1-AVT"]
[null,null,null,null,"MTH-123AV1ID-K: 'MTH123AR:  Algebra I - IDVA'","MTH123AR:  Algebra I - IDVA","MTH-123AV1ID-K"]
[null,null,null,null,"MTH-123AV1-K: 'MTH123AR: Algebra I'","MTH123AR: Algebra I","MTH-123AV1-K"]
[null,null,null,null,"MTH-123AV2ID-K: 'MTH123A:  Algebra I - IDVA'","MTH123A:  Algebra I - IDVA","MTH-123AV2ID-K"]
[null,null,null,null,"MTH-123AV2-K: 'MTH123A: Algebra I'","MTH123A: Algebra I","MTH-123AV2-K"]
[null,null,null,null,"MTH-123AV2PA-K: 'MTH123A: Algebra I - AGORA'","MTH123A: Algebra I - AGORA","MTH-123AV2PA-K"]
[null,null,null,null,"MTH-123AXV1-K: 'MTH123AXR: Algebra I'","MTH123AXR: Algebra I","MTH-123AXV1-K"]
[null,null,null,null,"MTH-123AXV3-K: 'MTH123AX: Algebra I'","MTH123AX: Algebra I","MTH-123AXV3-K"]
[null,null,null,null,"MTH-123BBLV1-K: 'MTH123BR-BL: Algebra I'","MTH123BR-BL: Algebra I","MTH-123BBLV1-K"]
[null,null,null,null,"MTH-123BBLV2-K: 'MTH123B-BL: Algebra I'","MTH123B-BL: Algebra I","MTH-123BBLV2-K"]
[null,null,null,null,"MTH-123BV1-AVT: 'MTH123B-AVT: Algebra 1'","MTH123B-AVT: Algebra 1","MTH-123BV1-AVT"]
[null,null,null,null,"MTH-123BV1AZ-K: 'MTH123B: Algebra I - AZ'","MTH123B: Algebra I - AZ","MTH-123BV1AZ-K"]
[null,null,null,null,"MTH-123BV1-K: 'MTH123BR: Algebra I'","MTH123BR: Algebra I","MTH-123BV1-K"]
[null,null,null,null,"MTH-123BV2-K: 'MTH123B: Algebra I'","MTH123B: Algebra I","MTH-123BV2-K"]
[null,null,null,null,"MTH-123BV2PA-K: 'MTH123B: Algebra I - AGORA'","MTH123B: Algebra I - AGORA","MTH-123BV2PA-K"]
[null,null,null,null,"MTH-123BXV1-K: 'MTH123BXR: Algebra I'","MTH123BXR: Algebra I","MTH-123BXV1-K"]
[null,null,null,null,"MTH-123BXV3-K: 'MTH123BX: Algebra I'","MTH123BX: Algebra I","MTH-123BXV3-K"]
[null,null,null,null,"MTH-124ABLV1-K: 'MTH124AR-BL: Honors Algebra I'","MTH124AR-BL: Honors Algebra I","MTH-124ABLV1-K"]
[null,null,null,null,"MTH-124ABLV2-K: 'MTH124A-BL: Honors Algebra I'","MTH124A-BL: Honors Algebra I","MTH-124ABLV2-K"]
[null,null,null,null,"MTH-124AV1-K: 'MTH124AR: Honors Algebra I'","MTH124AR: Honors Algebra I","MTH-124AV1-K"]
[null,null,null,null,"MTH-124AV1PA-K: 'MTH124A: Algebra I - AGORA'","MTH124A: Algebra I - AGORA","MTH-124AV1PA-K"]
[null,null,null,null,"MTH-124AV2-K: 'MTH124A: Honors Algebra I'","MTH124A: Honors Algebra I","MTH-124AV2-K"]
[null,null,null,null,"MTH-124AXV1-K: 'MTH124AXR: Honors Algebra I'","MTH124AXR: Honors Algebra I","MTH-124AXV1-K"]
[null,null,null,null,"MTH-124AXV3-K: 'MTH124AX: Honors Algebra I'","MTH124AX: Honors Algebra I","MTH-124AXV3-K"]
[null,null,null,null,"MTH-124BBLV1-K: 'MTH124BR-BL: Honors Algebra I'","MTH124BR-BL: Honors Algebra I","MTH-124BBLV1-K"]
[null,null,null,null,"MTH-124BBLV2-K: 'MTH124B-BL: Honors Algebra I'","MTH124B-BL: Honors Algebra I","MTH-124BBLV2-K"]
[null,null,null,null,"MTH-124BV1AZ-K: 'MTH124B: Honors Algebra I - AZ'","MTH124B: Honors Algebra I - AZ","MTH-124BV1AZ-K"]
[null,null,null,null,"MTH-124BV1-K: 'MTH124BR: Honors Algebra I'","MTH124BR: Honors Algebra I","MTH-124BV1-K"]
[null,null,null,null,"MTH-124BV1PA-K: 'MTH124B: Algebra I - AGORA'","MTH124B: Algebra I - AGORA","MTH-124BV1PA-K"]
[null,null,null,null,"MTH-124BV2-K: 'MTH124B: Honors Algebra I'","MTH124B: Honors Algebra I","MTH-124BV2-K"]
[null,null,null,null,"MTH-124BXV1-K: 'MTH124BXR: Honors Algebra I'","MTH124BXR: Honors Algebra I","MTH-124BXV1-K"]
[null,null,null,null,"MTH-124BXV3-K: 'MTH124BX: Honors Algebra I'","MTH124BX: Honors Algebra I","MTH-124BXV3-K"]
[null,null,null,null,"MTH-126AV1-AVT: 'MTH126AR-AVT: Algebra I'","MTH126AR-AVT: Algebra I","MTH-126AV1-AVT"]
[null,null,null,null,"MTH-126AV1CA-AVT: 'MTH126A-AVT-CA: Algebra I'","MTH126A-AVT-CA: Algebra I","MTH-126AV1CA-AVT"]
[null,null,null,null,"MTH-126AV1-K: 'MTH126A: Algebra I'","MTH126A: Algebra I","MTH-126AV1-K"]
[null,null,null,null,"MTH-126AV1NY-AVT: 'MTH126A-AVT-NY: Algebra I'","MTH126A-AVT-NY: Algebra I","MTH-126AV1NY-AVT"]
[null,null,null,null,"MTH-126AV2-AVT: 'MTH126A-AVT: Algebra I'","MTH126A-AVT: Algebra I","MTH-126AV2-AVT"]
[null,null,null,null,"MTH-126AVG1-K: 'MTH126AG: Algebra I'","MTH126AG: Algebra I","MTH-126AVG1-K"]
[null,null,null,null,"MTH-126AVS1-AVT: 'MTH126ARS-AVT: Algebra I'","MTH126ARS-AVT: Algebra I","MTH-126AVS1-AVT"]
[null,null,null,null,"MTH-126AVS1CA-AVT: 'MTH126AS-AVT-CA: Algebra I'","MTH126AS-AVT-CA: Algebra I","MTH-126AVS1CA-AVT"]
[null,null,null,null,"MTH-126AVS1-K: 'MTH126AS:   Algebra I'","MTH126AS:   Algebra I","MTH-126AVS1-K"]
[null,null,null,null,"MTH-126AVS1NY-AVT: 'MTH126AS-AVT-NY: Algebra I'","MTH126AS-AVT-NY: Algebra I","MTH-126AVS1NY-AVT"]
[null,null,null,null,"MTH-126AVS2-AVT: 'MTH126AS-AVT: Algebra I'","MTH126AS-AVT: Algebra I","MTH-126AVS2-AVT"]
[null,null,null,null,"MTH-126AVSG1-K: 'MTH126ASG:   Algebra I'","MTH126ASG:   Algebra I","MTH-126AVSG1-K"]
[null,null,null,null,"MTH-126BV1-AVT: 'MTH126BR-AVT: Algebra I'","MTH126BR-AVT: Algebra I","MTH-126BV1-AVT"]
[null,null,null,null,"MTH-126BV1CA-AVT: 'MTH126B-AVT-CA: Algebra I'","MTH126B-AVT-CA: Algebra I","MTH-126BV1CA-AVT"]
[null,null,null,null,"MTH-126BV1-K: 'MTH126B: Algebra I'","MTH126B: Algebra I","MTH-126BV1-K"]
[null,null,null,null,"MTH-126BV1NY-AVT: 'MTH126B-AVT-NY: Algebra I'","MTH126B-AVT-NY: Algebra I","MTH-126BV1NY-AVT"]
[null,null,null,null,"MTH-126BV2-AVT: 'MTH126B-AVT: Algebra I'","MTH126B-AVT: Algebra I","MTH-126BV2-AVT"]
[null,null,null,null,"MTH-126BVG1AZ-K: 'MTH126BG: Algebra I - AZ'","MTH126BG: Algebra I - AZ","MTH-126BVG1AZ-K"]
[null,null,null,null,"MTH-126BVG1-K: 'MTH126BG: Algebra I'","MTH126BG: Algebra I","MTH-126BVG1-K"]
[null,null,null,null,"MTH-126BVS1-AVT: 'MTH126BRS-AVT: Algebra I'","MTH126BRS-AVT: Algebra I","MTH-126BVS1-AVT"]
[null,null,null,null,"MTH-126BVS1CA-AVT: 'MTH126BS-AVT-CA: Algebra I'","MTH126BS-AVT-CA: Algebra I","MTH-126BVS1CA-AVT"]
[null,null,null,null,"MTH-126BVS1-K: 'MTH126BS:   Algebra I'","MTH126BS:   Algebra I","MTH-126BVS1-K"]
[null,null,null,null,"MTH-126BVS1NY-AVT: 'MTH126BS-AVT-NY: Algebra I'","MTH126BS-AVT-NY: Algebra I","MTH-126BVS1NY-AVT"]
[null,null,null,null,"MTH-126BVS2-AVT: 'MTH126BS-AVT: Algebra I'","MTH126BS-AVT: Algebra I","MTH-126BVS2-AVT"]
[null,null,null,null,"MTH-126BVSG1-K: 'MTH126BSG:   Algebra I'","MTH126BSG:   Algebra I","MTH-126BVSG1-K"]
[null,null,null,null,"MTH-147AV1-K: 'MTH147A: Integrated Mathematics I'","MTH147A: Integrated Mathematics I","MTH-147AV1-K"]
[null,null,null,null,"MTH-147AVS1-K: 'MTH147AS: Integrated Mathematics I'","MTH147AS: Integrated Mathematics I","MTH-147AVS1-K"]
[null,null,null,null,{"$f":"CONCATENATE(G2498,\": '\",F2498,\"'\")","v":"MTH-147BV1-K: 'MTH147B: Integrated Mathematics I'"},"MTH147B: Integrated Mathematics I","MTH-147BV1-K"]
[null,null,null,null,"MTH-147BVS1-K: 'MTH147BS: Integrated Mathematics I'","MTH147BS: Integrated Mathematics I","MTH-147BVS1-K"]
[null,null,null,null,"MTH-202ABLV1-K: 'MTH202A-BL: Geometry'","MTH202A-BL: Geometry","MTH-202ABLV1-K"]
[null,null,null,null,"MTH-202AV1-K: 'MTH202A:   Geometry'","MTH202A:   Geometry","MTH-202AV1-K"]
[null,null,null,null,"MTH-202AV1TX-K: 'MTH202A: Geometry - TX'","MTH202A: Geometry - TX","MTH-202AV1TX-K"]
[null,null,null,null,"MTH-202AVS1-K: 'MTH202AS:   Geometry'","MTH202AS:   Geometry","MTH-202AVS1-K"]
[null,null,null,null,"MTH-202AXV1-K: 'MTH202AX: Geometry'","MTH202AX: Geometry","MTH-202AXV1-K"]
[null,null,null,null,"MTH-202BBLV1-K: 'MTH202B-BL: Geometry'","MTH202B-BL: Geometry","MTH-202BBLV1-K"]
[null,null,null,null,"MTH-202BV1-K: 'MTH202B:   Geometry'","MTH202B:   Geometry","MTH-202BV1-K"]
[null,null,null,null,"MTH-202BVS1-K: 'MTH202BS:   Geometry'","MTH202BS:   Geometry","MTH-202BVS1-K"]
[null,null,null,null,"MTH-202BXV1-K: 'MTH202BX: Geometry'","MTH202BX: Geometry","MTH-202BXV1-K"]
[null,null,null,null,"MTH-203ABLV1-K: 'MTH203A-BL: Geometry'","MTH203A-BL: Geometry","MTH-203ABLV1-K"]
[null,null,null,null,"MTH-203AV1-K: 'MTH203A:   Geometry'","MTH203A:   Geometry","MTH-203AV1-K"]
[null,null,null,null,"MTH-203AV1TX-K: 'MTH203A: Geometry - TX'","MTH203A: Geometry - TX","MTH-203AV1TX-K"]
[null,null,null,null,"MTH-203AVS1-K: 'MTH203A:   Geometry (Summer)'","MTH203A:   Geometry (Summer)","MTH-203AVS1-K"]
[null,null,null,null,"MTH-203AXV1-K: 'MTH203AX: Geometry'","MTH203AX: Geometry","MTH-203AXV1-K"]
[null,null,null,null,"MTH-203BBLV1-K: 'MTH203B-BL: Geometry'","MTH203B-BL: Geometry","MTH-203BBLV1-K"]
[null,null,null,null,"MTH-203BV1-K: 'MTH203B:   Geometry'","MTH203B:   Geometry","MTH-203BV1-K"]
[null,null,null,null,"MTH-203BVS1-K: 'MTH203B:   Geometry (Summer)'","MTH203B:   Geometry (Summer)","MTH-203BVS1-K"]
[null,null,null,null,"MTH-203BXV1-K: 'MTH203BX: Geometry'","MTH203BX: Geometry","MTH-203BXV1-K"]
[null,null,null,null,"MTH-204ABLV1-K: 'MTH204A-BL: Honors Geometry'","MTH204A-BL: Honors Geometry","MTH-204ABLV1-K"]
[null,null,null,null,"MTH-204AV1-K: 'MTH204A:   Honors Geometry'","MTH204A:   Honors Geometry","MTH-204AV1-K"]
[null,null,null,null,"MTH-204AV1TX-K: 'MTH204A: Honors Geometry - TX'","MTH204A: Honors Geometry - TX","MTH-204AV1TX-K"]
[null,null,null,null,"MTH-204AXV1-K: 'MTH204AX: Honors Geometry'","MTH204AX: Honors Geometry","MTH-204AXV1-K"]
[null,null,null,null,"MTH-204BBLV1-K: 'MTH204B-BL: Honors Geometry'","MTH204B-BL: Honors Geometry","MTH-204BBLV1-K"]
[null,null,null,null,"MTH-204BV1-K: 'MTH204B:  Honors Geometry'","MTH204B:  Honors Geometry","MTH-204BV1-K"]
[null,null,null,null,"MTH-204BXV1-K: 'MTH204BX: Honors Geometry'","MTH204BX: Honors Geometry","MTH-204BXV1-K"]
[null,null,null,null,"MTH-206AV1-AVT: 'MTH206A-AVT: Geometry'","MTH206A-AVT: Geometry","MTH-206AV1-AVT"]
[null,null,null,null,"MTH-206AV1CA-AVT: 'MTH206A-AVT-CA: Geometry'","MTH206A-AVT-CA: Geometry","MTH-206AV1CA-AVT"]
[null,null,null,null,"MTH-206AV1-K: 'MTH206A: Geometry'","MTH206A: Geometry","MTH-206AV1-K"]
[null,null,null,null,"MTH-206AV1LA-AVT: 'MTH206A-AVT-LA: Geometry'","MTH206A-AVT-LA: Geometry","MTH-206AV1LA-AVT"]
[null,null,null,null,"MTH-206AV1NY-AVT: 'MTH206A-AVT-NY: Geometry'","MTH206A-AVT-NY: Geometry","MTH-206AV1NY-AVT"]
[null,null,null,null,"MTH-206AVG1-K: 'MTH206AG: Geometry'","MTH206AG: Geometry","MTH-206AVG1-K"]
[null,null,null,null,"MTH-206AVS1-AVT: 'MTH206AS-AVT: Geometry'","MTH206AS-AVT: Geometry","MTH-206AVS1-AVT"]
[null,null,null,null,"MTH-206AVS1CA-AVT: 'MTH206AS-AVT-CA: Geometry'","MTH206AS-AVT-CA: Geometry","MTH-206AVS1CA-AVT"]
[null,null,null,null,"MTH-206AVS1-K: 'MTH206AS:   Geometry'","MTH206AS:   Geometry","MTH-206AVS1-K"]
[null,null,null,null,"MTH-206AVS1LA-AVT: 'MTH206AS-AVT-LA: Geometry'","MTH206AS-AVT-LA: Geometry","MTH-206AVS1LA-AVT"]
[null,null,null,null,"MTH-206AVS1NY-AVT: 'MTH206AS-AVT-NY: Geometry'","MTH206AS-AVT-NY: Geometry","MTH-206AVS1NY-AVT"]
[null,null,null,null,"MTH-206AVSG1-K: 'MTH206ASG:   Geometry'","MTH206ASG:   Geometry","MTH-206AVSG1-K"]
[null,null,null,null,"MTH-206BV1-AVT: 'MTH206B-AVT: Geometry'","MTH206B-AVT: Geometry","MTH-206BV1-AVT"]
[null,null,null,null,"MTH-206BV1CA-AVT: 'MTH206B-AVT-CA: Geometry'","MTH206B-AVT-CA: Geometry","MTH-206BV1CA-AVT"]
[null,null,null,null,"MTH-206BV1-K: 'MTH206B: Geometry'","MTH206B: Geometry","MTH-206BV1-K"]
[null,null,null,null,"MTH-206BV1LA-AVT: 'MTH206B-AVT-LA: Geometry'","MTH206B-AVT-LA: Geometry","MTH-206BV1LA-AVT"]
[null,null,null,null,"MTH-206BV1NY-AVT: 'MTH206B-AVT-NY: Geometry'","MTH206B-AVT-NY: Geometry","MTH-206BV1NY-AVT"]
[null,null,null,null,"MTH-206BVG1-K: 'MTH206BG: Geometry'","MTH206BG: Geometry","MTH-206BVG1-K"]
[null,null,null,null,"MTH-206BVS1-AVT: 'MTH206BS-AVT: Geometry'","MTH206BS-AVT: Geometry","MTH-206BVS1-AVT"]
[null,null,null,null,"MTH-206BVS1CA-AVT: 'MTH206BS-AVT-CA: Geometry'","MTH206BS-AVT-CA: Geometry","MTH-206BVS1CA-AVT"]
[null,null,null,null,"MTH-206BVS1-K: 'MTH206BS:   Geometry'","MTH206BS:   Geometry","MTH-206BVS1-K"]
[null,null,null,null,"MTH-206BVS1LA-AVT: 'MTH206BS-AVT-LA: Geometry'","MTH206BS-AVT-LA: Geometry","MTH-206BVS1LA-AVT"]
[null,null,null,null,"MTH-206BVS1NY-AVT: 'MTH206BS-AVT-NY: Geometry'","MTH206BS-AVT-NY: Geometry","MTH-206BVS1NY-AVT"]
[null,null,null,null,"MTH-206BVSG1-K: 'MTH206BSG:   Geometry'","MTH206BSG:   Geometry","MTH-206BVSG1-K"]
[null,null,null,null,"MTH-207AV1-K: 'MTH207A: Continuing Algebra'","MTH207A: Continuing Algebra","MTH-207AV1-K"]
[null,null,null,null,"MTH-207BV1-K: 'MTH207B: Continuing Algebra'","MTH207B: Continuing Algebra","MTH-207BV1-K"]
[null,null,null,null,"MTH-247AV1-K: 'MTH247A: Integrated Mathematics II'","MTH247A: Integrated Mathematics II","MTH-247AV1-K"]
[null,null,null,null,"MTH-247AVS1-K: 'MTH247AS: Integrated Mathematics II'","MTH247AS: Integrated Mathematics II","MTH-247AVS1-K"]
[null,null,null,null,"MTH-247BV1-K: 'MTH247B: Integrated Mathematics II'","MTH247B: Integrated Mathematics II","MTH-247BV1-K"]
[null,null,null,null,"MTH-247BVS1-K: 'MTH247BS: Integrated Mathematics II'","MTH247BS: Integrated Mathematics II","MTH-247BVS1-K"]
[null,null,null,null,"MTH-302ABLV1-K: 'MTH302A-BL: Algebra II'","MTH302A-BL: Algebra II","MTH-302ABLV1-K"]
[null,null,null,null,"MTH-302AV1-A: 'MTH302A:   Algebra II 08-09'","MTH302A:   Algebra II 08-09","MTH-302AV1-A"]
[null,null,null,null,"MTH-302AV1-K: 'MTH302A:   Algebra II'","MTH302A:   Algebra II","MTH-302AV1-K"]
[null,null,null,null,"MTH-302AV1TX-K: 'MTH302A: Algebra II - TX'","MTH302A: Algebra II - TX","MTH-302AV1TX-K"]
[null,null,null,null,"MTH-302AVS1-A: 'MTH302A:   Algebra II (Summer)'","MTH302A:   Algebra II (Summer)","MTH-302AVS1-A"]
[null,null,null,null,"MTH-302AVS1-K: 'MTH302AS: Algebra II'","MTH302AS: Algebra II","MTH-302AVS1-K"]
[null,null,null,null,"MTH-302AXV1-K: 'MTH302AX: Algebra II'","MTH302AX: Algebra II","MTH-302AXV1-K"]
[null,null,null,null,{"$f":"CONCATENATE(G2562,\": '\",F2562,\"'\")","v":"MTH-302BBLV1-K: 'MTH302B-BL: Algebra II'"},"MTH302B-BL: Algebra II","MTH-302BBLV1-K"]
[null,null,null,null,"MTH-302BV1-A: 'MTH302B:   Algebra II 08-09'","MTH302B:   Algebra II 08-09","MTH-302BV1-A"]
[null,null,null,null,"MTH-302BV1-K: 'MTH302B:   Algebra II'","MTH302B:   Algebra II","MTH-302BV1-K"]
[null,null,null,null,"MTH-302BV1TX-K: 'MTH302B: Algebra II - TX'","MTH302B: Algebra II - TX","MTH-302BV1TX-K"]
[null,null,null,null,"MTH-302BVS1-A: 'MTH302B:   Algebra II (Summer)'","MTH302B:   Algebra II (Summer)","MTH-302BVS1-A"]
[null,null,null,null,"MTH-302BVS1-K: 'MTH302BS: Algebra II'","MTH302BS: Algebra II","MTH-302BVS1-K"]
[null,null,null,null,"MTH-302BXV1-K: 'MTH302BX: Algebra II'","MTH302BX: Algebra II","MTH-302BXV1-K"]
[null,null,null,null,"MTH-303ABLV1-K: 'MTH303A-BL: Algebra II'","MTH303A-BL: Algebra II","MTH-303ABLV1-K"]
[null,null,null,null,"MTH-303AV1-A: 'MTH303A:   Algebra II 08-09'","MTH303A:   Algebra II 08-09","MTH-303AV1-A"]
[null,null,null,null,"MTH-303AV1-K: 'MTH303A:  Algebra II'","MTH303A:  Algebra II","MTH-303AV1-K"]
[null,null,null,null,"MTH-303AV1TX-K: 'MTH303A: Algebra II - TX'","MTH303A: Algebra II - TX","MTH-303AV1TX-K"]
[null,null,null,null,"MTH-303AXV1-K: 'MTH303AX: Algebra II'","MTH303AX: Algebra II","MTH-303AXV1-K"]
[null,null,null,null,"MTH-303BBLV1-K: 'MTH303B-BL: Algebra II'","MTH303B-BL: Algebra II","MTH-303BBLV1-K"]
[null,null,null,null,"MTH-303BV1-A: 'MTH303B:   Algebra II 08-09'","MTH303B:   Algebra II 08-09","MTH-303BV1-A"]
[null,null,null,null,"MTH-303BV1-K: 'MTH303B:  Algebra II'","MTH303B:  Algebra II","MTH-303BV1-K"]
[null,null,null,null,"MTH-303B-V1-K: 'MTH303B: Algebra II*'","MTH303B: Algebra II*","MTH-303B-V1-K"]
[null,null,null,null,"MTH-303BV1TX-K: 'MTH303B: Algebra II - TX'","MTH303B: Algebra II - TX","MTH-303BV1TX-K"]
[null,null,null,null,"MTH-303BXV1-K: 'MTH303BX: Algebra II'","MTH303BX: Algebra II","MTH-303BXV1-K"]
[null,null,null,null,"MTH-304ABLV1-K: 'MTH304A-BL: Honors Algebra II'","MTH304A-BL: Honors Algebra II","MTH-304ABLV1-K"]
[null,null,null,null,"MTH-304AV1-A: 'MTH304A:   Honors Algebra II'","MTH304A:   Honors Algebra II","MTH-304AV1-A"]
[null,null,null,null,"MTH-304AV1-K: 'MTH304A:  Honors Algebra II'","MTH304A:  Honors Algebra II","MTH-304AV1-K"]
[null,null,null,null,"MTH-304AV1TX-K: 'MTH304A: Honors Algebra II - TX'","MTH304A: Honors Algebra II - TX","MTH-304AV1TX-K"]
[null,null,null,null,"MTH-304AXV1-K: 'MTH304AX: Honors Algebra II'","MTH304AX: Honors Algebra II","MTH-304AXV1-K"]
[null,null,null,null,"MTH-304BBLV1-K: 'MTH304B-BL: Honors Algebra II'","MTH304B-BL: Honors Algebra II","MTH-304BBLV1-K"]
[null,null,null,null,"MTH-304BV1-A: 'MTH304B:   Honors Algebra II'","MTH304B:   Honors Algebra II","MTH-304BV1-A"]
[null,null,null,null,"MTH-304BV1-K: 'MTH304B:  Honors Algebra II'","MTH304B:  Honors Algebra II","MTH-304BV1-K"]
[null,null,null,null,"MTH-304BV1TX-K: 'MTH304B: Honors Algebra II - TX'","MTH304B: Honors Algebra II - TX","MTH-304BV1TX-K"]
[null,null,null,null,"MTH-304BXV1-K: 'MTH304BX: Honors Algebra II'","MTH304BX: Honors Algebra II","MTH-304BXV1-K"]
[null,null,null,null,"MTH-306AV1-AVT: 'MTH306A-AVT: Algebra II'","MTH306A-AVT: Algebra II","MTH-306AV1-AVT"]
[null,null,null,null,"MTH-306AV1-K: 'MTH306A: Algebra II'","MTH306A: Algebra II","MTH-306AV1-K"]
[null,null,null,null,"MTH-306AV1NY-AVT: 'MTH306A-AVT-NY: Algebra II'","MTH306A-AVT-NY: Algebra II","MTH-306AV1NY-AVT"]
[null,null,null,null,"MTH-306AVG1-K: 'MTH306AG: Algebra II'","MTH306AG: Algebra II","MTH-306AVG1-K"]
[null,null,null,null,"MTH-306AVS1-AVT: 'MTH306AS-AVT: Algebra II'","MTH306AS-AVT: Algebra II","MTH-306AVS1-AVT"]
[null,null,null,null,"MTH-306AVS1-K: 'MTH306AS:   Algebra II'","MTH306AS:   Algebra II","MTH-306AVS1-K"]
[null,null,null,null,"MTH-306AVS1NY-AVT: 'MTH306AS-AVT-NY: Algebra II'","MTH306AS-AVT-NY: Algebra II","MTH-306AVS1NY-AVT"]
[null,null,null,null,"MTH-306AVSG1-K: 'MTH306ASG:   Algebra II'","MTH306ASG:   Algebra II","MTH-306AVSG1-K"]
[null,null,null,null,"MTH-306BV1-AVT: 'MTH306B-AVT: Algebra II'","MTH306B-AVT: Algebra II","MTH-306BV1-AVT"]
[null,null,null,null,"MTH-306BV1-K: 'MTH306B: Algebra II'","MTH306B: Algebra II","MTH-306BV1-K"]
[null,null,null,null,"MTH-306BV1NY-AVT: 'MTH306B-AVT-NY: Algebra II'","MTH306B-AVT-NY: Algebra II","MTH-306BV1NY-AVT"]
[null,null,null,null,"MTH-306BVG1-K: 'MTH306BG: Algebra II'","MTH306BG: Algebra II","MTH-306BVG1-K"]
[null,null,null,null,"MTH-306BVS1-AVT: 'MTH306BS-AVT: Algebra II'","MTH306BS-AVT: Algebra II","MTH-306BVS1-AVT"]
[null,null,null,null,"MTH-306BVS1-K: 'MTH306BS:   Algebra II'","MTH306BS:   Algebra II","MTH-306BVS1-K"]
[null,null,null,null,"MTH-306BVS1NY-AVT: 'MTH306BS-AVT-NY: Algebra II'","MTH306BS-AVT-NY: Algebra II","MTH-306BVS1NY-AVT"]
[null,null,null,null,"MTH-306BVSG1-K: 'MTH306BSG:   Algebra II'","MTH306BSG:   Algebra II","MTH-306BVSG1-K"]
[null,null,null,null,"MTH-307AV1-K: 'MTH307A: Practical Math'","MTH307A: Practical Math","MTH-307AV1-K"]
[null,null,null,null,"MTH-307BV1-K: 'MTH307B: Practical Math'","MTH307B: Practical Math","MTH-307BV1-K"]
[null,null,null,null,"MTH-307BVS1-K: 'MTH307BS: Practical Math'","MTH307BS: Practical Math","MTH-307BVS1-K"]
[null,null,null,null,"MTH-312VS1-C: 'MTH312S:  Business and Consumer Math'","MTH312S:  Business and Consumer Math","MTH-312VS1-C"]
[null,null,null,null,"MTH-322AV1-AVT: 'MTH322A-AVT: Consumer Math'","MTH322A-AVT: Consumer Math","MTH-322AV1-AVT"]
[null,null,null,null,"MTH-322AVS1-AVT: 'MTH322AS-AVT: Consumer Math'","MTH322AS-AVT: Consumer Math","MTH-322AVS1-AVT"]
[null,null,null,null,"MTH-322BV1-AVT: 'MTH322B-AVT: Consumer Math'","MTH322B-AVT: Consumer Math","MTH-322BV1-AVT"]
[null,null,null,null,"MTH-322BVS1-AVT: 'MTH322BS-AVT: Consumer Math'","MTH322BS-AVT: Consumer Math","MTH-322BVS1-AVT"]
[null,null,null,null,"MTH-332AV1-AVT: 'MTH332A-AVT: Integrated Math'","MTH332A-AVT: Integrated Math","MTH-332AV1-AVT"]
[null,null,null,null,"MTH-332AV1GA-AVT: 'MTH332A-AVT-GA: Integrated Math'","MTH332A-AVT-GA: Integrated Math","MTH-332AV1GA-AVT"]
[null,null,null,null,"MTH-332AVS1-AVT: 'MTH332AS-AVT: Integrated Math'","MTH332AS-AVT: Integrated Math","MTH-332AVS1-AVT"]
[null,null,null,null,"MTH-332BV1-AVT: 'MTH332B-AVT: Integrated Math'","MTH332B-AVT: Integrated Math","MTH-332BV1-AVT"]
[null,null,null,null,"MTH-332BV1GA-AVT: 'MTH332B-AVT-GA: Integrated Math'","MTH332B-AVT-GA: Integrated Math","MTH-332BV1GA-AVT"]
[null,null,null,null,"MTH-332BVS1-AVT: 'MTH332BS-AVT: Integrated Math'","MTH332BS-AVT: Integrated Math","MTH-332BVS1-AVT"]
[null,null,null,null,"MTH-342AV1-AVT: 'MTH342A-AVT: Accounting'","MTH342A-AVT: Accounting","MTH-342AV1-AVT"]
[null,null,null,null,"MTH-342BV1-AVT: 'MTH342B-AVT: Accounting'","MTH342B-AVT: Accounting","MTH-342BV1-AVT"]
[null,null,null,null,"MTH-347AV1-K: 'MTH347A: Integrated Mathematics III'","MTH347A: Integrated Mathematics III","MTH-347AV1-K"]
[null,null,null,null,"MTH-347BV1-K: 'MTH347B: Integrated Mathematics III'","MTH347B: Integrated Mathematics III","MTH-347BV1-K"]
[null,null,null,null,"MTH-392AV1-AVT: 'MTH392A-AVT: Mathematics of Personal Finance'","MTH392A-AVT: Mathematics of Personal Finance","MTH-392AV1-AVT"]
[null,null,null,null,"MTH-392BV1-AVT: 'MTH392B-AVT: Mathematics of Personal Finance'","MTH392B-AVT: Mathematics of Personal Finance","MTH-392BV1-AVT"]
[null,null,null,null,{"$f":"CONCATENATE(G2626,\": '\",F2626,\"'\")","v":"MTH-403AV1-A: 'MTH403A:   Pre-Calculus/Trigonometry'"},"MTH403A:   Pre-Calculus/Trigonometry","MTH-403AV1-A"]
[null,null,null,null,"MTH-403AV1TX-A: 'MTH403A: Pre-Calculus/Trigonometry - TX'","MTH403A: Pre-Calculus/Trigonometry - TX","MTH-403AV1TX-A"]
[null,null,null,null,"MTH-403AVS1-A: 'MTH403AS: Pre-Calculus/Trigonometry'","MTH403AS: Pre-Calculus/Trigonometry","MTH-403AVS1-A"]
[null,null,null,null,"MTH-403BV1-A: 'MTH403B:   Pre-Calculus/Trigonometry'","MTH403B:   Pre-Calculus/Trigonometry","MTH-403BV1-A"]
[null,null,null,null,"MTH-403BV1TX-A: 'MTH403B: Pre-Calculus/Trigonometry - TX'","MTH403B: Pre-Calculus/Trigonometry - TX","MTH-403BV1TX-A"]
[null,null,null,null,"MTH-403BVS1-A: 'MTH403BS: Pre-Calculus/Trigonometry'","MTH403BS: Pre-Calculus/Trigonometry","MTH-403BVS1-A"]
[null,null,null,null,"MTH-413BLV1-K: 'MTH413-BL:  Probability and Statistics'","MTH413-BL:  Probability and Statistics","MTH-413BLV1-K"]
[null,null,null,null,"MTH-413V1-K: 'MTH413: Probability and Statistics'","MTH413: Probability and Statistics","MTH-413V1-K"]
[null,null,null,null,"MTH-413VS1-K: 'MTH413S: Probability and Statistics'","MTH413S: Probability and Statistics","MTH-413VS1-K"]
[null,null,null,null,"MTH-423V1-K: 'MTH423R: Discrete Math'","MTH423R: Discrete Math","MTH-423V1-K"]
[null,null,null,null,"MTH-433AV1-AVT: 'MTH433A-AVT: Calculus'","MTH433A-AVT: Calculus","MTH-433AV1-AVT"]
[null,null,null,null,"MTH-433BV1-AVT: 'MTH433B-AVT: Calculus'","MTH433B-AVT: Calculus","MTH-433BV1-AVT"]
[null,null,null,null,"MTH-500AV1-A: 'MTH500AR: AP(R) Calculus AB'","MTH500AR: AP(R) Calculus AB","MTH-500AV1-A"]
[null,null,null,null,"MTH-500AV2-K: 'MTH500A: AP(R) Calculus AB'","MTH500A: AP(R) Calculus AB","MTH-500AV2-K"]
[null,null,null,null,"MTH-500BV1-A: 'MTH500BR: AP(R) Calculus AB'","MTH500BR: AP(R) Calculus AB","MTH-500BV1-A"]
[null,null,null,null,"MTH-500BV2-K: 'MTH500B: AP(R) Calculus AB'","MTH500B: AP(R) Calculus AB","MTH-500BV2-K"]
[null,null,null,null,"MTH-510AV1-A: 'MTH510A:   AP(R) Statistics'","MTH510A:   AP(R) Statistics","MTH-510AV1-A"]
[null,null,null,null,"MTH-510BV1-A: 'MTH510B:   AP(R) Statistics'","MTH510B:   AP(R) Statistics","MTH-510BV1-A"]
[null,null,null,null,"MTH-520AV2-K: 'MTH520A: AP(R) Calculus BC'","MTH520A: AP(R) Calculus BC","MTH-520AV2-K"]
[null,null,null,null,"MTH-520BV2-K: 'MTH520B: AP(R) Calculus BC'","MTH520B: AP(R) Calculus BC","MTH-520BV2-K"]
[null,null,null,null,"MTH-CCV1-K12: 'Common Core Supplement - Math'","Common Core Supplement - Math","MTH-CCV1-K12"]
[null,null,null,null,"MU1F1: 'Beginning 1 Music'","Beginning 1 Music","MU1F1"]
[null,null,null,null,"MU2F1: 'Beginning 2 Music'","Beginning 2 Music","MU2F1"]
[null,null,null,null,"MU3F1: 'Intermed. 1 Music'","Intermed. 1 Music","MU3F1"]
[null,null,null,null,"MU4F1: 'Intermed. 2 Music'","Intermed. 2 Music","MU4F1"]
[null,null,null,null,"MU5F1: 'Intermed. 3 Music'","Intermed. 3 Music","MU5F1"]
[null,null,null,null,"MU8F1: 'Music Appreciation'","Music Appreciation","MU8F1"]
[null,null,null,null,"MUAF1: 'Music Concepts A'","Music Concepts A","MUAF1"]
[null,null,null,null,"MUBF1: 'Music Concepts B'","Music Concepts B","MUBF1"]
[null,null,null,null,"MUKF1: 'Preparatory Music'","Preparatory Music","MUKF1"]
[null,null,null,null,"MU-MAS1H-A: 'Apex: Music Appreciation Sem 1'","Apex: Music Appreciation Sem 1","MU-MAS1H-A"]
[null,null,null,null,"MU-MAS2H-A: 'Apex: Music Appreciation Sem 2'","Apex: Music Appreciation Sem 2","MU-MAS2H-A"]
[null,null,null,null,"MUNF1: 'Intro. to Music'","Intro. to Music","MUNF1"]
[null,null,null,null,"MUXF1: 'Exploring Music'","Exploring Music","MUXF1"]
[null,null,null,null,"ORN-100ADV2V1-K: 'ORN100: Advisory 2 - Finding Your Path I'","ORN100: Advisory 2 - Finding Your Path I","ORN-100ADV2V1-K"]
[null,null,null,null,"ORN-100ADVSMV1-K: 'ORN100: Advisory SM - Finding Your Path I'","ORN100: Advisory SM - Finding Your Path I","ORN-100ADVSMV1-K"]
[null,null,null,null,"ORN-100ADVV1-K: 'ORN100: Advisory - Finding Your Path I'","ORN100: Advisory - Finding Your Path I","ORN-100ADVV1-K"]
[null,null,null,null,"ORN-100V1-K: 'ORN100: Finding Your Path I'","ORN100: Finding Your Path I","ORN-100V1-K"]
[null,null,null,null,"ORN-200ADV2V1-K: 'ORN200: Advisory 2 - Finding Your Path II'","ORN200: Advisory 2 - Finding Your Path II","ORN-200ADV2V1-K"]
[null,null,null,null,"ORN-200ADVSMV1-K: 'ORN200: Advisory SM - Finding Your Path II'","ORN200: Advisory SM - Finding Your Path II","ORN-200ADVSMV1-K"]
[null,null,null,null,"ORN-200ADVV1-K: 'ORN200: Advisory - Finding Your Path II'","ORN200: Advisory - Finding Your Path II","ORN-200ADVV1-K"]
[null,null,null,null,"ORN-200V1-K: 'ORN200: Finding Your Path II'","ORN200: Finding Your Path II","ORN-200V1-K"]
[null,null,null,null,"ORN-300ADV2V1-K: 'ORN300: Advisory 2 - Finding Your Path III'","ORN300: Advisory 2 - Finding Your Path III","ORN-300ADV2V1-K"]
[null,null,null,null,"ORN-300ADVSMV1-K: 'ORN300: Advisory SM - Finding Your Path III'","ORN300: Advisory SM - Finding Your Path III","ORN-300ADVSMV1-K"]
[null,null,null,null,"ORN-300ADVV1-K: 'ORN300: Advisory - Finding Your Path III'","ORN300: Advisory - Finding Your Path III","ORN-300ADVV1-K"]
[null,null,null,null,"ORN-300V1-K: 'ORN300: Finding Your Path III'","ORN300: Finding Your Path III","ORN-300V1-K"]
[null,null,null,null,"ORN-400ADV2V1-K: 'ORN400: Advisory 2 - Finding Your Path IV'","ORN400: Advisory 2 - Finding Your Path IV","ORN-400ADV2V1-K"]
[null,null,null,null,"ORN-400ADVSMV1-K: 'ORN400: Advisory SM - Finding Your Path IV'","ORN400: Advisory SM - Finding Your Path IV","ORN-400ADVSMV1-K"]
[null,null,null,null,"ORN-400ADVV1-K: 'ORN400: Advisory - Finding Your Path IV'","ORN400: Advisory - Finding Your Path IV","ORN-400ADVV1-K"]
[null,null,null,null,"ORN-400V1-K: 'ORN400: Finding Your Path IV'","ORN400: Finding Your Path IV","ORN-400V1-K"]
[null,null,null,null,"ORN-400V1WA-K: 'ORN400: Finding Your Path IV - WAVA'","ORN400: Finding Your Path IV - WAVA","ORN-400V1WA-K"]
[null,null,null,null,"OTH-010V1-A: 'OTH010:   Skills for Health'","OTH010:   Skills for Health","OTH-010V1-A"]
[null,null,null,null,"OTH-010V1TX-A: 'OTH010: Skills for Health - TX'","OTH010: Skills for Health - TX","OTH-010V1TX-A"]
[null,null,null,null,"OTH-010VS1-A: 'OTH010S:   Skills for Health'","OTH010S:   Skills for Health","OTH-010VS1-A"]
[null,null,null,null,"OTH-016V1-AVT: 'OTH016-AVT: Health'","OTH016-AVT: Health","OTH-016V1-AVT"]
[null,null,null,null,"OTH-016VS1-AVT: 'OTH016S-AVT: Health'","OTH016S-AVT: Health","OTH-016VS1-AVT"]
[null,null,null,null,"OTH-018V1-DYN: 'OTH018-DYN: Fashion Design and Interior Design'","OTH018-DYN: Fashion Design and Interior Design","OTH-018V1-DYN"]
[null,null,null,null,"OTH-020AV1-K: 'OTH020A:   Physical Education'","OTH020A:   Physical Education","OTH-020AV1-K"]
[null,null,null,null,"OTH-020AVS1-K: 'OTH020AS:  Physical Education'","OTH020AS:  Physical Education","OTH-020AVS1-K"]
[null,null,null,null,"OTH-020BV1-K: 'OTH020B:   Physical Education'","OTH020B:   Physical Education","OTH-020BV1-K"]
[null,null,null,null,"OTH-026V1-AVT: 'OTH026-AVT: Physical Education'","OTH026-AVT: Physical Education","OTH-026V1-AVT"]
[null,null,null,null,"OTH-026VS1-AVT: 'OTH026S-AVT: Physical Education'","OTH026S-AVT: Physical Education","OTH-026VS1-AVT"]
[null,null,null,null,"OTH-031V1-DYN: 'OTH031: Archaeology'","OTH031: Archaeology","OTH-031V1-DYN"]
[null,null,null,null,"OTH-032V1-DYN: 'OTH032: Astronomy'","OTH032: Astronomy","OTH-032V1-DYN"]
[null,null,null,null,{"$f":"CONCATENATE(G2690,\": '\",F2690,\"'\")","v":"OTH-033V1-DYN: 'OTH033: Veterinary Science'"},"OTH033: Veterinary Science","OTH-033V1-DYN"]
[null,null,null,null,"OTH-034V1-DYN: 'OTH034: Introduction to Agriscience'","OTH034: Introduction to Agriscience","OTH-034V1-DYN"]
[null,null,null,null,"OTH-035V1-DYN: 'OTH035: Early Childhood Education'","OTH035: Early Childhood Education","OTH-035V1-DYN"]
[null,null,null,null,"OTH-036V1-DYN: 'OTH036: Gothic Literature'","OTH036: Gothic Literature","OTH-036V1-DYN"]
[null,null,null,null,"OTH-037V1-DYN: 'OTH037: Hospitality and Tourism'","OTH037: Hospitality and Tourism","OTH-037V1-DYN"]
[null,null,null,null,"OTH-038V1-DYN: 'OTH038: Careers in Criminal Justice'","OTH038: Careers in Criminal Justice","OTH-038V1-DYN"]
[null,null,null,null,"OTH-039V1-DYN: 'OTH039: Criminology'","OTH039: Criminology","OTH-039V1-DYN"]
[null,null,null,null,"OTH-040V1-K: 'OTH040: Reaching Your Academic Potential'","OTH040: Reaching Your Academic Potential","OTH-040V1-K"]
[null,null,null,null,"OTH-040V1TX-K: 'OTH040: Reaching Your Academic Potential - TX'","OTH040: Reaching Your Academic Potential - TX","OTH-040V1TX-K"]
[null,null,null,null,"OTH-050V1-K: 'OTH050: Achieving Your Career and College Goals'","OTH050: Achieving Your Career and College Goals","OTH-050V1-K"]
[null,null,null,null,"OTH-050VS1-K: 'OTH050S: Achieving Your Career and College Goals'","OTH050S: Achieving Your Career and College Goals","OTH-050VS1-K"]
[null,null,null,null,"OTH-060V1-AVT: 'OTH060-AVT: Family and Consumer Science'","OTH060-AVT: Family and Consumer Science","OTH-060V1-AVT"]
[null,null,null,null,"OTH-060VS1-AVT: 'OTH060S-AVT: Family and Consumer Science'","OTH060S-AVT: Family and Consumer Science","OTH-060VS1-AVT"]
[null,null,null,null,"OTH-070V1-AVT: 'OTH070-AVT: Drivers Safety'","OTH070-AVT: Drivers Safety","OTH-070V1-AVT"]
[null,null,null,null,"OTH-080V1-AVT: 'OTH080-AVT: Nutrition and Wellness'","OTH080-AVT: Nutrition and Wellness","OTH-080V1-AVT"]
[null,null,null,null,"OTH-080VS1-AVT: 'OTH080S-AVT: Nutrition & Wellness'","OTH080S-AVT: Nutrition & Wellness","OTH-080VS1-AVT"]
[null,null,null,null,"OTH-090V1-AVT: 'OTH090-AVT: Life Skills'","OTH090-AVT: Life Skills","OTH-090V1-AVT"]
[null,null,null,null,"OTH-091V1-DYN: 'OTH091-DYN: Law and Order'","OTH091-DYN: Law and Order","OTH-091V1-DYN"]
[null,null,null,null,"OTH-092V1-DYN: 'OTH092-DYN: Health Sciences'","OTH092-DYN: Health Sciences","OTH-092V1-DYN"]
[null,null,null,null,"OTH-093V1-DYN: 'OTH093-DYN: Introduction to Culinary Arts'","OTH093-DYN: Introduction to Culinary Arts","OTH-093V1-DYN"]
[null,null,null,null,"PE-101G-V: 'Personal Health'","Personal Health","PE-101G-V"]
[null,null,null,null,"PE-102BG-K: 'Physical Education - Sem 2'","Physical Education - Sem 2","PE-102BG-K"]
[null,null,null,null,"PE-102G-K: 'Physical Education - Sem 1'","Physical Education - Sem 1","PE-102G-K"]
[null,null,null,null,"PE1F1: 'Physical Education 1'","Physical Education 1","PE1F1"]
[null,null,null,null,"PE2F1: 'Physical Education 2'","Physical Education 2","PE2F1"]
[null,null,null,null,"PE3F1: 'Physical Education 3'","Physical Education 3","PE3F1"]
[null,null,null,null,"PE3TX: 'Physical Education 3 (Texas)'","Physical Education 3 (Texas)","PE3TX"]
[null,null,null,null,"PE4F1: 'Physical Education 4'","Physical Education 4","PE4F1"]
[null,null,null,null,"PE4TX: 'Physical Education 4 (Texas) - 2007'","Physical Education 4 (Texas) - 2007","PE4TX"]
[null,null,null,null,"PE4TXB: 'Physical Education 4 (Texas)'","Physical Education 4 (Texas)","PE4TXB"]
[null,null,null,null,"PE5F1: 'Physical Education 5'","Physical Education 5","PE5F1"]
[null,null,null,null,"PE5TX: 'Physical Education 5 (Texas)'","Physical Education 5 (Texas)","PE5TX"]
[null,null,null,null,"PE6F1: 'Physical Education 6'","Physical Education 6","PE6F1"]
[null,null,null,null,"PE6TX: 'Physical Education 6 (Texas)'","Physical Education 6 (Texas)","PE6TX"]
[null,null,null,null,"PE6TXB: 'Texas Physical Education 6'","Texas Physical Education 6","PE6TXB"]
[null,null,null,null,"PE7F1: 'Physical Education 7'","Physical Education 7","PE7F1"]
[null,null,null,null,"PE7TX: 'Physical Education 7 (Texas)'","Physical Education 7 (Texas)","PE7TX"]
[null,null,null,null,"PE7TXB: 'Texas Physical Education 7'","Texas Physical Education 7","PE7TXB"]
[null,null,null,null,"PE8F1: 'Physical Education 8'","Physical Education 8","PE8F1"]
[null,null,null,null,"PE8TX: 'Physical Education 8 (Texas) -2007'","Physical Education 8 (Texas) -2007","PE8TX"]
[null,null,null,null,"PE8TXB: 'Texas Physical Education 8'","Texas Physical Education 8","PE8TXB"]
[null,null,null,null,"PE-HPS1H-A: 'Apex: Health and Physical Education Sem 1'","Apex: Health and Physical Education Sem 1","PE-HPS1H-A"]
[null,null,null,null,"PE-HPS2H-A: 'Apex: Health and Physical Education Sem 2'","Apex: Health and Physical Education Sem 2","PE-HPS2H-A"]
[null,null,null,null,"PEKF1: 'Physical Education K'","Physical Education K","PEKF1"]
[null,null,null,null,"PE-P1S1H-A: 'Apex: Physical Education (1 Sem)'","Apex: Physical Education (1 Sem)","PE-P1S1H-A"]
[null,null,null,null,"PE-SHS1C-A: 'Apex: Skills for Health - Comprehensive'","Apex: Skills for Health - Comprehensive","PE-SHS1C-A"]
[null,null,null,null,"PE-SHS1H-A: 'Apex: Skills for Health (1 Sem)'","Apex: Skills for Health (1 Sem)","PE-SHS1H-A"]
[null,null,null,null,"PEWF1: 'Physical Education with Lessons'","Physical Education with Lessons","PEWF1"]
[null,null,null,null,"PH1F1: 'Phonics 1 2001'","Phonics 1 2001","PH1F1"]
[null,null,null,null,"PHKF1: 'Phonics K 2001'","Phonics K 2001","PHKF1"]
[null,null,null,null,"PN1F1: 'Phonics 1 2002'","Phonics 1 2002","PN1F1"]
[null,null,null,null,"PNKF1: 'Phonics K 2002'","Phonics K 2002","PNKF1"]
[null,null,null,null,"PS8F1: 'Advanced Physical Science*'","Advanced Physical Science*","PS8F1"]
[null,null,null,null,"PS8F1B: 'Physical Science*'","Physical Science*","PS8F1B"]
[null,null,null,null,"PX1F1: 'Phonics 1 2003'","Phonics 1 2003","PX1F1"]
[null,null,null,null,"Q-GRAMCOMPb-HS-QMN10: 'Speech-MN'","Speech-MN","Q-GRAMCOMPb-HS-QMN10"]
[null,null,null,null,"SC-101AG-K: 'Earth Science Foundations - Sem 1'","Earth Science Foundations - Sem 1","SC-101AG-K"]
[null,null,null,null,"SC-101BG-K: 'Earth Science Foundations - Sem 2'","Earth Science Foundations - Sem 2","SC-101BG-K"]
[null,null,null,null,"SC-151AG-K: 'Earth Science - Sem 1'","Earth Science - Sem 1","SC-151AG-K"]
[null,null,null,null,"SC-151BG-K: 'Earth Science - Sem 2'","Earth Science - Sem 2","SC-151BG-K"]
[null,null,null,null,"SC-152AG-K: 'Physical Science Foundations - Sem 1'","Physical Science Foundations - Sem 1","SC-152AG-K"]
[null,null,null,null,"SC-152AG-V: 'Physical Science - Sem 1'","Physical Science - Sem 1","SC-152AG-V"]
[null,null,null,null,"SC-152BG-K: 'Physical Science Foundations - Sem 2'","Physical Science Foundations - Sem 2","SC-152BG-K"]
[null,null,null,null,"SC-152BG-V: 'Physical Science - Sem 2'","Physical Science - Sem 2","SC-152BG-V"]
[null,null,null,null,{"$f":"CONCATENATE(G2754,\": '\",F2754,\"'\")","v":"SC1F1: 'Science 1*'"},"Science 1*","SC1F1"]
[null,null,null,null,"SC-201AG-K: 'Biology Foundations - Sem 1'","Biology Foundations - Sem 1","SC-201AG-K"]
[null,null,null,null,"SC-201BG-K: 'Biology Foundations - Sem 2'","Biology Foundations - Sem 2","SC-201BG-K"]
[null,null,null,null,"SC-251AG-K: 'Biology - Sem 1'","Biology - Sem 1","SC-251AG-K"]
[null,null,null,null,"SC-251BG-K: 'Biology - Sem 2'","Biology - Sem 2","SC-251BG-K"]
[null,null,null,null,"SC2F1: 'Science 2*'","Science 2*","SC2F1"]
[null,null,null,null,"SC-301AG-V: 'Environmental Science Foundations - Sem 1'","Environmental Science Foundations - Sem 1","SC-301AG-V"]
[null,null,null,null,"SC-301BG-V: 'Environmental Science Foundations - Sem 2'","Environmental Science Foundations - Sem 2","SC-301BG-V"]
[null,null,null,null,"SC-351AG-C: 'Chemistry - Sem 1'","Chemistry - Sem 1","SC-351AG-C"]
[null,null,null,null,"SC-351BG-C: 'Chemistry - Sem 2'","Chemistry - Sem 2","SC-351BG-C"]
[null,null,null,null,"SC3F1: 'Science 3*'","Science 3*","SC3F1"]
[null,null,null,null,"SC3TX: 'Science 3 (Texas) - 2007'","Science 3 (Texas) - 2007","SC3TX"]
[null,null,null,null,"SC3TXB: 'Science 3 (Texas)'","Science 3 (Texas)","SC3TXB"]
[null,null,null,null,"SC-451AG-C: 'Physics - Sem 1'","Physics - Sem 1","SC-451AG-C"]
[null,null,null,null,"SC-451BG-C: 'Physics - Sem 2'","Physics - Sem 2","SC-451BG-C"]
[null,null,null,null,"SC4F1: 'Science 4*'","Science 4*","SC4F1"]
[null,null,null,null,"SC4TX: 'Science 4 (Texas) - 2007'","Science 4 (Texas) - 2007","SC4TX"]
[null,null,null,null,"SC4TXB: 'Science 4 (Texas)*'","Science 4 (Texas)*","SC4TXB"]
[null,null,null,null,"SC4UT: 'Utah Science 4'","Utah Science 4","SC4UT"]
[null,null,null,null,"SC5F1: 'Science 5*'","Science 5*","SC5F1"]
[null,null,null,null,"SC5TX: 'Science 5 (Texas) - 2007'","Science 5 (Texas) - 2007","SC5TX"]
[null,null,null,null,"SC5TXB: 'Science 5 (Texas)'","Science 5 (Texas)","SC5TXB"]
[null,null,null,null,"SC5UT: 'UT Science 5'","UT Science 5","SC5UT"]
[null,null,null,null,"SC6AR: 'AR Science 6'","AR Science 6","SC6AR"]
[null,null,null,null,"SC6DE: 'DE Grade 6 Science'","DE Grade 6 Science","SC6DE"]
[null,null,null,null,"SC6F1: 'Advanced Earth Science*'","Advanced Earth Science*","SC6F1"]
[null,null,null,null,"SC6F1B: 'Earth Science*'","Earth Science*","SC6F1B"]
[null,null,null,null,"SC6SC: 'Science 6 (South Carolina)'","Science 6 (South Carolina)","SC6SC"]
[null,null,null,null,"SC6TX: 'Science 6 (Texas) - 2007'","Science 6 (Texas) - 2007","SC6TX"]
[null,null,null,null,"SC6TXB: 'Science 6 (Texas)'","Science 6 (Texas)","SC6TXB"]
[null,null,null,null,"SC7AR: 'AR Science 7'","AR Science 7","SC7AR"]
[null,null,null,null,"SC7DE: 'DE Grade 7 Science'","DE Grade 7 Science","SC7DE"]
[null,null,null,null,"SC7SC: 'Science 7 (South Carolina)'","Science 7 (South Carolina)","SC7SC"]
[null,null,null,null,"SC7TX: 'Science 7 (Texas)'","Science 7 (Texas)","SC7TX"]
[null,null,null,null,"SC-801AG-V: 'Marine Science - Sem 1'","Marine Science - Sem 1","SC-801AG-V"]
[null,null,null,null,"SC-801BG-V: 'Marine Science - Sem 2'","Marine Science - Sem 2","SC-801BG-V"]
[null,null,null,null,"SC-851AG-V: 'Environmental Science - Sem 1'","Environmental Science - Sem 1","SC-851AG-V"]
[null,null,null,null,"SC-851BG-V: 'Environmental Science - Sem 2'","Environmental Science - Sem 2","SC-851BG-V"]
[null,null,null,null,"SC8AR: 'AR Science 8'","AR Science 8","SC8AR"]
[null,null,null,null,"SC8DE: 'DE Grade 8 Science'","DE Grade 8 Science","SC8DE"]
[null,null,null,null,"SC8F1: 'Advanced Life Science*'","Advanced Life Science*","SC8F1"]
[null,null,null,null,"SC8F1B: 'Life Science*'","Life Science*","SC8F1B"]
[null,null,null,null,"SC8SC: 'Science 8 (South Carolina)'","Science 8 (South Carolina)","SC8SC"]
[null,null,null,null,"SC8TX: 'Science 8 (Texas)'","Science 8 (Texas)","SC8TX"]
[null,null,null,null,"SC-BIF1H-A: 'Apex Biology'","Apex Biology","SC-BIF1H-A"]
[null,null,null,null,"SC-BIS1A-A: 'Apex AP Biology - Sem 1'","Apex AP Biology - Sem 1","SC-BIS1A-A"]
[null,null,null,null,"SC-BIS1H-A: 'Apex Biology - Sem 1'","Apex Biology - Sem 1","SC-BIS1H-A"]
[null,null,null,null,"SC-BIS1H-K: 'High School: Biology Sem 1'","High School: Biology Sem 1","SC-BIS1H-K"]
[null,null,null,null,"SC-BIS2A-A: 'Apex AP Biology - Sem 2'","Apex AP Biology - Sem 2","SC-BIS2A-A"]
[null,null,null,null,"SC-BIS2H-A: 'Apex Biology - Sem 2'","Apex Biology - Sem 2","SC-BIS2H-A"]
[null,null,null,null,"SC-BIS2H-K: 'High School: Biology Sem 2'","High School: Biology Sem 2","SC-BIS2H-K"]
[null,null,null,null,"SC-CHS1A-A: 'Apex AP Chemistry - Sem 1'","Apex AP Chemistry - Sem 1","SC-CHS1A-A"]
[null,null,null,null,"SC-CHS1H-A: 'Apex Chemistry - Sem 1'","Apex Chemistry - Sem 1","SC-CHS1H-A"]
[null,null,null,null,"SC-CHS1K-A: 'Apex: Chemistry Sem 1'","Apex: Chemistry Sem 1","SC-CHS1K-A"]
[null,null,null,null,"SC-CHS2A-A: 'Apex AP Chemistry - Sem 2'","Apex AP Chemistry - Sem 2","SC-CHS2A-A"]
[null,null,null,null,"SC-CHS2H-A: 'Apex Chemistry - Sem 2'","Apex Chemistry - Sem 2","SC-CHS2H-A"]
[null,null,null,null,"SC-CHS2K-A: 'Apex: Chemistry Sem 2'","Apex: Chemistry Sem 2","SC-CHS2K-A"]
[null,null,null,null,"SC-ESF1H-A: 'Apex Earth Science'","Apex Earth Science","SC-ESF1H-A"]
[null,null,null,null,"SC-ESS1H-A: 'Apex Earth Science - Sem 1'","Apex Earth Science - Sem 1","SC-ESS1H-A"]
[null,null,null,null,"SC-ESS1H-K: 'High School: Earth Science Sem 1'","High School: Earth Science Sem 1","SC-ESS1H-K"]
[null,null,null,null,"SC-ESS2H-A: 'Apex Earth Science - Sem 2'","Apex Earth Science - Sem 2","SC-ESS2H-A"]
[null,null,null,null,"SC-ESS2H-K: 'High School: Earth Science Sem 2'","High School: Earth Science Sem 2","SC-ESS2H-K"]
[null,null,null,null,"SCI-010AV1-V: 'SCI010AR: Environmental Science'","SCI010AR: Environmental Science","SCI-010AV1-V"]
[null,null,null,null,"SCI-010BV1-V: 'SCI010BR: Environmental Science'","SCI010BR: Environmental Science","SCI-010BV1-V"]
[null,null,null,null,{"$f":"CONCATENATE(G2818,\": '\",F2818,\"'\")","v":"SCI-010V2-K: 'SCI010: Environmental Science'"},"SCI010: Environmental Science","SCI-010V2-K"]
[null,null,null,null,"SCI-010V2TX-K: 'SCI010: Environmental Science - TX'","SCI010: Environmental Science - TX","SCI-010V2TX-K"]
[null,null,null,null,"SCI-010VS2-K: 'SCI010S: Environmental Science'","SCI010S: Environmental Science","SCI-010VS2-K"]
[null,null,null,null,"SCI-030V1-K: 'SCI030: Forensic Science'","SCI030: Forensic Science","SCI-030V1-K"]
[null,null,null,null,"SCI-102ABLV1-K: 'SCI102A-BL: Physical Science'","SCI102A-BL: Physical Science","SCI-102ABLV1-K"]
[null,null,null,null,"SCI-102AV1IN-K: 'SCI102A: Integrated Chemistry-Physics - IN'","SCI102A: Integrated Chemistry-Physics - IN","SCI-102AV1IN-K"]
[null,null,null,null,"SCI-102AV1-K: 'SCI102A:   Physical Science'","SCI102A:   Physical Science","SCI-102AV1-K"]
[null,null,null,null,"SCI-102AVS1-K: 'SCI102AS: Physical Science'","SCI102AS: Physical Science","SCI-102AVS1-K"]
[null,null,null,null,"SCI-102AXV1-K: 'SCI102AX: Physical Science'","SCI102AX: Physical Science","SCI-102AXV1-K"]
[null,null,null,null,"SCI-102AXVS1-K: 'SCI102AXS: Physical Science'","SCI102AXS: Physical Science","SCI-102AXVS1-K"]
[null,null,null,null,"SCI-102BBLV1-K: 'SCI102B-BL: Physical Science'","SCI102B-BL: Physical Science","SCI-102BBLV1-K"]
[null,null,null,null,"SCI-102BV1IN-K: 'SCI102B: Integrated Chemistry-Physics - IN'","SCI102B: Integrated Chemistry-Physics - IN","SCI-102BV1IN-K"]
[null,null,null,null,"SCI-102BV1-K: 'SCI102B:   Physical Science'","SCI102B:   Physical Science","SCI-102BV1-K"]
[null,null,null,null,"SCI-102BVS1-K: 'SCI102BS: Physical Science'","SCI102BS: Physical Science","SCI-102BVS1-K"]
[null,null,null,null,"SCI-102BXV1-K: 'SCI102BX: Physical Science'","SCI102BX: Physical Science","SCI-102BXV1-K"]
[null,null,null,null,"SCI-102BXVS1-K: 'SCI102BXS: Physical Science'","SCI102BXS: Physical Science","SCI-102BXVS1-K"]
[null,null,null,null,"SCI-106AV1-AVT: 'SCI106A-AVT: Physical Science'","SCI106A-AVT: Physical Science","SCI-106AV1-AVT"]
[null,null,null,null,"SCI-106AV1-K: 'SCI106A: Physical Science'","SCI106A: Physical Science","SCI-106AV1-K"]
[null,null,null,null,"SCI-106AVG1-K: 'SCI106AG: Physical Science'","SCI106AG: Physical Science","SCI-106AVG1-K"]
[null,null,null,null,"SCI-106AVS1-AVT: 'SCI106AS-AVT: Physical Science'","SCI106AS-AVT: Physical Science","SCI-106AVS1-AVT"]
[null,null,null,null,"SCI-106AVS1-K: 'SCI106AS:   Physical Science'","SCI106AS:   Physical Science","SCI-106AVS1-K"]
[null,null,null,null,"SCI-106AVSG1-K: 'SCI106ASG:   Physical Science'","SCI106ASG:   Physical Science","SCI-106AVSG1-K"]
[null,null,null,null,"SCI-106BV1-AVT: 'SCI106B-AVT: Physical Science'","SCI106B-AVT: Physical Science","SCI-106BV1-AVT"]
[null,null,null,null,"SCI-106BV1-K: 'SCI106B: Physical Science'","SCI106B: Physical Science","SCI-106BV1-K"]
[null,null,null,null,"SCI-106BVG1IN-K: 'SCI106BG: Integrated Chemistry-Physics ? IN'","SCI106BG: Integrated Chemistry-Physics ? IN","SCI-106BVG1IN-K"]
[null,null,null,null,"SCI-106BVG1-K: 'SCI106BG: Physical Science'","SCI106BG: Physical Science","SCI-106BVG1-K"]
[null,null,null,null,"SCI-106BVS1-AVT: 'SCI106BS-AVT: Physical Science'","SCI106BS-AVT: Physical Science","SCI-106BVS1-AVT"]
[null,null,null,null,"SCI-106BVS1-K: 'SCI106BS:   Physical Science'","SCI106BS:   Physical Science","SCI-106BVS1-K"]
[null,null,null,null,"SCI-106BVSG1-K: 'SCI106BSG:   Physical Science'","SCI106BSG:   Physical Science","SCI-106BVSG1-K"]
[null,null,null,null,"SCI-112ABLV1-K: 'SCI112A-BL: Earth Science'","SCI112A-BL: Earth Science","SCI-112ABLV1-K"]
[null,null,null,null,"SCI-112AV1-K: 'SCI112A:   Earth Science'","SCI112A:   Earth Science","SCI-112AV1-K"]
[null,null,null,null,"SCI-112AVS1-K: 'SCI112AS:  Earth Science'","SCI112AS:  Earth Science","SCI-112AVS1-K"]
[null,null,null,null,"SCI-112AXV1-K: 'SCI112AX: Earth Science'","SCI112AX: Earth Science","SCI-112AXV1-K"]
[null,null,null,null,"SCI-112AXVS1-K: 'SCI112AXS: Earth Science'","SCI112AXS: Earth Science","SCI-112AXVS1-K"]
[null,null,null,null,"SCI-112BBLV1-K: 'SCI112B-BL: Earth Science'","SCI112B-BL: Earth Science","SCI-112BBLV1-K"]
[null,null,null,null,"SCI-112BV1-K: 'SCI112B:   Earth Science'","SCI112B:   Earth Science","SCI-112BV1-K"]
[null,null,null,null,"SCI-112BVS1-K: 'SCI112BS:  Earth Science'","SCI112BS:  Earth Science","SCI-112BVS1-K"]
[null,null,null,null,"SCI-112BXV1-K: 'SCI112BX: Earth Science'","SCI112BX: Earth Science","SCI-112BXV1-K"]
[null,null,null,null,"SCI-112BXVS1-K: 'SCI112BXS: Earth Science'","SCI112BXS: Earth Science","SCI-112BXVS1-K"]
[null,null,null,null,"SCI-112BXVS1-K: 'SCI112BXS:?Earth Science'","SCI112BXS:?Earth Science","SCI-112BXVS1-K"]
[null,null,null,null,"SCI-113ABLV1-K: 'SCI113A-BL: Earth Science'","SCI113A-BL: Earth Science","SCI-113ABLV1-K"]
[null,null,null,null,"SCI-113AV1-K: 'SCI113A:   Earth Science'","SCI113A:   Earth Science","SCI-113AV1-K"]
[null,null,null,null,"SCI-113AXV1-K: 'SCI113AX: Earth Science'","SCI113AX: Earth Science","SCI-113AXV1-K"]
[null,null,null,null,"SCI-113BBLV1-K: 'SCI113B-BL: Earth Science'","SCI113B-BL: Earth Science","SCI-113BBLV1-K"]
[null,null,null,null,"SCI-113BV1-K: 'SCI113B:   Earth Science'","SCI113B:   Earth Science","SCI-113BV1-K"]
[null,null,null,null,"SCI-113BXV1-K: 'SCI113BX: Earth Science'","SCI113BX: Earth Science","SCI-113BXV1-K"]
[null,null,null,null,"SCI-114ABLV1-K: 'SCI114A-BL: Honors Earth Science'","SCI114A-BL: Honors Earth Science","SCI-114ABLV1-K"]
[null,null,null,null,"SCI-114AV1-K: 'SCI114A:   Honors Earth Science'","SCI114A:   Honors Earth Science","SCI-114AV1-K"]
[null,null,null,null,"SCI-114AXV1-K: 'SCI114AX: Honors Earth Science'","SCI114AX: Honors Earth Science","SCI-114AXV1-K"]
[null,null,null,null,"SCI-114BBLV1-K: 'SCI114B-BL: Honors Earth Science'","SCI114B-BL: Honors Earth Science","SCI-114BBLV1-K"]
[null,null,null,null,"SCI-114BV1-K: 'SCI114B:   Honors Earth Science'","SCI114B:   Honors Earth Science","SCI-114BV1-K"]
[null,null,null,null,"SCI-114BXV1-K: 'SCI114BX: Honors Earth Science'","SCI114BX: Honors Earth Science","SCI-114BXV1-K"]
[null,null,null,null,"SCI-116AV1-AVT: 'SCI116AR-AVT: Earth Science'","SCI116AR-AVT: Earth Science","SCI-116AV1-AVT"]
[null,null,null,null,"SCI-116AV1-K: 'SCI116A: Earth Science'","SCI116A: Earth Science","SCI-116AV1-K"]
[null,null,null,null,"SCI-116AV2-AVT: 'SCI116A-AVT: Earth Science'","SCI116A-AVT: Earth Science","SCI-116AV2-AVT"]
[null,null,null,null,"SCI-116AVG1-K: 'SCI116AG: Earth Science'","SCI116AG: Earth Science","SCI-116AVG1-K"]
[null,null,null,null,"SCI-116AVS1-AVT: 'SCI116ARS-AVT: Earth Science'","SCI116ARS-AVT: Earth Science","SCI-116AVS1-AVT"]
[null,null,null,null,"SCI-116AVS2-AVT: 'SCI116AS-AVT: Earth Science'","SCI116AS-AVT: Earth Science","SCI-116AVS2-AVT"]
[null,null,null,null,"SCI-116AVSG1-K: 'SCI116ASG: Earth Science'","SCI116ASG: Earth Science","SCI-116AVSG1-K"]
[null,null,null,null,"SCI-116BV1-AVT: 'SCI116BR-AVT: Earth Science'","SCI116BR-AVT: Earth Science","SCI-116BV1-AVT"]
[null,null,null,null,"SCI-116BV1-K: 'SCI116B: Earth Science'","SCI116B: Earth Science","SCI-116BV1-K"]
[null,null,null,null,"SCI-116BV2-AVT: 'SCI116B-AVT: Earth Science'","SCI116B-AVT: Earth Science","SCI-116BV2-AVT"]
[null,null,null,null,"SCI-116BVG1-K: 'SCI116BG: Earth Science'","SCI116BG: Earth Science","SCI-116BVG1-K"]
[null,null,null,null,"SCI-116BVS1-AVT: 'SCI116BRS-AVT: Earth Science'","SCI116BRS-AVT: Earth Science","SCI-116BVS1-AVT"]
[null,null,null,null,{"$f":"CONCATENATE(G2882,\": '\",F2882,\"'\")","v":"SCI-116BVS2-AVT: 'SCI116BS-AVT: Earth Science'"},"SCI116BS-AVT: Earth Science","SCI-116BVS2-AVT"]
[null,null,null,null,"SCI-116BVSG1-K: 'SCI116BSG: Earth Science'","SCI116BSG: Earth Science","SCI-116BVSG1-K"]
[null,null,null,null,"SCI-202ABLV1-K: 'SCI202A-BL: Biology'","SCI202A-BL: Biology","SCI-202ABLV1-K"]
[null,null,null,null,"SCI-202AV1-K: 'SCI202A:   Biology'","SCI202A:   Biology","SCI-202AV1-K"]
[null,null,null,null,"SCI-202AV1TX-K: 'SCI202A: Biology - TX'","SCI202A: Biology - TX","SCI-202AV1TX-K"]
[null,null,null,null,"SCI-202AVS1-K: 'SCI202AS:   Biology'","SCI202AS:   Biology","SCI-202AVS1-K"]
[null,null,null,null,"SCI-202AXV1-K: 'SCI202AX: Biology'","SCI202AX: Biology","SCI-202AXV1-K"]
[null,null,null,null,"SCI-202AXVS1-K: 'SCI202AXS: Biology'","SCI202AXS: Biology","SCI-202AXVS1-K"]
[null,null,null,null,"SCI-202BBLV1-K: 'SCI202B-BL: Biology'","SCI202B-BL: Biology","SCI-202BBLV1-K"]
[null,null,null,null,"SCI-202BV1-K: 'SCI202B:   Biology'","SCI202B:   Biology","SCI-202BV1-K"]
[null,null,null,null,"SCI-202BV1TX-K: 'SCI202B: Biology - TX'","SCI202B: Biology - TX","SCI-202BV1TX-K"]
[null,null,null,null,"SCI-202BVS1-K: 'SCI202BS:   Biology'","SCI202BS:   Biology","SCI-202BVS1-K"]
[null,null,null,null,"SCI-202BXV1-K: 'SCI202BX: Biology'","SCI202BX: Biology","SCI-202BXV1-K"]
[null,null,null,null,"SCI-202BXVS1-K: 'SCI202BXS: Biology'","SCI202BXS: Biology","SCI-202BXVS1-K"]
[null,null,null,null,"SCI-203ABLV1-K: 'SCI203A-BL: Biology'","SCI203A-BL: Biology","SCI-203ABLV1-K"]
[null,null,null,null,"SCI-203AV1-K: 'SCI203A:   Biology'","SCI203A:   Biology","SCI-203AV1-K"]
[null,null,null,null,"SCI-203AV1TX-K: 'SCI203A: Biology - TX'","SCI203A: Biology - TX","SCI-203AV1TX-K"]
[null,null,null,null,"SCI-203AXV1-K: 'SCI203AX: Biology'","SCI203AX: Biology","SCI-203AXV1-K"]
[null,null,null,null,"SCI-203BBLV1-K: 'SCI203B-BL: Biology'","SCI203B-BL: Biology","SCI-203BBLV1-K"]
[null,null,null,null,"SCI-203BV1-K: 'SCI203B:   Biology'","SCI203B:   Biology","SCI-203BV1-K"]
[null,null,null,null,"SCI-203BV1TX-K: 'SCI203B: Biology - TX'","SCI203B: Biology - TX","SCI-203BV1TX-K"]
[null,null,null,null,"SCI-203BXV1-K: 'SCI203BX: Biology'","SCI203BX: Biology","SCI-203BXV1-K"]
[null,null,null,null,"SCI-204ABLV1-K: 'SCI204A-BL: Honors Biology'","SCI204A-BL: Honors Biology","SCI-204ABLV1-K"]
[null,null,null,null,"SCI-204AV1-K: 'SCI204A:   Honors Biology'","SCI204A:   Honors Biology","SCI-204AV1-K"]
[null,null,null,null,"SCI-204AV1TX-K: 'SCI204A: Honors Biology - TX'","SCI204A: Honors Biology - TX","SCI-204AV1TX-K"]
[null,null,null,null,"SCI-204AXV1-K: 'SCI204AX: Honors Biology'","SCI204AX: Honors Biology","SCI-204AXV1-K"]
[null,null,null,null,"SCI-204BBLV1-K: 'SCI204B-BL: Honors Biology'","SCI204B-BL: Honors Biology","SCI-204BBLV1-K"]
[null,null,null,null,"SCI-204BV1-K: 'SCI204B:   Honors Biology'","SCI204B:   Honors Biology","SCI-204BV1-K"]
[null,null,null,null,"SCI-204BV1TX-K: 'SCI204B: Honors Biology - TX'","SCI204B: Honors Biology - TX","SCI-204BV1TX-K"]
[null,null,null,null,"SCI-204BXV1-K: 'SCI204BX: Honors Biology'","SCI204BX: Honors Biology","SCI-204BXV1-K"]
[null,null,null,null,"SCI-206AV1-AVT: 'SCI206AR-AVT: Biology'","SCI206AR-AVT: Biology","SCI-206AV1-AVT"]
[null,null,null,null,"SCI-206AV1CA-AVT: 'SCI206AR-AVT-CA: Biology'","SCI206AR-AVT-CA: Biology","SCI-206AV1CA-AVT"]
[null,null,null,null,"SCI-206AV1-K: 'SCI206A: Biology'","SCI206A: Biology","SCI-206AV1-K"]
[null,null,null,null,"SCI-206AV2-AVT: 'SCI206A-AVT: Biology'","SCI206A-AVT: Biology","SCI-206AV2-AVT"]
[null,null,null,null,"SCI-206AV2CA-AVT: 'SCI206A-AVT-CA: Biology'","SCI206A-AVT-CA: Biology","SCI-206AV2CA-AVT"]
[null,null,null,null,"SCI-206AVG1-K: 'SCI206AG: Biology'","SCI206AG: Biology","SCI-206AVG1-K"]
[null,null,null,null,"SCI-206AVS1-AVT: 'SCI206ARS-AVT: Biology'","SCI206ARS-AVT: Biology","SCI-206AVS1-AVT"]
[null,null,null,null,"SCI-206AVS1CA-AVT: 'SCI206ARS-AVT-CA: Biology'","SCI206ARS-AVT-CA: Biology","SCI-206AVS1CA-AVT"]
[null,null,null,null,"SCI-206AVS1-K: 'SCI206AS:   Biology'","SCI206AS:   Biology","SCI-206AVS1-K"]
[null,null,null,null,"SCI-206AVS2-AVT: 'SCI206AS-AVT: Biology'","SCI206AS-AVT: Biology","SCI-206AVS2-AVT"]
[null,null,null,null,"SCI-206AVS2CA-AVT: 'SCI206AS-AVT-CA: Biology'","SCI206AS-AVT-CA: Biology","SCI-206AVS2CA-AVT"]
[null,null,null,null,"SCI-206AVSG1-K: 'SCI206ASG:   Biology'","SCI206ASG:   Biology","SCI-206AVSG1-K"]
[null,null,null,null,"SCI-206BV1-AVT: 'SCI206BR-AVT: Biology'","SCI206BR-AVT: Biology","SCI-206BV1-AVT"]
[null,null,null,null,"SCI-206BV1CA-AVT: 'SCI206BR-AVT-CA: Biology'","SCI206BR-AVT-CA: Biology","SCI-206BV1CA-AVT"]
[null,null,null,null,"SCI-206BV1-K: 'SCI206B: Biology'","SCI206B: Biology","SCI-206BV1-K"]
[null,null,null,null,"SCI-206BV2-AVT: 'SCI206B-AVT: Biology'","SCI206B-AVT: Biology","SCI-206BV2-AVT"]
[null,null,null,null,"SCI-206BV2CA-AVT: 'SCI206B-AVT-CA: Biology'","SCI206B-AVT-CA: Biology","SCI-206BV2CA-AVT"]
[null,null,null,null,"SCI-206BVG1-K: 'SCI206BG: Biology'","SCI206BG: Biology","SCI-206BVG1-K"]
[null,null,null,null,"SCI-206BVS1-AVT: 'SCI206BRS-AVT: Biology'","SCI206BRS-AVT: Biology","SCI-206BVS1-AVT"]
[null,null,null,null,"SCI-206BVS1CA-AVT: 'SCI206BRS-AVT-CA: Biology'","SCI206BRS-AVT-CA: Biology","SCI-206BVS1CA-AVT"]
[null,null,null,null,"SCI-206BVS1-K: 'SCI206BS:   Biology'","SCI206BS:   Biology","SCI-206BVS1-K"]
[null,null,null,null,"SCI-206BVS2-AVT: 'SCI206BS-AVT: Biology'","SCI206BS-AVT: Biology","SCI-206BVS2-AVT"]
[null,null,null,null,"SCI-206BVS2CA-AVT: 'SCI206BS-AVT-CA: Biology'","SCI206BS-AVT-CA: Biology","SCI-206BVS2CA-AVT"]
[null,null,null,null,"SCI-206BVSG1-K: 'SCI206BSG:   Biology'","SCI206BSG:   Biology","SCI-206BVSG1-K"]
[null,null,null,null,"SCI-302ABLV1-K: 'SCI302A-BL: Chemistry'","SCI302A-BL: Chemistry","SCI-302ABLV1-K"]
[null,null,null,null,"SCI-302AV1-K: 'SCI302A:   Chemistry'","SCI302A:   Chemistry","SCI-302AV1-K"]
[null,null,null,null,"SCI-302AV1TX-K: 'SCI302A: Chemistry - TX'","SCI302A: Chemistry - TX","SCI-302AV1TX-K"]
[null,null,null,null,"SCI-302AVS1-K: 'SCI302AS: Chemistry'","SCI302AS: Chemistry","SCI-302AVS1-K"]
[null,null,null,null,"SCI-302AXV1-K: 'SCI302AX: Chemistry'","SCI302AX: Chemistry","SCI-302AXV1-K"]
[null,null,null,null,"SCI-302BBLV1-K: 'SCI302B-BL: Chemistry'","SCI302B-BL: Chemistry","SCI-302BBLV1-K"]
[null,null,null,null,"SCI-302BV1-K: 'SCI302B:   Chemistry'","SCI302B:   Chemistry","SCI-302BV1-K"]
[null,null,null,null,"SCI-302BV1TX-K: 'SCI302B: Chemistry - TX'","SCI302B: Chemistry - TX","SCI-302BV1TX-K"]
[null,null,null,null,"SCI-302BVS1-K: 'SCI302BS: Chemistry'","SCI302BS: Chemistry","SCI-302BVS1-K"]
[null,null,null,null,"SCI-302BXV1-K: 'SCI302BX: Chemistry'","SCI302BX: Chemistry","SCI-302BXV1-K"]
[null,null,null,null,{"$f":"CONCATENATE(G2946,\": '\",F2946,\"'\")","v":"SCI-303ABLV1-K: 'SCI303A-BL: Chemistry'"},"SCI303A-BL: Chemistry","SCI-303ABLV1-K"]
[null,null,null,null,"SCI-303AV1-K: 'SCI303A:   Chemistry'","SCI303A:   Chemistry","SCI-303AV1-K"]
[null,null,null,null,"SCI-303AV1TX-K: 'SCI303A: Chemistry - TX'","SCI303A: Chemistry - TX","SCI-303AV1TX-K"]
[null,null,null,null,"SCI-303AXV1-K: 'SCI303AX: Chemistry'","SCI303AX: Chemistry","SCI-303AXV1-K"]
[null,null,null,null,"SCI-303BBLV1-K: 'SCI303B-BL: Chemistry'","SCI303B-BL: Chemistry","SCI-303BBLV1-K"]
[null,null,null,null,"SCI-303BV1-K: 'SCI303B:   Chemistry'","SCI303B:   Chemistry","SCI-303BV1-K"]
[null,null,null,null,"SCI-303B-V1-K: 'SCI303B: Chemistry*'","SCI303B: Chemistry*","SCI-303B-V1-K"]
[null,null,null,null,"SCI-303BV1TX-K: 'SCI303B: Chemistry - TX'","SCI303B: Chemistry - TX","SCI-303BV1TX-K"]
[null,null,null,null,"SCI-303BXV1-K: 'SCI303BX: Chemistry'","SCI303BX: Chemistry","SCI-303BXV1-K"]
[null,null,null,null,"SCI-303BX-V1-K: 'SCI303BX: Chemistry*'","SCI303BX: Chemistry*","SCI-303BX-V1-K"]
[null,null,null,null,"SCI-304ABLV1-K: 'SCI304A-BL: Honors Chemistry'","SCI304A-BL: Honors Chemistry","SCI-304ABLV1-K"]
[null,null,null,null,"SCI-304AV1-K: 'SCI304A:   Honors Chemistry'","SCI304A:   Honors Chemistry","SCI-304AV1-K"]
[null,null,null,null,"SCI-304AV1TX-K: 'SCI304A: Honors Chemistry - TX'","SCI304A: Honors Chemistry - TX","SCI-304AV1TX-K"]
[null,null,null,null,"SCI-304AXV1-K: 'SCI304AX: Honors Chemistry'","SCI304AX: Honors Chemistry","SCI-304AXV1-K"]
[null,null,null,null,"SCI-304BBLV1-K: 'SCI304B-BL: Honors Chemistry'","SCI304B-BL: Honors Chemistry","SCI-304BBLV1-K"]
[null,null,null,null,"SCI-304BV1-K: 'SCI304B:   Honors Chemistry'","SCI304B:   Honors Chemistry","SCI-304BV1-K"]
[null,null,null,null,"SCI-304BV1TX-K: 'SCI304B: Honors Chemistry - TX'","SCI304B: Honors Chemistry - TX","SCI-304BV1TX-K"]
[null,null,null,null,"SCI-304BXV1-K: 'SCI304BX: Honors Chemistry'","SCI304BX: Honors Chemistry","SCI-304BXV1-K"]
[null,null,null,null,"SCI-304BX-V1-K: 'SCI304BX: Honors Chemistry*'","SCI304BX: Honors Chemistry*","SCI-304BX-V1-K"]
[null,null,null,null,"SCI-306AV1-AVT: 'SCI306A-AVT: Chemistry'","SCI306A-AVT: Chemistry","SCI-306AV1-AVT"]
[null,null,null,null,"SCI-306AV1-K: 'SCI306A: Chemistry'","SCI306A: Chemistry","SCI-306AV1-K"]
[null,null,null,null,"SCI-306AVG1-K: 'SCI306AG: Chemistry'","SCI306AG: Chemistry","SCI-306AVG1-K"]
[null,null,null,null,"SCI-306AVS1-K: 'SCI306AS:   Chemistry'","SCI306AS:   Chemistry","SCI-306AVS1-K"]
[null,null,null,null,"SCI-306AVSG1-K: 'SCI306ASG:   Chemistry'","SCI306ASG:   Chemistry","SCI-306AVSG1-K"]
[null,null,null,null,"SCI-306BV1-AVT: 'SCI306B-AVT: Chemistry'","SCI306B-AVT: Chemistry","SCI-306BV1-AVT"]
[null,null,null,null,"SCI-306BV1-K: 'SCI306B: Chemistry'","SCI306B: Chemistry","SCI-306BV1-K"]
[null,null,null,null,"SCI-306BVG1-K: 'SCI306BG: Chemistry'","SCI306BG: Chemistry","SCI-306BVG1-K"]
[null,null,null,null,"SCI-306BVS1-K: 'SCI306BS:   Chemistry'","SCI306BS:   Chemistry","SCI-306BVS1-K"]
[null,null,null,null,"SCI-306BVSG1-K: 'SCI306BSG:   Chemistry'","SCI306BSG:   Chemistry","SCI-306BVSG1-K"]
[null,null,null,null,"SCI-403ABLV1-K: 'SCI403A-BL: Physics'","SCI403A-BL: Physics","SCI-403ABLV1-K"]
[null,null,null,null,"SCI-403AV1-C: 'SCI403A:   Physics 08-09'","SCI403A:   Physics 08-09","SCI-403AV1-C"]
[null,null,null,null,"SCI-403AV1-K: 'SCI403A:   Physics'","SCI403A:   Physics","SCI-403AV1-K"]
[null,null,null,null,"SCI-403AV1TX-K: 'SCI403A: Physics - TX'","SCI403A: Physics - TX","SCI-403AV1TX-K"]
[null,null,null,null,"SCI-403AVS1-K: 'SCI403AS: Physics'","SCI403AS: Physics","SCI-403AVS1-K"]
[null,null,null,null,"SCI-403AXV1-K: 'SCI403AX: Physics'","SCI403AX: Physics","SCI-403AXV1-K"]
[null,null,null,null,"SCI-403BBLV1-K: 'SCI403B-BL: Physics'","SCI403B-BL: Physics","SCI-403BBLV1-K"]
[null,null,null,null,"SCI-403BV1-C: 'SCI403B:   Physics 08-09'","SCI403B:   Physics 08-09","SCI-403BV1-C"]
[null,null,null,null,"SCI-403BV1-K: 'SCI403B:   Physics'","SCI403B:   Physics","SCI-403BV1-K"]
[null,null,null,null,"SCI-403BV1TX-K: 'SCI403B: Physics - TX'","SCI403B: Physics - TX","SCI-403BV1TX-K"]
[null,null,null,null,"SCI-403BVS1-K: 'SCI403BS: Physics'","SCI403BS: Physics","SCI-403BVS1-K"]
[null,null,null,null,"SCI-403BXV1-K: 'SCI403BX: Physics'","SCI403BX: Physics","SCI-403BXV1-K"]
[null,null,null,null,"SCI-404ABLV1-K: 'SCI404A-BL: Honors Physics'","SCI404A-BL: Honors Physics","SCI-404ABLV1-K"]
[null,null,null,null,"SCI-404AV1-K: 'SCI404A:   Honors Physics'","SCI404A:   Honors Physics","SCI-404AV1-K"]
[null,null,null,null,"SCI-404AV1TX-K: 'SCI404A: Honors Physics - TX'","SCI404A: Honors Physics - TX","SCI-404AV1TX-K"]
[null,null,null,null,"SCI-404AXV1-K: 'SCI404AX: Honors Physics'","SCI404AX: Honors Physics","SCI-404AXV1-K"]
[null,null,null,null,"SCI-404BBLV1-K: 'SCI404B-BL: Honors Physics'","SCI404B-BL: Honors Physics","SCI-404BBLV1-K"]
[null,null,null,null,"SCI-404BV1-K: 'SCI404B:   Honors Physics'","SCI404B:   Honors Physics","SCI-404BV1-K"]
[null,null,null,null,"SCI-404BV1TX-K: 'SCI404B: Honors Physics - TX'","SCI404B: Honors Physics - TX","SCI-404BV1TX-K"]
[null,null,null,null,"SCI-404BXV1-K: 'SCI404BX: Honors Physics'","SCI404BX: Honors Physics","SCI-404BXV1-K"]
[null,null,null,null,"SCI-500AV1-A: 'SCI500AR: AP(R) Biology'","SCI500AR: AP(R) Biology","SCI-500AV1-A"]
[null,null,null,null,"SCI-500AV2-K: 'SCI500A:  AP(R) Biology'","SCI500A:  AP(R) Biology","SCI-500AV2-K"]
[null,null,null,null,"SCI-500BV1-A: 'SCI500BR: AP(R) Biology'","SCI500BR: AP(R) Biology","SCI-500BV1-A"]
[null,null,null,null,"SCI-500BV2-K: 'SCI500B:  AP(R) Biology'","SCI500B:  AP(R) Biology","SCI-500BV2-K"]
[null,null,null,null,"SCI-510AV1-A: 'SCI510AR:   AP(R) Chemistry'","SCI510AR:   AP(R) Chemistry","SCI-510AV1-A"]
[null,null,null,null,"SCI-510AV2-A: 'SCI510A: AP(R) Chemistry'","SCI510A: AP(R) Chemistry","SCI-510AV2-A"]
[null,null,null,null,"SCI-510BV1-A: 'SCI510BR:   AP(R) Chemistry'","SCI510BR:   AP(R) Chemistry","SCI-510BV1-A"]
[null,null,null,null,"SCI-510BV2-A: 'SCI510B: AP(R) Chemistry'","SCI510B: AP(R) Chemistry","SCI-510BV2-A"]
[null,null,null,null,"SCI-520AV1-A: 'SCI520AR:  AP(R) Physics B'","SCI520AR:  AP(R) Physics B","SCI-520AV1-A"]
[null,null,null,null,"SCI-520BV1-A: 'SCI520BR:  AP(R) Physics B'","SCI520BR:  AP(R) Physics B","SCI-520BV1-A"]
[null,null,null,null,"SCI-530AV1-AVT: 'SCI530A-AVT: AP(R) Environmental Science'","SCI530A-AVT: AP(R) Environmental Science","SCI-530AV1-AVT"]
[null,null,null,null,"SCI-530BV1-AVT: 'SCI530B-AVT: AP(R) Environmental Science'","SCI530B-AVT: AP(R) Environmental Science","SCI-530BV1-AVT"]
[null,null,null,null,"SCKF1: 'Science K*'","Science K*","SCKF1"]
[null,null,null,null,"SC-N004H-K: 'Science: Senses and Trees'","Science: Senses and Trees","SC-N004H-K"]
[null,null,null,null,"SC-N005H-K: 'Science: Fantastic Forces'","Science: Fantastic Forces","SC-N005H-K"]
[null,null,null,null,{"$f":"CONCATENATE(G3010,\": '\",F3010,\"'\")","v":"SC-N006H-K: 'Science: Swimmers and Crawlers'"},"Science: Swimmers and Crawlers","SC-N006H-K"]
[null,null,null,null,"SC-N104H-K: 'Science: Solids and Liquids'","Science: Solids and Liquids","SC-N104H-K"]
[null,null,null,null,"SC-N105H-K: 'Science: Rocks and Soil'","Science: Rocks and Soil","SC-N105H-K"]
[null,null,null,null,"SC-N106H-K: 'Science: Lots of Life'","Science: Lots of Life","SC-N106H-K"]
[null,null,null,null,"SC-N204H-K: 'Science: Balancing and Weighing'","Science: Balancing and Weighing","SC-N204H-K"]
[null,null,null,null,"SC-N205H-K: 'Science: Wonders of Weather'","Science: Wonders of Weather","SC-N205H-K"]
[null,null,null,null,"SC-N206H-K: 'Science: A Butterfly's Life'","Science: A Butterfly's Life","SC-N206H-K"]
[null,null,null,null,"SC-N304H-K: 'Science: Rocks and Minerals'","Science: Rocks and Minerals","SC-N304H-K"]
[null,null,null,null,"SC-N306H-K: 'Science: See Seeds Grow'","Science: See Seeds Grow","SC-N306H-K"]
[null,null,null,null,"SC-NAT1H-K: 'Classroom Science 1 - National'","Classroom Science 1 - National","SC-NAT1H-K"]
[null,null,null,null,"SC-NAT2H-K: 'Classroom Science 2 - National'","Classroom Science 2 - National","SC-NAT2H-K"]
[null,null,null,null,"SC-NAT3H-K: 'Classroom Science 3 - National'","Classroom Science 3 - National","SC-NAT3H-K"]
[null,null,null,null,"SC-NATKH-K: 'Classroom Science K - National'","Classroom Science K - National","SC-NATKH-K"]
[null,null,null,null,"SC-PHS1A-A: 'Apex AP Physics B - Sem 1'","Apex AP Physics B - Sem 1","SC-PHS1A-A"]
[null,null,null,null,"SC-PHS2A-A: 'Apex AP Physics B - Sem 2'","Apex AP Physics B - Sem 2","SC-PHS2A-A"]
[null,null,null,null,"SC-PSS1C-A: 'Apex: Physical Science Sem 1 - Comprehensive'","Apex: Physical Science Sem 1 - Comprehensive","SC-PSS1C-A"]
[null,null,null,null,"SC-PSS1H-A: 'Apex: Physical Science Sem 1'","Apex: Physical Science Sem 1","SC-PSS1H-A"]
[null,null,null,null,"SC-PSS2C-A: 'Apex: Physical Science Sem 2 - Comprehensive'","Apex: Physical Science Sem 2 - Comprehensive","SC-PSS2C-A"]
[null,null,null,null,"SC-PSS2H-A: 'Apex: Physical Science Sem 2'","Apex: Physical Science Sem 2","SC-PSS2H-A"]
[null,null,null,null,"SC-PSYCA-A: 'Apex AP Psychology'","Apex AP Psychology","SC-PSYCA-A"]
[null,null,null,null,"SC-SAA3H-K: 'Science: Sound All Around'","Science: Sound All Around","SC-SAA3H-K"]
[null,null,null,null,"SC-SDP1H-K: 'Classroom Science 1'","Classroom Science 1","SC-SDP1H-K"]
[null,null,null,null,"SC-SDP2H-K: 'Classroom Science 2'","Classroom Science 2","SC-SDP2H-K"]
[null,null,null,null,"SC-SDP3H-K: 'Classroom Science 3'","Classroom Science 3","SC-SDP3H-K"]
[null,null,null,null,"SC-SDPKH-K: 'Classroom Science K'","Classroom Science K","SC-SDPKH-K"]
[null,null,null,null,"SP3F1: 'Spelling 3'","Spelling 3","SP3F1"]
[null,null,null,null,"SP4F1: 'Spelling 4*'","Spelling 4*","SP4F1"]
[null,null,null,null,"SP5F1: 'Spelling 5*'","Spelling 5*","SP5F1"]
[null,null,null,null,"SS-301AG-V: 'American Government and Economics - Sem 1'","American Government and Economics - Sem 1","SS-301AG-V"]
[null,null,null,null,"SS-301BG-V: 'American Government and Economics - Sem 2'","American Government and Economics - Sem 2","SS-301BG-V"]
[null,null,null,null,"SS-451G-C: 'American Government'","American Government","SS-451G-C"]
[null,null,null,null,"SS-801AG-V: 'Psychology - Sem 1'","Psychology - Sem 1","SS-801AG-V"]
[null,null,null,null,"SS-801BG-V: 'Psychology - Sem 2'","Psychology - Sem 2","SS-801BG-V"]
[null,null,null,null,"SS-802G-C: 'Anthropology'","Anthropology","SS-802G-C"]
[null,null,null,null,"TCH-010V1-G: 'TCH010R:   Computer Literacy I'","TCH010R:   Computer Literacy I","TCH-010V1-G"]
[null,null,null,null,"TCH-010V2-G: 'TCH010R: Computer Literacy'","TCH010R: Computer Literacy","TCH-010V2-G"]
[null,null,null,null,"TCH-010V2TX-G: 'TCH010: Computer Literacy - TX'","TCH010: Computer Literacy - TX","TCH-010V2TX-G"]
[null,null,null,null,"TCH-010V3-G: 'TCH010: Computer Literacy'","TCH010: Computer Literacy","TCH-010V3-G"]
[null,null,null,null,"TCH-010VS1-G: 'TCH010S:   Computer Literacy I'","TCH010S:   Computer Literacy I","TCH-010VS1-G"]
[null,null,null,null,"TCH-010VS2-G: 'TCH010RS: Computer Literacy'","TCH010RS: Computer Literacy","TCH-010VS2-G"]
[null,null,null,null,"TCH-010VS3-G: 'TCH010S: Computer Literacy'","TCH010S: Computer Literacy","TCH-010VS3-G"]
[null,null,null,null,"TCH-016V1-G: 'TCH016:   Flash Animation'","TCH016:   Flash Animation","TCH-016V1-G"]
[null,null,null,null,"TCH-017V1-G: 'TCH017: 3D Art 1 - Modeling'","TCH017: 3D Art 1 - Modeling","TCH-017V1-G"]
[null,null,null,null,"TCH-017VS1-G: 'TCH017S: 3D Art I Ð Modeling'","TCH017S: 3D Art I Ð Modeling","TCH-017VS1-G"]
[null,null,null,null,"TCH-018V1-G: 'TCH018: 3D Art II - Animation'","TCH018: 3D Art II - Animation","TCH-018V1-G"]
[null,null,null,null,"TCH-019V1-G: 'TCH019R: Computer-Aided Design (CAD)'","TCH019R: Computer-Aided Design (CAD)","TCH-019V1-G"]
[null,null,null,null,"TCH-020AV2-AVT: 'TCH020A-AVT: Computer Fundamentals'","TCH020A-AVT: Computer Fundamentals","TCH-020AV2-AVT"]
[null,null,null,null,"TCH-020BV2-AVT: 'TCH020B-AVT: Computer Fundamentals'","TCH020B-AVT: Computer Fundamentals","TCH-020BV2-AVT"]
[null,null,null,null,"TCH-020V1-G: 'TCH020R:   Computer Literacy II'","TCH020R:   Computer Literacy II","TCH-020V1-G"]
[null,null,null,null,"TCH-026V1-G: 'TCH026: Audio Engineering'","TCH026: Audio Engineering","TCH-026V1-G"]
[null,null,null,null,"TCH-027V1-G: 'TCH027: Green Design and Technology'","TCH027: Green Design and Technology","TCH-027V1-G"]
[null,null,null,null,"TCH-028V1-G: 'TCH028: Digital Arts I'","TCH028: Digital Arts I","TCH-028V1-G"]
[null,null,null,null,"TCH-029V1-G: 'TCH029: Digital Arts II'","TCH029: Digital Arts II","TCH-029V1-G"]
[null,null,null,null,"TCH-030V1-G: 'TCH030R:   Digital Photography and Graphics'","TCH030R:   Digital Photography and Graphics","TCH-030V1-G"]
[null,null,null,null,"TCH-030V2-G: 'TCH030R: Image Design and Editing'","TCH030R: Image Design and Editing","TCH-030V2-G"]
[null,null,null,null,"TCH-030V3-G: 'TCH030: Image Design and Editing'","TCH030: Image Design and Editing","TCH-030V3-G"]
[null,null,null,null,"TCH-030VS1-G: 'TCH030S:   Digital Photography and Graphics'","TCH030S:   Digital Photography and Graphics","TCH-030VS1-G"]
[null,null,null,null,"TCH-030VS2-G: 'TCH030S: Image Design and Editing'","TCH030S: Image Design and Editing","TCH-030VS2-G"]
[null,null,null,null,"TCH-031V1-DYN: 'TCH031-DYN: Digital Photography I  '","TCH031-DYN: Digital Photography I  ","TCH-031V1-DYN"]
[null,null,null,null,"TCH-031V1-DYN: 'TCH031-DYN: Digital Photography I??'","TCH031-DYN: Digital Photography I??","TCH-031V1-DYN"]
[null,null,null,null,"TCH-032V1-DYN: 'TCH032-DYN: Digital Photography II'","TCH032-DYN: Digital Photography II","TCH-032V1-DYN"]
[null,null,null,null,"TCH-036V1-G: 'TCH036: Computer Science'","TCH036: Computer Science","TCH-036V1-G"]
[null,null,null,null,"TCH-036V1TX-G: 'TCH036: Computer Science - TX'","TCH036: Computer Science - TX","TCH-036V1TX-G"]
[null,null,null,null,"TCH-038V1-G: 'TCH038: Engineering Design'","TCH038: Engineering Design","TCH-038V1-G"]
[null,null,null,null,{"$f":"CONCATENATE(G3074,\": '\",F3074,\"'\")","v":"TCH-040V1-G: 'TCH040R: Web Design'"},"TCH040R: Web Design","TCH-040V1-G"]
[null,null,null,null,"TCH-040V2-G: 'TCH040: Web Design'","TCH040: Web Design","TCH-040V2-G"]
[null,null,null,null,"TCH-040VS1-G: 'TCH040S:   Web Design'","TCH040S:   Web Design","TCH-040VS1-G"]
[null,null,null,null,"TCH-050V1-G: 'TCH050R:   Digital Video Production'","TCH050R:   Digital Video Production","TCH-050V1-G"]
[null,null,null,null,"TCH-060V1-G: 'TCH060:   C++ Programming'","TCH060:   C++ Programming","TCH-060V1-G"]
[null,null,null,null,"TCH-060VS1-G: 'TCH060S: C++ Programming'","TCH060S: C++ Programming","TCH-060VS1-G"]
[null,null,null,null,"TCH-061V1-AVT: 'TCH061-AVT:  Programming I - VB.NET'","TCH061-AVT:  Programming I - VB.NET","TCH-061V1-AVT"]
[null,null,null,null,"TCH-062V1-AVT: 'TCH062-AVT: Programming II - Java'","TCH062-AVT: Programming II - Java","TCH-062V1-AVT"]
[null,null,null,null,"TCH-070V1-G: 'TCH070R:   Game Design I'","TCH070R:   Game Design I","TCH-070V1-G"]
[null,null,null,null,"TCH-070V2-G: 'TCH070: Game Design'","TCH070: Game Design","TCH-070V2-G"]
[null,null,null,null,"TCH-070VS1-G: 'TCH070S:   Game Design I'","TCH070S:   Game Design I","TCH-070VS1-G"]
[null,null,null,null,"TCH-070VS2-G: 'TCH070S: Game Design'","TCH070S: Game Design","TCH-070VS2-G"]
[null,null,null,null,"TCH-080V1-G: 'TCH080R:   Game Design II'","TCH080R:   Game Design II","TCH-080V1-G"]
[null,null,null,null,"TCH-090V1-G: 'TCH090:   3D Game Creation'","TCH090:   3D Game Creation","TCH-090V1-G"]
[null,null,null,null,"TCH-090V2-G: 'TCH090R: Online Game Design'","TCH090R: Online Game Design","TCH-090V2-G"]
[null,null,null,null,"TCH-090V3-G: 'TCH090: Flash Game Development'","TCH090: Flash Game Development","TCH-090V3-G"]
[null,null,null,null,"TCH-101V1-AVT: 'TCH101-AVT: Digital Photography'","TCH101-AVT: Digital Photography","TCH-101V1-AVT"]
[null,null,null,null,"TCH-500AV1-AVT: 'TCH500A-AVT: AP(R) Computer Science A'","TCH500A-AVT: AP(R) Computer Science A","TCH-500AV1-AVT"]
[null,null,null,null,"TCH-500BV1-AVT: 'TCH500B-AVT: AP(R) Computer Science B'","TCH500B-AVT: AP(R) Computer Science B","TCH-500BV1-AVT"]
[null,null,null,null,"TC-HTMLH-A: 'Apex HTML, Dynamic HTML and Scripting'","Apex HTML, Dynamic HTML and Scripting","TC-HTMLH-A"]
[null,null,null,null,"TE-101AG-V: 'Introduction to Computers and Applications - Sem 1'","Introduction to Computers and Applications - Sem 1","TE-101AG-V"]
[null,null,null,null,"TE-101BG-V: 'Introduction to Computers and Applications - Sem 2'","Introduction to Computers and Applications - Sem 2","TE-101BG-V"]
[null,null,null,null,"TE-201G-G: 'Digital Photography and Graphics'","Digital Photography and Graphics","TE-201G-G"]
[null,null,null,null,"TE-301G-G: 'Digital Video Production'","Digital Video Production","TE-301G-G"]
[null,null,null,null,"TE-501G-G: 'Computer Fundamentals'","Computer Fundamentals","TE-501G-G"]
[null,null,null,null,"TE-601G-G: 'Web Design'","Web Design","TE-601G-G"]
[null,null,null,null,"TE-701G-G: 'Programming 1'","Programming 1","TE-701G-G"]
[null,null,null,null,"TE-801G-G: 'Game Design 1'","Game Design 1","TE-801G-G"]
[null,null,null,null,"VA1F1: 'Art 1'","Art 1","VA1F1"]
[null,null,null,null,"VA2F1: 'Art 2'","Art 2","VA2F1"]
[null,null,null,null,"VA3F1: 'Art 3'","Art 3","VA3F1"]
[null,null,null,null,"VA4F1: 'Art 4'","Art 4","VA4F1"]
[null,null,null,null,"VA5F1: 'Art 5'","Art 5","VA5F1"]
[null,null,null,null,"VA6F1: 'Art American A'","Art American A","VA6F1"]
[null,null,null,null,"VA7F1: 'Art American B'","Art American B","VA7F1"]
[null,null,null,null,"VA8F1: 'Intermediate Art: World A'","Intermediate Art: World A","VA8F1"]
[null,null,null,null,"VABF1: 'Intermediate Art: World B'","Intermediate Art: World B","VABF1"]
[null,null,null,null,"VAKF1: 'Art K'","Art K","VAKF1"]
[null,null,null,null,"VA-WBF1H-K: 'K12 Intermediate Art: World B'","K12 Intermediate Art: World B","VA-WBF1H-K"]
[null,null,null,null,"WAH-100V1-K: 'WAH100: Washington State History'","WAH100: Washington State History","WAH-100V1-K"]
[null,null,null,null,"WAH-100VS1-K: 'WAH100: Washington State History (Summer)'","WAH100: Washington State History (Summer)","WAH-100VS1-K"]
[null,null,null,null,"WLG-100AV1-M: 'WLG100A: Spanish I'","WLG100A: Spanish I","WLG-100AV1-M"]
[null,null,null,null,"WLG-100AV1-MIL: 'WLG100A-MIL: Spanish I'","WLG100A-MIL: Spanish I","WLG-100AV1-MIL"]
[null,null,null,null,"WLG-100AV1-P: 'WLG100AR:   Spanish I'","WLG100AR:   Spanish I","WLG-100AV1-P"]
[null,null,null,null,"WLG-100AV1-P-IND: 'WLG100A: Spanish I - Semester 1 - Independent Study'","WLG100A: Spanish I - Semester 1 - Independent Study","WLG-100AV1-P-IND"]
[null,null,null,null,"WLG-100AV1-P-TCH: 'WLG100A: Spanish I - Semester 1 - Teacher Supported'","WLG100A: Spanish I - Semester 1 - Teacher Supported","WLG-100AV1-P-TCH"]
[null,null,null,null,"WLG-100AVS1-P: 'WLG100AS:   Spanish I'","WLG100AS:   Spanish I","WLG-100AVS1-P"]
[null,null,null,null,"WLG-100AVS1-P-IND: 'WLG100AS:   Spanish I - Independent Study'","WLG100AS:   Spanish I - Independent Study","WLG-100AVS1-P-IND"]
[null,null,null,null,"WLG-100AVS1-P-TCH: 'WLG100AS:   Spanish I - Teacher Support'","WLG100AS:   Spanish I - Teacher Support","WLG-100AVS1-P-TCH"]
[null,null,null,null,"WLG-100BV1-M: 'WLG100B: Spanish I'","WLG100B: Spanish I","WLG-100BV1-M"]
[null,null,null,null,"WLG-100BV1-MIL: 'WLG100B-MIL: Spanish I'","WLG100B-MIL: Spanish I","WLG-100BV1-MIL"]
[null,null,null,null,"WLG-100BV1-P: 'WLG100BR:   Spanish I'","WLG100BR:   Spanish I","WLG-100BV1-P"]
[null,null,null,null,"WLG-100BV1-P-IND: 'WLG100B: Spanish I - Semester 2 - Independent Study'","WLG100B: Spanish I - Semester 2 - Independent Study","WLG-100BV1-P-IND"]
[null,null,null,null,"WLG-100BV1-P-TCH: 'WLG100B: Spanish I - Semester 2 - Teacher Supported'","WLG100B: Spanish I - Semester 2 - Teacher Supported","WLG-100BV1-P-TCH"]
[null,null,null,null,"WLG-100BVS1-P: 'WLG100BS:   Spanish I'","WLG100BS:   Spanish I","WLG-100BVS1-P"]
[null,null,null,null,"WLG-100BVS1-P-IND: 'WLG100BS:   Spanish I - Independent Study'","WLG100BS:   Spanish I - Independent Study","WLG-100BVS1-P-IND"]
[null,null,null,null,"WLG-100BVS1-P-TCH: 'WLG100BS:   Spanish I - Teacher Support'","WLG100BS:   Spanish I - Teacher Support","WLG-100BVS1-P-TCH"]
[null,null,null,null,"WLG-106AV1-AVT: 'WLG106A-AVT: Spanish I'","WLG106A-AVT: Spanish I","WLG-106AV1-AVT"]
[null,null,null,null,"WLG-106AV1NY-AVT: 'WLG106A-AVT-NY: Spanish I'","WLG106A-AVT-NY: Spanish I","WLG-106AV1NY-AVT"]
[null,null,null,null,"WLG-106AVS1-AVT: 'WLG106AS-AVT: Spanish I'","WLG106AS-AVT: Spanish I","WLG-106AVS1-AVT"]
[null,null,null,null,"WLG-106AVS1NY-AVT: 'WLG106AS-AVT-NY: Spanish I'","WLG106AS-AVT-NY: Spanish I","WLG-106AVS1NY-AVT"]
[null,null,null,null,"WLG-106BV1-AVT: 'WLG106B-AVT: Spanish I'","WLG106B-AVT: Spanish I","WLG-106BV1-AVT"]
[null,null,null,null,"WLG-106BV1NY-AVT: 'WLG106B-AVT-NY: Spanish I'","WLG106B-AVT-NY: Spanish I","WLG-106BV1NY-AVT"]
[null,null,null,null,"WLG-106BVS1-AVT: 'WLG106BS-AVT: Spanish I'","WLG106BS-AVT: Spanish I","WLG-106BVS1-AVT"]
[null,null,null,null,{"$f":"CONCATENATE(G3138,\": '\",F3138,\"'\")","v":"WLG-106BVS1NY-AVT: 'WLG106BS-AVT-NY: Spanish I'"},"WLG106BS-AVT-NY: Spanish I","WLG-106BVS1NY-AVT"]
[null,null,null,null,"WLG-110AV1-M: 'WLG110A: French I'","WLG110A: French I","WLG-110AV1-M"]
[null,null,null,null,"WLG-110AV1-MIL: 'WLG110A-MIL: French I'","WLG110A-MIL: French I","WLG-110AV1-MIL"]
[null,null,null,null,"WLG-110AV1-P: 'WLG110AR:   French I'","WLG110AR:   French I","WLG-110AV1-P"]
[null,null,null,null,"WLG-110AV1-P-IND: 'WLG110A: French I - Semester 1 - Independent Study'","WLG110A: French I - Semester 1 - Independent Study","WLG-110AV1-P-IND"]
[null,null,null,null,"WLG-110AV1-P-TCH: 'WLG110A: French I - Semester 1 - Teacher Supported'","WLG110A: French I - Semester 1 - Teacher Supported","WLG-110AV1-P-TCH"]
[null,null,null,null,"WLG-110AVS1-P: 'WLG110AS:   French I'","WLG110AS:   French I","WLG-110AVS1-P"]
[null,null,null,null,"WLG-110AVS1-P-IND: 'WLG110AS:   French I - Independent Study'","WLG110AS:   French I - Independent Study","WLG-110AVS1-P-IND"]
[null,null,null,null,"WLG-110AVS1-P-TCH: 'WLG110AS:   French I - Teacher Support'","WLG110AS:   French I - Teacher Support","WLG-110AVS1-P-TCH"]
[null,null,null,null,"WLG-110BV1-M: 'WLG110B: French I'","WLG110B: French I","WLG-110BV1-M"]
[null,null,null,null,"WLG-110BV1-MIL: 'WLG110B-MIL: French I'","WLG110B-MIL: French I","WLG-110BV1-MIL"]
[null,null,null,null,"WLG-110BV1-P: 'WLG110BR:   French I'","WLG110BR:   French I","WLG-110BV1-P"]
[null,null,null,null,"WLG-110BV1-P-IND: 'WLG110B: French I - Semester 2 - Independent Study'","WLG110B: French I - Semester 2 - Independent Study","WLG-110BV1-P-IND"]
[null,null,null,null,"WLG-110BV1-P-TCH: 'WLG110B: French I - Semester 2 - Teacher Supported'","WLG110B: French I - Semester 2 - Teacher Supported","WLG-110BV1-P-TCH"]
[null,null,null,null,"WLG-110BVS1-P: 'WLG110BS:   French I'","WLG110BS:   French I","WLG-110BVS1-P"]
[null,null,null,null,"WLG-110BVS1-P-IND: 'WLG110BS:   French I - Independent Study'","WLG110BS:   French I - Independent Study","WLG-110BVS1-P-IND"]
[null,null,null,null,"WLG-110BVS1-P-TCH: 'WLG110BS:   French I - Teacher Support'","WLG110BS:   French I - Teacher Support","WLG-110BVS1-P-TCH"]
[null,null,null,null,"WLG-120AV1-M: 'WLG120A: German I'","WLG120A: German I","WLG-120AV1-M"]
[null,null,null,null,"WLG-120AV1-P: 'WLG120AR:   German I'","WLG120AR:   German I","WLG-120AV1-P"]
[null,null,null,null,"WLG-120AV1-P-IND: 'WLG120A: German I - Semester 1 - Independent Study'","WLG120A: German I - Semester 1 - Independent Study","WLG-120AV1-P-IND"]
[null,null,null,null,"WLG-120AV1-P-TCH: 'WLG120A: German I - Semester 1 - Teacher Supported'","WLG120A: German I - Semester 1 - Teacher Supported","WLG-120AV1-P-TCH"]
[null,null,null,null,"WLG-120AVS1-P: 'WLG120AS:   German I'","WLG120AS:   German I","WLG-120AVS1-P"]
[null,null,null,null,"WLG-120AVS1-P-IND: 'WLG120AS:   German I - Independent Study'","WLG120AS:   German I - Independent Study","WLG-120AVS1-P-IND"]
[null,null,null,null,"WLG-120AVS1-P-TCH: 'WLG120AS:   German I - Teacher Support'","WLG120AS:   German I - Teacher Support","WLG-120AVS1-P-TCH"]
[null,null,null,null,"WLG-120BV1-M: 'WLG120B: German I'","WLG120B: German I","WLG-120BV1-M"]
[null,null,null,null,"WLG-120BV1-P: 'WLG120BR:   German I'","WLG120BR:   German I","WLG-120BV1-P"]
[null,null,null,null,"WLG-120BV1-P-IND: 'WLG120B: German I - Semester 2 - Independent Study'","WLG120B: German I - Semester 2 - Independent Study","WLG-120BV1-P-IND"]
[null,null,null,null,"WLG-120BV1-P-TCH: 'WLG120B: German I - Semester 2 - Teacher Supported'","WLG120B: German I - Semester 2 - Teacher Supported","WLG-120BV1-P-TCH"]
[null,null,null,null,"WLG-120BVS1-P: 'WLG120BS:   German I'","WLG120BS:   German I","WLG-120BVS1-P"]
[null,null,null,null,"WLG-120BVS1-P-IND: 'WLG120BS:   German I - Independent Study'","WLG120BS:   German I - Independent Study","WLG-120BVS1-P-IND"]
[null,null,null,null,"WLG-120BVS1-P-TCH: 'WLG120BS:   German I - Teacher Support'","WLG120BS:   German I - Teacher Support","WLG-120BVS1-P-TCH"]
[null,null,null,null,"WLG-130AV1-M: 'WLG130A: Latin I'","WLG130A: Latin I","WLG-130AV1-M"]
[null,null,null,null,"WLG-130AV1-P: 'WLG130AR:   Latin I'","WLG130AR:   Latin I","WLG-130AV1-P"]
[null,null,null,null,"WLG-130AV1-P-IND: 'WLG130A: Latin I - Semester 1 - Independent Study'","WLG130A: Latin I - Semester 1 - Independent Study","WLG-130AV1-P-IND"]
[null,null,null,null,"WLG-130AV1-P-TCH: 'WLG130A: Latin I - Semester 1 - Teacher Supported'","WLG130A: Latin I - Semester 1 - Teacher Supported","WLG-130AV1-P-TCH"]
[null,null,null,null,"WLG-130AVS1-P: 'WLG130AS:   Latin I'","WLG130AS:   Latin I","WLG-130AVS1-P"]
[null,null,null,null,"WLG-130AVS1-P-IND: 'WLG130AS:   Latin I - Independent Study'","WLG130AS:   Latin I - Independent Study","WLG-130AVS1-P-IND"]
[null,null,null,null,"WLG-130AVS1-P-TCH: 'WLG130AS:   Latin I - Teacher Support'","WLG130AS:   Latin I - Teacher Support","WLG-130AVS1-P-TCH"]
[null,null,null,null,"WLG-130BV1-M: 'WLG130B: Latin I'","WLG130B: Latin I","WLG-130BV1-M"]
[null,null,null,null,"WLG-130BV1-P: 'WLG130BR:   Latin I'","WLG130BR:   Latin I","WLG-130BV1-P"]
[null,null,null,null,"WLG-130BV1-P-IND: 'WLG130B: Latin I - Semester 2 - Independent Study'","WLG130B: Latin I - Semester 2 - Independent Study","WLG-130BV1-P-IND"]
[null,null,null,null,"WLG-130BV1-P-TCH: 'WLG130B: Latin I - Semester 2 - Teacher Supported'","WLG130B: Latin I - Semester 2 - Teacher Supported","WLG-130BV1-P-TCH"]
[null,null,null,null,"WLG-130BVS1-P: 'WLG130BS:   Latin I'","WLG130BS:   Latin I","WLG-130BVS1-P"]
[null,null,null,null,"WLG-130BVS1-P-IND: 'WLG130BS:   Latin I - Independent Study'","WLG130BS:   Latin I - Independent Study","WLG-130BVS1-P-IND"]
[null,null,null,null,"WLG-130BVS1-P-TCH: 'WLG130BS:   Latin I - Teacher Support'","WLG130BS:   Latin I - Teacher Support","WLG-130BVS1-P-TCH"]
[null,null,null,null,"WLG-140AV1-M: 'WLG140A: Chinese I'","WLG140A: Chinese I","WLG-140AV1-M"]
[null,null,null,null,"WLG-140AV1-MIL: 'WLG140A-MIL: Chinese I'","WLG140A-MIL: Chinese I","WLG-140AV1-MIL"]
[null,null,null,null,"WLG-140AV1-P: 'WLG140AR:   Chinese I'","WLG140AR:   Chinese I","WLG-140AV1-P"]
[null,null,null,null,"WLG-140AV1-P-IND: 'WLG140A: Chinese I - Semester 1 - Independent Study'","WLG140A: Chinese I - Semester 1 - Independent Study","WLG-140AV1-P-IND"]
[null,null,null,null,"WLG-140AV1-P-TCH: 'WLG140A: Chinese I - Semester 1 - Teacher Supported'","WLG140A: Chinese I - Semester 1 - Teacher Supported","WLG-140AV1-P-TCH"]
[null,null,null,null,"WLG-140AVS1-P: 'WLG140AS:   Chinese I'","WLG140AS:   Chinese I","WLG-140AVS1-P"]
[null,null,null,null,"WLG-140AVS1-P-IND: 'WLG140AS:   Chinese I - Independent Study'","WLG140AS:   Chinese I - Independent Study","WLG-140AVS1-P-IND"]
[null,null,null,null,"WLG-140AVS1-P-TCH: 'WLG140AS:   Chinese I - Teacher Support'","WLG140AS:   Chinese I - Teacher Support","WLG-140AVS1-P-TCH"]
[null,null,null,null,"WLG-140BV1-M: 'WLG140B: Chinese I'","WLG140B: Chinese I","WLG-140BV1-M"]
[null,null,null,null,"WLG-140BV1-MIL: 'WLG140B-MIL: Chinese I'","WLG140B-MIL: Chinese I","WLG-140BV1-MIL"]
[null,null,null,null,"WLG-140BV1-P: 'WLG140BR:   Chinese I'","WLG140BR:   Chinese I","WLG-140BV1-P"]
[null,null,null,null,"WLG-140BV1-P-IND: 'WLG140B: Chinese I - Semester 2 - Independent Study'","WLG140B: Chinese I - Semester 2 - Independent Study","WLG-140BV1-P-IND"]
[null,null,null,null,"WLG-140BV1-P-TCH: 'WLG140B: Chinese I - Semester 2 - Teacher Supported'","WLG140B: Chinese I - Semester 2 - Teacher Supported","WLG-140BV1-P-TCH"]
[null,null,null,null,"WLG-140BVS1-P: 'WLG140BS:   Chinese I'","WLG140BS:   Chinese I","WLG-140BVS1-P"]
[null,null,null,null,"WLG-140BVS1-P-IND: 'WLG140BS:   Chinese I - Independent Study'","WLG140BS:   Chinese I - Independent Study","WLG-140BVS1-P-IND"]
[null,null,null,null,"WLG-140BVS1-P-TCH: 'WLG140BS:   Chinese I - Teacher Support'","WLG140BS:   Chinese I - Teacher Support","WLG-140BVS1-P-TCH"]
[null,null,null,null,"WLG-150AV1-AVT: 'WLG150A-AVT: Japanese I'","WLG150A-AVT: Japanese I","WLG-150AV1-AVT"]
[null,null,null,null,"WLG-150BV1-AVT: 'WLG150B-AVT: Japanese I'","WLG150B-AVT: Japanese I","WLG-150BV1-AVT"]
[null,null,null,null,"WLG-200AV1-M: 'WLG200A: Spanish II'","WLG200A: Spanish II","WLG-200AV1-M"]
[null,null,null,null,{"$f":"CONCATENATE(G3202,\": '\",F3202,\"'\")","v":"WLG-200AV1-P: 'WLG200AR:   Spanish II'"},"WLG200AR:   Spanish II","WLG-200AV1-P"]
[null,null,null,null,"WLG-200AV1-P-IND: 'WLG200A: Spanish II - Semester 1 - Independent Study'","WLG200A: Spanish II - Semester 1 - Independent Study","WLG-200AV1-P-IND"]
[null,null,null,null,"WLG-200AV1-P-TCH: 'WLG200A: Spanish II - Semester 1 - Teacher Supported'","WLG200A: Spanish II - Semester 1 - Teacher Supported","WLG-200AV1-P-TCH"]
[null,null,null,null,"WLG-200AVS1-P: 'WLG200AS:   Spanish II'","WLG200AS:   Spanish II","WLG-200AVS1-P"]
[null,null,null,null,"WLG-200AVS1-P-IND: 'WLG200AS:   Spanish II - Independent Study'","WLG200AS:   Spanish II - Independent Study","WLG-200AVS1-P-IND"]
[null,null,null,null,"WLG-200AVS1-P-TCH: 'WLG200AS:   Spanish II - Teacher Support'","WLG200AS:   Spanish II - Teacher Support","WLG-200AVS1-P-TCH"]
[null,null,null,null,"WLG-200BV1-M: 'WLG200B: Spanish II'","WLG200B: Spanish II","WLG-200BV1-M"]
[null,null,null,null,"WLG-200B-V1-M: 'WLG200B: Spanish II*'","WLG200B: Spanish II*","WLG-200B-V1-M"]
[null,null,null,null,"WLG-200BV1-P: 'WLG200BR:   Spanish II'","WLG200BR:   Spanish II","WLG-200BV1-P"]
[null,null,null,null,"WLG-200BV1-P-IND: 'WLG200B: Spanish II - Semester 2 - Independent Study'","WLG200B: Spanish II - Semester 2 - Independent Study","WLG-200BV1-P-IND"]
[null,null,null,null,"WLG-200BV1-P-TCH: 'WLG200B: Spanish II - Semester 2 - Teacher Supported'","WLG200B: Spanish II - Semester 2 - Teacher Supported","WLG-200BV1-P-TCH"]
[null,null,null,null,"WLG-200BVS1-P: 'WLG200BS:   Spanish II'","WLG200BS:   Spanish II","WLG-200BVS1-P"]
[null,null,null,null,"WLG-200BVS1-P-IND: 'WLG200BS:   Spanish II - Independent Study'","WLG200BS:   Spanish II - Independent Study","WLG-200BVS1-P-IND"]
[null,null,null,null,"WLG-200BVS1-P-TCH: 'WLG200BS:   Spanish II - Teacher Support'","WLG200BS:   Spanish II - Teacher Support","WLG-200BVS1-P-TCH"]
[null,null,null,null,"WLG-210AV1-M: 'WLG210A: French II'","WLG210A: French II","WLG-210AV1-M"]
[null,null,null,null,"WLG-210AV1-P: 'WLG210AR:   French II'","WLG210AR:   French II","WLG-210AV1-P"]
[null,null,null,null,"WLG-210AV1-P-IND: 'WLG210A: French II - Semester 1 - Independent Study'","WLG210A: French II - Semester 1 - Independent Study","WLG-210AV1-P-IND"]
[null,null,null,null,"WLG-210AV1-P-TCH: 'WLG210A: French II - Semester 1 - Teacher Supported'","WLG210A: French II - Semester 1 - Teacher Supported","WLG-210AV1-P-TCH"]
[null,null,null,null,"WLG-210AVS1-P: 'WLG210AS:   French II'","WLG210AS:   French II","WLG-210AVS1-P"]
[null,null,null,null,"WLG-210AVS1-P-IND: 'WLG210AS:   French II - Independent Study'","WLG210AS:   French II - Independent Study","WLG-210AVS1-P-IND"]
[null,null,null,null,"WLG-210AVS1-P-TCH: 'WLG210AS:   French II - Teacher Support'","WLG210AS:   French II - Teacher Support","WLG-210AVS1-P-TCH"]
[null,null,null,null,"WLG-210BV1-M: 'WLG210B: French II'","WLG210B: French II","WLG-210BV1-M"]
[null,null,null,null,"WLG-210BV1-P: 'WLG210BR:   French II'","WLG210BR:   French II","WLG-210BV1-P"]
[null,null,null,null,"WLG-210BV1-P-IND: 'WLG210B: French II - Semester 2 - Independent Study'","WLG210B: French II - Semester 2 - Independent Study","WLG-210BV1-P-IND"]
[null,null,null,null,"WLG-210BV1-P-TCH: 'WLG210B: French II - Semester 2 - Teacher Supported'","WLG210B: French II - Semester 2 - Teacher Supported","WLG-210BV1-P-TCH"]
[null,null,null,null,"WLG-210BVS1-P: 'WLG210BS:   French II'","WLG210BS:   French II","WLG-210BVS1-P"]
[null,null,null,null,"WLG-210BVS1-P-IND: 'WLG210BS:   French II - Independent Study'","WLG210BS:   French II - Independent Study","WLG-210BVS1-P-IND"]
[null,null,null,null,"WLG-210BVS1-P-TCH: 'WLG210BS:   French II - Teacher Support'","WLG210BS:   French II - Teacher Support","WLG-210BVS1-P-TCH"]
[null,null,null,null,"WLG-220AV1-M: 'WLG220A: German II'","WLG220A: German II","WLG-220AV1-M"]
[null,null,null,null,"WLG-220AV1-P: 'WLG220AR:   German II'","WLG220AR:   German II","WLG-220AV1-P"]
[null,null,null,null,"WLG-220AV1-P-IND: 'WLG220A: German II - Semester 1 - Independent Study'","WLG220A: German II - Semester 1 - Independent Study","WLG-220AV1-P-IND"]
[null,null,null,null,"WLG-220AV1-P-TCH: 'WLG220A: German II - Semester 1 - Teacher Supported'","WLG220A: German II - Semester 1 - Teacher Supported","WLG-220AV1-P-TCH"]
[null,null,null,null,"WLG-220AVS1-P: 'WLG220AS:   German II'","WLG220AS:   German II","WLG-220AVS1-P"]
[null,null,null,null,"WLG-220AVS1-P-IND: 'WLG220AS:   German II - Independent Study'","WLG220AS:   German II - Independent Study","WLG-220AVS1-P-IND"]
[null,null,null,null,"WLG-220AVS1-P-TCH: 'WLG220AS:   German II - Teacher Support'","WLG220AS:   German II - Teacher Support","WLG-220AVS1-P-TCH"]
[null,null,null,null,"WLG-220BV1-M: 'WLG220B: German II'","WLG220B: German II","WLG-220BV1-M"]
[null,null,null,null,"WLG-220BV1-P: 'WLG220BR:   German II'","WLG220BR:   German II","WLG-220BV1-P"]
[null,null,null,null,"WLG-220BV1-P-IND: 'WLG220B: German II - Semester 2 - Independent Study'","WLG220B: German II - Semester 2 - Independent Study","WLG-220BV1-P-IND"]
[null,null,null,null,"WLG-220BV1-P-TCH: 'WLG220B: German II - Semester 2 - Teacher Supported'","WLG220B: German II - Semester 2 - Teacher Supported","WLG-220BV1-P-TCH"]
[null,null,null,null,"WLG-220BVS1-P: 'WLG220BS:   German II'","WLG220BS:   German II","WLG-220BVS1-P"]
[null,null,null,null,"WLG-220BVS1-P-IND: 'WLG220BS:   German II - Independent Study'","WLG220BS:   German II - Independent Study","WLG-220BVS1-P-IND"]
[null,null,null,null,"WLG-220BVS1-P-TCH: 'WLG220BS:   German II - Teacher Support'","WLG220BS:   German II - Teacher Support","WLG-220BVS1-P-TCH"]
[null,null,null,null,"WLG-230AV1-M: 'WLG230A: Latin II'","WLG230A: Latin II","WLG-230AV1-M"]
[null,null,null,null,"WLG-230AV1-P: 'WLG230AR:   Latin II'","WLG230AR:   Latin II","WLG-230AV1-P"]
[null,null,null,null,"WLG-230AV1-P-IND: 'WLG230A: Latin II - Semester 1 - Independent Study'","WLG230A: Latin II - Semester 1 - Independent Study","WLG-230AV1-P-IND"]
[null,null,null,null,"WLG-230AV1-P-TCH: 'WLG230A: Latin II - Semester 1 - Teacher Supported'","WLG230A: Latin II - Semester 1 - Teacher Supported","WLG-230AV1-P-TCH"]
[null,null,null,null,"WLG-230AVS1-P: 'WLG230AS:   Latin II'","WLG230AS:   Latin II","WLG-230AVS1-P"]
[null,null,null,null,"WLG-230AVS1-P-IND: 'WLG230AS:   Latin II - Independent Study'","WLG230AS:   Latin II - Independent Study","WLG-230AVS1-P-IND"]
[null,null,null,null,"WLG-230AVS1-P-TCH: 'WLG230AS:   Latin II - Teacher Support'","WLG230AS:   Latin II - Teacher Support","WLG-230AVS1-P-TCH"]
[null,null,null,null,"WLG-230BV1-M: 'WLG230B: Latin II'","WLG230B: Latin II","WLG-230BV1-M"]
[null,null,null,null,"WLG-230BV1-P: 'WLG230BR:   Latin II'","WLG230BR:   Latin II","WLG-230BV1-P"]
[null,null,null,null,"WLG-230BV1-P-IND: 'WLG230B: Latin II - Semester 2 - Independent Study'","WLG230B: Latin II - Semester 2 - Independent Study","WLG-230BV1-P-IND"]
[null,null,null,null,"WLG-230BV1-P-TCH: 'WLG230B: Latin II - Semester 2 - Teacher Supported'","WLG230B: Latin II - Semester 2 - Teacher Supported","WLG-230BV1-P-TCH"]
[null,null,null,null,"WLG-230BVS1-P: 'WLG230BS:   Latin II'","WLG230BS:   Latin II","WLG-230BVS1-P"]
[null,null,null,null,"WLG-230BVS1-P-IND: 'WLG230BS:   Latin II - Independent Study'","WLG230BS:   Latin II - Independent Study","WLG-230BVS1-P-IND"]
[null,null,null,null,"WLG-230BVS1-P-TCH: 'WLG230BS:   Latin II - Teacher Support'","WLG230BS:   Latin II - Teacher Support","WLG-230BVS1-P-TCH"]
[null,null,null,null,"WLG-240AV1-M: 'WLG240A: Chinese II'","WLG240A: Chinese II","WLG-240AV1-M"]
[null,null,null,null,"WLG-240AV1-P: 'WLG240AR:   Chinese II'","WLG240AR:   Chinese II","WLG-240AV1-P"]
[null,null,null,null,"WLG-240AV1-P-IND: 'WLG240A: Chinese II - Semester 1 - Independent Study'","WLG240A: Chinese II - Semester 1 - Independent Study","WLG-240AV1-P-IND"]
[null,null,null,null,"WLG-240AV1-P-TCH: 'WLG240A: Chinese II - Semester 1 - Teacher Supported'","WLG240A: Chinese II - Semester 1 - Teacher Supported","WLG-240AV1-P-TCH"]
[null,null,null,null,"WLG-240AVS1-P: 'WLG240AS:   Chinese II'","WLG240AS:   Chinese II","WLG-240AVS1-P"]
[null,null,null,null,"WLG-240AVS1-P-IND: 'WLG240AS:   Chinese II - Independent Study'","WLG240AS:   Chinese II - Independent Study","WLG-240AVS1-P-IND"]
[null,null,null,null,"WLG-240AVS1-P-TCH: 'WLG240AS:   Chinese II - Teacher Support'","WLG240AS:   Chinese II - Teacher Support","WLG-240AVS1-P-TCH"]
[null,null,null,null,"WLG-240BV1-M: 'WLG240B: Chinese II'","WLG240B: Chinese II","WLG-240BV1-M"]
[null,null,null,null,{"$f":"CONCATENATE(G3266,\": '\",F3266,\"'\")","v":"WLG-240BV1-P: 'WLG240BR:   Chinese II'"},"WLG240BR:   Chinese II","WLG-240BV1-P"]
[null,null,null,null,"WLG-240BV1-P-IND: 'WLG240B: Chinese II - Semester 2 - Independent Study'","WLG240B: Chinese II - Semester 2 - Independent Study","WLG-240BV1-P-IND"]
[null,null,null,null,"WLG-240BV1-P-TCH: 'WLG240B: Chinese II - Semester 2 - Teacher Supported'","WLG240B: Chinese II - Semester 2 - Teacher Supported","WLG-240BV1-P-TCH"]
[null,null,null,null,"WLG-240BVS1-P: 'WLG240BS:   Chinese II'","WLG240BS:   Chinese II","WLG-240BVS1-P"]
[null,null,null,null,"WLG-240BVS1-P-IND: 'WLG240BS:   Chinese II - Independent Study'","WLG240BS:   Chinese II - Independent Study","WLG-240BVS1-P-IND"]
[null,null,null,null,"WLG-240BVS1-P-TCH: 'WLG240BS:   Chinese II - Teacher Support'","WLG240BS:   Chinese II - Teacher Support","WLG-240BVS1-P-TCH"]
[null,null,null,null,"WLG-250AV1-AVT: 'WLG250A-AVT: Japanese II'","WLG250A-AVT: Japanese II","WLG-250AV1-AVT"]
[null,null,null,null,"WLG-250BV1-AVT: 'WLG250B-AVT: Japanese II'","WLG250B-AVT: Japanese II","WLG-250BV1-AVT"]
[null,null,null,null,"WLG-300AV1-M: 'WLG300A: Spanish III'","WLG300A: Spanish III","WLG-300AV1-M"]
[null,null,null,null,"WLG-300AV1-P: 'WLG300AR:   Spanish III'","WLG300AR:   Spanish III","WLG-300AV1-P"]
[null,null,null,null,"WLG-300AV1-P-IND: 'WLG300A: Spanish III - Semester 1 - Independent Study'","WLG300A: Spanish III - Semester 1 - Independent Study","WLG-300AV1-P-IND"]
[null,null,null,null,"WLG-300AV1-P-TCH: 'WLG300A: Spanish III - Semester 1 - Teacher Supported'","WLG300A: Spanish III - Semester 1 - Teacher Supported","WLG-300AV1-P-TCH"]
[null,null,null,null,"WLG-300AVS1-P: 'WLG300AS:   Spanish III'","WLG300AS:   Spanish III","WLG-300AVS1-P"]
[null,null,null,null,"WLG-300AVS1-P-IND: 'WLG300AS:   Spanish III - Independent Study'","WLG300AS:   Spanish III - Independent Study","WLG-300AVS1-P-IND"]
[null,null,null,null,"WLG-300AVS1-P-TCH: 'WLG300AS:   Spanish III - Teacher Support'","WLG300AS:   Spanish III - Teacher Support","WLG-300AVS1-P-TCH"]
[null,null,null,null,"WLG-300BV1-M: 'WLG300B: Spanish III'","WLG300B: Spanish III","WLG-300BV1-M"]
[null,null,null,null,"WLG-300BV1-P: 'WLG300BR:   Spanish III'","WLG300BR:   Spanish III","WLG-300BV1-P"]
[null,null,null,null,"WLG-300BV1-P-IND: 'WLG300B: Spanish III - Semester 2 - Independent Study'","WLG300B: Spanish III - Semester 2 - Independent Study","WLG-300BV1-P-IND"]
[null,null,null,null,"WLG-300BV1-P-TCH: 'WLG300B: Spanish III - Semester 2 - Teacher Supported'","WLG300B: Spanish III - Semester 2 - Teacher Supported","WLG-300BV1-P-TCH"]
[null,null,null,null,"WLG-300BVS1-P: 'WLG300BS:   Spanish III'","WLG300BS:   Spanish III","WLG-300BVS1-P"]
[null,null,null,null,"WLG-300BVS1-P-IND: 'WLG300BS:   Spanish III - Independent Study'","WLG300BS:   Spanish III - Independent Study","WLG-300BVS1-P-IND"]
[null,null,null,null,"WLG-300BVS1-P-TCH: 'WLG300BS:   Spanish III - Teacher Support'","WLG300BS:   Spanish III - Teacher Support","WLG-300BVS1-P-TCH"]
[null,null,null,null,"WLG-310AV1-M: 'WLG310A: French III'","WLG310A: French III","WLG-310AV1-M"]
[null,null,null,null,"WLG-310AV1-P: 'WLG310AR:   French III'","WLG310AR:   French III","WLG-310AV1-P"]
[null,null,null,null,"WLG-310AV1-P-IND: 'WLG310A: French III - Semester 1 - Independent Study'","WLG310A: French III - Semester 1 - Independent Study","WLG-310AV1-P-IND"]
[null,null,null,null,"WLG-310AV1-P-TCH: 'WLG310A: French III - Semester 1 - Teacher Supported'","WLG310A: French III - Semester 1 - Teacher Supported","WLG-310AV1-P-TCH"]
[null,null,null,null,"WLG-310AVS1-P: 'WLG310AS:   French III'","WLG310AS:   French III","WLG-310AVS1-P"]
[null,null,null,null,"WLG-310AVS1-P-IND: 'WLG310AS:   French III - Independent Study'","WLG310AS:   French III - Independent Study","WLG-310AVS1-P-IND"]
[null,null,null,null,"WLG-310AVS1-P-TCH: 'WLG310AS:   French III - Teacher Support'","WLG310AS:   French III - Teacher Support","WLG-310AVS1-P-TCH"]
[null,null,null,null,"WLG-310BV1-M: 'WLG310B: French III'","WLG310B: French III","WLG-310BV1-M"]
[null,null,null,null,"WLG-310BV1-P: 'WLG310BR:   French III'","WLG310BR:   French III","WLG-310BV1-P"]
[null,null,null,null,"WLG-310BV1-P-IND: 'WLG310B: French III - Semester 2 - Independent Study'","WLG310B: French III - Semester 2 - Independent Study","WLG-310BV1-P-IND"]
[null,null,null,null,"WLG-310BV1-P-TCH: 'WLG310B: French III - Semester 2 - Teacher Supported'","WLG310B: French III - Semester 2 - Teacher Supported","WLG-310BV1-P-TCH"]
[null,null,null,null,"WLG-310BVS1-P: 'WLG310BS:   French III'","WLG310BS:   French III","WLG-310BVS1-P"]
[null,null,null,null,"WLG-310BVS1-P-IND: 'WLG310BS:   French III - Independent Study'","WLG310BS:   French III - Independent Study","WLG-310BVS1-P-IND"]
[null,null,null,null,"WLG-310BVS1-P-TCH: 'WLG310BS:   French III - Teacher Support'","WLG310BS:   French III - Teacher Support","WLG-310BVS1-P-TCH"]
[null,null,null,null,"WLG-320AV1-AVT: 'WLG320A-AVT: German III'","WLG320A-AVT: German III","WLG-320AV1-AVT"]
[null,null,null,null,"WLG-320BV1-AVT: 'WLG320B-AVT: German III'","WLG320B-AVT: German III","WLG-320BV1-AVT"]
[null,null,null,null,"WLG-400AV1-AVT: 'WLG400A-AVT: Spanish IV'","WLG400A-AVT: Spanish IV","WLG-400AV1-AVT"]
[null,null,null,null,"WLG-400BV1-AVT: 'WLG400B-AVT: Spanish IV'","WLG400B-AVT: Spanish IV","WLG-400BV1-AVT"]
[null,null,null,null,"WLG-410AV1-AVT: 'WLG410A-AVT: French IV'","WLG410A-AVT: French IV","WLG-410AV1-AVT"]
[null,null,null,null,"WLG-410BV1-AVT: 'WLG410B-AVT: French IV'","WLG410B-AVT: French IV","WLG-410BV1-AVT"]
[null,null,null,null,"WLG-420AV1-AVT: 'WLG420A-AVT: German IV'","WLG420A-AVT: German IV","WLG-420AV1-AVT"]
[null,null,null,null,"WLG-420BV1-AVT: 'WLG420B-AVT: German IV'","WLG420B-AVT: German IV","WLG-420BV1-AVT"]
[null,null,null,null,"WLG-500AV1-A-IND: 'WLG500A: AP(R) Spanish Language - Semester 1 - Independent Study'","WLG500A: AP(R) Spanish Language - Semester 1 - Independent Study","WLG-500AV1-A-IND"]
[null,null,null,null,"WLG-500AV1-A-TCH: 'WLG500A: AP(R) Spanish Language - Semester 1 - Teacher Supported'","WLG500A: AP(R) Spanish Language - Semester 1 - Teacher Supported","WLG-500AV1-A-TCH"]
[null,null,null,null,"WLG-500AV1-M: 'WLG500A: AP(R) Spanish Language and Culture'","WLG500A: AP(R) Spanish Language and Culture","WLG-500AV1-M"]
[null,null,null,null,"WLG-500AV1-P: 'WLG500AR:  AP(R) Spanish Language'","WLG500AR:  AP(R) Spanish Language","WLG-500AV1-P"]
[null,null,null,null,"WLG-500AVS1-A: 'WLG500A:   AP® Spanish Language (Summer)'","WLG500A:   AP® Spanish Language (Summer)","WLG-500AVS1-A"]
[null,null,null,null,"WLG-500AVS1-P: 'WLG500AS:   AP(R) Spanish Language'","WLG500AS:   AP(R) Spanish Language","WLG-500AVS1-P"]
[null,null,null,null,"WLG-500AVS1-P-IND: 'WLG500AS:   AP¿ Spanish Language - Independent Study'","WLG500AS:   AP¿ Spanish Language - Independent Study","WLG-500AVS1-P-IND"]
[null,null,null,null,"WLG-500AVS1-P-TCH: 'WLG500AS:   AP¿ Spanish Language - Teacher Support'","WLG500AS:   AP¿ Spanish Language - Teacher Support","WLG-500AVS1-P-TCH"]
[null,null,null,null,"WLG-500BV1-A-IND: 'WLG500B: AP(R) Spanish Language - Semester 2 - Independent Study'","WLG500B: AP(R) Spanish Language - Semester 2 - Independent Study","WLG-500BV1-A-IND"]
[null,null,null,null,"WLG-500BV1-A-TCH: 'WLG500B: AP(R) Spanish Language - Semester 2 - Teacher Supported'","WLG500B: AP(R) Spanish Language - Semester 2 - Teacher Supported","WLG-500BV1-A-TCH"]
[null,null,null,null,"WLG-500BV1-M: 'WLG500B: AP(R) Spanish Language and Culture'","WLG500B: AP(R) Spanish Language and Culture","WLG-500BV1-M"]
[null,null,null,null,"WLG-500BV1-P: 'WLG500BR:  AP(R) Spanish Language'","WLG500BR:  AP(R) Spanish Language","WLG-500BV1-P"]
[null,null,null,null,"WLG-500BVS1-A: 'WLG500B:   AP® Spanish Language (Summer)'","WLG500B:   AP® Spanish Language (Summer)","WLG-500BVS1-A"]
[null,null,null,null,"WLG-500BVS1-P: 'WLG500BS:   AP(R) Spanish Language'","WLG500BS:   AP(R) Spanish Language","WLG-500BVS1-P"]
[null,null,null,null,"WLG-500BVS1-P-IND: 'WLG500BS:   AP¿ Spanish Language - Independent Study'","WLG500BS:   AP¿ Spanish Language - Independent Study","WLG-500BVS1-P-IND"]
[null,null,null,null,"WLG-500BVS1-P-TCH: 'WLG500BS:   AP¿ Spanish Language - Teacher Support'","WLG500BS:   AP¿ Spanish Language - Teacher Support","WLG-500BVS1-P-TCH"]
[null,null,null,null,"WLG-510AV1-A-IND: 'WLG510A: AP(R) French Language - Semester 1 - Independent Study'","WLG510A: AP(R) French Language - Semester 1 - Independent Study","WLG-510AV1-A-IND"]
[null,null,null,null,"WLG-510AV1-A-TCH: 'WLG510A: AP(R) French Language - Semester 1 - Teacher Supported'","WLG510A: AP(R) French Language - Semester 1 - Teacher Supported","WLG-510AV1-A-TCH"]
[null,null,null,null,"WLG-510AV1-M: 'WLG510A: AP(R) French Language and Culture'","WLG510A: AP(R) French Language and Culture","WLG-510AV1-M"]
[null,null,null,null,"WLG-510AV1-P: 'WLG510AR:  AP(R) French Language'","WLG510AR:  AP(R) French Language","WLG-510AV1-P"]
[null,null,null,null,{"$f":"CONCATENATE(G3330,\": '\",F3330,\"'\")","v":"WLG-510AVS1-A: 'WLG510A:   AP® French Language (Summer)'"},"WLG510A:   AP® French Language (Summer)","WLG-510AVS1-A"]
[null,null,null,null,"WLG-510AVS1-P: 'WLG510AS:   AP(R) French Language'","WLG510AS:   AP(R) French Language","WLG-510AVS1-P"]
[null,null,null,null,"WLG-510AVS1-P-IND: 'WLG510AS:   AP¿ French Language - Independent Study'","WLG510AS:   AP¿ French Language - Independent Study","WLG-510AVS1-P-IND"]
[null,null,null,null,"WLG-510AVS1-P-TCH: 'WLG510AS:   AP¿ French Language - Teacher Support'","WLG510AS:   AP¿ French Language - Teacher Support","WLG-510AVS1-P-TCH"]
[null,null,null,null,"WLG-510BV1-A-IND: 'WLG510B: AP(R) French Language - Semester 2 - Independent Study'","WLG510B: AP(R) French Language - Semester 2 - Independent Study","WLG-510BV1-A-IND"]
[null,null,null,null,"WLG-510BV1-A-TCH: 'WLG510B: AP(R) French Language - Semester 2 - Teacher Supported'","WLG510B: AP(R) French Language - Semester 2 - Teacher Supported","WLG-510BV1-A-TCH"]
[null,null,null,null,"WLG-510BV1-M: 'WLG510B: AP(R) French Language and Culture'","WLG510B: AP(R) French Language and Culture","WLG-510BV1-M"]
[null,null,null,null,"WLG-510BV1-P: 'WLG510BR:  AP(R) French Language'","WLG510BR:  AP(R) French Language","WLG-510BV1-P"]
[null,null,null,null,"WLG-510BVS1-A: 'WLG510B:   AP® French Language (Summer)'","WLG510B:   AP® French Language (Summer)","WLG-510BVS1-A"]
[null,null,null,null,"WLG-510BVS1-P: 'WLG510BS:   AP(R) French Language'","WLG510BS:   AP(R) French Language","WLG-510BVS1-P"]
[null,null,null,null,"WLG-510BVS1-P-IND: 'WLG510BS:   AP¿ French Language - Independent Study'","WLG510BS:   AP¿ French Language - Independent Study","WLG-510BVS1-P-IND"]
[null,null,null,null,"WLG-510BVS1-P-TCH: 'WLG510BS:   AP¿ French Language - Teacher Support'","WLG510BS:   AP¿ French Language - Teacher Support","WLG-510BVS1-P-TCH"]